Workbook

Sheet Notes
A1: Applying SRM.xlsm
A2: Coded 2012-JUN-13 by Ronald McAllister (rpmac_xltt@sprynet.com)
A4: This Workbook demonstrates an EXCEL version of the ideas presented
A5: by Giorgos E Siligardos, PhD in an article titled "Applying The Sector Rotation Model"
A6: which appeared in the August 2012 issue of
A7: "Technical Analysis of Stocks and Commodities" magazine.
A9: Data for this EXCEL example was retrieved from Yahoo Finance.
A11: Price History files used in this article can be retrieved from Yahoo Finance: http://finance.yahoo.com
A12: The Yahoo Finance symbols for the various indices are the same as used in the article: XLY, XLF, XLE, XLU, and XLP.
A13: The S&P500 index can be found as Yahoo symbol ^GSPC. S&P500 goes back a long ways. Here I have truncated it to match the data available in the other 5 indexes.
A14: At the top of the page enter the symbol and then "Get Quotes". This takes you to the summary page for the selected symbol. Capture the name here.
A15: Select "Historical Prices" from the left margin.
A16: At the top of the history page select the bullet for "Daily" and then click "Get Prices". The "Get Prices" button sets the type of download for the next step.
A17: Then go to the bottom of the page and click "Download to Spreadsheet".
A18: Use the "Save As" option to save the file to your drive for later input processing. This would be a good time to name the file with the captured name/symbol. (See "Automated data import" below)
A19: Note: The resulting .csv files are in date-descending sequence (most recent first) and may be used in this spread sheet with out sorting.
A21: Automated data import
A22: Each of the InputPriceData tabs now has a button that will automate importing Price History data which you have previously downloaded to your hard drive from Yahoo Finance (.csv format please!)
A23: The VBA macro code behind this button uses the standard EXCEL file open dialog to allow you to navigate to the directory where you have stored the downloaded
A24: history files. You may then select the file you are interested in.
A25: Subsequent processing will adjust the Open, High, Low, and Close prices as indicated by the Adjusted Close values provided in the downloaded file.
A26: Both the Raw and the Adjusted data will be copied to the InputPriceData tab for use in this workbook.
A27: However, YOU must:
B28: a. | C28: Enter the symbol and description in cell A1 of the InputPriceData tab after you use the button: YAHOO history files DO NOT contain the symbol or a description!
B29: b. | C29: Manually adjust/align the data on each tab so that the date in cell B11 of each Input tab matches! This worksheet will not do it for you!
C30: However, if you downloaded all 6 sets of history on the same day and import all 6, they should be date aligned.
A31: Note: After the data has been transferred to this workbook, the source history file will be closed with out saving it so that it remains unchanged for future uses.
A33: Development Notes:
A34: 1 | C34: This workbook contains and uses VBA macros.
A36: 2 | C36: Input Data
B37: A. | C37: The data in this workbook is sorted date descending (most recent date at the top) and the formulas are built accordingly.
B39: B. | C39: I have had a number of inquiries regarding replacing, or just adding data to previous EXCEL based Traders Tips.
C40: In previous versions, adding/changing data was problematic because the formulas were coded in the same rows as the input data and were
C41: inextricably tied to the input data locations and to each other.
C42: In this workbook I have taken steps to facilitate your ability to alter the input data by isolating the calculations from the input data as much as possible.
C43: I strongly suggest that you take advantage of the button on the InputPriceData tab to perform complete replacements as that automates the whole process. However, if you so desire,
C44: you may still freely add data rows to the InputPriceData worksheet at the top, bottom, middle of the data section. Or you may completely replace the data detail rows, as long as
C45: you do not disturb the headings in row 10 or the computations in cells B7 or G7:G8. Do update the symbol and name in InputPriceData cell A1 if you change securities.
C46: The CalculationsAndCharts worksheet obtains it's data from the InputPriceData worksheet using OFFSET references relative to the headings in row 10.
A48: Calculation and Chart Worksheet Usage Comments:
A49: 1 | C49: In General, Items in Bolded BLUE are items you may freely change to play what-if games.
C50: Be sure to have a backup copy of the spreadsheet before you alter anything else.
A51: 2 | C51: Data windowing can be performed by changing cell A11. Positive values logically "Pan" the data window represented by the Calculation sheet down the input sheet and back in time.
C52: This can have two side effects: First, data may fall outside of the fixed Y-axis scales and be clipped or fall well inside the Y-axis scales wasting a lot of chart vertical space.
C53: Second, you may move far enough back that you do not have sufficient data points to fill the left of the chart.
A54: 3 | C54: The VBA macros behind the Green button address these Data Windowing problems and also resizes and vertically aligns all charts on the work sheet to match the Price chart
C55: and then horizontally adjusts the X-axis positions of all charts on the work sheet so that the corresponding data points align vertically.
C56: The macros behind the green button are sensitive to the user control values in cells A11 and A12, and also uses the computed values in cells A8, F11, and F12
A58: Chart Notes:
A59: 1 | C59: The chart presented here attempts to replicate Figure 3 from the article. Not all of the available data is used due to #ZeroDevide for ROC values within 75 days of oldest available data
A60: 2 | C60: Price Data is plotted on primary axis of the main chart as candlesticks. The very visible difference in vertical display from Figure 3 of the article is due to plotting the value axis as a normal scale where
C61: the price chart in the article is plotted on a logarithmic scale. EXCEL's handling of LOG scales is awkward at best so I tend to avoid using LOG scales.
A62: 3 | C62: SRMind plotted as stacked bar
A63: 4 | C63: All data plotted in reverse order to get dates/times to read ascending left to right.

Sheet CalculationsAndCharts
A1: Sector Rotation Model Indicator
B2: Price Data: | C2: =InputPriceData!A1 -> S&P500(^GSPC)
A4: User Charting Controls
A5: Data Control
A6: =InputPriceData!$B$7 -> 3388 | B6: Available Input Data Rows | E6: Earliest: | F6: =OFFSET(InputPriceData!B10,CalculationsAndCharts!A6,0,1,1) -> 1998-12-22
E7: Latest: | F7: =OFFSET(InputPriceData!B10,1,0,1,1) -> 2012-06-08
A8: =MIN(A6-A11,COUNTA(B33:B9993)) -> 3388 | B8: Logically Available for Calc / Plot
A10: Price Chart Windowing Controls | F10: Y-axis Range
A11: 0 | B11: Input Data Offset (Pan) | E11: Max High+ | F11: =CEILING(MAX(OFFSET($E$33,0,0,$A$12,1),OFFSET($H$33,0,0,$A$12,1)),1)+1 -> 1578
A12: 3314 | B12: Data Points to Plot (Zoom) | E12: Min Low- | F12: =FLOOR(MIN(OFFSET($F$33,0,0,$A$12,1),OFFSET($H$33,0,0,$A$12,1)),1)-1 -> 665
B13: First: | C13: =OFFSET(B32,A12,0,1,1) -> 1999-04-12
B14: Last: | C14: =B33 -> 2012-06-08
A16: Controls:
A17: Period
A18: 75 | B18: ROC (Rate of Change) Look Back Period
A19: 200 | B19: Simple Moving Average Period
A22: Help! I would like to plot data | D22: Chart Windowing values to use
B23: From | C23: 2002-09-16 | D23: =OFFSET(InputPriceData!$A$10,MATCH(C23,OFFSET(InputPriceData!B10,1,0,InputPriceData!$B$7,1),0),0,1,1)-D24 -> 1680 | E23: ==> for Points to Plot
B24: To | C24: 2009-05-18 | D24: =OFFSET(InputPriceData!$A$10,MATCH(C24,OFFSET(InputPriceData!B10,1,0,InputPriceData!$B$7,1),0),0,1,1)-1 -> 772 | E24: ==> for Offset
I30: ="ROC("&A18&") Calculations" -> ROC(75) Calculations
A31: Rel Row | D31: Price Sources | H31: =A19&" SMA of Close" -> 200 SMA of Close | I31: Bull01 (XLY) | J31: Bull02 (XLF) | K31: Bear01 (XLE) | L31: Bear03 (XLP) | M31: Bear02 (XLU) | P31: ="SRMind (" & A18 & ")" -> SRMind (75)
B32: Date | C32: Volume | D32: Open | E32: High | F32: Low | G32: Close | N32: Bull | O32: Bear
A33: 1 | B33: =OFFSET(InputPriceData!B$10,CalculationsAndCharts!$A33+$A$11,0,1,1) -> 2012-06-08 | C33: =OFFSET(InputPriceData!G$10,CalculationsAndCharts!$A33+$A$11,0,1,1) -> 3497190000 | D33: =OFFSET(InputPriceData!C$10,CalculationsAndCharts!$A33+$A$11,0,1,1) -> 1314.99 | E33: =OFFSET(InputPriceData!D$10,CalculationsAndCharts!$A33+$A$11,0,1,1) -> 1325.81 | F33: =OFFSET(InputPriceData!E$10,CalculationsAndCharts!$A33+$A$11,0,1,1) -> 1307.77 | G33: =OFFSET(InputPriceData!F$10,CalculationsAndCharts!$A33+$A$11,0,1,1) -> 1325.66 | H33: =AVERAGE(OFFSET($G$32,A33,0,$A$19,1)) -> 1288.4086 | I33: =OFFSET('InputData-XLY'!$M$10,$A33+$A$11,0,1,1)/OFFSET('InputData-XLY'!$M$10,$A33+$A$11+$A$18-1,0,1,1)-1 -> 0.01472650771 | J33: =OFFSET('InputData-XLF'!$M$10,$A33+$A$11,0,1,1)/OFFSET('InputData-XLF'!$M$10,$A33+$A$11+$A$18-1,0,1,1)-1 -> -0.03612815269 | K33: =OFFSET('InputData-XLE'!$M$10,$A33+$A$11,0,1,1)/OFFSET('InputData-XLE'!$M$10,$A33+$A$11+$A$18-1,0,1,1)-1 -> -0.1472765732 | L33: =OFFSET('InputData-XLP'!$M$10,$A33+$A$11,0,1,1)/OFFSET('InputData-XLP'!$M$10,$A33+$A$11+$A$18-1,0,1,1)-1 -> 0.03996339231 | M33: =OFFSET('InputData-XLU'!$M$10,$A33+$A$11,0,1,1)/OFFSET('InputData-XLU'!$M$10,$A33+$A$11+$A$18-1,0,1,1)-1 -> 0.05410821643 | N33: =(I33+J33)/2 -> -0.01070082249 | O33: =(K33+L33+M33)/3 -> -0.01773498817 | P33: =100*(N33-O33) -> 0.7034165676
A34: 2 | B34: =OFFSET(InputPriceData!B$10,CalculationsAndCharts!$A34+$A$11,0,1,1) -> 2012-06-07 | C34: =OFFSET(InputPriceData!G$10,CalculationsAndCharts!$A34+$A$11,0,1,1) -> 4258140000 | D34: =OFFSET(InputPriceData!C$10,CalculationsAndCharts!$A34+$A$11,0,1,1) -> 1316.15 | E34: =OFFSET(InputPriceData!D$10,CalculationsAndCharts!$A34+$A$11,0,1,1) -> 1329.05 | F34: =OFFSET(InputPriceData!E$10,CalculationsAndCharts!$A34+$A$11,0,1,1) -> 1312.68 | G34: =OFFSET(InputPriceData!F$10,CalculationsAndCharts!$A34+$A$11,0,1,1) -> 1314.99 | H34: =AVERAGE(OFFSET($G$32,A34,0,$A$19,1)) -> 1287.59205 | I34: =OFFSET('InputData-XLY'!$M$10,$A34+$A$11,0,1,1)/OFFSET('InputData-XLY'!$M$10,$A34+$A$11+$A$18-1,0,1,1)-1 -> 0.01080573174 | J34: =OFFSET('InputData-XLF'!$M$10,$A34+$A$11,0,1,1)/OFFSET('InputData-XLF'!$M$10,$A34+$A$11+$A$18-1,0,1,1)-1 -> -0.03920220083 | K34: =OFFSET('InputData-XLE'!$M$10,$A34+$A$11,0,1,1)/OFFSET('InputData-XLE'!$M$10,$A34+$A$11+$A$18-1,0,1,1)-1 -> -0.1431039065 | L34: =OFFSET('InputData-XLP'!$M$10,$A34+$A$11,0,1,1)/OFFSET('InputData-XLP'!$M$10,$A34+$A$11+$A$18-1,0,1,1)-1 -> 0.03649187366 | M34: =OFFSET('InputData-XLU'!$M$10,$A34+$A$11,0,1,1)/OFFSET('InputData-XLU'!$M$10,$A34+$A$11+$A$18-1,0,1,1)-1 -> 0.05091533181 | N34: =(I34+J34)/2 -> -0.01419823454 | O34: =(K34+L34+M34)/3 -> -0.018565567 | P34: =100*(N34-O34) -> 0.4367332452
A35: 3 | B35: =OFFSET(InputPriceData!B$10,CalculationsAndCharts!$A35+$A$11,0,1,1) -> 2012-06-06 | C35: =OFFSET(InputPriceData!G$10,CalculationsAndCharts!$A35+$A$11,0,1,1) -> 4268360000 | D35: =OFFSET(InputPriceData!C$10,CalculationsAndCharts!$A35+$A$11,0,1,1) -> 1285.61 | E35: =OFFSET(InputPriceData!D$10,CalculationsAndCharts!$A35+$A$11,0,1,1) -> 1315.13 | F35: =OFFSET(InputPriceData!E$10,CalculationsAndCharts!$A35+$A$11,0,1,1) -> 1285.61 | G35: =OFFSET(InputPriceData!F$10,CalculationsAndCharts!$A35+$A$11,0,1,1) -> 1315.13 | H35: 1286.6362 | I35: =OFFSET('InputData-XLY'!$M$10,$A35+$A$11,0,1,1)/OFFSET('InputData-XLY'!$M$10,$A35+$A$11+$A$18-1,0,1,1)-1 -> 0.008200562324 | J35: =OFFSET('InputData-XLF'!$M$10,$A35+$A$11,0,1,1)/OFFSET('InputData-XLF'!$M$10,$A35+$A$11+$A$18-1,0,1,1)-1 -> -0.05091649695 | K35: =OFFSET('InputData-XLE'!$M$10,$A35+$A$11,0,1,1)/OFFSET('InputData-XLE'!$M$10,$A35+$A$11+$A$18-1,0,1,1)-1 -> -0.1416966307 | L35: =OFFSET('InputData-XLP'!$M$10,$A35+$A$11,0,1,1)/OFFSET('InputData-XLP'!$M$10,$A35+$A$11+$A$18-1,0,1,1)-1 -> 0.02996941896 | M35: =OFFSET('InputData-XLU'!$M$10,$A35+$A$11,0,1,1)/OFFSET('InputData-XLU'!$M$10,$A35+$A$11+$A$18-1,0,1,1)-1 -> 0.04410080183 | N35: -0.02135796731 | O35: -0.02254213664 | P35: 0.1184169329
A36: 4 | B36: =OFFSET(InputPriceData!B$10,CalculationsAndCharts!$A36+$A$11,0,1,1) -> 2012-06-05 | C36: =OFFSET(InputPriceData!G$10,CalculationsAndCharts!$A36+$A$11,0,1,1) -> 3403230000 | D36: =OFFSET(InputPriceData!C$10,CalculationsAndCharts!$A36+$A$11,0,1,1) -> 1277.82 | E36: =OFFSET(InputPriceData!D$10,CalculationsAndCharts!$A36+$A$11,0,1,1) -> 1287.62 | F36: =OFFSET(InputPriceData!E$10,CalculationsAndCharts!$A36+$A$11,0,1,1) -> 1274.16 | G36: =OFFSET(InputPriceData!F$10,CalculationsAndCharts!$A36+$A$11,0,1,1) -> 1285.5 | H36: 1285.6782 | I36: =OFFSET('InputData-XLY'!$M$10,$A36+$A$11,0,1,1)/OFFSET('InputData-XLY'!$M$10,$A36+$A$11+$A$18-1,0,1,1)-1 -> -0.01657716554 | J36: =OFFSET('InputData-XLF'!$M$10,$A36+$A$11,0,1,1)/OFFSET('InputData-XLF'!$M$10,$A36+$A$11+$A$18-1,0,1,1)-1 -> -0.07869742198 | K36: =OFFSET('InputData-XLE'!$M$10,$A36+$A$11,0,1,1)/OFFSET('InputData-XLE'!$M$10,$A36+$A$11+$A$18-1,0,1,1)-1 -> -0.1617055511 | L36: =OFFSET('InputData-XLP'!$M$10,$A36+$A$11,0,1,1)/OFFSET('InputData-XLP'!$M$10,$A36+$A$11+$A$18-1,0,1,1)-1 -> 0.0103374886 | M36: =OFFSET('InputData-XLU'!$M$10,$A36+$A$11,0,1,1)/OFFSET('InputData-XLU'!$M$10,$A36+$A$11+$A$18-1,0,1,1)-1 -> 0.02596291013 | N36: -0.04763729376 | O36: -0.04180171745 | P36: -0.5835576306
A37: 5 | B37: =OFFSET(InputPriceData!B$10,CalculationsAndCharts!$A37+$A$11,0,1,1) -> 2012-06-04 | C37: =OFFSET(InputPriceData!G$10,CalculationsAndCharts!$A37+$A$11,0,1,1) -> 4011960000 | D37: =OFFSET(InputPriceData!C$10,CalculationsAndCharts!$A37+$A$11,0,1,1) -> 1278.29 | E37: =OFFSET(InputPriceData!D$10,CalculationsAndCharts!$A37+$A$11,0,1,1) -> 1282.55 | F37: =OFFSET(InputPriceData!E$10,CalculationsAndCharts!$A37+$A$11,0,1,1) -> 1266.74 | G37: =OFFSET(InputPriceData!F$10,CalculationsAndCharts!$A37+$A$11,0,1,1) -> 1278.18 | H37: 1284.95395 | I37: =OFFSET('InputData-XLY'!$M$10,$A37+$A$11,0,1,1)/OFFSET('InputData-XLY'!$M$10,$A37+$A$11+$A$18-1,0,1,1)-1 -> -0.01342439943 | J37: =OFFSET('InputData-XLF'!$M$10,$A37+$A$11,0,1,1)/OFFSET('InputData-XLF'!$M$10,$A37+$A$11+$A$18-1,0,1,1)-1 -> -0.08805460751 | K37: =OFFSET('InputData-XLE'!$M$10,$A37+$A$11,0,1,1)/OFFSET('InputData-XLE'!$M$10,$A37+$A$11+$A$18-1,0,1,1)-1 -> -0.165679677 | L37: =OFFSET('InputData-XLP'!$M$10,$A37+$A$11,0,1,1)/OFFSET('InputData-XLP'!$M$10,$A37+$A$11+$A$18-1,0,1,1)-1 -> 0.0124771759 | M37: =OFFSET('InputData-XLU'!$M$10,$A37+$A$11,0,1,1)/OFFSET('InputData-XLU'!$M$10,$A37+$A$11+$A$18-1,0,1,1)-1 -> 0.02167094383 | N37: -0.05073950347 | O37: -0.04384385242 | P37: -0.6895651051
A38: 6 | B38: =OFFSET(InputPriceData!B$10,CalculationsAndCharts!$A38+$A$11,0,1,1) -> 2012-06-01 | C38: =OFFSET(InputPriceData!G$10,CalculationsAndCharts!$A38+$A$11,0,1,1) -> 4669350000 | D38: =OFFSET(InputPriceData!C$10,CalculationsAndCharts!$A38+$A$11,0,1,1) -> 1309.87 | E38: =OFFSET(InputPriceData!D$10,CalculationsAndCharts!$A38+$A$11,0,1,1) -> 1309.87 | F38: =OFFSET(InputPriceData!E$10,CalculationsAndCharts!$A38+$A$11,0,1,1) -> 1277.25 | G38: =OFFSET(InputPriceData!F$10,CalculationsAndCharts!$A38+$A$11,0,1,1) -> 1278.04 | H38: 1284.5325 | I38: =OFFSET('InputData-XLY'!$M$10,$A38+$A$11,0,1,1)/OFFSET('InputData-XLY'!$M$10,$A38+$A$11+$A$18-1,0,1,1)-1 -> -0.01277199622 | J38: =OFFSET('InputData-XLF'!$M$10,$A38+$A$11,0,1,1)/OFFSET('InputData-XLF'!$M$10,$A38+$A$11+$A$18-1,0,1,1)-1 -> -0.06449375867 | K38: =OFFSET('InputData-XLE'!$M$10,$A38+$A$11,0,1,1)/OFFSET('InputData-XLE'!$M$10,$A38+$A$11+$A$18-1,0,1,1)-1 -> -0.154192229 | L38: =OFFSET('InputData-XLP'!$M$10,$A38+$A$11,0,1,1)/OFFSET('InputData-XLP'!$M$10,$A38+$A$11+$A$18-1,0,1,1)-1 -> 0.0156202144 | M38: =OFFSET('InputData-XLU'!$M$10,$A38+$A$11,0,1,1)/OFFSET('InputData-XLU'!$M$10,$A38+$A$11+$A$18-1,0,1,1)-1 -> 0.02910662824 | N38: -0.03863287744 | O38: -0.03648846213 | P38: -0.2144415308
A39: 7 | B39: =OFFSET(InputPriceData!B$10,CalculationsAndCharts!$A39+$A$11,0,1,1) -> 2012-05-31 | C39: =OFFSET(InputPriceData!G$10,CalculationsAndCharts!$A39+$A$11,0,1,1) -> 4557620000 | D39: =OFFSET(InputPriceData!C$10,CalculationsAndCharts!$A39+$A$11,0,1,1) -> 1313.09 | E39: =OFFSET(InputPriceData!D$10,CalculationsAndCharts!$A39+$A$11,0,1,1) -> 1319.74 | F39: =OFFSET(InputPriceData!E$10,CalculationsAndCharts!$A39+$A$11,0,1,1) -> 1298.9 | G39: =OFFSET(InputPriceData!F$10,CalculationsAndCharts!$A39+$A$11,0,1,1) -> 1310.33 | H39: 1284.1061 | I39: =OFFSET('InputData-XLY'!$M$10,$A39+$A$11,0,1,1)/OFFSET('InputData-XLY'!$M$10,$A39+$A$11+$A$18-1,0,1,1)-1 -> 0.01483400047 | J39: =OFFSET('InputData-XLF'!$M$10,$A39+$A$11,0,1,1)/OFFSET('InputData-XLF'!$M$10,$A39+$A$11+$A$18-1,0,1,1)-1 -> -0.0344589938 | K39: =OFFSET('InputData-XLE'!$M$10,$A39+$A$11,0,1,1)/OFFSET('InputData-XLE'!$M$10,$A39+$A$11+$A$18-1,0,1,1)-1 -> -0.1339322172 | L39: =OFFSET('InputData-XLP'!$M$10,$A39+$A$11,0,1,1)/OFFSET('InputData-XLP'!$M$10,$A39+$A$11+$A$18-1,0,1,1)-1 -> 0.0342927128 | M39: =OFFSET('InputData-XLU'!$M$10,$A39+$A$11,0,1,1)/OFFSET('InputData-XLU'!$M$10,$A39+$A$11+$A$18-1,0,1,1)-1 -> 0.03134886396 | N39: -0.009812496663 | O39: -0.02276354682 | P39: 1.295105016
A40: 8 | B40: =OFFSET(InputPriceData!B$10,CalculationsAndCharts!$A40+$A$11,0,1,1) -> 2012-05-30 | C40: =OFFSET(InputPriceData!G$10,CalculationsAndCharts!$A40+$A$11,0,1,1) -> 3534290000 | D40: =OFFSET(InputPriceData!C$10,CalculationsAndCharts!$A40+$A$11,0,1,1) -> 1331.25 | E40: =OFFSET(InputPriceData!D$10,CalculationsAndCharts!$A40+$A$11,0,1,1) -> 1331.25 | F40: =OFFSET(InputPriceData!E$10,CalculationsAndCharts!$A40+$A$11,0,1,1) -> 1310.76 | G40: =OFFSET(InputPriceData!F$10,CalculationsAndCharts!$A40+$A$11,0,1,1) -> 1313.32 | H40: 1283.5769 | I40: =OFFSET('InputData-XLY'!$M$10,$A40+$A$11,0,1,1)/OFFSET('InputData-XLY'!$M$10,$A40+$A$11+$A$18-1,0,1,1)-1 -> 0.01575729069 | J40: =OFFSET('InputData-XLF'!$M$10,$A40+$A$11,0,1,1)/OFFSET('InputData-XLF'!$M$10,$A40+$A$11+$A$18-1,0,1,1)-1 -> -0.05187713311 | K40: =OFFSET('InputData-XLE'!$M$10,$A40+$A$11,0,1,1)/OFFSET('InputData-XLE'!$M$10,$A40+$A$11+$A$18-1,0,1,1)-1 -> -0.1247613853 | L40: =OFFSET('InputData-XLP'!$M$10,$A40+$A$11,0,1,1)/OFFSET('InputData-XLP'!$M$10,$A40+$A$11+$A$18-1,0,1,1)-1 -> 0.03898096992 | M40: =OFFSET('InputData-XLU'!$M$10,$A40+$A$11,0,1,1)/OFFSET('InputData-XLU'!$M$10,$A40+$A$11+$A$18-1,0,1,1)-1 -> 0.02617951669 | N40: -0.01805992121 | O40: -0.01986696624 | P40: 0.1807045031
A41: 9 | B41: =OFFSET(InputPriceData!B$10,CalculationsAndCharts!$A41+$A$11,0,1,1) -> 2012-05-29 | C41: =OFFSET(InputPriceData!G$10,CalculationsAndCharts!$A41+$A$11,0,1,1) -> 3441640000 | D41: =OFFSET(InputPriceData!C$10,CalculationsAndCharts!$A41+$A$11,0,1,1) -> 1318.9 | E41: =OFFSET(InputPriceData!D$10,CalculationsAndCharts!$A41+$A$11,0,1,1) -> 1334.93 | F41: =OFFSET(InputPriceData!E$10,CalculationsAndCharts!$A41+$A$11,0,1,1) -> 1318.9 | G41: =OFFSET(InputPriceData!F$10,CalculationsAndCharts!$A41+$A$11,0,1,1) -> 1332.42 | H41: 1282.90435 | I41: =OFFSET('InputData-XLY'!$M$10,$A41+$A$11,0,1,1)/OFFSET('InputData-XLY'!$M$10,$A41+$A$11+$A$18-1,0,1,1)-1 -> 0.04030346136 | J41: =OFFSET('InputData-XLF'!$M$10,$A41+$A$11,0,1,1)/OFFSET('InputData-XLF'!$M$10,$A41+$A$11+$A$18-1,0,1,1)-1 -> -0.02066115702 | K41: =OFFSET('InputData-XLE'!$M$10,$A41+$A$11,0,1,1)/OFFSET('InputData-XLE'!$M$10,$A41+$A$11+$A$18-1,0,1,1)-1 -> -0.08988455195 | L41: =OFFSET('InputData-XLP'!$M$10,$A41+$A$11,0,1,1)/OFFSET('InputData-XLP'!$M$10,$A41+$A$11+$A$18-1,0,1,1)-1 -> 0.05209617756 | M41: =OFFSET('InputData-XLU'!$M$10,$A41+$A$11,0,1,1)/OFFSET('InputData-XLU'!$M$10,$A41+$A$11+$A$18-1,0,1,1)-1 -> 0.03132183908 | N41: 0.009821152166 | O41: -0.002155511771 | P41: 1.197666394
A42: 10 | B42: =OFFSET(InputPriceData!B$10,CalculationsAndCharts!$A42+$A$11,0,1,1) -> 2012-05-25 | C42: =OFFSET(InputPriceData!G$10,CalculationsAndCharts!$A42+$A$11,0,1,1) -> 2872660000 | D42: =OFFSET(InputPriceData!C$10,CalculationsAndCharts!$A42+$A$11,0,1,1) -> 1320.81 | E42: =OFFSET(InputPriceData!D$10,CalculationsAndCharts!$A42+$A$11,0,1,1) -> 1324.2 | F42: =OFFSET(InputPriceData!E$10,CalculationsAndCharts!$A42+$A$11,0,1,1) -> 1314.23 | G42: =OFFSET(InputPriceData!F$10,CalculationsAndCharts!$A42+$A$11,0,1,1) -> 1317.82 | H42: 1282.10545 | I42: =OFFSET('InputData-XLY'!$M$10,$A42+$A$11,0,1,1)/OFFSET('InputData-XLY'!$M$10,$A42+$A$11+$A$18-1,0,1,1)-1 -> 0.02051402971 | J42: =OFFSET('InputData-XLF'!$M$10,$A42+$A$11,0,1,1)/OFFSET('InputData-XLF'!$M$10,$A42+$A$11+$A$18-1,0,1,1)-1 -> -0.04365620737 | K42: =OFFSET('InputData-XLE'!$M$10,$A42+$A$11,0,1,1)/OFFSET('InputData-XLE'!$M$10,$A42+$A$11+$A$18-1,0,1,1)-1 -> -0.113877551 | L42: =OFFSET('InputData-XLP'!$M$10,$A42+$A$11,0,1,1)/OFFSET('InputData-XLP'!$M$10,$A42+$A$11+$A$18-1,0,1,1)-1 -> 0.04244847739 | M42: =OFFSET('InputData-XLU'!$M$10,$A42+$A$11,0,1,1)/OFFSET('InputData-XLU'!$M$10,$A42+$A$11+$A$18-1,0,1,1)-1 -> 0.02609693146 | N42: -0.01157108883 | O42: -0.01511071406 | P42: 0.3539625228
A43: 11 | B43: =OFFSET(InputPriceData!B$10,CalculationsAndCharts!$A43+$A$11,0,1,1) -> 2012-05-24 | C43: =OFFSET(InputPriceData!G$10,CalculationsAndCharts!$A43+$A$11,0,1,1) -> 3937670000 | D43: =OFFSET(InputPriceData!C$10,CalculationsAndCharts!$A43+$A$11,0,1,1) -> 1318.72 | E43: =OFFSET(InputPriceData!D$10,CalculationsAndCharts!$A43+$A$11,0,1,1) -> 1324.14 | F43: =OFFSET(InputPriceData!E$10,CalculationsAndCharts!$A43+$A$11,0,1,1) -> 1310.5 | G43: =OFFSET(InputPriceData!F$10,CalculationsAndCharts!$A43+$A$11,0,1,1) -> 1320.68 | H43: 1281.12015 | I43: =OFFSET('InputData-XLY'!$M$10,$A43+$A$11,0,1,1)/OFFSET('InputData-XLY'!$M$10,$A43+$A$11+$A$18-1,0,1,1)-1 -> 0.0238545111 | J43: =OFFSET('InputData-XLF'!$M$10,$A43+$A$11,0,1,1)/OFFSET('InputData-XLF'!$M$10,$A43+$A$11+$A$18-1,0,1,1)-1 -> -0.0441576087 | K43: =OFFSET('InputData-XLE'!$M$10,$A43+$A$11,0,1,1)/OFFSET('InputData-XLE'!$M$10,$A43+$A$11+$A$18-1,0,1,1)-1 -> -0.1095387128 | L43: =OFFSET('InputData-XLP'!$M$10,$A43+$A$11,0,1,1)/OFFSET('InputData-XLP'!$M$10,$A43+$A$11+$A$18-1,0,1,1)-1 -> 0.04918032787 | M43: =OFFSET('InputData-XLU'!$M$10,$A43+$A$11,0,1,1)/OFFSET('InputData-XLU'!$M$10,$A43+$A$11+$A$18-1,0,1,1)-1 -> 0.01973119817 | N43: -0.0101515488 | O43: -0.01354239557 | P43: 0.3390846773
A44: 12 | B44: =OFFSET(InputPriceData!B$10,CalculationsAndCharts!$A44+$A$11,0,1,1) -> 2012-05-23 | C44: =OFFSET(InputPriceData!G$10,CalculationsAndCharts!$A44+$A$11,0,1,1) -> 4108330000 | D44: =OFFSET(InputPriceData!C$10,CalculationsAndCharts!$A44+$A$11,0,1,1) -> 1316.02 | E44: =OFFSET(InputPriceData!D$10,CalculationsAndCharts!$A44+$A$11,0,1,1) -> 1320.71 | F44: =OFFSET(InputPriceData!E$10,CalculationsAndCharts!$A44+$A$11,0,1,1) -> 1296.53 | G44: =OFFSET(InputPriceData!F$10,CalculationsAndCharts!$A44+$A$11,0,1,1) -> 1318.86 | H44: 1280.3794 | I44: =OFFSET('InputData-XLY'!$M$10,$A44+$A$11,0,1,1)/OFFSET('InputData-XLY'!$M$10,$A44+$A$11+$A$18-1,0,1,1)-1 -> 0.02154356061 | J44: =OFFSET('InputData-XLF'!$M$10,$A44+$A$11,0,1,1)/OFFSET('InputData-XLF'!$M$10,$A44+$A$11+$A$18-1,0,1,1)-1 -> -0.03764544832 | K44: =OFFSET('InputData-XLE'!$M$10,$A44+$A$11,0,1,1)/OFFSET('InputData-XLE'!$M$10,$A44+$A$11+$A$18-1,0,1,1)-1 -> -0.1118795769 | L44: =OFFSET('InputData-XLP'!$M$10,$A44+$A$11,0,1,1)/OFFSET('InputData-XLP'!$M$10,$A44+$A$11+$A$18-1,0,1,1)-1 -> 0.0396039604 | M44: =OFFSET('InputData-XLU'!$M$10,$A44+$A$11,0,1,1)/OFFSET('InputData-XLU'!$M$10,$A44+$A$11+$A$18-1,0,1,1)-1 -> 0.01689092471 | N44: -0.008050943859 | O44: -0.01846156393 | P44: 1.041062007
A45: 13 | B45: =OFFSET(InputPriceData!B$10,CalculationsAndCharts!$A45+$A$11,0,1,1) -> 2012-05-22 | C45: =OFFSET(InputPriceData!G$10,CalculationsAndCharts!$A45+$A$11,0,1,1) -> 4123680000 | D45: =OFFSET(InputPriceData!C$10,CalculationsAndCharts!$A45+$A$11,0,1,1) -> 1316.09 | E45: =OFFSET(InputPriceData!D$10,CalculationsAndCharts!$A45+$A$11,0,1,1) -> 1328.49 | F45: =OFFSET(InputPriceData!E$10,CalculationsAndCharts!$A45+$A$11,0,1,1) -> 1310.04 | G45: =OFFSET(InputPriceData!F$10,CalculationsAndCharts!$A45+$A$11,0,1,1) -> 1316.63 | H45: 1279.3824 | I45: =OFFSET('InputData-XLY'!$M$10,$A45+$A$11,0,1,1)/OFFSET('InputData-XLY'!$M$10,$A45+$A$11+$A$18-1,0,1,1)-1 -> 0.02093244529 | J45: =OFFSET('InputData-XLF'!$M$10,$A45+$A$11,0,1,1)/OFFSET('InputData-XLF'!$M$10,$A45+$A$11+$A$18-1,0,1,1)-1 -> -0.04172366621 | K45: =OFFSET('InputData-XLE'!$M$10,$A45+$A$11,0,1,1)/OFFSET('InputData-XLE'!$M$10,$A45+$A$11+$A$18-1,0,1,1)-1 -> -0.1105507088 | L45: =OFFSET('InputData-XLP'!$M$10,$A45+$A$11,0,1,1)/OFFSET('InputData-XLP'!$M$10,$A45+$A$11+$A$18-1,0,1,1)-1 -> 0.04335707649 | M45: =OFFSET('InputData-XLU'!$M$10,$A45+$A$11,0,1,1)/OFFSET('InputData-XLU'!$M$10,$A45+$A$11+$A$18-1,0,1,1)-1 -> 0.02970011534 | N45: -0.01039561046 | O45: -0.012497839 | P45: 0.2102228539
A46: 14 | B46: =OFFSET(InputPriceData!B$10,CalculationsAndCharts!$A46+$A$11,0,1,1) -> 2012-05-21 | C46: =OFFSET(InputPriceData!G$10,CalculationsAndCharts!$A46+$A$11,0,1,1) -> 3786750000 | D46: =OFFSET(InputPriceData!C$10,CalculationsAndCharts!$A46+$A$11,0,1,1) -> 1295.73 | E46: =OFFSET(InputPriceData!D$10,CalculationsAndCharts!$A46+$A$11,0,1,1) -> 1316.39 | F46: =OFFSET(InputPriceData!E$10,CalculationsAndCharts!$A46+$A$11,0,1,1) -> 1295.73 | G46: =OFFSET(InputPriceData!F$10,CalculationsAndCharts!$A46+$A$11,0,1,1) -> 1315.99 | H46: 1278.79615 | I46: =OFFSET('InputData-XLY'!$M$10,$A46+$A$11,0,1,1)/OFFSET('InputData-XLY'!$M$10,$A46+$A$11+$A$18-1,0,1,1)-1 -> 0.01471635414 | J46: =OFFSET('InputData-XLF'!$M$10,$A46+$A$11,0,1,1)/OFFSET('InputData-XLF'!$M$10,$A46+$A$11+$A$18-1,0,1,1)-1 -> -0.05377808033 | K46: =OFFSET('InputData-XLE'!$M$10,$A46+$A$11,0,1,1)/OFFSET('InputData-XLE'!$M$10,$A46+$A$11+$A$18-1,0,1,1)-1 -> -0.09766864395 | L46: =OFFSET('InputData-XLP'!$M$10,$A46+$A$11,0,1,1)/OFFSET('InputData-XLP'!$M$10,$A46+$A$11+$A$18-1,0,1,1)-1 -> 0.0414732281 | M46: =OFFSET('InputData-XLU'!$M$10,$A46+$A$11,0,1,1)/OFFSET('InputData-XLU'!$M$10,$A46+$A$11+$A$18-1,0,1,1)-1 -> 0.0180878553 | N46: -0.01953086309 | O46: -0.01270252018 | P46: -0.6828342909
A47: 15 | B47: =OFFSET(InputPriceData!B$10,CalculationsAndCharts!$A47+$A$11,0,1,1) -> 2012-05-18 | C47: =OFFSET(InputPriceData!G$10,CalculationsAndCharts!$A47+$A$11,0,1,1) -> 4512470000 | D47: =OFFSET(InputPriceData!C$10,CalculationsAndCharts!$A47+$A$11,0,1,1) -> 1305.05 | E47: =OFFSET(InputPriceData!D$10,CalculationsAndCharts!$A47+$A$11,0,1,1) -> 1312.24 | F47: =OFFSET(InputPriceData!E$10,CalculationsAndCharts!$A47+$A$11,0,1,1) -> 1291.98 | G47: =OFFSET(InputPriceData!F$10,CalculationsAndCharts!$A47+$A$11,0,1,1) -> 1295.22 | H47: 1278.21655 | I47: =OFFSET('InputData-XLY'!$M$10,$A47+$A$11,0,1,1)/OFFSET('InputData-XLY'!$M$10,$A47+$A$11+$A$18-1,0,1,1)-1 -> 0.01768410853 | J47: =OFFSET('InputData-XLF'!$M$10,$A47+$A$11,0,1,1)/OFFSET('InputData-XLF'!$M$10,$A47+$A$11+$A$18-1,0,1,1)-1 -> -0.03706293706 | K47: =OFFSET('InputData-XLE'!$M$10,$A47+$A$11,0,1,1)/OFFSET('InputData-XLE'!$M$10,$A47+$A$11+$A$18-1,0,1,1)-1 -> -0.1023445178 | L47: =OFFSET('InputData-XLP'!$M$10,$A47+$A$11,0,1,1)/OFFSET('InputData-XLP'!$M$10,$A47+$A$11+$A$18-1,0,1,1)-1 -> 0.04067059919 | M47: =OFFSET('InputData-XLU'!$M$10,$A47+$A$11,0,1,1)/OFFSET('InputData-XLU'!$M$10,$A47+$A$11+$A$18-1,0,1,1)-1 -> 0.01957397812 | N47: -0.009689414268 | O47: -0.01403331348 | P47: 0.4343899213
A48: 16 | B48: =OFFSET(InputPriceData!B$10,CalculationsAndCharts!$A48+$A$11,0,1,1) -> 2012-05-17 | C48: =OFFSET(InputPriceData!G$10,CalculationsAndCharts!$A48+$A$11,0,1,1) -> 4664280000 | D48: =OFFSET(InputPriceData!C$10,CalculationsAndCharts!$A48+$A$11,0,1,1) -> 1324.82 | E48: =OFFSET(InputPriceData!D$10,CalculationsAndCharts!$A48+$A$11,0,1,1) -> 1326.36 | F48: =OFFSET(InputPriceData!E$10,CalculationsAndCharts!$A48+$A$11,0,1,1) -> 1304.86 | G48: =OFFSET(InputPriceData!F$10,CalculationsAndCharts!$A48+$A$11,0,1,1) -> 1304.86 | H48: 1278.04215 | I48: =OFFSET('InputData-XLY'!$M$10,$A48+$A$11,0,1,1)/OFFSET('InputData-XLY'!$M$10,$A48+$A$11+$A$18-1,0,1,1)-1 -> 0.02419549964 | J48: =OFFSET('InputData-XLF'!$M$10,$A48+$A$11,0,1,1)/OFFSET('InputData-XLF'!$M$10,$A48+$A$11+$A$18-1,0,1,1)-1 -> -0.02108222066 | K48: =OFFSET('InputData-XLE'!$M$10,$A48+$A$11,0,1,1)/OFFSET('InputData-XLE'!$M$10,$A48+$A$11+$A$18-1,0,1,1)-1 -> -0.08995756719 | L48: =OFFSET('InputData-XLP'!$M$10,$A48+$A$11,0,1,1)/OFFSET('InputData-XLP'!$M$10,$A48+$A$11+$A$18-1,0,1,1)-1 -> 0.05079464007 | M48: =OFFSET('InputData-XLU'!$M$10,$A48+$A$11,0,1,1)/OFFSET('InputData-XLU'!$M$10,$A48+$A$11+$A$18-1,0,1,1)-1 -> 0.01982758621 | N48: 0.001556639488 | O48: -0.006445113635 | P48: 0.8001753123
A49: 17 | B49: =OFFSET(InputPriceData!B$10,CalculationsAndCharts!$A49+$A$11,0,1,1) -> 2012-05-16 | C49: =OFFSET(InputPriceData!G$10,CalculationsAndCharts!$A49+$A$11,0,1,1) -> 4280420000 | D49: =OFFSET(InputPriceData!C$10,CalculationsAndCharts!$A49+$A$11,0,1,1) -> 1330.78 | E49: =OFFSET(InputPriceData!D$10,CalculationsAndCharts!$A49+$A$11,0,1,1) -> 1341.78 | F49: =OFFSET(InputPriceData!E$10,CalculationsAndCharts!$A49+$A$11,0,1,1) -> 1324.79 | G49: =OFFSET(InputPriceData!F$10,CalculationsAndCharts!$A49+$A$11,0,1,1) -> 1324.8 | H49: 1277.7881 | I49: =OFFSET('InputData-XLY'!$M$10,$A49+$A$11,0,1,1)/OFFSET('InputData-XLY'!$M$10,$A49+$A$11+$A$18-1,0,1,1)-1 -> 0.05559601845 | J49: =OFFSET('InputData-XLF'!$M$10,$A49+$A$11,0,1,1)/OFFSET('InputData-XLF'!$M$10,$A49+$A$11+$A$18-1,0,1,1)-1 -> 0.01426533524 | K49: =OFFSET('InputData-XLE'!$M$10,$A49+$A$11,0,1,1)/OFFSET('InputData-XLE'!$M$10,$A49+$A$11+$A$18-1,0,1,1)-1 -> -0.08051689861 | L49: =OFFSET('InputData-XLP'!$M$10,$A49+$A$11,0,1,1)/OFFSET('InputData-XLP'!$M$10,$A49+$A$11+$A$18-1,0,1,1)-1 -> 0.065913371 | M49: =OFFSET('InputData-XLU'!$M$10,$A49+$A$11,0,1,1)/OFFSET('InputData-XLU'!$M$10,$A49+$A$11+$A$18-1,0,1,1)-1 -> 0.02912341407 | N49: 0.03493067684 | O49: 0.004839962154 | P49: 3.009071469
A50: 18 | B50: =OFFSET(InputPriceData!B$10,CalculationsAndCharts!$A50+$A$11,0,1,1) -> 2012-05-15 | C50: =OFFSET(InputPriceData!G$10,CalculationsAndCharts!$A50+$A$11,0,1,1) -> 4114040000 | D50: =OFFSET(InputPriceData!C$10,CalculationsAndCharts!$A50+$A$11,0,1,1) -> 1338.36 | E50: =OFFSET(InputPriceData!D$10,CalculationsAndCharts!$A50+$A$11,0,1,1) -> 1344.94 | F50: =OFFSET(InputPriceData!E$10,CalculationsAndCharts!$A50+$A$11,0,1,1) -> 1328.41 | G50: =OFFSET(InputPriceData!F$10,CalculationsAndCharts!$A50+$A$11,0,1,1) -> 1330.66 | H50: 1277.5988 | I50: =OFFSET('InputData-XLY'!$M$10,$A50+$A$11,0,1,1)/OFFSET('InputData-XLY'!$M$10,$A50+$A$11+$A$18-1,0,1,1)-1 -> 0.05703883495 | J50: =OFFSET('InputData-XLF'!$M$10,$A50+$A$11,0,1,1)/OFFSET('InputData-XLF'!$M$10,$A50+$A$11+$A$18-1,0,1,1)-1 -> 0.03366762178 | K50: =OFFSET('InputData-XLE'!$M$10,$A50+$A$11,0,1,1)/OFFSET('InputData-XLE'!$M$10,$A50+$A$11+$A$18-1,0,1,1)-1 -> -0.08113447157 | L50: =OFFSET('InputData-XLP'!$M$10,$A50+$A$11,0,1,1)/OFFSET('InputData-XLP'!$M$10,$A50+$A$11+$A$18-1,0,1,1)-1 -> 0.0631281407 | M50: =OFFSET('InputData-XLU'!$M$10,$A50+$A$11,0,1,1)/OFFSET('InputData-XLU'!$M$10,$A50+$A$11+$A$18-1,0,1,1)-1 -> 0.03274413214 | N50: 0.04535322836 | O50: 0.004912600424 | P50: 4.044062794
A51: 19 | B51: =OFFSET(InputPriceData!B$10,CalculationsAndCharts!$A51+$A$11,0,1,1) -> 2012-05-14 | C51: =OFFSET(InputPriceData!G$10,CalculationsAndCharts!$A51+$A$11,0,1,1) -> 3688120000 | D51: =OFFSET(InputPriceData!C$10,CalculationsAndCharts!$A51+$A$11,0,1,1) -> 1351.93 | E51: =OFFSET(InputPriceData!D$10,CalculationsAndCharts!$A51+$A$11,0,1,1) -> 1351.93 | F51: =OFFSET(InputPriceData!E$10,CalculationsAndCharts!$A51+$A$11,0,1,1) -> 1336.61 | G51: =OFFSET(InputPriceData!F$10,CalculationsAndCharts!$A51+$A$11,0,1,1) -> 1338.35 | H51: 1277.4069 | I51: =OFFSET('InputData-XLY'!$M$10,$A51+$A$11,0,1,1)/OFFSET('InputData-XLY'!$M$10,$A51+$A$11+$A$18-1,0,1,1)-1 -> 0.05566311713 | J51: =OFFSET('InputData-XLF'!$M$10,$A51+$A$11,0,1,1)/OFFSET('InputData-XLF'!$M$10,$A51+$A$11+$A$18-1,0,1,1)-1 -> 0.02980837473 | K51: =OFFSET('InputData-XLE'!$M$10,$A51+$A$11,0,1,1)/OFFSET('InputData-XLE'!$M$10,$A51+$A$11+$A$18-1,0,1,1)-1 -> -0.06994382022 | L51: =OFFSET('InputData-XLP'!$M$10,$A51+$A$11,0,1,1)/OFFSET('InputData-XLP'!$M$10,$A51+$A$11+$A$18-1,0,1,1)-1 -> 0.05741029641 | M51: =OFFSET('InputData-XLU'!$M$10,$A51+$A$11,0,1,1)/OFFSET('InputData-XLU'!$M$10,$A51+$A$11+$A$18-1,0,1,1)-1 -> 0.03340051828 | N51: 0.04273574593 | O51: 0.006955664824 | P51: 3.578008111
A52: 20 | B52: =OFFSET(InputPriceData!B$10,CalculationsAndCharts!$A52+$A$11,0,1,1) -> 2012-05-11 | C52: =OFFSET(InputPriceData!G$10,CalculationsAndCharts!$A52+$A$11,0,1,1) -> 3869070000 | D52: =OFFSET(InputPriceData!C$10,CalculationsAndCharts!$A52+$A$11,0,1,1) -> 1358.11 | E52: =OFFSET(InputPriceData!D$10,CalculationsAndCharts!$A52+$A$11,0,1,1) -> 1365.66 | F52: =OFFSET(InputPriceData!E$10,CalculationsAndCharts!$A52+$A$11,0,1,1) -> 1348.89 | G52: =OFFSET(InputPriceData!F$10,CalculationsAndCharts!$A52+$A$11,0,1,1) -> 1353.39 | H52: 1277.2185 | I52: =OFFSET('InputData-XLY'!$M$10,$A52+$A$11,0,1,1)/OFFSET('InputData-XLY'!$M$10,$A52+$A$11+$A$18-1,0,1,1)-1 -> 0.06989117291 | J52: =OFFSET('InputData-XLF'!$M$10,$A52+$A$11,0,1,1)/OFFSET('InputData-XLF'!$M$10,$A52+$A$11+$A$18-1,0,1,1)-1 -> 0.05484330484 | K52: =OFFSET('InputData-XLE'!$M$10,$A52+$A$11,0,1,1)/OFFSET('InputData-XLE'!$M$10,$A52+$A$11+$A$18-1,0,1,1)-1 -> -0.056201822 | L52: =OFFSET('InputData-XLP'!$M$10,$A52+$A$11,0,1,1)/OFFSET('InputData-XLP'!$M$10,$A52+$A$11+$A$18-1,0,1,1)-1 -> 0.05453982027 | M52: =OFFSET('InputData-XLU'!$M$10,$A52+$A$11,0,1,1)/OFFSET('InputData-XLU'!$M$10,$A52+$A$11+$A$18-1,0,1,1)-1 -> 0.02189988623 | N52: 0.06236723888 | O52: 0.006745961499 | P52: 5.562127738
A53: 21 | B53: =OFFSET(InputPriceData!B$10,CalculationsAndCharts!$A53+$A$11,0,1,1) -> 2012-05-10 | C53: =OFFSET(InputPriceData!G$10,CalculationsAndCharts!$A53+$A$11,0,1,1) -> 3727990000 | D53: =OFFSET(InputPriceData!C$10,CalculationsAndCharts!$A53+$A$11,0,1,1) -> 1354.58 | E53: =OFFSET(InputPriceData!D$10,CalculationsAndCharts!$A53+$A$11,0,1,1) -> 1365.88 | F53: =OFFSET(InputPriceData!E$10,CalculationsAndCharts!$A53+$A$11,0,1,1) -> 1354.58 | G53: =OFFSET(InputPriceData!F$10,CalculationsAndCharts!$A53+$A$11,0,1,1) -> 1357.99 | H53: 1276.976 | I53: =OFFSET('InputData-XLY'!$M$10,$A53+$A$11,0,1,1)/OFFSET('InputData-XLY'!$M$10,$A53+$A$11+$A$18-1,0,1,1)-1 -> 0.07025591502 | J53: =OFFSET('InputData-XLF'!$M$10,$A53+$A$11,0,1,1)/OFFSET('InputData-XLF'!$M$10,$A53+$A$11+$A$18-1,0,1,1)-1 -> 0.05865724382 | K53: =OFFSET('InputData-XLE'!$M$10,$A53+$A$11,0,1,1)/OFFSET('InputData-XLE'!$M$10,$A53+$A$11+$A$18-1,0,1,1)-1 -> -0.06220624827 | L53: =OFFSET('InputData-XLP'!$M$10,$A53+$A$11,0,1,1)/OFFSET('InputData-XLP'!$M$10,$A53+$A$11+$A$18-1,0,1,1)-1 -> 0.05341154677 | M53: =OFFSET('InputData-XLU'!$M$10,$A53+$A$11,0,1,1)/OFFSET('InputData-XLU'!$M$10,$A53+$A$11+$A$18-1,0,1,1)-1 -> 0.02482876712 | N53: 0.06445657942 | O53: 0.005344688542 | P53: 5.911189087
A54: 22 | B54: =OFFSET(InputPriceData!B$10,CalculationsAndCharts!$A54+$A$11,0,1,1) -> 2012-05-09 | C54: =OFFSET(InputPriceData!G$10,CalculationsAndCharts!$A54+$A$11,0,1,1) -> 4288540000 | D54: =OFFSET(InputPriceData!C$10,CalculationsAndCharts!$A54+$A$11,0,1,1) -> 1363.2 | E54: =OFFSET(InputPriceData!D$10,CalculationsAndCharts!$A54+$A$11,0,1,1) -> 1363.73 | F54: =OFFSET(InputPriceData!E$10,CalculationsAndCharts!$A54+$A$11,0,1,1) -> 1343.13 | G54: =OFFSET(InputPriceData!F$10,CalculationsAndCharts!$A54+$A$11,0,1,1) -> 1354.58 | H54: 1276.84575 | I54: =OFFSET('InputData-XLY'!$M$10,$A54+$A$11,0,1,1)/OFFSET('InputData-XLY'!$M$10,$A54+$A$11+$A$18-1,0,1,1)-1 -> 0.07441634241 | J54: =OFFSET('InputData-XLF'!$M$10,$A54+$A$11,0,1,1)/OFFSET('InputData-XLF'!$M$10,$A54+$A$11+$A$18-1,0,1,1)-1 -> 0.0566572238 | K54: =OFFSET('InputData-XLE'!$M$10,$A54+$A$11,0,1,1)/OFFSET('InputData-XLE'!$M$10,$A54+$A$11+$A$18-1,0,1,1)-1 -> -0.05471592499 | L54: =OFFSET('InputData-XLP'!$M$10,$A54+$A$11,0,1,1)/OFFSET('InputData-XLP'!$M$10,$A54+$A$11+$A$18-1,0,1,1)-1 -> 0.05808869457 | M54: =OFFSET('InputData-XLU'!$M$10,$A54+$A$11,0,1,1)/OFFSET('InputData-XLU'!$M$10,$A54+$A$11+$A$18-1,0,1,1)-1 -> 0.03220191471 | N54: 0.0655367831 | O54: 0.01185822809 | P54: 5.367855501
A55: 23 | B55: =OFFSET(InputPriceData!B$10,CalculationsAndCharts!$A55+$A$11,0,1,1) -> 2012-05-08 | C55: =OFFSET(InputPriceData!G$10,CalculationsAndCharts!$A55+$A$11,0,1,1) -> 4261670000 | D55: =OFFSET(InputPriceData!C$10,CalculationsAndCharts!$A55+$A$11,0,1,1) -> 1369.16 | E55: =OFFSET(InputPriceData!D$10,CalculationsAndCharts!$A55+$A$11,0,1,1) -> 1369.16 | F55: =OFFSET(InputPriceData!E$10,CalculationsAndCharts!$A55+$A$11,0,1,1) -> 1347.75 | G55: =OFFSET(InputPriceData!F$10,CalculationsAndCharts!$A55+$A$11,0,1,1) -> 1363.72 | H55: 1276.76 | I55: =OFFSET('InputData-XLY'!$M$10,$A55+$A$11,0,1,1)/OFFSET('InputData-XLY'!$M$10,$A55+$A$11+$A$18-1,0,1,1)-1 -> 0.08170731707 | J55: =OFFSET('InputData-XLF'!$M$10,$A55+$A$11,0,1,1)/OFFSET('InputData-XLF'!$M$10,$A55+$A$11+$A$18-1,0,1,1)-1 -> 0.06718528996 | K55: =OFFSET('InputData-XLE'!$M$10,$A55+$A$11,0,1,1)/OFFSET('InputData-XLE'!$M$10,$A55+$A$11+$A$18-1,0,1,1)-1 -> -0.05288126134 | L55: =OFFSET('InputData-XLP'!$M$10,$A55+$A$11,0,1,1)/OFFSET('InputData-XLP'!$M$10,$A55+$A$11+$A$18-1,0,1,1)-1 -> 0.05745341615 | M55: =OFFSET('InputData-XLU'!$M$10,$A55+$A$11,0,1,1)/OFFSET('InputData-XLU'!$M$10,$A55+$A$11+$A$18-1,0,1,1)-1 -> 0.02330935252 | N55: 0.07444630352 | O55: 0.009293835777 | P55: 6.515246774
A56: 24 | B56: =OFFSET(InputPriceData!B$10,CalculationsAndCharts!$A56+$A$11,0,1,1) -> 2012-05-07 | C56: =OFFSET(InputPriceData!G$10,CalculationsAndCharts!$A56+$A$11,0,1,1) -> 3559390000 | D56: =OFFSET(InputPriceData!C$10,CalculationsAndCharts!$A56+$A$11,0,1,1) -> 1368.79 | E56: =OFFSET(InputPriceData!D$10,CalculationsAndCharts!$A56+$A$11,0,1,1) -> 1373.91 | F56: =OFFSET(InputPriceData!E$10,CalculationsAndCharts!$A56+$A$11,0,1,1) -> 1363.94 | G56: =OFFSET(InputPriceData!F$10,CalculationsAndCharts!$A56+$A$11,0,1,1) -> 1369.58 | H56: 1276.6665 | I56: =OFFSET('InputData-XLY'!$M$10,$A56+$A$11,0,1,1)/OFFSET('InputData-XLY'!$M$10,$A56+$A$11+$A$18-1,0,1,1)-1 -> 0.09407750427 | J56: =OFFSET('InputData-XLF'!$M$10,$A56+$A$11,0,1,1)/OFFSET('InputData-XLF'!$M$10,$A56+$A$11+$A$18-1,0,1,1)-1 -> 0.07806955287 | K56: =OFFSET('InputData-XLE'!$M$10,$A56+$A$11,0,1,1)/OFFSET('InputData-XLE'!$M$10,$A56+$A$11+$A$18-1,0,1,1)-1 -> -0.04232878639 | L56: =OFFSET('InputData-XLP'!$M$10,$A56+$A$11,0,1,1)/OFFSET('InputData-XLP'!$M$10,$A56+$A$11+$A$18-1,0,1,1)-1 -> 0.05895128762 | M56: =OFFSET('InputData-XLU'!$M$10,$A56+$A$11,0,1,1)/OFFSET('InputData-XLU'!$M$10,$A56+$A$11+$A$18-1,0,1,1)-1 -> 0.02571511124 | N56: 0.08607352857 | O56: 0.01411253749 | P56: 7.196099108
A57: 25 | B57: =OFFSET(InputPriceData!B$10,CalculationsAndCharts!$A57+$A$11,0,1,1) -> 2012-05-04 | C57: =OFFSET(InputPriceData!G$10,CalculationsAndCharts!$A57+$A$11,0,1,1) -> 3975140000 | D57: =OFFSET(InputPriceData!C$10,CalculationsAndCharts!$A57+$A$11,0,1,1) -> 1391.51 | E57: =OFFSET(InputPriceData!D$10,CalculationsAndCharts!$A57+$A$11,0,1,1) -> 1391.51 | F57: =OFFSET(InputPriceData!E$10,CalculationsAndCharts!$A57+$A$11,0,1,1) -> 1367.96 | G57: =OFFSET(InputPriceData!F$10,CalculationsAndCharts!$A57+$A$11,0,1,1) -> 1369.1 | H57: 1276.5376 | I57: =OFFSET('InputData-XLY'!$M$10,$A57+$A$11,0,1,1)/OFFSET('InputData-XLY'!$M$10,$A57+$A$11+$A$18-1,0,1,1)-1 -> 0.08556925308 | J57: =OFFSET('InputData-XLF'!$M$10,$A57+$A$11,0,1,1)/OFFSET('InputData-XLF'!$M$10,$A57+$A$11+$A$18-1,0,1,1)-1 -> 0.07780157031 | K57: =OFFSET('InputData-XLE'!$M$10,$A57+$A$11,0,1,1)/OFFSET('InputData-XLE'!$M$10,$A57+$A$11+$A$18-1,0,1,1)-1 -> -0.03938115331 | L57: =OFFSET('InputData-XLP'!$M$10,$A57+$A$11,0,1,1)/OFFSET('InputData-XLP'!$M$10,$A57+$A$11+$A$18-1,0,1,1)-1 -> 0.05772811918 | M57: =OFFSET('InputData-XLU'!$M$10,$A57+$A$11,0,1,1)/OFFSET('InputData-XLU'!$M$10,$A57+$A$11+$A$18-1,0,1,1)-1 -> 0.02922453704 | N57: 0.08168541169 | O57: 0.01585716764 | P57: 6.582824406
A58: 26 | B58: =OFFSET(InputPriceData!B$10,CalculationsAndCharts!$A58+$A$11,0,1,1) -> 2012-05-03 | C58: =OFFSET(InputPriceData!G$10,CalculationsAndCharts!$A58+$A$11,0,1,1) -> 4004910000 | D58: =OFFSET(InputPriceData!C$10,CalculationsAndCharts!$A58+$A$11,0,1,1) -> 1402.32 | E58: =OFFSET(InputPriceData!D$10,CalculationsAndCharts!$A58+$A$11,0,1,1) -> 1403.07 | F58: =OFFSET(InputPriceData!E$10,CalculationsAndCharts!$A58+$A$11,0,1,1) -> 1388.71 | G58: =OFFSET(InputPriceData!F$10,CalculationsAndCharts!$A58+$A$11,0,1,1) -> 1391.57 | H58: 1276.3213 | I58: =OFFSET('InputData-XLY'!$M$10,$A58+$A$11,0,1,1)/OFFSET('InputData-XLY'!$M$10,$A58+$A$11+$A$18-1,0,1,1)-1 -> 0.1168007803 | J58: =OFFSET('InputData-XLF'!$M$10,$A58+$A$11,0,1,1)/OFFSET('InputData-XLF'!$M$10,$A58+$A$11+$A$18-1,0,1,1)-1 -> 0.1051873199 | K58: =OFFSET('InputData-XLE'!$M$10,$A58+$A$11,0,1,1)/OFFSET('InputData-XLE'!$M$10,$A58+$A$11+$A$18-1,0,1,1)-1 -> -0.01285129219 | L58: =OFFSET('InputData-XLP'!$M$10,$A58+$A$11,0,1,1)/OFFSET('InputData-XLP'!$M$10,$A58+$A$11+$A$18-1,0,1,1)-1 -> 0.06809701493 | M58: =OFFSET('InputData-XLU'!$M$10,$A58+$A$11,0,1,1)/OFFSET('InputData-XLU'!$M$10,$A58+$A$11+$A$18-1,0,1,1)-1 -> 0.01922525108 | N58: 0.1109940501 | O58: 0.02482365794 | P58: 8.617039215
A59: 27 | B59: =OFFSET(InputPriceData!B$10,CalculationsAndCharts!$A59+$A$11,0,1,1) -> 2012-05-02 | C59: =OFFSET(InputPriceData!G$10,CalculationsAndCharts!$A59+$A$11,0,1,1) -> 3803860000 | D59: =OFFSET(InputPriceData!C$10,CalculationsAndCharts!$A59+$A$11,0,1,1) -> 1405.5 | E59: =OFFSET(InputPriceData!D$10,CalculationsAndCharts!$A59+$A$11,0,1,1) -> 1405.5 | F59: =OFFSET(InputPriceData!E$10,CalculationsAndCharts!$A59+$A$11,0,1,1) -> 1393.92 | G59: =OFFSET(InputPriceData!F$10,CalculationsAndCharts!$A59+$A$11,0,1,1) -> 1402.31 | H59: 1275.9971 | I59: =OFFSET('InputData-XLY'!$M$10,$A59+$A$11,0,1,1)/OFFSET('InputData-XLY'!$M$10,$A59+$A$11+$A$18-1,0,1,1)-1 -> 0.1434233342 | J59: =OFFSET('InputData-XLF'!$M$10,$A59+$A$11,0,1,1)/OFFSET('InputData-XLF'!$M$10,$A59+$A$11+$A$18-1,0,1,1)-1 -> 0.1316752012 | K59: =OFFSET('InputData-XLE'!$M$10,$A59+$A$11,0,1,1)/OFFSET('InputData-XLE'!$M$10,$A59+$A$11+$A$18-1,0,1,1)-1 -> 0.02038472581 | L59: =OFFSET('InputData-XLP'!$M$10,$A59+$A$11,0,1,1)/OFFSET('InputData-XLP'!$M$10,$A59+$A$11+$A$18-1,0,1,1)-1 -> 0.06886880648 | M59: =OFFSET('InputData-XLU'!$M$10,$A59+$A$11,0,1,1)/OFFSET('InputData-XLU'!$M$10,$A59+$A$11+$A$18-1,0,1,1)-1 -> 0.02208835341 | N59: 0.1375492677 | O59: 0.0371139619 | P59: 10.04353058
A60: 28 | B60: =OFFSET(InputPriceData!B$10,CalculationsAndCharts!$A60+$A$11,0,1,1) -> 2012-05-01 | C60: =OFFSET(InputPriceData!G$10,CalculationsAndCharts!$A60+$A$11,0,1,1) -> 3807950000 | D60: =OFFSET(InputPriceData!C$10,CalculationsAndCharts!$A60+$A$11,0,1,1) -> 1397.86 | E60: =OFFSET(InputPriceData!D$10,CalculationsAndCharts!$A60+$A$11,0,1,1) -> 1415.32 | F60: =OFFSET(InputPriceData!E$10,CalculationsAndCharts!$A60+$A$11,0,1,1) -> 1395.73 | G60: =OFFSET(InputPriceData!F$10,CalculationsAndCharts!$A60+$A$11,0,1,1) -> 1405.82 | H60: 1275.51275 | I60: =OFFSET('InputData-XLY'!$M$10,$A60+$A$11,0,1,1)/OFFSET('InputData-XLY'!$M$10,$A60+$A$11+$A$18-1,0,1,1)-1 -> 0.1403378043 | J60: =OFFSET('InputData-XLF'!$M$10,$A60+$A$11,0,1,1)/OFFSET('InputData-XLF'!$M$10,$A60+$A$11+$A$18-1,0,1,1)-1 -> 0.1313497823 | K60: =OFFSET('InputData-XLE'!$M$10,$A60+$A$11,0,1,1)/OFFSET('InputData-XLE'!$M$10,$A60+$A$11+$A$18-1,0,1,1)-1 -> 0.0446725459 | L60: =OFFSET('InputData-XLP'!$M$10,$A60+$A$11,0,1,1)/OFFSET('InputData-XLP'!$M$10,$A60+$A$11+$A$18-1,0,1,1)-1 -> 0.07194244604 | M60: =OFFSET('InputData-XLU'!$M$10,$A60+$A$11,0,1,1)/OFFSET('InputData-XLU'!$M$10,$A60+$A$11+$A$18-1,0,1,1)-1 -> 0.02722843222 | N60: 0.1358437933 | O60: 0.04794780805 | P60: 8.789598523
A61: 29 | B61: =OFFSET(InputPriceData!B$10,CalculationsAndCharts!$A61+$A$11,0,1,1) -> 2012-04-30 | C61: =OFFSET(InputPriceData!G$10,CalculationsAndCharts!$A61+$A$11,0,1,1) -> 3574010000 | D61: =OFFSET(InputPriceData!C$10,CalculationsAndCharts!$A61+$A$11,0,1,1) -> 1403.26 | E61: =OFFSET(InputPriceData!D$10,CalculationsAndCharts!$A61+$A$11,0,1,1) -> 1403.26 | F61: =OFFSET(InputPriceData!E$10,CalculationsAndCharts!$A61+$A$11,0,1,1) -> 1394 | G61: =OFFSET(InputPriceData!F$10,CalculationsAndCharts!$A61+$A$11,0,1,1) -> 1397.91 | H61: 1275.06435 | I61: =OFFSET('InputData-XLY'!$M$10,$A61+$A$11,0,1,1)/OFFSET('InputData-XLY'!$M$10,$A61+$A$11+$A$18-1,0,1,1)-1 -> 0.1314810221 | J61: =OFFSET('InputData-XLF'!$M$10,$A61+$A$11,0,1,1)/OFFSET('InputData-XLF'!$M$10,$A61+$A$11+$A$18-1,0,1,1)-1 -> 0.1116714697 | K61: =OFFSET('InputData-XLE'!$M$10,$A61+$A$11,0,1,1)/OFFSET('InputData-XLE'!$M$10,$A61+$A$11+$A$18-1,0,1,1)-1 -> 0.0247410817 | L61: =OFFSET('InputData-XLP'!$M$10,$A61+$A$11,0,1,1)/OFFSET('InputData-XLP'!$M$10,$A61+$A$11+$A$18-1,0,1,1)-1 -> 0.068125 | M61: =OFFSET('InputData-XLU'!$M$10,$A61+$A$11,0,1,1)/OFFSET('InputData-XLU'!$M$10,$A61+$A$11+$A$18-1,0,1,1)-1 -> 0.02148381553 | N61: 0.1215762459 | O61: 0.03811663241 | P61: 8.34596135
A62: 30 | B62: =OFFSET(InputPriceData!B$10,CalculationsAndCharts!$A62+$A$11,0,1,1) -> 2012-04-27 | C62: =OFFSET(InputPriceData!G$10,CalculationsAndCharts!$A62+$A$11,0,1,1) -> 3645830000 | D62: =OFFSET(InputPriceData!C$10,CalculationsAndCharts!$A62+$A$11,0,1,1) -> 1400.19 | E62: =OFFSET(InputPriceData!D$10,CalculationsAndCharts!$A62+$A$11,0,1,1) -> 1406.64 | F62: =OFFSET(InputPriceData!E$10,CalculationsAndCharts!$A62+$A$11,0,1,1) -> 1397.31 | G62: =OFFSET(InputPriceData!F$10,CalculationsAndCharts!$A62+$A$11,0,1,1) -> 1403.36 | H62: 1274.61915 | I62: =OFFSET('InputData-XLY'!$M$10,$A62+$A$11,0,1,1)/OFFSET('InputData-XLY'!$M$10,$A62+$A$11+$A$18-1,0,1,1)-1 -> 0.1413286887 | J62: =OFFSET('InputData-XLF'!$M$10,$A62+$A$11,0,1,1)/OFFSET('InputData-XLF'!$M$10,$A62+$A$11+$A$18-1,0,1,1)-1 -> 0.12219812 | K62: =OFFSET('InputData-XLE'!$M$10,$A62+$A$11,0,1,1)/OFFSET('InputData-XLE'!$M$10,$A62+$A$11+$A$18-1,0,1,1)-1 -> 0.008834425762 | L62: =OFFSET('InputData-XLP'!$M$10,$A62+$A$11,0,1,1)/OFFSET('InputData-XLP'!$M$10,$A62+$A$11+$A$18-1,0,1,1)-1 -> 0.07060293658 | M62: =OFFSET('InputData-XLU'!$M$10,$A62+$A$11,0,1,1)/OFFSET('InputData-XLU'!$M$10,$A62+$A$11+$A$18-1,0,1,1)-1 -> 0.01859267735 | N62: 0.1317634044 | O62: 0.0326766799 | P62: 9.908672448
A63: 31 | B63: =OFFSET(InputPriceData!B$10,CalculationsAndCharts!$A63+$A$11,0,1,1) -> 2012-04-26 | C63: =OFFSET(InputPriceData!G$10,CalculationsAndCharts!$A63+$A$11,0,1,1) -> 4034700000 | D63: =OFFSET(InputPriceData!C$10,CalculationsAndCharts!$A63+$A$11,0,1,1) -> 1390.64 | E63: =OFFSET(InputPriceData!D$10,CalculationsAndCharts!$A63+$A$11,0,1,1) -> 1402.09 | F63: =OFFSET(InputPriceData!E$10,CalculationsAndCharts!$A63+$A$11,0,1,1) -> 1387.28 | G63: =OFFSET(InputPriceData!F$10,CalculationsAndCharts!$A63+$A$11,0,1,1) -> 1399.98 | H63: 1274.19095 | I63: =OFFSET('InputData-XLY'!$M$10,$A63+$A$11,0,1,1)/OFFSET('InputData-XLY'!$M$10,$A63+$A$11+$A$18-1,0,1,1)-1 -> 0.1290804884 | J63: =OFFSET('InputData-XLF'!$M$10,$A63+$A$11,0,1,1)/OFFSET('InputData-XLF'!$M$10,$A63+$A$11+$A$18-1,0,1,1)-1 -> 0.1346013168 | K63: =OFFSET('InputData-XLE'!$M$10,$A63+$A$11,0,1,1)/OFFSET('InputData-XLE'!$M$10,$A63+$A$11+$A$18-1,0,1,1)-1 -> -0.004357604723 | L63: =OFFSET('InputData-XLP'!$M$10,$A63+$A$11,0,1,1)/OFFSET('InputData-XLP'!$M$10,$A63+$A$11+$A$18-1,0,1,1)-1 -> 0.06749611198 | M63: =OFFSET('InputData-XLU'!$M$10,$A63+$A$11,0,1,1)/OFFSET('InputData-XLU'!$M$10,$A63+$A$11+$A$18-1,0,1,1)-1 -> 0.01053530752 | N63: 0.1318409026 | O63: 0.02455793826 | P63: 10.72829643
A64: 32 | B64: =OFFSET(InputPriceData!B$10,CalculationsAndCharts!$A64+$A$11,0,1,1) -> 2012-04-25 | C64: =OFFSET(InputPriceData!G$10,CalculationsAndCharts!$A64+$A$11,0,1,1) -> 3998430000 | D64: =OFFSET(InputPriceData!C$10,CalculationsAndCharts!$A64+$A$11,0,1,1) -> 1372.11 | E64: =OFFSET(InputPriceData!D$10,CalculationsAndCharts!$A64+$A$11,0,1,1) -> 1391.37 | F64: =OFFSET(InputPriceData!E$10,CalculationsAndCharts!$A64+$A$11,0,1,1) -> 1372.11 | G64: =OFFSET(InputPriceData!F$10,CalculationsAndCharts!$A64+$A$11,0,1,1) -> 1390.69 | H64: 1273.75925 | I64: =OFFSET('InputData-XLY'!$M$10,$A64+$A$11,0,1,1)/OFFSET('InputData-XLY'!$M$10,$A64+$A$11+$A$18-1,0,1,1)-1 -> 0.1223977928 | J64: =OFFSET('InputData-XLF'!$M$10,$A64+$A$11,0,1,1)/OFFSET('InputData-XLF'!$M$10,$A64+$A$11+$A$18-1,0,1,1)-1 -> 0.1451973194 | K64: =OFFSET('InputData-XLE'!$M$10,$A64+$A$11,0,1,1)/OFFSET('InputData-XLE'!$M$10,$A64+$A$11+$A$18-1,0,1,1)-1 -> -0.0059566019 | L64: =OFFSET('InputData-XLP'!$M$10,$A64+$A$11,0,1,1)/OFFSET('InputData-XLP'!$M$10,$A64+$A$11+$A$18-1,0,1,1)-1 -> 0.06148564295 | M64: =OFFSET('InputData-XLU'!$M$10,$A64+$A$11,0,1,1)/OFFSET('InputData-XLU'!$M$10,$A64+$A$11+$A$18-1,0,1,1)-1 -> 0.00627316795 | N64: 0.1337975561 | O64: 0.02060073633 | P64: 11.31968198
A65: 33 | B65: =OFFSET(InputPriceData!B$10,CalculationsAndCharts!$A65+$A$11,0,1,1) -> 2012-04-24 | C65: =OFFSET(InputPriceData!G$10,CalculationsAndCharts!$A65+$A$11,0,1,1) -> 3617100000 | D65: =OFFSET(InputPriceData!C$10,CalculationsAndCharts!$A65+$A$11,0,1,1) -> 1366.97 | E65: =OFFSET(InputPriceData!D$10,CalculationsAndCharts!$A65+$A$11,0,1,1) -> 1375.57 | F65: =OFFSET(InputPriceData!E$10,CalculationsAndCharts!$A65+$A$11,0,1,1) -> 1366.82 | G65: =OFFSET(InputPriceData!F$10,CalculationsAndCharts!$A65+$A$11,0,1,1) -> 1371.97 | H65: 1273.40325 | I65: =OFFSET('InputData-XLY'!$M$10,$A65+$A$11,0,1,1)/OFFSET('InputData-XLY'!$M$10,$A65+$A$11+$A$18-1,0,1,1)-1 -> 0.1021788129 | J65: =OFFSET('InputData-XLF'!$M$10,$A65+$A$11,0,1,1)/OFFSET('InputData-XLF'!$M$10,$A65+$A$11+$A$18-1,0,1,1)-1 -> 0.1414670659 | K65: =OFFSET('InputData-XLE'!$M$10,$A65+$A$11,0,1,1)/OFFSET('InputData-XLE'!$M$10,$A65+$A$11+$A$18-1,0,1,1)-1 -> -0.01097335043 | L65: =OFFSET('InputData-XLP'!$M$10,$A65+$A$11,0,1,1)/OFFSET('InputData-XLP'!$M$10,$A65+$A$11+$A$18-1,0,1,1)-1 -> 0.05626758362 | M65: =OFFSET('InputData-XLU'!$M$10,$A65+$A$11,0,1,1)/OFFSET('InputData-XLU'!$M$10,$A65+$A$11+$A$18-1,0,1,1)-1 -> 0.002569960023 | N65: 0.1218229394 | O65: 0.01595473107 | P65: 10.58682083
A66: 34 | B66: =OFFSET(InputPriceData!B$10,CalculationsAndCharts!$A66+$A$11,0,1,1) -> 2012-04-23 | C66: =OFFSET(InputPriceData!G$10,CalculationsAndCharts!$A66+$A$11,0,1,1) -> 3654860000 | D66: =OFFSET(InputPriceData!C$10,CalculationsAndCharts!$A66+$A$11,0,1,1) -> 1378.53 | E66: =OFFSET(InputPriceData!D$10,CalculationsAndCharts!$A66+$A$11,0,1,1) -> 1378.53 | F66: =OFFSET(InputPriceData!E$10,CalculationsAndCharts!$A66+$A$11,0,1,1) -> 1358.79 | G66: =OFFSET(InputPriceData!F$10,CalculationsAndCharts!$A66+$A$11,0,1,1) -> 1366.94 | H66: 1273.2624 | I66: =OFFSET('InputData-XLY'!$M$10,$A66+$A$11,0,1,1)/OFFSET('InputData-XLY'!$M$10,$A66+$A$11+$A$18-1,0,1,1)-1 -> 0.107599699 | J66: =OFFSET('InputData-XLF'!$M$10,$A66+$A$11,0,1,1)/OFFSET('InputData-XLF'!$M$10,$A66+$A$11+$A$18-1,0,1,1)-1 -> 0.1220238095 | K66: =OFFSET('InputData-XLE'!$M$10,$A66+$A$11,0,1,1)/OFFSET('InputData-XLE'!$M$10,$A66+$A$11+$A$18-1,0,1,1)-1 -> -0.02408273127 | L66: =OFFSET('InputData-XLP'!$M$10,$A66+$A$11,0,1,1)/OFFSET('InputData-XLP'!$M$10,$A66+$A$11+$A$18-1,0,1,1)-1 -> 0.04906832298 | M66: =OFFSET('InputData-XLU'!$M$10,$A66+$A$11,0,1,1)/OFFSET('InputData-XLU'!$M$10,$A66+$A$11+$A$18-1,0,1,1)-1 -> -0.009656347629 | N66: 0.1148117543 | O66: 0.005109748029 | P66: 10.97020062
A67: 35 | B67: =OFFSET(InputPriceData!B$10,CalculationsAndCharts!$A67+$A$11,0,1,1) -> 2012-04-20 | C67: =OFFSET(InputPriceData!G$10,CalculationsAndCharts!$A67+$A$11,0,1,1) -> 3833320000 | D67: =OFFSET(InputPriceData!C$10,CalculationsAndCharts!$A67+$A$11,0,1,1) -> 1376.96 | E67: =OFFSET(InputPriceData!D$10,CalculationsAndCharts!$A67+$A$11,0,1,1) -> 1387.4 | F67: =OFFSET(InputPriceData!E$10,CalculationsAndCharts!$A67+$A$11,0,1,1) -> 1376.96 | G67: =OFFSET(InputPriceData!F$10,CalculationsAndCharts!$A67+$A$11,0,1,1) -> 1378.53 | H67: 1273.1938 | I67: =OFFSET('InputData-XLY'!$M$10,$A67+$A$11,0,1,1)/OFFSET('InputData-XLY'!$M$10,$A67+$A$11+$A$18-1,0,1,1)-1 -> 0.128983308 | J67: =OFFSET('InputData-XLF'!$M$10,$A67+$A$11,0,1,1)/OFFSET('InputData-XLF'!$M$10,$A67+$A$11+$A$18-1,0,1,1)-1 -> 0.1455505279 | K67: =OFFSET('InputData-XLE'!$M$10,$A67+$A$11,0,1,1)/OFFSET('InputData-XLE'!$M$10,$A67+$A$11+$A$18-1,0,1,1)-1 -> -0.02777386155 | L67: =OFFSET('InputData-XLP'!$M$10,$A67+$A$11,0,1,1)/OFFSET('InputData-XLP'!$M$10,$A67+$A$11+$A$18-1,0,1,1)-1 -> 0.06486654252 | M67: =OFFSET('InputData-XLU'!$M$10,$A67+$A$11,0,1,1)/OFFSET('InputData-XLU'!$M$10,$A67+$A$11+$A$18-1,0,1,1)-1 -> -0.003414911781 | N67: 0.137266918 | O67: 0.01122592306 | P67: 12.60409949
A68: 36 | B68: =OFFSET(InputPriceData!B$10,CalculationsAndCharts!$A68+$A$11,0,1,1) -> 2012-04-19 | C68: =OFFSET(InputPriceData!G$10,CalculationsAndCharts!$A68+$A$11,0,1,1) -> 4180020000 | D68: =OFFSET(InputPriceData!C$10,CalculationsAndCharts!$A68+$A$11,0,1,1) -> 1385.08 | E68: =OFFSET(InputPriceData!D$10,CalculationsAndCharts!$A68+$A$11,0,1,1) -> 1390.46 | F68: =OFFSET(InputPriceData!E$10,CalculationsAndCharts!$A68+$A$11,0,1,1) -> 1370.3 | G68: =OFFSET(InputPriceData!F$10,CalculationsAndCharts!$A68+$A$11,0,1,1) -> 1376.92 | H68: 1272.99725 | I68: =OFFSET('InputData-XLY'!$M$10,$A68+$A$11,0,1,1)/OFFSET('InputData-XLY'!$M$10,$A68+$A$11+$A$18-1,0,1,1)-1 -> 0.1361203161 | J68: =OFFSET('InputData-XLF'!$M$10,$A68+$A$11,0,1,1)/OFFSET('InputData-XLF'!$M$10,$A68+$A$11+$A$18-1,0,1,1)-1 -> 0.1481203008 | K68: =OFFSET('InputData-XLE'!$M$10,$A68+$A$11,0,1,1)/OFFSET('InputData-XLE'!$M$10,$A68+$A$11+$A$18-1,0,1,1)-1 -> -0.02345295281 | L68: =OFFSET('InputData-XLP'!$M$10,$A68+$A$11,0,1,1)/OFFSET('InputData-XLP'!$M$10,$A68+$A$11+$A$18-1,0,1,1)-1 -> 0.052957572 | M68: =OFFSET('InputData-XLU'!$M$10,$A68+$A$11,0,1,1)/OFFSET('InputData-XLU'!$M$10,$A68+$A$11+$A$18-1,0,1,1)-1 -> -0.01867572156 | N68: 0.1421203084 | O68: 0.003609632543 | P68: 13.85106759
A69: 37 | B69: =OFFSET(InputPriceData!B$10,CalculationsAndCharts!$A69+$A$11,0,1,1) -> 2012-04-18 | C69: =OFFSET(InputPriceData!G$10,CalculationsAndCharts!$A69+$A$11,0,1,1) -> 3463140000 | D69: =OFFSET(InputPriceData!C$10,CalculationsAndCharts!$A69+$A$11,0,1,1) -> 1390.78 | E69: =OFFSET(InputPriceData!D$10,CalculationsAndCharts!$A69+$A$11,0,1,1) -> 1390.78 | F69: =OFFSET(InputPriceData!E$10,CalculationsAndCharts!$A69+$A$11,0,1,1) -> 1383.29 | G69: =OFFSET(InputPriceData!F$10,CalculationsAndCharts!$A69+$A$11,0,1,1) -> 1385.14 | H69: 1272.80205 | I69: =OFFSET('InputData-XLY'!$M$10,$A69+$A$11,0,1,1)/OFFSET('InputData-XLY'!$M$10,$A69+$A$11+$A$18-1,0,1,1)-1 -> 0.1550128535 | J69: =OFFSET('InputData-XLF'!$M$10,$A69+$A$11,0,1,1)/OFFSET('InputData-XLF'!$M$10,$A69+$A$11+$A$18-1,0,1,1)-1 -> 0.1836419753 | K69: =OFFSET('InputData-XLE'!$M$10,$A69+$A$11,0,1,1)/OFFSET('InputData-XLE'!$M$10,$A69+$A$11+$A$18-1,0,1,1)-1 -> 0.005082776648 | L69: =OFFSET('InputData-XLP'!$M$10,$A69+$A$11,0,1,1)/OFFSET('InputData-XLP'!$M$10,$A69+$A$11+$A$18-1,0,1,1)-1 -> 0.05538366337 | M69: =OFFSET('InputData-XLU'!$M$10,$A69+$A$11,0,1,1)/OFFSET('InputData-XLU'!$M$10,$A69+$A$11+$A$18-1,0,1,1)-1 -> -0.03362979433 | N69: 0.1693274144 | O69: 0.008945548561 | P69: 16.03818658
A70: 38 | B70: =OFFSET(InputPriceData!B$10,CalculationsAndCharts!$A70+$A$11,0,1,1) -> 2012-04-17 | C70: =OFFSET(InputPriceData!G$10,CalculationsAndCharts!$A70+$A$11,0,1,1) -> 3456200000 | D70: =OFFSET(InputPriceData!C$10,CalculationsAndCharts!$A70+$A$11,0,1,1) -> 1369.57 | E70: =OFFSET(InputPriceData!D$10,CalculationsAndCharts!$A70+$A$11,0,1,1) -> 1392.76 | F70: =OFFSET(InputPriceData!E$10,CalculationsAndCharts!$A70+$A$11,0,1,1) -> 1369.57 | G70: =OFFSET(InputPriceData!F$10,CalculationsAndCharts!$A70+$A$11,0,1,1) -> 1390.78 | H70: 1272.5747 | I70: =OFFSET('InputData-XLY'!$M$10,$A70+$A$11,0,1,1)/OFFSET('InputData-XLY'!$M$10,$A70+$A$11+$A$18-1,0,1,1)-1 -> 0.1458492976 | J70: =OFFSET('InputData-XLF'!$M$10,$A70+$A$11,0,1,1)/OFFSET('InputData-XLF'!$M$10,$A70+$A$11+$A$18-1,0,1,1)-1 -> 0.1864927091 | K70: =OFFSET('InputData-XLE'!$M$10,$A70+$A$11,0,1,1)/OFFSET('InputData-XLE'!$M$10,$A70+$A$11+$A$18-1,0,1,1)-1 -> 0.006677311656 | L70: =OFFSET('InputData-XLP'!$M$10,$A70+$A$11,0,1,1)/OFFSET('InputData-XLP'!$M$10,$A70+$A$11+$A$18-1,0,1,1)-1 -> 0.05050816138 | M70: =OFFSET('InputData-XLU'!$M$10,$A70+$A$11,0,1,1)/OFFSET('InputData-XLU'!$M$10,$A70+$A$11+$A$18-1,0,1,1)-1 -> -0.03890728477 | N70: 0.1661710034 | O70: 0.006092729423 | P70: 16.00782739
A71: 39 | B71: =OFFSET(InputPriceData!B$10,CalculationsAndCharts!$A71+$A$11,0,1,1) -> 2012-04-16 | C71: =OFFSET(InputPriceData!G$10,CalculationsAndCharts!$A71+$A$11,0,1,1) -> 3574780000 | D71: =OFFSET(InputPriceData!C$10,CalculationsAndCharts!$A71+$A$11,0,1,1) -> 1370.27 | E71: =OFFSET(InputPriceData!D$10,CalculationsAndCharts!$A71+$A$11,0,1,1) -> 1379.66 | F71: =OFFSET(InputPriceData!E$10,CalculationsAndCharts!$A71+$A$11,0,1,1) -> 1365.38 | G71: =OFFSET(InputPriceData!F$10,CalculationsAndCharts!$A71+$A$11,0,1,1) -> 1369.57 | H71: 1272.224 | I71: =OFFSET('InputData-XLY'!$M$10,$A71+$A$11,0,1,1)/OFFSET('InputData-XLY'!$M$10,$A71+$A$11+$A$18-1,0,1,1)-1 -> 0.1455483871 | J71: =OFFSET('InputData-XLF'!$M$10,$A71+$A$11,0,1,1)/OFFSET('InputData-XLF'!$M$10,$A71+$A$11+$A$18-1,0,1,1)-1 -> 0.1878409977 | K71: =OFFSET('InputData-XLE'!$M$10,$A71+$A$11,0,1,1)/OFFSET('InputData-XLE'!$M$10,$A71+$A$11+$A$18-1,0,1,1)-1 -> 0.0007332453439 | L71: =OFFSET('InputData-XLP'!$M$10,$A71+$A$11,0,1,1)/OFFSET('InputData-XLP'!$M$10,$A71+$A$11+$A$18-1,0,1,1)-1 -> 0.04551083591 | M71: =OFFSET('InputData-XLU'!$M$10,$A71+$A$11,0,1,1)/OFFSET('InputData-XLU'!$M$10,$A71+$A$11+$A$18-1,0,1,1)-1 -> -0.03642936596 | N71: 0.1666946924 | O71: 0.003271571765 | P71: 16.34231206
A72: 40 | B72: =OFFSET(InputPriceData!B$10,CalculationsAndCharts!$A72+$A$11,0,1,1) -> 2012-04-13 | C72: =OFFSET(InputPriceData!G$10,CalculationsAndCharts!$A72+$A$11,0,1,1) -> 3631160000 | D72: =OFFSET(InputPriceData!C$10,CalculationsAndCharts!$A72+$A$11,0,1,1) -> 1387.61 | E72: =OFFSET(InputPriceData!D$10,CalculationsAndCharts!$A72+$A$11,0,1,1) -> 1387.61 | F72: =OFFSET(InputPriceData!E$10,CalculationsAndCharts!$A72+$A$11,0,1,1) -> 1369.85 | G72: =OFFSET(InputPriceData!F$10,CalculationsAndCharts!$A72+$A$11,0,1,1) -> 1370.26 | H72: 1271.9132 | I72: =OFFSET('InputData-XLY'!$M$10,$A72+$A$11,0,1,1)/OFFSET('InputData-XLY'!$M$10,$A72+$A$11+$A$18-1,0,1,1)-1 -> 0.1370597243 | J72: =OFFSET('InputData-XLF'!$M$10,$A72+$A$11,0,1,1)/OFFSET('InputData-XLF'!$M$10,$A72+$A$11+$A$18-1,0,1,1)-1 -> 0.1602760736 | K72: =OFFSET('InputData-XLE'!$M$10,$A72+$A$11,0,1,1)/OFFSET('InputData-XLE'!$M$10,$A72+$A$11+$A$18-1,0,1,1)-1 -> -0.01165299957 | L72: =OFFSET('InputData-XLP'!$M$10,$A72+$A$11,0,1,1)/OFFSET('InputData-XLP'!$M$10,$A72+$A$11+$A$18-1,0,1,1)-1 -> 0.03604436229 | M72: =OFFSET('InputData-XLU'!$M$10,$A72+$A$11,0,1,1)/OFFSET('InputData-XLU'!$M$10,$A72+$A$11+$A$18-1,0,1,1)-1 -> -0.04876697146 | N72: 0.148667899 | O72: -0.008125202912 | P72: 15.67931019
A73: 41 | B73: =OFFSET(InputPriceData!B$10,CalculationsAndCharts!$A73+$A$11,0,1,1) -> 2012-04-12 | C73: =OFFSET(InputPriceData!G$10,CalculationsAndCharts!$A73+$A$11,0,1,1) -> 3618280000 | D73: =OFFSET(InputPriceData!C$10,CalculationsAndCharts!$A73+$A$11,0,1,1) -> 1368.77 | E73: =OFFSET(InputPriceData!D$10,CalculationsAndCharts!$A73+$A$11,0,1,1) -> 1388.13 | F73: =OFFSET(InputPriceData!E$10,CalculationsAndCharts!$A73+$A$11,0,1,1) -> 1368.77 | G73: =OFFSET(InputPriceData!F$10,CalculationsAndCharts!$A73+$A$11,0,1,1) -> 1387.57 | H73: 1271.54525 | I73: =OFFSET('InputData-XLY'!$M$10,$A73+$A$11,0,1,1)/OFFSET('InputData-XLY'!$M$10,$A73+$A$11+$A$18-1,0,1,1)-1 -> 0.143625192 | J73: =OFFSET('InputData-XLF'!$M$10,$A73+$A$11,0,1,1)/OFFSET('InputData-XLF'!$M$10,$A73+$A$11+$A$18-1,0,1,1)-1 -> 0.1815408085 | K73: =OFFSET('InputData-XLE'!$M$10,$A73+$A$11,0,1,1)/OFFSET('InputData-XLE'!$M$10,$A73+$A$11+$A$18-1,0,1,1)-1 -> 0.006057983557 | L73: =OFFSET('InputData-XLP'!$M$10,$A73+$A$11,0,1,1)/OFFSET('InputData-XLP'!$M$10,$A73+$A$11+$A$18-1,0,1,1)-1 -> 0.03796296296 | M73: =OFFSET('InputData-XLU'!$M$10,$A73+$A$11,0,1,1)/OFFSET('InputData-XLU'!$M$10,$A73+$A$11+$A$18-1,0,1,1)-1 -> -0.03770949721 | N73: 0.1625830003 | O73: 0.002103816438 | P73: 16.04791838
A74: 42 | B74: =OFFSET(InputPriceData!B$10,CalculationsAndCharts!$A74+$A$11,0,1,1) -> 2012-04-11 | C74: =OFFSET(InputPriceData!G$10,CalculationsAndCharts!$A74+$A$11,0,1,1) -> 3743040000 | D74: =OFFSET(InputPriceData!C$10,CalculationsAndCharts!$A74+$A$11,0,1,1) -> 1358.98 | E74: =OFFSET(InputPriceData!D$10,CalculationsAndCharts!$A74+$A$11,0,1,1) -> 1374.71 | F74: =OFFSET(InputPriceData!E$10,CalculationsAndCharts!$A74+$A$11,0,1,1) -> 1358.98 | G74: =OFFSET(InputPriceData!F$10,CalculationsAndCharts!$A74+$A$11,0,1,1) -> 1368.71 | H74: 1271.0079 | I74: =OFFSET('InputData-XLY'!$M$10,$A74+$A$11,0,1,1)/OFFSET('InputData-XLY'!$M$10,$A74+$A$11+$A$18-1,0,1,1)-1 -> 0.1418586591 | J74: =OFFSET('InputData-XLF'!$M$10,$A74+$A$11,0,1,1)/OFFSET('InputData-XLF'!$M$10,$A74+$A$11+$A$18-1,0,1,1)-1 -> 0.168202765 | K74: =OFFSET('InputData-XLE'!$M$10,$A74+$A$11,0,1,1)/OFFSET('InputData-XLE'!$M$10,$A74+$A$11+$A$18-1,0,1,1)-1 -> -0.009720005803 | L74: =OFFSET('InputData-XLP'!$M$10,$A74+$A$11,0,1,1)/OFFSET('InputData-XLP'!$M$10,$A74+$A$11+$A$18-1,0,1,1)-1 -> 0.04476220081 | M74: =OFFSET('InputData-XLU'!$M$10,$A74+$A$11,0,1,1)/OFFSET('InputData-XLU'!$M$10,$A74+$A$11+$A$18-1,0,1,1)-1 -> -0.034579702 | N74: 0.155030712 | O74: 0.0001541643364 | P74: 15.48765477
A75: 43 | B75: =OFFSET(InputPriceData!B$10,CalculationsAndCharts!$A75+$A$11,0,1,1) -> 2012-04-10 | C75: =OFFSET(InputPriceData!G$10,CalculationsAndCharts!$A75+$A$11,0,1,1) -> 4631730000 | D75: =OFFSET(InputPriceData!C$10,CalculationsAndCharts!$A75+$A$11,0,1,1) -> 1382.18 | E75: =OFFSET(InputPriceData!D$10,CalculationsAndCharts!$A75+$A$11,0,1,1) -> 1383.01 | F75: =OFFSET(InputPriceData!E$10,CalculationsAndCharts!$A75+$A$11,0,1,1) -> 1357.38 | G75: =OFFSET(InputPriceData!F$10,CalculationsAndCharts!$A75+$A$11,0,1,1) -> 1358.59 | H75: 1270.5066 | I75: =OFFSET('InputData-XLY'!$M$10,$A75+$A$11,0,1,1)/OFFSET('InputData-XLY'!$M$10,$A75+$A$11+$A$18-1,0,1,1)-1 -> 0.1295430945 | J75: =OFFSET('InputData-XLF'!$M$10,$A75+$A$11,0,1,1)/OFFSET('InputData-XLF'!$M$10,$A75+$A$11+$A$18-1,0,1,1)-1 -> 0.1741176471 | K75: =OFFSET('InputData-XLE'!$M$10,$A75+$A$11,0,1,1)/OFFSET('InputData-XLE'!$M$10,$A75+$A$11+$A$18-1,0,1,1)-1 -> 0.001467566774 | L75: =OFFSET('InputData-XLP'!$M$10,$A75+$A$11,0,1,1)/OFFSET('InputData-XLP'!$M$10,$A75+$A$11+$A$18-1,0,1,1)-1 -> 0.03915475451 | M75: =OFFSET('InputData-XLU'!$M$10,$A75+$A$11,0,1,1)/OFFSET('InputData-XLU'!$M$10,$A75+$A$11+$A$18-1,0,1,1)-1 -> -0.03574444132 | N75: 0.1518303708 | O75: 0.001625959988 | P75: 15.02044108
A76: 44 | B76: =OFFSET(InputPriceData!B$10,CalculationsAndCharts!$A76+$A$11,0,1,1) -> 2012-04-09 | C76: =OFFSET(InputPriceData!G$10,CalculationsAndCharts!$A76+$A$11,0,1,1) -> 3468980000 | D76: =OFFSET(InputPriceData!C$10,CalculationsAndCharts!$A76+$A$11,0,1,1) -> 1397.45 | E76: =OFFSET(InputPriceData!D$10,CalculationsAndCharts!$A76+$A$11,0,1,1) -> 1397.45 | F76: =OFFSET(InputPriceData!E$10,CalculationsAndCharts!$A76+$A$11,0,1,1) -> 1378.24 | G76: =OFFSET(InputPriceData!F$10,CalculationsAndCharts!$A76+$A$11,0,1,1) -> 1382.2 | H76: 1270.13115 | I76: =OFFSET('InputData-XLY'!$M$10,$A76+$A$11,0,1,1)/OFFSET('InputData-XLY'!$M$10,$A76+$A$11+$A$18-1,0,1,1)-1 -> 0.1617608752 | J76: =OFFSET('InputData-XLF'!$M$10,$A76+$A$11,0,1,1)/OFFSET('InputData-XLF'!$M$10,$A76+$A$11+$A$18-1,0,1,1)-1 -> 0.2066246057 | K76: =OFFSET('InputData-XLE'!$M$10,$A76+$A$11,0,1,1)/OFFSET('InputData-XLE'!$M$10,$A76+$A$11+$A$18-1,0,1,1)-1 -> 0.03294257308 | L76: =OFFSET('InputData-XLP'!$M$10,$A76+$A$11,0,1,1)/OFFSET('InputData-XLP'!$M$10,$A76+$A$11+$A$18-1,0,1,1)-1 -> 0.05967336683 | M76: =OFFSET('InputData-XLU'!$M$10,$A76+$A$11,0,1,1)/OFFSET('InputData-XLU'!$M$10,$A76+$A$11+$A$18-1,0,1,1)-1 -> -0.008568980291 | N76: 0.1841927405 | O76: 0.02801565321 | P76: 15.61770872
A77: 45 | B77: =OFFSET(InputPriceData!B$10,CalculationsAndCharts!$A77+$A$11,0,1,1) -> 2012-04-05 | C77: =OFFSET(InputPriceData!G$10,CalculationsAndCharts!$A77+$A$11,0,1,1) -> 3303740000 | D77: =OFFSET(InputPriceData!C$10,CalculationsAndCharts!$A77+$A$11,0,1,1) -> 1398.79 | E77: =OFFSET(InputPriceData!D$10,CalculationsAndCharts!$A77+$A$11,0,1,1) -> 1401.6 | F77: =OFFSET(InputPriceData!E$10,CalculationsAndCharts!$A77+$A$11,0,1,1) -> 1392.92 | G77: =OFFSET(InputPriceData!F$10,CalculationsAndCharts!$A77+$A$11,0,1,1) -> 1398.08 | H77: 1269.65585 | I77: =OFFSET('InputData-XLY'!$M$10,$A77+$A$11,0,1,1)/OFFSET('InputData-XLY'!$M$10,$A77+$A$11+$A$18-1,0,1,1)-1 -> 0.204764454 | J77: =OFFSET('InputData-XLF'!$M$10,$A77+$A$11,0,1,1)/OFFSET('InputData-XLF'!$M$10,$A77+$A$11+$A$18-1,0,1,1)-1 -> 0.271685761 | K77: =OFFSET('InputData-XLE'!$M$10,$A77+$A$11,0,1,1)/OFFSET('InputData-XLE'!$M$10,$A77+$A$11+$A$18-1,0,1,1)-1 -> 0.08913950255 | L77: =OFFSET('InputData-XLP'!$M$10,$A77+$A$11,0,1,1)/OFFSET('InputData-XLP'!$M$10,$A77+$A$11+$A$18-1,0,1,1)-1 -> 0.09169605643 | M77: =OFFSET('InputData-XLU'!$M$10,$A77+$A$11,0,1,1)/OFFSET('InputData-XLU'!$M$10,$A77+$A$11+$A$18-1,0,1,1)-1 -> 0.01779463244 | N77: 0.2382251075 | O77: 0.06621006381 | P77: 17.20150437
A78: 46 | B78: =OFFSET(InputPriceData!B$10,CalculationsAndCharts!$A78+$A$11,0,1,1) -> 2012-04-04 | C78: =OFFSET(InputPriceData!G$10,CalculationsAndCharts!$A78+$A$11,0,1,1) -> 3938290000 | D78: =OFFSET(InputPriceData!C$10,CalculationsAndCharts!$A78+$A$11,0,1,1) -> 1413.09 | E78: =OFFSET(InputPriceData!D$10,CalculationsAndCharts!$A78+$A$11,0,1,1) -> 1413.09 | F78: =OFFSET(InputPriceData!E$10,CalculationsAndCharts!$A78+$A$11,0,1,1) -> 1394.09 | G78: =OFFSET(InputPriceData!F$10,CalculationsAndCharts!$A78+$A$11,0,1,1) -> 1398.96 | H78: 1269.14305 | I78: =OFFSET('InputData-XLY'!$M$10,$A78+$A$11,0,1,1)/OFFSET('InputData-XLY'!$M$10,$A78+$A$11+$A$18-1,0,1,1)-1 -> 0.1831656961 | J78: =OFFSET('InputData-XLF'!$M$10,$A78+$A$11,0,1,1)/OFFSET('InputData-XLF'!$M$10,$A78+$A$11+$A$18-1,0,1,1)-1 -> 0.2464 | K78: =OFFSET('InputData-XLE'!$M$10,$A78+$A$11,0,1,1)/OFFSET('InputData-XLE'!$M$10,$A78+$A$11+$A$18-1,0,1,1)-1 -> 0.07603581727 | L78: =OFFSET('InputData-XLP'!$M$10,$A78+$A$11,0,1,1)/OFFSET('InputData-XLP'!$M$10,$A78+$A$11+$A$18-1,0,1,1)-1 -> 0.08716475096 | M78: =OFFSET('InputData-XLU'!$M$10,$A78+$A$11,0,1,1)/OFFSET('InputData-XLU'!$M$10,$A78+$A$11+$A$18-1,0,1,1)-1 -> 0.01766068327 | N78: 0.2147828481 | O78: 0.06028708383 | P78: 15.44957642
A79: 47 | B79: =OFFSET(InputPriceData!B$10,CalculationsAndCharts!$A79+$A$11,0,1,1) -> 2012-04-03 | C79: =OFFSET(InputPriceData!G$10,CalculationsAndCharts!$A79+$A$11,0,1,1) -> 3822090000 | D79: =OFFSET(InputPriceData!C$10,CalculationsAndCharts!$A79+$A$11,0,1,1) -> 1418.98 | E79: =OFFSET(InputPriceData!D$10,CalculationsAndCharts!$A79+$A$11,0,1,1) -> 1419 | F79: =OFFSET(InputPriceData!E$10,CalculationsAndCharts!$A79+$A$11,0,1,1) -> 1404.62 | G79: =OFFSET(InputPriceData!F$10,CalculationsAndCharts!$A79+$A$11,0,1,1) -> 1413.38 | H79: 1268.54005 | I79: =OFFSET('InputData-XLY'!$M$10,$A79+$A$11,0,1,1)/OFFSET('InputData-XLY'!$M$10,$A79+$A$11+$A$18-1,0,1,1)-1 -> 0.1942826893 | J79: =OFFSET('InputData-XLF'!$M$10,$A79+$A$11,0,1,1)/OFFSET('InputData-XLF'!$M$10,$A79+$A$11+$A$18-1,0,1,1)-1 -> 0.2714859438 | K79: =OFFSET('InputData-XLE'!$M$10,$A79+$A$11,0,1,1)/OFFSET('InputData-XLE'!$M$10,$A79+$A$11+$A$18-1,0,1,1)-1 -> 0.1017027151 | L79: =OFFSET('InputData-XLP'!$M$10,$A79+$A$11,0,1,1)/OFFSET('InputData-XLP'!$M$10,$A79+$A$11+$A$18-1,0,1,1)-1 -> 0.08928571429 | M79: =OFFSET('InputData-XLU'!$M$10,$A79+$A$11,0,1,1)/OFFSET('InputData-XLU'!$M$10,$A79+$A$11+$A$18-1,0,1,1)-1 -> 0.01616628176 | N79: 0.2328843165 | O79: 0.06905157039 | P79: 16.38327461
A80: 48 | B80: =OFFSET(InputPriceData!B$10,CalculationsAndCharts!$A80+$A$11,0,1,1) -> 2012-04-02 | C80: =OFFSET(InputPriceData!G$10,CalculationsAndCharts!$A80+$A$11,0,1,1) -> 3572010000 | D80: =OFFSET(InputPriceData!C$10,CalculationsAndCharts!$A80+$A$11,0,1,1) -> 1408.47 | E80: =OFFSET(InputPriceData!D$10,CalculationsAndCharts!$A80+$A$11,0,1,1) -> 1422.38 | F80: =OFFSET(InputPriceData!E$10,CalculationsAndCharts!$A80+$A$11,0,1,1) -> 1404.46 | G80: =OFFSET(InputPriceData!F$10,CalculationsAndCharts!$A80+$A$11,0,1,1) -> 1419.04 | H80: 1267.83065 | I80: =OFFSET('InputData-XLY'!$M$10,$A80+$A$11,0,1,1)/OFFSET('InputData-XLY'!$M$10,$A80+$A$11+$A$18-1,0,1,1)-1 -> 0.1985683987 | J80: =OFFSET('InputData-XLF'!$M$10,$A80+$A$11,0,1,1)/OFFSET('InputData-XLF'!$M$10,$A80+$A$11+$A$18-1,0,1,1)-1 -> 0.2797427653 | K80: =OFFSET('InputData-XLE'!$M$10,$A80+$A$11,0,1,1)/OFFSET('InputData-XLE'!$M$10,$A80+$A$11+$A$18-1,0,1,1)-1 -> 0.1066137162 | L80: =OFFSET('InputData-XLP'!$M$10,$A80+$A$11,0,1,1)/OFFSET('InputData-XLP'!$M$10,$A80+$A$11+$A$18-1,0,1,1)-1 -> 0.1066365979 | M80: =OFFSET('InputData-XLU'!$M$10,$A80+$A$11,0,1,1)/OFFSET('InputData-XLU'!$M$10,$A80+$A$11+$A$18-1,0,1,1)-1 -> 0.02892199825 | N80: 0.239155582 | O80: 0.08072410413 | P80: 15.84314779
A81: 49 | B81: =OFFSET(InputPriceData!B$10,CalculationsAndCharts!$A81+$A$11,0,1,1) -> 2012-03-30 | C81: =OFFSET(InputPriceData!G$10,CalculationsAndCharts!$A81+$A$11,0,1,1) -> 3676890000 | D81: =OFFSET(InputPriceData!C$10,CalculationsAndCharts!$A81+$A$11,0,1,1) -> 1403.31 | E81: =OFFSET(InputPriceData!D$10,CalculationsAndCharts!$A81+$A$11,0,1,1) -> 1410.89 | F81: =OFFSET(InputPriceData!E$10,CalculationsAndCharts!$A81+$A$11,0,1,1) -> 1401.42 | G81: =OFFSET(InputPriceData!F$10,CalculationsAndCharts!$A81+$A$11,0,1,1) -> 1408.47 | H81: 1267.07365 | I81: =OFFSET('InputData-XLY'!$M$10,$A81+$A$11,0,1,1)/OFFSET('InputData-XLY'!$M$10,$A81+$A$11+$A$18-1,0,1,1)-1 -> 0.1828436516 | J81: =OFFSET('InputData-XLF'!$M$10,$A81+$A$11,0,1,1)/OFFSET('InputData-XLF'!$M$10,$A81+$A$11+$A$18-1,0,1,1)-1 -> 0.2650120096 | K81: =OFFSET('InputData-XLE'!$M$10,$A81+$A$11,0,1,1)/OFFSET('InputData-XLE'!$M$10,$A81+$A$11+$A$18-1,0,1,1)-1 -> 0.06517220903 | L81: =OFFSET('InputData-XLP'!$M$10,$A81+$A$11,0,1,1)/OFFSET('InputData-XLP'!$M$10,$A81+$A$11+$A$18-1,0,1,1)-1 -> 0.09230769231 | M81: =OFFSET('InputData-XLU'!$M$10,$A81+$A$11,0,1,1)/OFFSET('InputData-XLU'!$M$10,$A81+$A$11+$A$18-1,0,1,1)-1 -> 0.01742160279 | N81: 0.2239278306 | O81: 0.05830050137 | P81: 16.56273292
A82: 50 | B82: =OFFSET(InputPriceData!B$10,CalculationsAndCharts!$A82+$A$11,0,1,1) -> 2012-03-29 | C82: =OFFSET(InputPriceData!G$10,CalculationsAndCharts!$A82+$A$11,0,1,1) -> 3832000000 | D82: =OFFSET(InputPriceData!C$10,CalculationsAndCharts!$A82+$A$11,0,1,1) -> 1405.39 | E82: =OFFSET(InputPriceData!D$10,CalculationsAndCharts!$A82+$A$11,0,1,1) -> 1405.39 | F82: =OFFSET(InputPriceData!E$10,CalculationsAndCharts!$A82+$A$11,0,1,1) -> 1391.56 | G82: =OFFSET(InputPriceData!F$10,CalculationsAndCharts!$A82+$A$11,0,1,1) -> 1403.28 | H82: 1266.3584 | I82: =OFFSET('InputData-XLY'!$M$10,$A82+$A$11,0,1,1)/OFFSET('InputData-XLY'!$M$10,$A82+$A$11+$A$18-1,0,1,1)-1 -> 0.1545781893 | J82: =OFFSET('InputData-XLF'!$M$10,$A82+$A$11,0,1,1)/OFFSET('InputData-XLF'!$M$10,$A82+$A$11+$A$18-1,0,1,1)-1 -> 0.2399368587 | K82: =OFFSET('InputData-XLE'!$M$10,$A82+$A$11,0,1,1)/OFFSET('InputData-XLE'!$M$10,$A82+$A$11+$A$18-1,0,1,1)-1 -> 0.04661764706 | L82: =OFFSET('InputData-XLP'!$M$10,$A82+$A$11,0,1,1)/OFFSET('InputData-XLP'!$M$10,$A82+$A$11+$A$18-1,0,1,1)-1 -> 0.08346658139 | M82: =OFFSET('InputData-XLU'!$M$10,$A82+$A$11,0,1,1)/OFFSET('InputData-XLU'!$M$10,$A82+$A$11+$A$18-1,0,1,1)-1 -> 0.01573426573 | N82: 0.197257524 | O82: 0.04860616473 | P82: 14.86513593
A83: 51 | B83: =OFFSET(InputPriceData!B$10,CalculationsAndCharts!$A83+$A$11,0,1,1) -> 2012-03-28 | C83: =OFFSET(InputPriceData!G$10,CalculationsAndCharts!$A83+$A$11,0,1,1) -> 3892800000 | D83: =OFFSET(InputPriceData!C$10,CalculationsAndCharts!$A83+$A$11,0,1,1) -> 1412.52 | E83: =OFFSET(InputPriceData!D$10,CalculationsAndCharts!$A83+$A$11,0,1,1) -> 1413.65 | F83: =OFFSET(InputPriceData!E$10,CalculationsAndCharts!$A83+$A$11,0,1,1) -> 1397.2 | G83: =OFFSET(InputPriceData!F$10,CalculationsAndCharts!$A83+$A$11,0,1,1) -> 1405.54 | H83: 1265.78135 | I83: =OFFSET('InputData-XLY'!$M$10,$A83+$A$11,0,1,1)/OFFSET('InputData-XLY'!$M$10,$A83+$A$11+$A$18-1,0,1,1)-1 -> 0.1512820513 | J83: =OFFSET('InputData-XLF'!$M$10,$A83+$A$11,0,1,1)/OFFSET('InputData-XLF'!$M$10,$A83+$A$11+$A$18-1,0,1,1)-1 -> 0.2226502311 | K83: =OFFSET('InputData-XLE'!$M$10,$A83+$A$11,0,1,1)/OFFSET('InputData-XLE'!$M$10,$A83+$A$11+$A$18-1,0,1,1)-1 -> 0.02211690363 | L83: =OFFSET('InputData-XLP'!$M$10,$A83+$A$11,0,1,1)/OFFSET('InputData-XLP'!$M$10,$A83+$A$11+$A$18-1,0,1,1)-1 -> 0.07382762991 | M83: =OFFSET('InputData-XLU'!$M$10,$A83+$A$11,0,1,1)/OFFSET('InputData-XLU'!$M$10,$A83+$A$11+$A$18-1,0,1,1)-1 -> 0.003178272176 | N83: 0.1869661412 | O83: 0.03304093524 | P83: 15.3925206
A84: 52 | B84: =OFFSET(InputPriceData!B$10,CalculationsAndCharts!$A84+$A$11,0,1,1) -> 2012-03-27 | C84: =OFFSET(InputPriceData!G$10,CalculationsAndCharts!$A84+$A$11,0,1,1) -> 3513640000 | D84: =OFFSET(InputPriceData!C$10,CalculationsAndCharts!$A84+$A$11,0,1,1) -> 1416.55 | E84: =OFFSET(InputPriceData!D$10,CalculationsAndCharts!$A84+$A$11,0,1,1) -> 1419.15 | F84: =OFFSET(InputPriceData!E$10,CalculationsAndCharts!$A84+$A$11,0,1,1) -> 1411.95 | G84: =OFFSET(InputPriceData!F$10,CalculationsAndCharts!$A84+$A$11,0,1,1) -> 1412.52 | H84: 1265.1128 | I84: =OFFSET('InputData-XLY'!$M$10,$A84+$A$11,0,1,1)/OFFSET('InputData-XLY'!$M$10,$A84+$A$11+$A$18-1,0,1,1)-1 -> 0.1803492312 | J84: =OFFSET('InputData-XLF'!$M$10,$A84+$A$11,0,1,1)/OFFSET('InputData-XLF'!$M$10,$A84+$A$11+$A$18-1,0,1,1)-1 -> 0.2464566929 | K84: =OFFSET('InputData-XLE'!$M$10,$A84+$A$11,0,1,1)/OFFSET('InputData-XLE'!$M$10,$A84+$A$11+$A$18-1,0,1,1)-1 -> 0.05860752056 | L84: =OFFSET('InputData-XLP'!$M$10,$A84+$A$11,0,1,1)/OFFSET('InputData-XLP'!$M$10,$A84+$A$11+$A$18-1,0,1,1)-1 -> 0.08773615114 | M84: =OFFSET('InputData-XLU'!$M$10,$A84+$A$11,0,1,1)/OFFSET('InputData-XLU'!$M$10,$A84+$A$11+$A$18-1,0,1,1)-1 -> 0.02428320655 | N84: 0.213402962 | O84: 0.05687562608 | P84: 15.6527336
A85: 53 | B85: =OFFSET(InputPriceData!B$10,CalculationsAndCharts!$A85+$A$11,0,1,1) -> 2012-03-26 | C85: =OFFSET(InputPriceData!G$10,CalculationsAndCharts!$A85+$A$11,0,1,1) -> 3576950000 | D85: =OFFSET(InputPriceData!C$10,CalculationsAndCharts!$A85+$A$11,0,1,1) -> 1397.11 | E85: =OFFSET(InputPriceData!D$10,CalculationsAndCharts!$A85+$A$11,0,1,1) -> 1416.58 | F85: =OFFSET(InputPriceData!E$10,CalculationsAndCharts!$A85+$A$11,0,1,1) -> 1397.11 | G85: =OFFSET(InputPriceData!F$10,CalculationsAndCharts!$A85+$A$11,0,1,1) -> 1416.51 | H85: 1264.4051 | I85: =OFFSET('InputData-XLY'!$M$10,$A85+$A$11,0,1,1)/OFFSET('InputData-XLY'!$M$10,$A85+$A$11+$A$18-1,0,1,1)-1 -> 0.1571428571 | J85: =OFFSET('InputData-XLF'!$M$10,$A85+$A$11,0,1,1)/OFFSET('InputData-XLF'!$M$10,$A85+$A$11+$A$18-1,0,1,1)-1 -> 0.2096896291 | K85: =OFFSET('InputData-XLE'!$M$10,$A85+$A$11,0,1,1)/OFFSET('InputData-XLE'!$M$10,$A85+$A$11+$A$18-1,0,1,1)-1 -> 0.03955447665 | L85: =OFFSET('InputData-XLP'!$M$10,$A85+$A$11,0,1,1)/OFFSET('InputData-XLP'!$M$10,$A85+$A$11+$A$18-1,0,1,1)-1 -> 0.07563291139 | M85: =OFFSET('InputData-XLU'!$M$10,$A85+$A$11,0,1,1)/OFFSET('InputData-XLU'!$M$10,$A85+$A$11+$A$18-1,0,1,1)-1 -> 0.00461361015 | N85: 0.1834162431 | O85: 0.03993366607 | P85: 14.3482577
A86: 54 | B86: =OFFSET(InputPriceData!B$10,CalculationsAndCharts!$A86+$A$11,0,1,1) -> 2012-03-23 | C86: =OFFSET(InputPriceData!G$10,CalculationsAndCharts!$A86+$A$11,0,1,1) -> 3472950000 | D86: =OFFSET(InputPriceData!C$10,CalculationsAndCharts!$A86+$A$11,0,1,1) -> 1392.78 | E86: =OFFSET(InputPriceData!D$10,CalculationsAndCharts!$A86+$A$11,0,1,1) -> 1399.18 | F86: =OFFSET(InputPriceData!E$10,CalculationsAndCharts!$A86+$A$11,0,1,1) -> 1386.87 | G86: =OFFSET(InputPriceData!F$10,CalculationsAndCharts!$A86+$A$11,0,1,1) -> 1397.11 | H86: 1263.76755 | I86: =OFFSET('InputData-XLY'!$M$10,$A86+$A$11,0,1,1)/OFFSET('InputData-XLY'!$M$10,$A86+$A$11+$A$18-1,0,1,1)-1 -> 0.1463414634 | J86: =OFFSET('InputData-XLF'!$M$10,$A86+$A$11,0,1,1)/OFFSET('InputData-XLF'!$M$10,$A86+$A$11+$A$18-1,0,1,1)-1 -> 0.2053639847 | K86: =OFFSET('InputData-XLE'!$M$10,$A86+$A$11,0,1,1)/OFFSET('InputData-XLE'!$M$10,$A86+$A$11+$A$18-1,0,1,1)-1 -> 0.02192052044 | L86: =OFFSET('InputData-XLP'!$M$10,$A86+$A$11,0,1,1)/OFFSET('InputData-XLP'!$M$10,$A86+$A$11+$A$18-1,0,1,1)-1 -> 0.07106598985 | M86: =OFFSET('InputData-XLU'!$M$10,$A86+$A$11,0,1,1)/OFFSET('InputData-XLU'!$M$10,$A86+$A$11+$A$18-1,0,1,1)-1 -> -0.003743161532 | N86: 0.175852724 | O86: 0.02974778292 | P86: 14.61049411
A87: 55 | B87: =OFFSET(InputPriceData!B$10,CalculationsAndCharts!$A87+$A$11,0,1,1) -> 2012-03-22 | C87: =OFFSET(InputPriceData!G$10,CalculationsAndCharts!$A87+$A$11,0,1,1) -> 3740590000 | D87: =OFFSET(InputPriceData!C$10,CalculationsAndCharts!$A87+$A$11,0,1,1) -> 1402.89 | E87: =OFFSET(InputPriceData!D$10,CalculationsAndCharts!$A87+$A$11,0,1,1) -> 1402.89 | F87: =OFFSET(InputPriceData!E$10,CalculationsAndCharts!$A87+$A$11,0,1,1) -> 1388.73 | G87: =OFFSET(InputPriceData!F$10,CalculationsAndCharts!$A87+$A$11,0,1,1) -> 1392.78 | H87: 1263.1798 | I87: =OFFSET('InputData-XLY'!$M$10,$A87+$A$11,0,1,1)/OFFSET('InputData-XLY'!$M$10,$A87+$A$11+$A$18-1,0,1,1)-1 -> 0.1412487206 | J87: =OFFSET('InputData-XLF'!$M$10,$A87+$A$11,0,1,1)/OFFSET('InputData-XLF'!$M$10,$A87+$A$11+$A$18-1,0,1,1)-1 -> 0.1963190184 | K87: =OFFSET('InputData-XLE'!$M$10,$A87+$A$11,0,1,1)/OFFSET('InputData-XLE'!$M$10,$A87+$A$11+$A$18-1,0,1,1)-1 -> 0.01074660633 | L87: =OFFSET('InputData-XLP'!$M$10,$A87+$A$11,0,1,1)/OFFSET('InputData-XLP'!$M$10,$A87+$A$11+$A$18-1,0,1,1)-1 -> 0.06988564168 | M87: =OFFSET('InputData-XLU'!$M$10,$A87+$A$11,0,1,1)/OFFSET('InputData-XLU'!$M$10,$A87+$A$11+$A$18-1,0,1,1)-1 -> -0.00115506786 | N87: 0.1687838695 | O87: 0.02649239338 | P87: 14.22914761
A88: 56 | B88: =OFFSET(InputPriceData!B$10,CalculationsAndCharts!$A88+$A$11,0,1,1) -> 2012-03-21 | C88: =OFFSET(InputPriceData!G$10,CalculationsAndCharts!$A88+$A$11,0,1,1) -> 3573590000 | D88: =OFFSET(InputPriceData!C$10,CalculationsAndCharts!$A88+$A$11,0,1,1) -> 1405.52 | E88: =OFFSET(InputPriceData!D$10,CalculationsAndCharts!$A88+$A$11,0,1,1) -> 1407.75 | F88: =OFFSET(InputPriceData!E$10,CalculationsAndCharts!$A88+$A$11,0,1,1) -> 1400.64 | G88: =OFFSET(InputPriceData!F$10,CalculationsAndCharts!$A88+$A$11,0,1,1) -> 1402.89 | H88: 1262.6406 | I88: =OFFSET('InputData-XLY'!$M$10,$A88+$A$11,0,1,1)/OFFSET('InputData-XLY'!$M$10,$A88+$A$11+$A$18-1,0,1,1)-1 -> 0.1544022721 | J88: =OFFSET('InputData-XLF'!$M$10,$A88+$A$11,0,1,1)/OFFSET('InputData-XLF'!$M$10,$A88+$A$11+$A$18-1,0,1,1)-1 -> 0.2361219703 | K88: =OFFSET('InputData-XLE'!$M$10,$A88+$A$11,0,1,1)/OFFSET('InputData-XLE'!$M$10,$A88+$A$11+$A$18-1,0,1,1)-1 -> 0.04695776664 | L88: =OFFSET('InputData-XLP'!$M$10,$A88+$A$11,0,1,1)/OFFSET('InputData-XLP'!$M$10,$A88+$A$11+$A$18-1,0,1,1)-1 -> 0.07542345797 | M88: =OFFSET('InputData-XLU'!$M$10,$A88+$A$11,0,1,1)/OFFSET('InputData-XLU'!$M$10,$A88+$A$11+$A$18-1,0,1,1)-1 -> 0.004073319756 | N88: 0.1952621212 | O88: 0.04215151479 | P88: 15.31106064
A89: 57 | B89: =OFFSET(InputPriceData!B$10,CalculationsAndCharts!$A89+$A$11,0,1,1) -> 2012-03-20 | C89: =OFFSET(InputPriceData!G$10,CalculationsAndCharts!$A89+$A$11,0,1,1) -> 3695280000 | D89: =OFFSET(InputPriceData!C$10,CalculationsAndCharts!$A89+$A$11,0,1,1) -> 1409.59 | E89: =OFFSET(InputPriceData!D$10,CalculationsAndCharts!$A89+$A$11,0,1,1) -> 1409.59 | F89: =OFFSET(InputPriceData!E$10,CalculationsAndCharts!$A89+$A$11,0,1,1) -> 1397.68 | G89: =OFFSET(InputPriceData!F$10,CalculationsAndCharts!$A89+$A$11,0,1,1) -> 1405.52 | H89: 1262.057 | I89: =OFFSET('InputData-XLY'!$M$10,$A89+$A$11,0,1,1)/OFFSET('InputData-XLY'!$M$10,$A89+$A$11+$A$18-1,0,1,1)-1 -> 0.1618527192 | J89: =OFFSET('InputData-XLF'!$M$10,$A89+$A$11,0,1,1)/OFFSET('InputData-XLF'!$M$10,$A89+$A$11+$A$18-1,0,1,1)-1 -> 0.2583201268 | K89: =OFFSET('InputData-XLE'!$M$10,$A89+$A$11,0,1,1)/OFFSET('InputData-XLE'!$M$10,$A89+$A$11+$A$18-1,0,1,1)-1 -> 0.05864683164 | L89: =OFFSET('InputData-XLP'!$M$10,$A89+$A$11,0,1,1)/OFFSET('InputData-XLP'!$M$10,$A89+$A$11+$A$18-1,0,1,1)-1 -> 0.07006369427 | M89: =OFFSET('InputData-XLU'!$M$10,$A89+$A$11,0,1,1)/OFFSET('InputData-XLU'!$M$10,$A89+$A$11+$A$18-1,0,1,1)-1 -> -0.004032258065 | N89: 0.210086423 | O89: 0.04155942261 | P89: 16.85270004
A90: 58 | B90: =OFFSET(InputPriceData!B$10,CalculationsAndCharts!$A90+$A$11,0,1,1) -> 2012-03-19 | C90: =OFFSET(InputPriceData!G$10,CalculationsAndCharts!$A90+$A$11,0,1,1) -> 3932570000 | D90: =OFFSET(InputPriceData!C$10,CalculationsAndCharts!$A90+$A$11,0,1,1) -> 1404.17 | E90: =OFFSET(InputPriceData!D$10,CalculationsAndCharts!$A90+$A$11,0,1,1) -> 1414 | F90: =OFFSET(InputPriceData!E$10,CalculationsAndCharts!$A90+$A$11,0,1,1) -> 1402.43 | G90: =OFFSET(InputPriceData!F$10,CalculationsAndCharts!$A90+$A$11,0,1,1) -> 1409.75 | H90: 1261.5302 | I90: =OFFSET('InputData-XLY'!$M$10,$A90+$A$11,0,1,1)/OFFSET('InputData-XLY'!$M$10,$A90+$A$11+$A$18-1,0,1,1)-1 -> 0.1609375 | J90: =OFFSET('InputData-XLF'!$M$10,$A90+$A$11,0,1,1)/OFFSET('InputData-XLF'!$M$10,$A90+$A$11+$A$18-1,0,1,1)-1 -> 0.2450748621 | K90: =OFFSET('InputData-XLE'!$M$10,$A90+$A$11,0,1,1)/OFFSET('InputData-XLE'!$M$10,$A90+$A$11+$A$18-1,0,1,1)-1 -> 0.06884779516 | L90: =OFFSET('InputData-XLP'!$M$10,$A90+$A$11,0,1,1)/OFFSET('InputData-XLP'!$M$10,$A90+$A$11+$A$18-1,0,1,1)-1 -> 0.06899841017 | M90: =OFFSET('InputData-XLU'!$M$10,$A90+$A$11,0,1,1)/OFFSET('InputData-XLU'!$M$10,$A90+$A$11+$A$18-1,0,1,1)-1 -> -0.008041355543 | N90: 0.203006181 | O90: 0.04326828327 | P90: 15.97378978
A91: 59 | B91: =OFFSET(InputPriceData!B$10,CalculationsAndCharts!$A91+$A$11,0,1,1) -> 2012-03-16 | C91: =OFFSET(InputPriceData!G$10,CalculationsAndCharts!$A91+$A$11,0,1,1) -> 5163950000 | D91: =OFFSET(InputPriceData!C$10,CalculationsAndCharts!$A91+$A$11,0,1,1) -> 1402.55 | E91: =OFFSET(InputPriceData!D$10,CalculationsAndCharts!$A91+$A$11,0,1,1) -> 1405.88 | F91: =OFFSET(InputPriceData!E$10,CalculationsAndCharts!$A91+$A$11,0,1,1) -> 1401.47 | G91: =OFFSET(InputPriceData!F$10,CalculationsAndCharts!$A91+$A$11,0,1,1) -> 1404.17 | H91: 1261.04615 | I91: =OFFSET('InputData-XLY'!$M$10,$A91+$A$11,0,1,1)/OFFSET('InputData-XLY'!$M$10,$A91+$A$11+$A$18-1,0,1,1)-1 -> 0.1909237379 | J91: =OFFSET('InputData-XLF'!$M$10,$A91+$A$11,0,1,1)/OFFSET('InputData-XLF'!$M$10,$A91+$A$11+$A$18-1,0,1,1)-1 -> 0.3143812709 | K91: =OFFSET('InputData-XLE'!$M$10,$A91+$A$11,0,1,1)/OFFSET('InputData-XLE'!$M$10,$A91+$A$11+$A$18-1,0,1,1)-1 -> 0.1226174396 | L91: =OFFSET('InputData-XLP'!$M$10,$A91+$A$11,0,1,1)/OFFSET('InputData-XLP'!$M$10,$A91+$A$11+$A$18-1,0,1,1)-1 -> 0.09339407745 | M91: =OFFSET('InputData-XLU'!$M$10,$A91+$A$11,0,1,1)/OFFSET('InputData-XLU'!$M$10,$A91+$A$11+$A$18-1,0,1,1)-1 -> 0.02777777778 | N91: 0.2526525044 | O91: 0.08126309827 | P91: 17.13894061
A92: 60 | B92: =OFFSET(InputPriceData!B$10,CalculationsAndCharts!$A92+$A$11,0,1,1) -> 2012-03-15 | C92: =OFFSET(InputPriceData!G$10,CalculationsAndCharts!$A92+$A$11,0,1,1) -> 4271650000 | D92: =OFFSET(InputPriceData!C$10,CalculationsAndCharts!$A92+$A$11,0,1,1) -> 1394.17 | E92: =OFFSET(InputPriceData!D$10,CalculationsAndCharts!$A92+$A$11,0,1,1) -> 1402.63 | F92: =OFFSET(InputPriceData!E$10,CalculationsAndCharts!$A92+$A$11,0,1,1) -> 1392.78 | G92: =OFFSET(InputPriceData!F$10,CalculationsAndCharts!$A92+$A$11,0,1,1) -> 1402.6 | H92: 1260.59805 | I92: =OFFSET('InputData-XLY'!$M$10,$A92+$A$11,0,1,1)/OFFSET('InputData-XLY'!$M$10,$A92+$A$11+$A$18-1,0,1,1)-1 -> 0.1988682296 | J92: =OFFSET('InputData-XLF'!$M$10,$A92+$A$11,0,1,1)/OFFSET('InputData-XLF'!$M$10,$A92+$A$11+$A$18-1,0,1,1)-1 -> 0.3039134055 | K92: =OFFSET('InputData-XLE'!$M$10,$A92+$A$11,0,1,1)/OFFSET('InputData-XLE'!$M$10,$A92+$A$11+$A$18-1,0,1,1)-1 -> 0.1231542092 | L92: =OFFSET('InputData-XLP'!$M$10,$A92+$A$11,0,1,1)/OFFSET('InputData-XLP'!$M$10,$A92+$A$11+$A$18-1,0,1,1)-1 -> 0.1055573824 | M92: =OFFSET('InputData-XLU'!$M$10,$A92+$A$11,0,1,1)/OFFSET('InputData-XLU'!$M$10,$A92+$A$11+$A$18-1,0,1,1)-1 -> 0.04928315412 | N92: 0.2513908175 | O92: 0.09266491524 | P92: 15.87259023
A93: 61 | B93: =OFFSET(InputPriceData!B$10,CalculationsAndCharts!$A93+$A$11,0,1,1) -> 2012-03-14 | C93: =OFFSET(InputPriceData!G$10,CalculationsAndCharts!$A93+$A$11,0,1,1) -> 4502280000 | D93: =OFFSET(InputPriceData!C$10,CalculationsAndCharts!$A93+$A$11,0,1,1) -> 1395.95 | E93: =OFFSET(InputPriceData!D$10,CalculationsAndCharts!$A93+$A$11,0,1,1) -> 1399.42 | F93: =OFFSET(InputPriceData!E$10,CalculationsAndCharts!$A93+$A$11,0,1,1) -> 1389.97 | G93: =OFFSET(InputPriceData!F$10,CalculationsAndCharts!$A93+$A$11,0,1,1) -> 1394.28 | H93: 1260.31105 | I93: =OFFSET('InputData-XLY'!$M$10,$A93+$A$11,0,1,1)/OFFSET('InputData-XLY'!$M$10,$A93+$A$11+$A$18-1,0,1,1)-1 -> 0.231324632 | J93: =OFFSET('InputData-XLF'!$M$10,$A93+$A$11,0,1,1)/OFFSET('InputData-XLF'!$M$10,$A93+$A$11+$A$18-1,0,1,1)-1 -> 0.3187660668 | K93: =OFFSET('InputData-XLE'!$M$10,$A93+$A$11,0,1,1)/OFFSET('InputData-XLE'!$M$10,$A93+$A$11+$A$18-1,0,1,1)-1 -> 0.1634554643 | L93: =OFFSET('InputData-XLP'!$M$10,$A93+$A$11,0,1,1)/OFFSET('InputData-XLP'!$M$10,$A93+$A$11+$A$18-1,0,1,1)-1 -> 0.1209084836 | M93: =OFFSET('InputData-XLU'!$M$10,$A93+$A$11,0,1,1)/OFFSET('InputData-XLU'!$M$10,$A93+$A$11+$A$18-1,0,1,1)-1 -> 0.06352087114 | N93: 0.2750453494 | O93: 0.1159616064 | P93: 15.90837431
A94: 62 | B94: =OFFSET(InputPriceData!B$10,CalculationsAndCharts!$A94+$A$11,0,1,1) -> 2012-03-13 | C94: =OFFSET(InputPriceData!G$10,CalculationsAndCharts!$A94+$A$11,0,1,1) -> 4386470000 | D94: =OFFSET(InputPriceData!C$10,CalculationsAndCharts!$A94+$A$11,0,1,1) -> 1371.92 | E94: =OFFSET(InputPriceData!D$10,CalculationsAndCharts!$A94+$A$11,0,1,1) -> 1396.13 | F94: =OFFSET(InputPriceData!E$10,CalculationsAndCharts!$A94+$A$11,0,1,1) -> 1371.92 | G94: =OFFSET(InputPriceData!F$10,CalculationsAndCharts!$A94+$A$11,0,1,1) -> 1395.95 | H94: 1259.99515 | I94: =OFFSET('InputData-XLY'!$M$10,$A94+$A$11,0,1,1)/OFFSET('InputData-XLY'!$M$10,$A94+$A$11+$A$18-1,0,1,1)-1 -> 0.2261806131 | J94: =OFFSET('InputData-XLF'!$M$10,$A94+$A$11,0,1,1)/OFFSET('InputData-XLF'!$M$10,$A94+$A$11+$A$18-1,0,1,1)-1 -> 0.3204467354 | K94: =OFFSET('InputData-XLE'!$M$10,$A94+$A$11,0,1,1)/OFFSET('InputData-XLE'!$M$10,$A94+$A$11+$A$18-1,0,1,1)-1 -> 0.1663791752 | L94: =OFFSET('InputData-XLP'!$M$10,$A94+$A$11,0,1,1)/OFFSET('InputData-XLP'!$M$10,$A94+$A$11+$A$18-1,0,1,1)-1 -> 0.128394234 | M94: =OFFSET('InputData-XLU'!$M$10,$A94+$A$11,0,1,1)/OFFSET('InputData-XLU'!$M$10,$A94+$A$11+$A$18-1,0,1,1)-1 -> 0.08513225905 | N94: 0.2733136742 | O94: 0.1266352227 | P94: 14.66784515
A95: 63 | B95: =OFFSET(InputPriceData!B$10,CalculationsAndCharts!$A95+$A$11,0,1,1) -> 2012-03-12 | C95: =OFFSET(InputPriceData!G$10,CalculationsAndCharts!$A95+$A$11,0,1,1) -> 3081870000 | D95: =OFFSET(InputPriceData!C$10,CalculationsAndCharts!$A95+$A$11,0,1,1) -> 1370.78 | E95: =OFFSET(InputPriceData!D$10,CalculationsAndCharts!$A95+$A$11,0,1,1) -> 1373.04 | F95: =OFFSET(InputPriceData!E$10,CalculationsAndCharts!$A95+$A$11,0,1,1) -> 1366.69 | G95: =OFFSET(InputPriceData!F$10,CalculationsAndCharts!$A95+$A$11,0,1,1) -> 1371.09 | H95: 1259.64385 | I95: =OFFSET('InputData-XLY'!$M$10,$A95+$A$11,0,1,1)/OFFSET('InputData-XLY'!$M$10,$A95+$A$11+$A$18-1,0,1,1)-1 -> 0.1838115864 | J95: =OFFSET('InputData-XLF'!$M$10,$A95+$A$11,0,1,1)/OFFSET('InputData-XLF'!$M$10,$A95+$A$11+$A$18-1,0,1,1)-1 -> 0.237458194 | K95: =OFFSET('InputData-XLE'!$M$10,$A95+$A$11,0,1,1)/OFFSET('InputData-XLE'!$M$10,$A95+$A$11+$A$18-1,0,1,1)-1 -> 0.1175307891 | L95: =OFFSET('InputData-XLP'!$M$10,$A95+$A$11,0,1,1)/OFFSET('InputData-XLP'!$M$10,$A95+$A$11+$A$18-1,0,1,1)-1 -> 0.1077586207 | M95: =OFFSET('InputData-XLU'!$M$10,$A95+$A$11,0,1,1)/OFFSET('InputData-XLU'!$M$10,$A95+$A$11+$A$18-1,0,1,1)-1 -> 0.06433273489 | N95: 0.2106348902 | O95: 0.0965407149 | P95: 11.40941753
A96: 64 | B96: =OFFSET(InputPriceData!B$10,CalculationsAndCharts!$A96+$A$11,0,1,1) -> 2012-03-09 | C96: =OFFSET(InputPriceData!G$10,CalculationsAndCharts!$A96+$A$11,0,1,1) -> 3639470000 | D96: =OFFSET(InputPriceData!C$10,CalculationsAndCharts!$A96+$A$11,0,1,1) -> 1365.97 | E96: =OFFSET(InputPriceData!D$10,CalculationsAndCharts!$A96+$A$11,0,1,1) -> 1374.76 | F96: =OFFSET(InputPriceData!E$10,CalculationsAndCharts!$A96+$A$11,0,1,1) -> 1365.97 | G96: =OFFSET(InputPriceData!F$10,CalculationsAndCharts!$A96+$A$11,0,1,1) -> 1370.87 | H96: 1259.39075 | I96: =OFFSET('InputData-XLY'!$M$10,$A96+$A$11,0,1,1)/OFFSET('InputData-XLY'!$M$10,$A96+$A$11+$A$18-1,0,1,1)-1 -> 0.1861471861 | J96: =OFFSET('InputData-XLF'!$M$10,$A96+$A$11,0,1,1)/OFFSET('InputData-XLF'!$M$10,$A96+$A$11+$A$18-1,0,1,1)-1 -> 0.2294946147 | K96: =OFFSET('InputData-XLE'!$M$10,$A96+$A$11,0,1,1)/OFFSET('InputData-XLE'!$M$10,$A96+$A$11+$A$18-1,0,1,1)-1 -> 0.1131194457 | L96: =OFFSET('InputData-XLP'!$M$10,$A96+$A$11,0,1,1)/OFFSET('InputData-XLP'!$M$10,$A96+$A$11+$A$18-1,0,1,1)-1 -> 0.1048788583 | M96: =OFFSET('InputData-XLU'!$M$10,$A96+$A$11,0,1,1)/OFFSET('InputData-XLU'!$M$10,$A96+$A$11+$A$18-1,0,1,1)-1 -> 0.03960981377 | N96: 0.2078209004 | O96: 0.08586937259 | P96: 12.19515279
A97: 65 | B97: =OFFSET(InputPriceData!B$10,CalculationsAndCharts!$A97+$A$11,0,1,1) -> 2012-03-08 | C97: =OFFSET(InputPriceData!G$10,CalculationsAndCharts!$A97+$A$11,0,1,1) -> 3543060000 | D97: =OFFSET(InputPriceData!C$10,CalculationsAndCharts!$A97+$A$11,0,1,1) -> 1352.65 | E97: =OFFSET(InputPriceData!D$10,CalculationsAndCharts!$A97+$A$11,0,1,1) -> 1368.72 | F97: =OFFSET(InputPriceData!E$10,CalculationsAndCharts!$A97+$A$11,0,1,1) -> 1352.65 | G97: =OFFSET(InputPriceData!F$10,CalculationsAndCharts!$A97+$A$11,0,1,1) -> 1365.91 | H97: 1259.1178 | I97: =OFFSET('InputData-XLY'!$M$10,$A97+$A$11,0,1,1)/OFFSET('InputData-XLY'!$M$10,$A97+$A$11+$A$18-1,0,1,1)-1 -> 0.1611185087 | J97: =OFFSET('InputData-XLF'!$M$10,$A97+$A$11,0,1,1)/OFFSET('InputData-XLF'!$M$10,$A97+$A$11+$A$18-1,0,1,1)-1 -> 0.1890145396 | K97: =OFFSET('InputData-XLE'!$M$10,$A97+$A$11,0,1,1)/OFFSET('InputData-XLE'!$M$10,$A97+$A$11+$A$18-1,0,1,1)-1 -> 0.09423076923 | L97: =OFFSET('InputData-XLP'!$M$10,$A97+$A$11,0,1,1)/OFFSET('InputData-XLP'!$M$10,$A97+$A$11+$A$18-1,0,1,1)-1 -> 0.08360548661 | M97: =OFFSET('InputData-XLU'!$M$10,$A97+$A$11,0,1,1)/OFFSET('InputData-XLU'!$M$10,$A97+$A$11+$A$18-1,0,1,1)-1 -> 0.02247518973 | N97: 0.1750665241 | O97: 0.06677048186 | P97: 10.82960423
A98: 66 | B98: =OFFSET(InputPriceData!B$10,CalculationsAndCharts!$A98+$A$11,0,1,1) -> 2012-03-07 | C98: =OFFSET(InputPriceData!G$10,CalculationsAndCharts!$A98+$A$11,0,1,1) -> 3580380000 | D98: =OFFSET(InputPriceData!C$10,CalculationsAndCharts!$A98+$A$11,0,1,1) -> 1343.39 | E98: =OFFSET(InputPriceData!D$10,CalculationsAndCharts!$A98+$A$11,0,1,1) -> 1354.85 | F98: =OFFSET(InputPriceData!E$10,CalculationsAndCharts!$A98+$A$11,0,1,1) -> 1343.39 | G98: =OFFSET(InputPriceData!F$10,CalculationsAndCharts!$A98+$A$11,0,1,1) -> 1352.63 | H98: =AVERAGE(OFFSET($G$32,A98,0,$A$19,1)) -> 1258.8751 | I98: =OFFSET('InputData-XLY'!$M$10,$A98+$A$11,0,1,1)/OFFSET('InputData-XLY'!$M$10,$A98+$A$11+$A$18-1,0,1,1)-1 -> 0.1487889273 | J98: =OFFSET('InputData-XLF'!$M$10,$A98+$A$11,0,1,1)/OFFSET('InputData-XLF'!$M$10,$A98+$A$11+$A$18-1,0,1,1)-1 -> 0.1815235008 | K98: =OFFSET('InputData-XLE'!$M$10,$A98+$A$11,0,1,1)/OFFSET('InputData-XLE'!$M$10,$A98+$A$11+$A$18-1,0,1,1)-1 -> 0.07895897662 | L98: =OFFSET('InputData-XLP'!$M$10,$A98+$A$11,0,1,1)/OFFSET('InputData-XLP'!$M$10,$A98+$A$11+$A$18-1,0,1,1)-1 -> 0.07959384212 | M98: =OFFSET('InputData-XLU'!$M$10,$A98+$A$11,0,1,1)/OFFSET('InputData-XLU'!$M$10,$A98+$A$11+$A$18-1,0,1,1)-1 -> 0.02645502646 | N98: =(I98+J98)/2 -> 0.1651562141 | O98: =(K98+L98+M98)/3 -> 0.06166928173 | P98: =100*(N98-O98) -> 10.34869323
A99: 67 | B99: =OFFSET(InputPriceData!B$10,CalculationsAndCharts!$A99+$A$11,0,1,1) -> 2012-03-06 | C99: =OFFSET(InputPriceData!G$10,CalculationsAndCharts!$A99+$A$11,0,1,1) -> 4191060000 | D99: =OFFSET(InputPriceData!C$10,CalculationsAndCharts!$A99+$A$11,0,1,1) -> 1363.63 | E99: =OFFSET(InputPriceData!D$10,CalculationsAndCharts!$A99+$A$11,0,1,1) -> 1363.63 | F99: =OFFSET(InputPriceData!E$10,CalculationsAndCharts!$A99+$A$11,0,1,1) -> 1340.03 | G99: =OFFSET(InputPriceData!F$10,CalculationsAndCharts!$A99+$A$11,0,1,1) -> 1343.36 | H99: 1258.7783 | I99: =OFFSET('InputData-XLY'!$M$10,$A99+$A$11,0,1,1)/OFFSET('InputData-XLY'!$M$10,$A99+$A$11+$A$18-1,0,1,1)-1 -> 0.1158472803 | J99: =OFFSET('InputData-XLF'!$M$10,$A99+$A$11,0,1,1)/OFFSET('InputData-XLF'!$M$10,$A99+$A$11+$A$18-1,0,1,1)-1 -> 0.1437648928 | K99: =OFFSET('InputData-XLE'!$M$10,$A99+$A$11,0,1,1)/OFFSET('InputData-XLE'!$M$10,$A99+$A$11+$A$18-1,0,1,1)-1 -> 0.04554597701 | L99: =OFFSET('InputData-XLP'!$M$10,$A99+$A$11,0,1,1)/OFFSET('InputData-XLP'!$M$10,$A99+$A$11+$A$18-1,0,1,1)-1 -> 0.07408616188 | M99: =OFFSET('InputData-XLU'!$M$10,$A99+$A$11,0,1,1)/OFFSET('InputData-XLU'!$M$10,$A99+$A$11+$A$18-1,0,1,1)-1 -> 0.02046783626 | N99: 0.1298060866 | O99: 0.04669999172 | P99: 8.310609484
A100: 68 | B100: =OFFSET(InputPriceData!B$10,CalculationsAndCharts!$A100+$A$11,0,1,1) -> 2012-03-05 | C100: =OFFSET(InputPriceData!G$10,CalculationsAndCharts!$A100+$A$11,0,1,1) -> 3429480000 | D100: =OFFSET(InputPriceData!C$10,CalculationsAndCharts!$A100+$A$11,0,1,1) -> 1369.59 | E100: =OFFSET(InputPriceData!D$10,CalculationsAndCharts!$A100+$A$11,0,1,1) -> 1369.59 | F100: =OFFSET(InputPriceData!E$10,CalculationsAndCharts!$A100+$A$11,0,1,1) -> 1359.13 | G100: =OFFSET(InputPriceData!F$10,CalculationsAndCharts!$A100+$A$11,0,1,1) -> 1364.33 | H100: 1258.7795 | I100: =OFFSET('InputData-XLY'!$M$10,$A100+$A$11,0,1,1)/OFFSET('InputData-XLY'!$M$10,$A100+$A$11+$A$18-1,0,1,1)-1 -> 0.1123941493 | J100: =OFFSET('InputData-XLF'!$M$10,$A100+$A$11,0,1,1)/OFFSET('InputData-XLF'!$M$10,$A100+$A$11+$A$18-1,0,1,1)-1 -> 0.1432997676 | K100: =OFFSET('InputData-XLE'!$M$10,$A100+$A$11,0,1,1)/OFFSET('InputData-XLE'!$M$10,$A100+$A$11+$A$18-1,0,1,1)-1 -> 0.04684404189 | L100: =OFFSET('InputData-XLP'!$M$10,$A100+$A$11,0,1,1)/OFFSET('InputData-XLP'!$M$10,$A100+$A$11+$A$18-1,0,1,1)-1 -> 0.07309184994 | M100: =OFFSET('InputData-XLU'!$M$10,$A100+$A$11,0,1,1)/OFFSET('InputData-XLU'!$M$10,$A100+$A$11+$A$18-1,0,1,1)-1 -> 0.01242415487 | N100: 0.1278469585 | O100: 0.04412001556 | P100: 8.372694292
A101: 69 | B101: =OFFSET(InputPriceData!B$10,CalculationsAndCharts!$A101+$A$11,0,1,1) -> 2012-03-02 | C101: =OFFSET(InputPriceData!G$10,CalculationsAndCharts!$A101+$A$11,0,1,1) -> 3283490000 | D101: =OFFSET(InputPriceData!C$10,CalculationsAndCharts!$A101+$A$11,0,1,1) -> 1374.09 | E101: =OFFSET(InputPriceData!D$10,CalculationsAndCharts!$A101+$A$11,0,1,1) -> 1374.53 | F101: =OFFSET(InputPriceData!E$10,CalculationsAndCharts!$A101+$A$11,0,1,1) -> 1366.42 | G101: =OFFSET(InputPriceData!F$10,CalculationsAndCharts!$A101+$A$11,0,1,1) -> 1369.63 | H101: 1258.66125 | I101: =OFFSET('InputData-XLY'!$M$10,$A101+$A$11,0,1,1)/OFFSET('InputData-XLY'!$M$10,$A101+$A$11+$A$18-1,0,1,1)-1 -> 0.117434973 | J101: =OFFSET('InputData-XLF'!$M$10,$A101+$A$11,0,1,1)/OFFSET('InputData-XLF'!$M$10,$A101+$A$11+$A$18-1,0,1,1)-1 -> 0.153307393 | K101: =OFFSET('InputData-XLE'!$M$10,$A101+$A$11,0,1,1)/OFFSET('InputData-XLE'!$M$10,$A101+$A$11+$A$18-1,0,1,1)-1 -> 0.05244557535 | L101: =OFFSET('InputData-XLP'!$M$10,$A101+$A$11,0,1,1)/OFFSET('InputData-XLP'!$M$10,$A101+$A$11+$A$18-1,0,1,1)-1 -> 0.07377315567 | M101: =OFFSET('InputData-XLU'!$M$10,$A101+$A$11,0,1,1)/OFFSET('InputData-XLU'!$M$10,$A101+$A$11+$A$18-1,0,1,1)-1 -> 0.01186685962 | N101: 0.135371183 | O101: 0.04602853021 | P101: 8.934265276
A102: 70 | B102: =OFFSET(InputPriceData!B$10,CalculationsAndCharts!$A102+$A$11,0,1,1) -> 2012-03-01 | C102: =OFFSET(InputPriceData!G$10,CalculationsAndCharts!$A102+$A$11,0,1,1) -> 3919240000 | D102: =OFFSET(InputPriceData!C$10,CalculationsAndCharts!$A102+$A$11,0,1,1) -> 1365.9 | E102: =OFFSET(InputPriceData!D$10,CalculationsAndCharts!$A102+$A$11,0,1,1) -> 1376.17 | F102: =OFFSET(InputPriceData!E$10,CalculationsAndCharts!$A102+$A$11,0,1,1) -> 1365.9 | G102: =OFFSET(InputPriceData!F$10,CalculationsAndCharts!$A102+$A$11,0,1,1) -> 1374.09 | H102: 1258.458 | I102: =OFFSET('InputData-XLY'!$M$10,$A102+$A$11,0,1,1)/OFFSET('InputData-XLY'!$M$10,$A102+$A$11+$A$18-1,0,1,1)-1 -> 0.1099182004 | J102: =OFFSET('InputData-XLF'!$M$10,$A102+$A$11,0,1,1)/OFFSET('InputData-XLF'!$M$10,$A102+$A$11+$A$18-1,0,1,1)-1 -> 0.1342486651 | K102: =OFFSET('InputData-XLE'!$M$10,$A102+$A$11,0,1,1)/OFFSET('InputData-XLE'!$M$10,$A102+$A$11+$A$18-1,0,1,1)-1 -> 0.05064174107 | L102: =OFFSET('InputData-XLP'!$M$10,$A102+$A$11,0,1,1)/OFFSET('InputData-XLP'!$M$10,$A102+$A$11+$A$18-1,0,1,1)-1 -> 0.06380921689 | M102: =OFFSET('InputData-XLU'!$M$10,$A102+$A$11,0,1,1)/OFFSET('InputData-XLU'!$M$10,$A102+$A$11+$A$18-1,0,1,1)-1 -> 0.0002859593938 | N102: 0.1220834328 | O102: 0.03824563912 | P102: 8.383779366
A103: 71 | B103: =OFFSET(InputPriceData!B$10,CalculationsAndCharts!$A103+$A$11,0,1,1) -> 2012-02-29 | C103: =OFFSET(InputPriceData!G$10,CalculationsAndCharts!$A103+$A$11,0,1,1) -> 4482370000 | D103: =OFFSET(InputPriceData!C$10,CalculationsAndCharts!$A103+$A$11,0,1,1) -> 1372.2 | E103: =OFFSET(InputPriceData!D$10,CalculationsAndCharts!$A103+$A$11,0,1,1) -> 1378.04 | F103: =OFFSET(InputPriceData!E$10,CalculationsAndCharts!$A103+$A$11,0,1,1) -> 1363.81 | G103: =OFFSET(InputPriceData!F$10,CalculationsAndCharts!$A103+$A$11,0,1,1) -> 1365.68 | H103: 1258.2349 | I103: =OFFSET('InputData-XLY'!$M$10,$A103+$A$11,0,1,1)/OFFSET('InputData-XLY'!$M$10,$A103+$A$11+$A$18-1,0,1,1)-1 -> 0.1284067086 | J103: =OFFSET('InputData-XLF'!$M$10,$A103+$A$11,0,1,1)/OFFSET('InputData-XLF'!$M$10,$A103+$A$11+$A$18-1,0,1,1)-1 -> 0.1483216237 | K103: =OFFSET('InputData-XLE'!$M$10,$A103+$A$11,0,1,1)/OFFSET('InputData-XLE'!$M$10,$A103+$A$11+$A$18-1,0,1,1)-1 -> 0.06193052392 | L103: =OFFSET('InputData-XLP'!$M$10,$A103+$A$11,0,1,1)/OFFSET('InputData-XLP'!$M$10,$A103+$A$11+$A$18-1,0,1,1)-1 -> 0.07757496741 | M103: =OFFSET('InputData-XLU'!$M$10,$A103+$A$11,0,1,1)/OFFSET('InputData-XLU'!$M$10,$A103+$A$11+$A$18-1,0,1,1)-1 -> 0.01218450827 | N103: 0.1383641662 | O103: 0.0505633332 | P103: 8.780083297
A104: 72 | B104: =OFFSET(InputPriceData!B$10,CalculationsAndCharts!$A104+$A$11,0,1,1) -> 2012-02-28 | C104: =OFFSET(InputPriceData!G$10,CalculationsAndCharts!$A104+$A$11,0,1,1) -> 3579120000 | D104: =OFFSET(InputPriceData!C$10,CalculationsAndCharts!$A104+$A$11,0,1,1) -> 1367.56 | E104: =OFFSET(InputPriceData!D$10,CalculationsAndCharts!$A104+$A$11,0,1,1) -> 1373.09 | F104: =OFFSET(InputPriceData!E$10,CalculationsAndCharts!$A104+$A$11,0,1,1) -> 1365.97 | G104: =OFFSET(InputPriceData!F$10,CalculationsAndCharts!$A104+$A$11,0,1,1) -> 1372.18 | H104: 1258.09535 | I104: =OFFSET('InputData-XLY'!$M$10,$A104+$A$11,0,1,1)/OFFSET('InputData-XLY'!$M$10,$A104+$A$11+$A$18-1,0,1,1)-1 -> 0.1433862434 | J104: =OFFSET('InputData-XLF'!$M$10,$A104+$A$11,0,1,1)/OFFSET('InputData-XLF'!$M$10,$A104+$A$11+$A$18-1,0,1,1)-1 -> 0.1584313725 | K104: =OFFSET('InputData-XLE'!$M$10,$A104+$A$11,0,1,1)/OFFSET('InputData-XLE'!$M$10,$A104+$A$11+$A$18-1,0,1,1)-1 -> 0.09284472769 | L104: =OFFSET('InputData-XLP'!$M$10,$A104+$A$11,0,1,1)/OFFSET('InputData-XLP'!$M$10,$A104+$A$11+$A$18-1,0,1,1)-1 -> 0.08624094799 | M104: =OFFSET('InputData-XLU'!$M$10,$A104+$A$11,0,1,1)/OFFSET('InputData-XLU'!$M$10,$A104+$A$11+$A$18-1,0,1,1)-1 -> 0.01897810219 | N104: 0.150908808 | O104: 0.06602125929 | P104: 8.488754868
A105: 73 | B105: =OFFSET(InputPriceData!B$10,CalculationsAndCharts!$A105+$A$11,0,1,1) -> 2012-02-27 | C105: =OFFSET(InputPriceData!G$10,CalculationsAndCharts!$A105+$A$11,0,1,1) -> 3648890000 | D105: =OFFSET(InputPriceData!C$10,CalculationsAndCharts!$A105+$A$11,0,1,1) -> 1365.2 | E105: =OFFSET(InputPriceData!D$10,CalculationsAndCharts!$A105+$A$11,0,1,1) -> 1371.94 | F105: =OFFSET(InputPriceData!E$10,CalculationsAndCharts!$A105+$A$11,0,1,1) -> 1354.92 | G105: =OFFSET(InputPriceData!F$10,CalculationsAndCharts!$A105+$A$11,0,1,1) -> 1367.59 | H105: 1257.9777 | I105: =OFFSET('InputData-XLY'!$M$10,$A105+$A$11,0,1,1)/OFFSET('InputData-XLY'!$M$10,$A105+$A$11+$A$18-1,0,1,1)-1 -> 0.09642857143 | J105: =OFFSET('InputData-XLF'!$M$10,$A105+$A$11,0,1,1)/OFFSET('InputData-XLF'!$M$10,$A105+$A$11+$A$18-1,0,1,1)-1 -> 0.09272997033 | K105: =OFFSET('InputData-XLE'!$M$10,$A105+$A$11,0,1,1)/OFFSET('InputData-XLE'!$M$10,$A105+$A$11+$A$18-1,0,1,1)-1 -> 0.0480409802 | L105: =OFFSET('InputData-XLP'!$M$10,$A105+$A$11,0,1,1)/OFFSET('InputData-XLP'!$M$10,$A105+$A$11+$A$18-1,0,1,1)-1 -> 0.05721632915 | M105: =OFFSET('InputData-XLU'!$M$10,$A105+$A$11,0,1,1)/OFFSET('InputData-XLU'!$M$10,$A105+$A$11+$A$18-1,0,1,1)-1 -> 0.001713796058 | N105: 0.09457927088 | O105: 0.03565703514 | P105: 5.892223574
A106: 74 | B106: =OFFSET(InputPriceData!B$10,CalculationsAndCharts!$A106+$A$11,0,1,1) -> 2012-02-24 | C106: =OFFSET(InputPriceData!G$10,CalculationsAndCharts!$A106+$A$11,0,1,1) -> 3505360000 | D106: =OFFSET(InputPriceData!C$10,CalculationsAndCharts!$A106+$A$11,0,1,1) -> 1363.46 | E106: =OFFSET(InputPriceData!D$10,CalculationsAndCharts!$A106+$A$11,0,1,1) -> 1368.92 | F106: =OFFSET(InputPriceData!E$10,CalculationsAndCharts!$A106+$A$11,0,1,1) -> 1363.46 | G106: =OFFSET(InputPriceData!F$10,CalculationsAndCharts!$A106+$A$11,0,1,1) -> 1365.74 | H106: 1257.85015 | I106: =OFFSET('InputData-XLY'!$M$10,$A106+$A$11,0,1,1)/OFFSET('InputData-XLY'!$M$10,$A106+$A$11+$A$18-1,0,1,1)-1 -> 0.1007212777 | J106: =OFFSET('InputData-XLF'!$M$10,$A106+$A$11,0,1,1)/OFFSET('InputData-XLF'!$M$10,$A106+$A$11+$A$18-1,0,1,1)-1 -> 0.1050642479 | K106: =OFFSET('InputData-XLE'!$M$10,$A106+$A$11,0,1,1)/OFFSET('InputData-XLE'!$M$10,$A106+$A$11+$A$18-1,0,1,1)-1 -> 0.06852399043 | L106: =OFFSET('InputData-XLP'!$M$10,$A106+$A$11,0,1,1)/OFFSET('InputData-XLP'!$M$10,$A106+$A$11+$A$18-1,0,1,1)-1 -> 0.06751054852 | M106: =OFFSET('InputData-XLU'!$M$10,$A106+$A$11,0,1,1)/OFFSET('InputData-XLU'!$M$10,$A106+$A$11+$A$18-1,0,1,1)-1 -> 0.008625646924 | N106: 0.1028927628 | O106: 0.04822006196 | P106: 5.467270085
A107: 75 | B107: =OFFSET(InputPriceData!B$10,CalculationsAndCharts!$A107+$A$11,0,1,1) -> 2012-02-23 | C107: =OFFSET(InputPriceData!G$10,CalculationsAndCharts!$A107+$A$11,0,1,1) -> 3786450000 | D107: =OFFSET(InputPriceData!C$10,CalculationsAndCharts!$A107+$A$11,0,1,1) -> 1357.53 | E107: =OFFSET(InputPriceData!D$10,CalculationsAndCharts!$A107+$A$11,0,1,1) -> 1364.24 | F107: =OFFSET(InputPriceData!E$10,CalculationsAndCharts!$A107+$A$11,0,1,1) -> 1352.28 | G107: =OFFSET(InputPriceData!F$10,CalculationsAndCharts!$A107+$A$11,0,1,1) -> 1363.46 | H107: 1257.80725 | I107: =OFFSET('InputData-XLY'!$M$10,$A107+$A$11,0,1,1)/OFFSET('InputData-XLY'!$M$10,$A107+$A$11+$A$18-1,0,1,1)-1 -> 0.1088646967 | J107: =OFFSET('InputData-XLF'!$M$10,$A107+$A$11,0,1,1)/OFFSET('InputData-XLF'!$M$10,$A107+$A$11+$A$18-1,0,1,1)-1 -> 0.1147416413 | K107: =OFFSET('InputData-XLE'!$M$10,$A107+$A$11,0,1,1)/OFFSET('InputData-XLE'!$M$10,$A107+$A$11+$A$18-1,0,1,1)-1 -> 0.07002404866 | L107: =OFFSET('InputData-XLP'!$M$10,$A107+$A$11,0,1,1)/OFFSET('InputData-XLP'!$M$10,$A107+$A$11+$A$18-1,0,1,1)-1 -> 0.07299509002 | M107: =OFFSET('InputData-XLU'!$M$10,$A107+$A$11,0,1,1)/OFFSET('InputData-XLU'!$M$10,$A107+$A$11+$A$18-1,0,1,1)-1 -> 0.009829430471 | N107: 0.111803169 | O107: 0.05094952305 | P107: 6.085364599
A108: 76 | B108: =OFFSET(InputPriceData!B$10,CalculationsAndCharts!$A108+$A$11,0,1,1) -> 2012-02-22 | C108: =OFFSET(InputPriceData!G$10,CalculationsAndCharts!$A108+$A$11,0,1,1) -> 3633710000 | D108: =OFFSET(InputPriceData!C$10,CalculationsAndCharts!$A108+$A$11,0,1,1) -> 1362.11 | E108: =OFFSET(InputPriceData!D$10,CalculationsAndCharts!$A108+$A$11,0,1,1) -> 1362.7 | F108: =OFFSET(InputPriceData!E$10,CalculationsAndCharts!$A108+$A$11,0,1,1) -> 1355.53 | G108: =OFFSET(InputPriceData!F$10,CalculationsAndCharts!$A108+$A$11,0,1,1) -> 1357.66 | H108: 1257.7214 | I108: =OFFSET('InputData-XLY'!$M$10,$A108+$A$11,0,1,1)/OFFSET('InputData-XLY'!$M$10,$A108+$A$11+$A$18-1,0,1,1)-1 -> 0.09914794733 | J108: =OFFSET('InputData-XLF'!$M$10,$A108+$A$11,0,1,1)/OFFSET('InputData-XLF'!$M$10,$A108+$A$11+$A$18-1,0,1,1)-1 -> 0.08995502249 | K108: =OFFSET('InputData-XLE'!$M$10,$A108+$A$11,0,1,1)/OFFSET('InputData-XLE'!$M$10,$A108+$A$11+$A$18-1,0,1,1)-1 -> 0.06374558304 | L108: =OFFSET('InputData-XLP'!$M$10,$A108+$A$11,0,1,1)/OFFSET('InputData-XLP'!$M$10,$A108+$A$11+$A$18-1,0,1,1)-1 -> 0.06117800195 | M108: =OFFSET('InputData-XLU'!$M$10,$A108+$A$11,0,1,1)/OFFSET('InputData-XLU'!$M$10,$A108+$A$11+$A$18-1,0,1,1)-1 -> 0.006043165468 | N108: 0.09455148491 | O108: 0.04365558349 | P108: 5.089590142
A109: 77 | B109: =OFFSET(InputPriceData!B$10,CalculationsAndCharts!$A109+$A$11,0,1,1) -> 2012-02-21 | C109: =OFFSET(InputPriceData!G$10,CalculationsAndCharts!$A109+$A$11,0,1,1) -> 3795200000 | D109: =OFFSET(InputPriceData!C$10,CalculationsAndCharts!$A109+$A$11,0,1,1) -> 1361.22 | E109: =OFFSET(InputPriceData!D$10,CalculationsAndCharts!$A109+$A$11,0,1,1) -> 1367.76 | F109: =OFFSET(InputPriceData!E$10,CalculationsAndCharts!$A109+$A$11,0,1,1) -> 1358.11 | G109: =OFFSET(InputPriceData!F$10,CalculationsAndCharts!$A109+$A$11,0,1,1) -> 1362.21 | H109: 1257.6341 | I109: =OFFSET('InputData-XLY'!$M$10,$A109+$A$11,0,1,1)/OFFSET('InputData-XLY'!$M$10,$A109+$A$11+$A$18-1,0,1,1)-1 -> 0.1164007324 | J109: =OFFSET('InputData-XLF'!$M$10,$A109+$A$11,0,1,1)/OFFSET('InputData-XLF'!$M$10,$A109+$A$11+$A$18-1,0,1,1)-1 -> 0.1235697941 | K109: =OFFSET('InputData-XLE'!$M$10,$A109+$A$11,0,1,1)/OFFSET('InputData-XLE'!$M$10,$A109+$A$11+$A$18-1,0,1,1)-1 -> 0.0893660235 | L109: =OFFSET('InputData-XLP'!$M$10,$A109+$A$11,0,1,1)/OFFSET('InputData-XLP'!$M$10,$A109+$A$11+$A$18-1,0,1,1)-1 -> 0.07742998353 | M109: =OFFSET('InputData-XLU'!$M$10,$A109+$A$11,0,1,1)/OFFSET('InputData-XLU'!$M$10,$A109+$A$11+$A$18-1,0,1,1)-1 -> 0.01688992429 | N109: 0.1199852632 | O109: 0.06122864377 | P109: 5.875661946
A110: 78 | B110: =OFFSET(InputPriceData!B$10,CalculationsAndCharts!$A110+$A$11,0,1,1) -> 2012-02-17 | C110: =OFFSET(InputPriceData!G$10,CalculationsAndCharts!$A110+$A$11,0,1,1) -> 3717640000 | D110: =OFFSET(InputPriceData!C$10,CalculationsAndCharts!$A110+$A$11,0,1,1) -> 1358.06 | E110: =OFFSET(InputPriceData!D$10,CalculationsAndCharts!$A110+$A$11,0,1,1) -> 1363.4 | F110: =OFFSET(InputPriceData!E$10,CalculationsAndCharts!$A110+$A$11,0,1,1) -> 1357.24 | G110: =OFFSET(InputPriceData!F$10,CalculationsAndCharts!$A110+$A$11,0,1,1) -> 1361.23 | H110: 1257.49855 | I110: =OFFSET('InputData-XLY'!$M$10,$A110+$A$11,0,1,1)/OFFSET('InputData-XLY'!$M$10,$A110+$A$11+$A$18-1,0,1,1)-1 -> 0.1318710359 | J110: =OFFSET('InputData-XLF'!$M$10,$A110+$A$11,0,1,1)/OFFSET('InputData-XLF'!$M$10,$A110+$A$11+$A$18-1,0,1,1)-1 -> 0.1569858713 | K110: =OFFSET('InputData-XLE'!$M$10,$A110+$A$11,0,1,1)/OFFSET('InputData-XLE'!$M$10,$A110+$A$11+$A$18-1,0,1,1)-1 -> 0.1144650329 | L110: =OFFSET('InputData-XLP'!$M$10,$A110+$A$11,0,1,1)/OFFSET('InputData-XLP'!$M$10,$A110+$A$11+$A$18-1,0,1,1)-1 -> 0.09378117725 | M110: =OFFSET('InputData-XLU'!$M$10,$A110+$A$11,0,1,1)/OFFSET('InputData-XLU'!$M$10,$A110+$A$11+$A$18-1,0,1,1)-1 -> 0.03882631891 | N110: 0.1444284536 | O110: 0.08235750968 | P110: 6.207094393
A111: 79 | B111: =OFFSET(InputPriceData!B$10,CalculationsAndCharts!$A111+$A$11,0,1,1) -> 2012-02-16 | C111: =OFFSET(InputPriceData!G$10,CalculationsAndCharts!$A111+$A$11,0,1,1) -> 4108880000 | D111: =OFFSET(InputPriceData!C$10,CalculationsAndCharts!$A111+$A$11,0,1,1) -> 1342.61 | E111: =OFFSET(InputPriceData!D$10,CalculationsAndCharts!$A111+$A$11,0,1,1) -> 1359.02 | F111: =OFFSET(InputPriceData!E$10,CalculationsAndCharts!$A111+$A$11,0,1,1) -> 1341.22 | G111: =OFFSET(InputPriceData!F$10,CalculationsAndCharts!$A111+$A$11,0,1,1) -> 1358.04 | H111: 1257.429 | I111: =OFFSET('InputData-XLY'!$M$10,$A111+$A$11,0,1,1)/OFFSET('InputData-XLY'!$M$10,$A111+$A$11+$A$18-1,0,1,1)-1 -> 0.09772492244 | J111: =OFFSET('InputData-XLF'!$M$10,$A111+$A$11,0,1,1)/OFFSET('InputData-XLF'!$M$10,$A111+$A$11+$A$18-1,0,1,1)-1 -> 0.09573672401 | K111: =OFFSET('InputData-XLE'!$M$10,$A111+$A$11,0,1,1)/OFFSET('InputData-XLE'!$M$10,$A111+$A$11+$A$18-1,0,1,1)-1 -> 0.0744757773 | L111: =OFFSET('InputData-XLP'!$M$10,$A111+$A$11,0,1,1)/OFFSET('InputData-XLP'!$M$10,$A111+$A$11+$A$18-1,0,1,1)-1 -> 0.07385620915 | M111: =OFFSET('InputData-XLU'!$M$10,$A111+$A$11,0,1,1)/OFFSET('InputData-XLU'!$M$10,$A111+$A$11+$A$18-1,0,1,1)-1 -> 0.01770168311 | N111: 0.09673082322 | O111: 0.05534455652 | P111: 4.138626671
A112: 80 | B112: =OFFSET(InputPriceData!B$10,CalculationsAndCharts!$A112+$A$11,0,1,1) -> 2012-02-15 | C112: =OFFSET(InputPriceData!G$10,CalculationsAndCharts!$A112+$A$11,0,1,1) -> 4080340000 | D112: =OFFSET(InputPriceData!C$10,CalculationsAndCharts!$A112+$A$11,0,1,1) -> 1350.52 | E112: =OFFSET(InputPriceData!D$10,CalculationsAndCharts!$A112+$A$11,0,1,1) -> 1355.87 | F112: =OFFSET(InputPriceData!E$10,CalculationsAndCharts!$A112+$A$11,0,1,1) -> 1340.8 | G112: =OFFSET(InputPriceData!F$10,CalculationsAndCharts!$A112+$A$11,0,1,1) -> 1343.23 | H112: 1257.4219 | I112: =OFFSET('InputData-XLY'!$M$10,$A112+$A$11,0,1,1)/OFFSET('InputData-XLY'!$M$10,$A112+$A$11+$A$18-1,0,1,1)-1 -> 0.07637474542 | J112: =OFFSET('InputData-XLF'!$M$10,$A112+$A$11,0,1,1)/OFFSET('InputData-XLF'!$M$10,$A112+$A$11+$A$18-1,0,1,1)-1 -> 0.03591954023 | K112: =OFFSET('InputData-XLE'!$M$10,$A112+$A$11,0,1,1)/OFFSET('InputData-XLE'!$M$10,$A112+$A$11+$A$18-1,0,1,1)-1 -> 0.01242236025 | L112: =OFFSET('InputData-XLP'!$M$10,$A112+$A$11,0,1,1)/OFFSET('InputData-XLP'!$M$10,$A112+$A$11+$A$18-1,0,1,1)-1 -> 0.05119124276 | M112: =OFFSET('InputData-XLU'!$M$10,$A112+$A$11,0,1,1)/OFFSET('InputData-XLU'!$M$10,$A112+$A$11+$A$18-1,0,1,1)-1 -> 0.002310803004 | N112: 0.05614714282 | O112: 0.021974802 | P112: 3.417234082
A113: 81 | B113: =OFFSET(InputPriceData!B$10,CalculationsAndCharts!$A113+$A$11,0,1,1) -> 2012-02-14 | C113: =OFFSET(InputPriceData!G$10,CalculationsAndCharts!$A113+$A$11,0,1,1) -> 3889520000 | D113: =OFFSET(InputPriceData!C$10,CalculationsAndCharts!$A113+$A$11,0,1,1) -> 1351.3 | E113: =OFFSET(InputPriceData!D$10,CalculationsAndCharts!$A113+$A$11,0,1,1) -> 1351.3 | F113: =OFFSET(InputPriceData!E$10,CalculationsAndCharts!$A113+$A$11,0,1,1) -> 1340.83 | G113: =OFFSET(InputPriceData!F$10,CalculationsAndCharts!$A113+$A$11,0,1,1) -> 1350.5 | H113: 1257.51185 | I113: =OFFSET('InputData-XLY'!$M$10,$A113+$A$11,0,1,1)/OFFSET('InputData-XLY'!$M$10,$A113+$A$11+$A$18-1,0,1,1)-1 -> 0.07274564284 | J113: =OFFSET('InputData-XLF'!$M$10,$A113+$A$11,0,1,1)/OFFSET('InputData-XLF'!$M$10,$A113+$A$11+$A$18-1,0,1,1)-1 -> 0.04313443566 | K113: =OFFSET('InputData-XLE'!$M$10,$A113+$A$11,0,1,1)/OFFSET('InputData-XLE'!$M$10,$A113+$A$11+$A$18-1,0,1,1)-1 -> 0.02084201751 | L113: =OFFSET('InputData-XLP'!$M$10,$A113+$A$11,0,1,1)/OFFSET('InputData-XLP'!$M$10,$A113+$A$11+$A$18-1,0,1,1)-1 -> 0.0488118176 | M113: =OFFSET('InputData-XLU'!$M$10,$A113+$A$11,0,1,1)/OFFSET('InputData-XLU'!$M$10,$A113+$A$11+$A$18-1,0,1,1)-1 -> -0.004010312231 | N113: 0.05794003925 | O113: 0.02188117429 | P113: 3.605886496
A114: 82 | B114: =OFFSET(InputPriceData!B$10,CalculationsAndCharts!$A114+$A$11,0,1,1) -> 2012-02-13 | C114: =OFFSET(InputPriceData!G$10,CalculationsAndCharts!$A114+$A$11,0,1,1) -> 3618040000 | D114: =OFFSET(InputPriceData!C$10,CalculationsAndCharts!$A114+$A$11,0,1,1) -> 1343.06 | E114: =OFFSET(InputPriceData!D$10,CalculationsAndCharts!$A114+$A$11,0,1,1) -> 1353.35 | F114: =OFFSET(InputPriceData!E$10,CalculationsAndCharts!$A114+$A$11,0,1,1) -> 1343.06 | G114: =OFFSET(InputPriceData!F$10,CalculationsAndCharts!$A114+$A$11,0,1,1) -> 1351.77 | H114: 1257.5774 | I114: =OFFSET('InputData-XLY'!$M$10,$A114+$A$11,0,1,1)/OFFSET('InputData-XLY'!$M$10,$A114+$A$11+$A$18-1,0,1,1)-1 -> 0.1032693306 | J114: =OFFSET('InputData-XLF'!$M$10,$A114+$A$11,0,1,1)/OFFSET('InputData-XLF'!$M$10,$A114+$A$11+$A$18-1,0,1,1)-1 -> 0.1166158537 | K114: =OFFSET('InputData-XLE'!$M$10,$A114+$A$11,0,1,1)/OFFSET('InputData-XLE'!$M$10,$A114+$A$11+$A$18-1,0,1,1)-1 -> 0.06428675083 | L114: =OFFSET('InputData-XLP'!$M$10,$A114+$A$11,0,1,1)/OFFSET('InputData-XLP'!$M$10,$A114+$A$11+$A$18-1,0,1,1)-1 -> 0.05951219512 | M114: =OFFSET('InputData-XLU'!$M$10,$A114+$A$11,0,1,1)/OFFSET('InputData-XLU'!$M$10,$A114+$A$11+$A$18-1,0,1,1)-1 -> 0.01935483871 | N114: 0.1099425921 | O114: 0.04771792822 | P114: 6.222466389
A115: 83 | B115: =OFFSET(InputPriceData!B$10,CalculationsAndCharts!$A115+$A$11,0,1,1) -> 2012-02-10 | C115: =OFFSET(InputPriceData!G$10,CalculationsAndCharts!$A115+$A$11,0,1,1) -> 3877580000 | D115: =OFFSET(InputPriceData!C$10,CalculationsAndCharts!$A115+$A$11,0,1,1) -> 1351.21 | E115: =OFFSET(InputPriceData!D$10,CalculationsAndCharts!$A115+$A$11,0,1,1) -> 1351.21 | F115: =OFFSET(InputPriceData!E$10,CalculationsAndCharts!$A115+$A$11,0,1,1) -> 1337.35 | G115: =OFFSET(InputPriceData!F$10,CalculationsAndCharts!$A115+$A$11,0,1,1) -> 1342.64 | H115: 1257.62095 | I115: =OFFSET('InputData-XLY'!$M$10,$A115+$A$11,0,1,1)/OFFSET('InputData-XLY'!$M$10,$A115+$A$11+$A$18-1,0,1,1)-1 -> 0.09020418713 | J115: =OFFSET('InputData-XLF'!$M$10,$A115+$A$11,0,1,1)/OFFSET('InputData-XLF'!$M$10,$A115+$A$11+$A$18-1,0,1,1)-1 -> 0.1255813953 | K115: =OFFSET('InputData-XLE'!$M$10,$A115+$A$11,0,1,1)/OFFSET('InputData-XLE'!$M$10,$A115+$A$11+$A$18-1,0,1,1)-1 -> 0.07872498147 | L115: =OFFSET('InputData-XLP'!$M$10,$A115+$A$11,0,1,1)/OFFSET('InputData-XLP'!$M$10,$A115+$A$11+$A$18-1,0,1,1)-1 -> 0.06570302234 | M115: =OFFSET('InputData-XLU'!$M$10,$A115+$A$11,0,1,1)/OFFSET('InputData-XLU'!$M$10,$A115+$A$11+$A$18-1,0,1,1)-1 -> 0.02473498233 | N115: 0.1078927912 | O115: 0.05638766205 | P115: 5.150512919
A116: 84 | B116: =OFFSET(InputPriceData!B$10,CalculationsAndCharts!$A116+$A$11,0,1,1) -> 2012-02-09 | C116: =OFFSET(InputPriceData!G$10,CalculationsAndCharts!$A116+$A$11,0,1,1) -> 4209890000 | D116: =OFFSET(InputPriceData!C$10,CalculationsAndCharts!$A116+$A$11,0,1,1) -> 1349.97 | E116: =OFFSET(InputPriceData!D$10,CalculationsAndCharts!$A116+$A$11,0,1,1) -> 1354.32 | F116: =OFFSET(InputPriceData!E$10,CalculationsAndCharts!$A116+$A$11,0,1,1) -> 1344.63 | G116: =OFFSET(InputPriceData!F$10,CalculationsAndCharts!$A116+$A$11,0,1,1) -> 1351.95 | H116: 1257.68605 | I116: =OFFSET('InputData-XLY'!$M$10,$A116+$A$11,0,1,1)/OFFSET('InputData-XLY'!$M$10,$A116+$A$11+$A$18-1,0,1,1)-1 -> 0.07231352718 | J116: =OFFSET('InputData-XLF'!$M$10,$A116+$A$11,0,1,1)/OFFSET('InputData-XLF'!$M$10,$A116+$A$11+$A$18-1,0,1,1)-1 -> 0.1030850263 | K116: =OFFSET('InputData-XLE'!$M$10,$A116+$A$11,0,1,1)/OFFSET('InputData-XLE'!$M$10,$A116+$A$11+$A$18-1,0,1,1)-1 -> 0.06691827551 | L116: =OFFSET('InputData-XLP'!$M$10,$A116+$A$11,0,1,1)/OFFSET('InputData-XLP'!$M$10,$A116+$A$11+$A$18-1,0,1,1)-1 -> 0.05517689062 | M116: =OFFSET('InputData-XLU'!$M$10,$A116+$A$11,0,1,1)/OFFSET('InputData-XLU'!$M$10,$A116+$A$11+$A$18-1,0,1,1)-1 -> 0.01513828239 | N116: 0.08769927676 | O116: 0.04574448284 | P116: 4.195479392
A117: 85 | B117: =OFFSET(InputPriceData!B$10,CalculationsAndCharts!$A117+$A$11,0,1,1) -> 2012-02-08 | C117: =OFFSET(InputPriceData!G$10,CalculationsAndCharts!$A117+$A$11,0,1,1) -> 4096730000 | D117: =OFFSET(InputPriceData!C$10,CalculationsAndCharts!$A117+$A$11,0,1,1) -> 1347.04 | E117: =OFFSET(InputPriceData!D$10,CalculationsAndCharts!$A117+$A$11,0,1,1) -> 1351 | F117: =OFFSET(InputPriceData!E$10,CalculationsAndCharts!$A117+$A$11,0,1,1) -> 1341.95 | G117: =OFFSET(InputPriceData!F$10,CalculationsAndCharts!$A117+$A$11,0,1,1) -> 1349.96 | H117: 1257.6625 | I117: =OFFSET('InputData-XLY'!$M$10,$A117+$A$11,0,1,1)/OFFSET('InputData-XLY'!$M$10,$A117+$A$11+$A$18-1,0,1,1)-1 -> 0.08647677701 | J117: =OFFSET('InputData-XLF'!$M$10,$A117+$A$11,0,1,1)/OFFSET('InputData-XLF'!$M$10,$A117+$A$11+$A$18-1,0,1,1)-1 -> 0.1323076923 | K117: =OFFSET('InputData-XLE'!$M$10,$A117+$A$11,0,1,1)/OFFSET('InputData-XLE'!$M$10,$A117+$A$11+$A$18-1,0,1,1)-1 -> 0.08073529412 | L117: =OFFSET('InputData-XLP'!$M$10,$A117+$A$11,0,1,1)/OFFSET('InputData-XLP'!$M$10,$A117+$A$11+$A$18-1,0,1,1)-1 -> 0.04223081883 | M117: =OFFSET('InputData-XLU'!$M$10,$A117+$A$11,0,1,1)/OFFSET('InputData-XLU'!$M$10,$A117+$A$11+$A$18-1,0,1,1)-1 -> 0.01391707741 | N117: 0.1093922347 | O117: 0.04562773012 | P117: 6.376450454
A118: 86 | B118: =OFFSET(InputPriceData!B$10,CalculationsAndCharts!$A118+$A$11,0,1,1) -> 2012-02-07 | C118: =OFFSET(InputPriceData!G$10,CalculationsAndCharts!$A118+$A$11,0,1,1) -> 3742460000 | D118: =OFFSET(InputPriceData!C$10,CalculationsAndCharts!$A118+$A$11,0,1,1) -> 1344.33 | E118: =OFFSET(InputPriceData!D$10,CalculationsAndCharts!$A118+$A$11,0,1,1) -> 1349.24 | F118: =OFFSET(InputPriceData!E$10,CalculationsAndCharts!$A118+$A$11,0,1,1) -> 1335.92 | G118: =OFFSET(InputPriceData!F$10,CalculationsAndCharts!$A118+$A$11,0,1,1) -> 1347.05 | H118: 1257.58895 | I118: =OFFSET('InputData-XLY'!$M$10,$A118+$A$11,0,1,1)/OFFSET('InputData-XLY'!$M$10,$A118+$A$11+$A$18-1,0,1,1)-1 -> 0.1139240506 | J118: =OFFSET('InputData-XLF'!$M$10,$A118+$A$11,0,1,1)/OFFSET('InputData-XLF'!$M$10,$A118+$A$11+$A$18-1,0,1,1)-1 -> 0.1522082019 | K118: =OFFSET('InputData-XLE'!$M$10,$A118+$A$11,0,1,1)/OFFSET('InputData-XLE'!$M$10,$A118+$A$11+$A$18-1,0,1,1)-1 -> 0.1043881983 | L118: =OFFSET('InputData-XLP'!$M$10,$A118+$A$11,0,1,1)/OFFSET('InputData-XLP'!$M$10,$A118+$A$11+$A$18-1,0,1,1)-1 -> 0.0586308549 | M118: =OFFSET('InputData-XLU'!$M$10,$A118+$A$11,0,1,1)/OFFSET('InputData-XLU'!$M$10,$A118+$A$11+$A$18-1,0,1,1)-1 -> 0.0297759434 | N118: 0.1330661263 | O118: 0.06426499886 | P118: 6.88011274
A119: 87 | B119: =OFFSET(InputPriceData!B$10,CalculationsAndCharts!$A119+$A$11,0,1,1) -> 2012-02-06 | C119: =OFFSET(InputPriceData!G$10,CalculationsAndCharts!$A119+$A$11,0,1,1) -> 3379700000 | D119: =OFFSET(InputPriceData!C$10,CalculationsAndCharts!$A119+$A$11,0,1,1) -> 1344.32 | E119: =OFFSET(InputPriceData!D$10,CalculationsAndCharts!$A119+$A$11,0,1,1) -> 1344.36 | F119: =OFFSET(InputPriceData!E$10,CalculationsAndCharts!$A119+$A$11,0,1,1) -> 1337.52 | G119: =OFFSET(InputPriceData!F$10,CalculationsAndCharts!$A119+$A$11,0,1,1) -> 1344.33 | H119: 1257.5406 | I119: =OFFSET('InputData-XLY'!$M$10,$A119+$A$11,0,1,1)/OFFSET('InputData-XLY'!$M$10,$A119+$A$11+$A$18-1,0,1,1)-1 -> 0.1142327061 | J119: =OFFSET('InputData-XLF'!$M$10,$A119+$A$11,0,1,1)/OFFSET('InputData-XLF'!$M$10,$A119+$A$11+$A$18-1,0,1,1)-1 -> 0.1705364291 | K119: =OFFSET('InputData-XLE'!$M$10,$A119+$A$11,0,1,1)/OFFSET('InputData-XLE'!$M$10,$A119+$A$11+$A$18-1,0,1,1)-1 -> 0.1073207547 | L119: =OFFSET('InputData-XLP'!$M$10,$A119+$A$11,0,1,1)/OFFSET('InputData-XLP'!$M$10,$A119+$A$11+$A$18-1,0,1,1)-1 -> 0.06357048748 | M119: =OFFSET('InputData-XLU'!$M$10,$A119+$A$11,0,1,1)/OFFSET('InputData-XLU'!$M$10,$A119+$A$11+$A$18-1,0,1,1)-1 -> 0.02816483842 | N119: 0.1423845676 | O119: 0.06635202687 | P119: 7.603254073
A120: 88 | B120: =OFFSET(InputPriceData!B$10,CalculationsAndCharts!$A120+$A$11,0,1,1) -> 2012-02-03 | C120: =OFFSET(InputPriceData!G$10,CalculationsAndCharts!$A120+$A$11,0,1,1) -> 4608550000 | D120: =OFFSET(InputPriceData!C$10,CalculationsAndCharts!$A120+$A$11,0,1,1) -> 1326.21 | E120: =OFFSET(InputPriceData!D$10,CalculationsAndCharts!$A120+$A$11,0,1,1) -> 1345.34 | F120: =OFFSET(InputPriceData!E$10,CalculationsAndCharts!$A120+$A$11,0,1,1) -> 1326.21 | G120: =OFFSET(InputPriceData!F$10,CalculationsAndCharts!$A120+$A$11,0,1,1) -> 1344.9 | H120: 1257.47075 | I120: =OFFSET('InputData-XLY'!$M$10,$A120+$A$11,0,1,1)/OFFSET('InputData-XLY'!$M$10,$A120+$A$11+$A$18-1,0,1,1)-1 -> 0.0997128687 | J120: =OFFSET('InputData-XLF'!$M$10,$A120+$A$11,0,1,1)/OFFSET('InputData-XLF'!$M$10,$A120+$A$11+$A$18-1,0,1,1)-1 -> 0.1594317285 | K120: =OFFSET('InputData-XLE'!$M$10,$A120+$A$11,0,1,1)/OFFSET('InputData-XLE'!$M$10,$A120+$A$11+$A$18-1,0,1,1)-1 -> 0.08274831964 | L120: =OFFSET('InputData-XLP'!$M$10,$A120+$A$11,0,1,1)/OFFSET('InputData-XLP'!$M$10,$A120+$A$11+$A$18-1,0,1,1)-1 -> 0.06108374384 | M120: =OFFSET('InputData-XLU'!$M$10,$A120+$A$11,0,1,1)/OFFSET('InputData-XLU'!$M$10,$A120+$A$11+$A$18-1,0,1,1)-1 -> 0.03353115727 | N120: 0.1295722986 | O120: 0.05912107358 | P120: 7.045122501
A121: 89 | B121: =OFFSET(InputPriceData!B$10,CalculationsAndCharts!$A121+$A$11,0,1,1) -> 2012-02-02 | C121: =OFFSET(InputPriceData!G$10,CalculationsAndCharts!$A121+$A$11,0,1,1) -> 4120920000 | D121: =OFFSET(InputPriceData!C$10,CalculationsAndCharts!$A121+$A$11,0,1,1) -> 1324.24 | E121: =OFFSET(InputPriceData!D$10,CalculationsAndCharts!$A121+$A$11,0,1,1) -> 1329.19 | F121: =OFFSET(InputPriceData!E$10,CalculationsAndCharts!$A121+$A$11,0,1,1) -> 1321.57 | G121: =OFFSET(InputPriceData!F$10,CalculationsAndCharts!$A121+$A$11,0,1,1) -> 1325.54 | H121: 1257.30935 | I121: =OFFSET('InputData-XLY'!$M$10,$A121+$A$11,0,1,1)/OFFSET('InputData-XLY'!$M$10,$A121+$A$11+$A$18-1,0,1,1)-1 -> 0.09933422104 | J121: =OFFSET('InputData-XLF'!$M$10,$A121+$A$11,0,1,1)/OFFSET('InputData-XLF'!$M$10,$A121+$A$11+$A$18-1,0,1,1)-1 -> 0.1827956989 | K121: =OFFSET('InputData-XLE'!$M$10,$A121+$A$11,0,1,1)/OFFSET('InputData-XLE'!$M$10,$A121+$A$11+$A$18-1,0,1,1)-1 -> 0.09821153253 | L121: =OFFSET('InputData-XLP'!$M$10,$A121+$A$11,0,1,1)/OFFSET('InputData-XLP'!$M$10,$A121+$A$11+$A$18-1,0,1,1)-1 -> 0.06549784982 | M121: =OFFSET('InputData-XLU'!$M$10,$A121+$A$11,0,1,1)/OFFSET('InputData-XLU'!$M$10,$A121+$A$11+$A$18-1,0,1,1)-1 -> 0.03794442785 | N121: 0.14106496 | O121: 0.06721793673 | P121: 7.384702325
A122: 90 | B122: =OFFSET(InputPriceData!B$10,CalculationsAndCharts!$A122+$A$11,0,1,1) -> 2012-02-01 | C122: =OFFSET(InputPriceData!G$10,CalculationsAndCharts!$A122+$A$11,0,1,1) -> 4504360000 | D122: =OFFSET(InputPriceData!C$10,CalculationsAndCharts!$A122+$A$11,0,1,1) -> 1312.45 | E122: =OFFSET(InputPriceData!D$10,CalculationsAndCharts!$A122+$A$11,0,1,1) -> 1330.52 | F122: =OFFSET(InputPriceData!E$10,CalculationsAndCharts!$A122+$A$11,0,1,1) -> 1312.45 | G122: =OFFSET(InputPriceData!F$10,CalculationsAndCharts!$A122+$A$11,0,1,1) -> 1324.09 | H122: 1257.20735 | I122: =OFFSET('InputData-XLY'!$M$10,$A122+$A$11,0,1,1)/OFFSET('InputData-XLY'!$M$10,$A122+$A$11+$A$18-1,0,1,1)-1 -> 0.07826767545 | J122: =OFFSET('InputData-XLF'!$M$10,$A122+$A$11,0,1,1)/OFFSET('InputData-XLF'!$M$10,$A122+$A$11+$A$18-1,0,1,1)-1 -> 0.140224359 | K122: =OFFSET('InputData-XLE'!$M$10,$A122+$A$11,0,1,1)/OFFSET('InputData-XLE'!$M$10,$A122+$A$11+$A$18-1,0,1,1)-1 -> 0.07023917651 | L122: =OFFSET('InputData-XLP'!$M$10,$A122+$A$11,0,1,1)/OFFSET('InputData-XLP'!$M$10,$A122+$A$11+$A$18-1,0,1,1)-1 -> 0.05455142951 | M122: =OFFSET('InputData-XLU'!$M$10,$A122+$A$11,0,1,1)/OFFSET('InputData-XLU'!$M$10,$A122+$A$11+$A$18-1,0,1,1)-1 -> 0.03571428571 | N122: 0.1092460172 | O122: 0.05350163058 | P122: 5.574438664
A123: 91 | B123: =OFFSET(InputPriceData!B$10,CalculationsAndCharts!$A123+$A$11,0,1,1) -> 2012-01-31 | C123: =OFFSET(InputPriceData!G$10,CalculationsAndCharts!$A123+$A$11,0,1,1) -> 4235550000 | D123: =OFFSET(InputPriceData!C$10,CalculationsAndCharts!$A123+$A$11,0,1,1) -> 1313.53 | E123: =OFFSET(InputPriceData!D$10,CalculationsAndCharts!$A123+$A$11,0,1,1) -> 1321.41 | F123: =OFFSET(InputPriceData!E$10,CalculationsAndCharts!$A123+$A$11,0,1,1) -> 1306.69 | G123: =OFFSET(InputPriceData!F$10,CalculationsAndCharts!$A123+$A$11,0,1,1) -> 1312.41 | H123: 1257.1853 | I123: =OFFSET('InputData-XLY'!$M$10,$A123+$A$11,0,1,1)/OFFSET('InputData-XLY'!$M$10,$A123+$A$11+$A$18-1,0,1,1)-1 -> 0.092283214 | J123: =OFFSET('InputData-XLF'!$M$10,$A123+$A$11,0,1,1)/OFFSET('InputData-XLF'!$M$10,$A123+$A$11+$A$18-1,0,1,1)-1 -> 0.1370640714 | K123: =OFFSET('InputData-XLE'!$M$10,$A123+$A$11,0,1,1)/OFFSET('InputData-XLE'!$M$10,$A123+$A$11+$A$18-1,0,1,1)-1 -> 0.108627204 | L123: =OFFSET('InputData-XLP'!$M$10,$A123+$A$11,0,1,1)/OFFSET('InputData-XLP'!$M$10,$A123+$A$11+$A$18-1,0,1,1)-1 -> 0.05496688742 | M123: =OFFSET('InputData-XLU'!$M$10,$A123+$A$11,0,1,1)/OFFSET('InputData-XLU'!$M$10,$A123+$A$11+$A$18-1,0,1,1)-1 -> 0.04175428056 | N123: 0.1146736427 | O123: 0.06844945734 | P123: 4.622418535
A124: 92 | B124: =OFFSET(InputPriceData!B$10,CalculationsAndCharts!$A124+$A$11,0,1,1) -> 2012-01-30 | C124: =OFFSET(InputPriceData!G$10,CalculationsAndCharts!$A124+$A$11,0,1,1) -> 3659010000 | D124: =OFFSET(InputPriceData!C$10,CalculationsAndCharts!$A124+$A$11,0,1,1) -> 1316.16 | E124: =OFFSET(InputPriceData!D$10,CalculationsAndCharts!$A124+$A$11,0,1,1) -> 1316.16 | F124: =OFFSET(InputPriceData!E$10,CalculationsAndCharts!$A124+$A$11,0,1,1) -> 1300.49 | G124: =OFFSET(InputPriceData!F$10,CalculationsAndCharts!$A124+$A$11,0,1,1) -> 1313.01 | H124: 1257.19585 | I124: =OFFSET('InputData-XLY'!$M$10,$A124+$A$11,0,1,1)/OFFSET('InputData-XLY'!$M$10,$A124+$A$11+$A$18-1,0,1,1)-1 -> 0.09167991521 | J124: =OFFSET('InputData-XLF'!$M$10,$A124+$A$11,0,1,1)/OFFSET('InputData-XLF'!$M$10,$A124+$A$11+$A$18-1,0,1,1)-1 -> 0.1053048298 | K124: =OFFSET('InputData-XLE'!$M$10,$A124+$A$11,0,1,1)/OFFSET('InputData-XLE'!$M$10,$A124+$A$11+$A$18-1,0,1,1)-1 -> 0.114132998 | L124: =OFFSET('InputData-XLP'!$M$10,$A124+$A$11,0,1,1)/OFFSET('InputData-XLP'!$M$10,$A124+$A$11+$A$18-1,0,1,1)-1 -> 0.05151915456 | M124: =OFFSET('InputData-XLU'!$M$10,$A124+$A$11,0,1,1)/OFFSET('InputData-XLU'!$M$10,$A124+$A$11+$A$18-1,0,1,1)-1 -> 0.03664764193 | N124: 0.09849237249 | O124: 0.06743326482 | P124: 3.105910767
A125: 93 | B125: =OFFSET(InputPriceData!B$10,CalculationsAndCharts!$A125+$A$11,0,1,1) -> 2012-01-27 | C125: =OFFSET(InputPriceData!G$10,CalculationsAndCharts!$A125+$A$11,0,1,1) -> 3860430000 | D125: =OFFSET(InputPriceData!C$10,CalculationsAndCharts!$A125+$A$11,0,1,1) -> 1318.25 | E125: =OFFSET(InputPriceData!D$10,CalculationsAndCharts!$A125+$A$11,0,1,1) -> 1320.06 | F125: =OFFSET(InputPriceData!E$10,CalculationsAndCharts!$A125+$A$11,0,1,1) -> 1311.72 | G125: =OFFSET(InputPriceData!F$10,CalculationsAndCharts!$A125+$A$11,0,1,1) -> 1316.33 | H125: 1257.20285 | I125: =OFFSET('InputData-XLY'!$M$10,$A125+$A$11,0,1,1)/OFFSET('InputData-XLY'!$M$10,$A125+$A$11+$A$18-1,0,1,1)-1 -> 0.1045175087 | J125: =OFFSET('InputData-XLF'!$M$10,$A125+$A$11,0,1,1)/OFFSET('InputData-XLF'!$M$10,$A125+$A$11+$A$18-1,0,1,1)-1 -> 0.1445978879 | K125: =OFFSET('InputData-XLE'!$M$10,$A125+$A$11,0,1,1)/OFFSET('InputData-XLE'!$M$10,$A125+$A$11+$A$18-1,0,1,1)-1 -> 0.1251580278 | L125: =OFFSET('InputData-XLP'!$M$10,$A125+$A$11,0,1,1)/OFFSET('InputData-XLP'!$M$10,$A125+$A$11+$A$18-1,0,1,1)-1 -> 0.06655574043 | M125: =OFFSET('InputData-XLU'!$M$10,$A125+$A$11,0,1,1)/OFFSET('InputData-XLU'!$M$10,$A125+$A$11+$A$18-1,0,1,1)-1 -> 0.04075516931 | N125: 0.1245576983 | O125: 0.07748964585 | P125: 4.706805244
A126: 94 | B126: =OFFSET(InputPriceData!B$10,CalculationsAndCharts!$A126+$A$11,0,1,1) -> 2012-01-26 | C126: =OFFSET(InputPriceData!G$10,CalculationsAndCharts!$A126+$A$11,0,1,1) -> 4522070000 | D126: =OFFSET(InputPriceData!C$10,CalculationsAndCharts!$A126+$A$11,0,1,1) -> 1326.28 | E126: =OFFSET(InputPriceData!D$10,CalculationsAndCharts!$A126+$A$11,0,1,1) -> 1333.47 | F126: =OFFSET(InputPriceData!E$10,CalculationsAndCharts!$A126+$A$11,0,1,1) -> 1313.6 | G126: =OFFSET(InputPriceData!F$10,CalculationsAndCharts!$A126+$A$11,0,1,1) -> 1318.43 | H126: 1257.192 | I126: =OFFSET('InputData-XLY'!$M$10,$A126+$A$11,0,1,1)/OFFSET('InputData-XLY'!$M$10,$A126+$A$11+$A$18-1,0,1,1)-1 -> 0.1100671141 | J126: =OFFSET('InputData-XLF'!$M$10,$A126+$A$11,0,1,1)/OFFSET('InputData-XLF'!$M$10,$A126+$A$11+$A$18-1,0,1,1)-1 -> 0.1396103896 | K126: =OFFSET('InputData-XLE'!$M$10,$A126+$A$11,0,1,1)/OFFSET('InputData-XLE'!$M$10,$A126+$A$11+$A$18-1,0,1,1)-1 -> 0.1298495645 | L126: =OFFSET('InputData-XLP'!$M$10,$A126+$A$11,0,1,1)/OFFSET('InputData-XLP'!$M$10,$A126+$A$11+$A$18-1,0,1,1)-1 -> 0.07173696446 | M126: =OFFSET('InputData-XLU'!$M$10,$A126+$A$11,0,1,1)/OFFSET('InputData-XLU'!$M$10,$A126+$A$11+$A$18-1,0,1,1)-1 -> 0.04425304425 | N126: 0.1248387519 | O126: 0.08194652442 | P126: 4.289222744
A127: 95 | B127: =OFFSET(InputPriceData!B$10,CalculationsAndCharts!$A127+$A$11,0,1,1) -> 2012-01-25 | C127: =OFFSET(InputPriceData!G$10,CalculationsAndCharts!$A127+$A$11,0,1,1) -> 4410910000 | D127: =OFFSET(InputPriceData!C$10,CalculationsAndCharts!$A127+$A$11,0,1,1) -> 1314.4 | E127: =OFFSET(InputPriceData!D$10,CalculationsAndCharts!$A127+$A$11,0,1,1) -> 1328.3 | F127: =OFFSET(InputPriceData!E$10,CalculationsAndCharts!$A127+$A$11,0,1,1) -> 1307.65 | G127: =OFFSET(InputPriceData!F$10,CalculationsAndCharts!$A127+$A$11,0,1,1) -> 1326.06 | H127: 1257.22215 | I127: =OFFSET('InputData-XLY'!$M$10,$A127+$A$11,0,1,1)/OFFSET('InputData-XLY'!$M$10,$A127+$A$11+$A$18-1,0,1,1)-1 -> 0.1495975576 | J127: =OFFSET('InputData-XLF'!$M$10,$A127+$A$11,0,1,1)/OFFSET('InputData-XLF'!$M$10,$A127+$A$11+$A$18-1,0,1,1)-1 -> 0.207337884 | K127: =OFFSET('InputData-XLE'!$M$10,$A127+$A$11,0,1,1)/OFFSET('InputData-XLE'!$M$10,$A127+$A$11+$A$18-1,0,1,1)-1 -> 0.1974838603 | L127: =OFFSET('InputData-XLP'!$M$10,$A127+$A$11,0,1,1)/OFFSET('InputData-XLP'!$M$10,$A127+$A$11+$A$18-1,0,1,1)-1 -> 0.09278002699 | M127: =OFFSET('InputData-XLU'!$M$10,$A127+$A$11,0,1,1)/OFFSET('InputData-XLU'!$M$10,$A127+$A$11+$A$18-1,0,1,1)-1 -> 0.0608537693 | N127: 0.1784677208 | O127: 0.1170392189 | P127: 6.142850192
A128: 96 | B128: =OFFSET(InputPriceData!B$10,CalculationsAndCharts!$A128+$A$11,0,1,1) -> 2012-01-24 | C128: =OFFSET(InputPriceData!G$10,CalculationsAndCharts!$A128+$A$11,0,1,1) -> 3693560000 | D128: =OFFSET(InputPriceData!C$10,CalculationsAndCharts!$A128+$A$11,0,1,1) -> 1315.96 | E128: =OFFSET(InputPriceData!D$10,CalculationsAndCharts!$A128+$A$11,0,1,1) -> 1315.96 | F128: =OFFSET(InputPriceData!E$10,CalculationsAndCharts!$A128+$A$11,0,1,1) -> 1306.06 | G128: =OFFSET(InputPriceData!F$10,CalculationsAndCharts!$A128+$A$11,0,1,1) -> 1314.65 | H128: 1257.2327 | I128: =OFFSET('InputData-XLY'!$M$10,$A128+$A$11,0,1,1)/OFFSET('InputData-XLY'!$M$10,$A128+$A$11+$A$18-1,0,1,1)-1 -> 0.1403216861 | J128: =OFFSET('InputData-XLF'!$M$10,$A128+$A$11,0,1,1)/OFFSET('InputData-XLF'!$M$10,$A128+$A$11+$A$18-1,0,1,1)-1 -> 0.1621399177 | K128: =OFFSET('InputData-XLE'!$M$10,$A128+$A$11,0,1,1)/OFFSET('InputData-XLE'!$M$10,$A128+$A$11+$A$18-1,0,1,1)-1 -> 0.168410726 | L128: =OFFSET('InputData-XLP'!$M$10,$A128+$A$11,0,1,1)/OFFSET('InputData-XLP'!$M$10,$A128+$A$11+$A$18-1,0,1,1)-1 -> 0.08616010855 | M128: =OFFSET('InputData-XLU'!$M$10,$A128+$A$11,0,1,1)/OFFSET('InputData-XLU'!$M$10,$A128+$A$11+$A$18-1,0,1,1)-1 -> 0.0480389176 | N128: 0.1512308019 | O128: 0.1008699174 | P128: 5.036088451
A129: 97 | B129: =OFFSET(InputPriceData!B$10,CalculationsAndCharts!$A129+$A$11,0,1,1) -> 2012-01-23 | C129: =OFFSET(InputPriceData!G$10,CalculationsAndCharts!$A129+$A$11,0,1,1) -> 3770910000 | D129: =OFFSET(InputPriceData!C$10,CalculationsAndCharts!$A129+$A$11,0,1,1) -> 1315.29 | E129: =OFFSET(InputPriceData!D$10,CalculationsAndCharts!$A129+$A$11,0,1,1) -> 1322.28 | F129: =OFFSET(InputPriceData!E$10,CalculationsAndCharts!$A129+$A$11,0,1,1) -> 1309.89 | G129: =OFFSET(InputPriceData!F$10,CalculationsAndCharts!$A129+$A$11,0,1,1) -> 1316 | H129: 1257.327 | I129: =OFFSET('InputData-XLY'!$M$10,$A129+$A$11,0,1,1)/OFFSET('InputData-XLY'!$M$10,$A129+$A$11+$A$18-1,0,1,1)-1 -> 0.1634506243 | J129: =OFFSET('InputData-XLF'!$M$10,$A129+$A$11,0,1,1)/OFFSET('InputData-XLF'!$M$10,$A129+$A$11+$A$18-1,0,1,1)-1 -> 0.1993214589 | K129: =OFFSET('InputData-XLE'!$M$10,$A129+$A$11,0,1,1)/OFFSET('InputData-XLE'!$M$10,$A129+$A$11+$A$18-1,0,1,1)-1 -> 0.1939030485 | L129: =OFFSET('InputData-XLP'!$M$10,$A129+$A$11,0,1,1)/OFFSET('InputData-XLP'!$M$10,$A129+$A$11+$A$18-1,0,1,1)-1 -> 0.1053896327 | M129: =OFFSET('InputData-XLU'!$M$10,$A129+$A$11,0,1,1)/OFFSET('InputData-XLU'!$M$10,$A129+$A$11+$A$18-1,0,1,1)-1 -> 0.07518564356 | N129: 0.1813860416 | O129: 0.1248261082 | P129: 5.655993334
A130: 98 | B130: =OFFSET(InputPriceData!B$10,CalculationsAndCharts!$A130+$A$11,0,1,1) -> 2012-01-20 | C130: =OFFSET(InputPriceData!G$10,CalculationsAndCharts!$A130+$A$11,0,1,1) -> 3912620000 | D130: =OFFSET(InputPriceData!C$10,CalculationsAndCharts!$A130+$A$11,0,1,1) -> 1314.49 | E130: =OFFSET(InputPriceData!D$10,CalculationsAndCharts!$A130+$A$11,0,1,1) -> 1315.38 | F130: =OFFSET(InputPriceData!E$10,CalculationsAndCharts!$A130+$A$11,0,1,1) -> 1309.17 | G130: =OFFSET(InputPriceData!F$10,CalculationsAndCharts!$A130+$A$11,0,1,1) -> 1315.38 | H130: 1257.4247 | I130: =OFFSET('InputData-XLY'!$M$10,$A130+$A$11,0,1,1)/OFFSET('InputData-XLY'!$M$10,$A130+$A$11+$A$18-1,0,1,1)-1 -> 0.1858381503 | J130: =OFFSET('InputData-XLF'!$M$10,$A130+$A$11,0,1,1)/OFFSET('InputData-XLF'!$M$10,$A130+$A$11+$A$18-1,0,1,1)-1 -> 0.2125645439 | K130: =OFFSET('InputData-XLE'!$M$10,$A130+$A$11,0,1,1)/OFFSET('InputData-XLE'!$M$10,$A130+$A$11+$A$18-1,0,1,1)-1 -> 0.2281519862 | L130: =OFFSET('InputData-XLP'!$M$10,$A130+$A$11,0,1,1)/OFFSET('InputData-XLP'!$M$10,$A130+$A$11+$A$18-1,0,1,1)-1 -> 0.1079408732 | M130: =OFFSET('InputData-XLU'!$M$10,$A130+$A$11,0,1,1)/OFFSET('InputData-XLU'!$M$10,$A130+$A$11+$A$18-1,0,1,1)-1 -> 0.07151702786 | N130: 0.1992013471 | O130: 0.1358699624 | P130: 6.333138469
A131: 99 | B131: =OFFSET(InputPriceData!B$10,CalculationsAndCharts!$A131+$A$11,0,1,1) -> 2012-01-19 | C131: =OFFSET(InputPriceData!G$10,CalculationsAndCharts!$A131+$A$11,0,1,1) -> 4465890000 | D131: =OFFSET(InputPriceData!C$10,CalculationsAndCharts!$A131+$A$11,0,1,1) -> 1308.07 | E131: =OFFSET(InputPriceData!D$10,CalculationsAndCharts!$A131+$A$11,0,1,1) -> 1315.49 | F131: =OFFSET(InputPriceData!E$10,CalculationsAndCharts!$A131+$A$11,0,1,1) -> 1308.07 | G131: =OFFSET(InputPriceData!F$10,CalculationsAndCharts!$A131+$A$11,0,1,1) -> 1314.5 | H131: 1257.51095 | I131: =OFFSET('InputData-XLY'!$M$10,$A131+$A$11,0,1,1)/OFFSET('InputData-XLY'!$M$10,$A131+$A$11+$A$18-1,0,1,1)-1 -> 0.2334525939 | J131: =OFFSET('InputData-XLF'!$M$10,$A131+$A$11,0,1,1)/OFFSET('InputData-XLF'!$M$10,$A131+$A$11+$A$18-1,0,1,1)-1 -> 0.254252462 | K131: =OFFSET('InputData-XLE'!$M$10,$A131+$A$11,0,1,1)/OFFSET('InputData-XLE'!$M$10,$A131+$A$11+$A$18-1,0,1,1)-1 -> 0.2680577849 | L131: =OFFSET('InputData-XLP'!$M$10,$A131+$A$11,0,1,1)/OFFSET('InputData-XLP'!$M$10,$A131+$A$11+$A$18-1,0,1,1)-1 -> 0.1179736294 | M131: =OFFSET('InputData-XLU'!$M$10,$A131+$A$11,0,1,1)/OFFSET('InputData-XLU'!$M$10,$A131+$A$11+$A$18-1,0,1,1)-1 -> 0.06469500924 | N131: 0.2438525279 | O131: 0.1502421412 | P131: 9.361038674
A132: 100 | B132: =OFFSET(InputPriceData!B$10,CalculationsAndCharts!$A132+$A$11,0,1,1) -> 2012-01-18 | C132: =OFFSET(InputPriceData!G$10,CalculationsAndCharts!$A132+$A$11,0,1,1) -> 4096160000 | D132: =OFFSET(InputPriceData!C$10,CalculationsAndCharts!$A132+$A$11,0,1,1) -> 1293.65 | E132: =OFFSET(InputPriceData!D$10,CalculationsAndCharts!$A132+$A$11,0,1,1) -> 1308.11 | F132: =OFFSET(InputPriceData!E$10,CalculationsAndCharts!$A132+$A$11,0,1,1) -> 1290.99 | G132: =OFFSET(InputPriceData!F$10,CalculationsAndCharts!$A132+$A$11,0,1,1) -> 1308.04 | H132: 1257.6028 | I132: =OFFSET('InputData-XLY'!$M$10,$A132+$A$11,0,1,1)/OFFSET('InputData-XLY'!$M$10,$A132+$A$11+$A$18-1,0,1,1)-1 -> 0.186975398 | J132: =OFFSET('InputData-XLF'!$M$10,$A132+$A$11,0,1,1)/OFFSET('InputData-XLF'!$M$10,$A132+$A$11+$A$18-1,0,1,1)-1 -> 0.1863247863 | K132: =OFFSET('InputData-XLE'!$M$10,$A132+$A$11,0,1,1)/OFFSET('InputData-XLE'!$M$10,$A132+$A$11+$A$18-1,0,1,1)-1 -> 0.2200206754 | L132: =OFFSET('InputData-XLP'!$M$10,$A132+$A$11,0,1,1)/OFFSET('InputData-XLP'!$M$10,$A132+$A$11+$A$18-1,0,1,1)-1 -> 0.09986320109 | M132: =OFFSET('InputData-XLU'!$M$10,$A132+$A$11,0,1,1)/OFFSET('InputData-XLU'!$M$10,$A132+$A$11+$A$18-1,0,1,1)-1 -> 0.04812030075 | N132: 0.1866500921 | O132: 0.1226680591 | P132: 6.398203307
A133: 101 | B133: =OFFSET(InputPriceData!B$10,CalculationsAndCharts!$A133+$A$11,0,1,1) -> 2012-01-17 | C133: =OFFSET(InputPriceData!G$10,CalculationsAndCharts!$A133+$A$11,0,1,1) -> 4010490000 | D133: =OFFSET(InputPriceData!C$10,CalculationsAndCharts!$A133+$A$11,0,1,1) -> 1290.22 | E133: =OFFSET(InputPriceData!D$10,CalculationsAndCharts!$A133+$A$11,0,1,1) -> 1303 | F133: =OFFSET(InputPriceData!E$10,CalculationsAndCharts!$A133+$A$11,0,1,1) -> 1290.22 | G133: =OFFSET(InputPriceData!F$10,CalculationsAndCharts!$A133+$A$11,0,1,1) -> 1293.67 | H133: 1257.72465 | I133: =OFFSET('InputData-XLY'!$M$10,$A133+$A$11,0,1,1)/OFFSET('InputData-XLY'!$M$10,$A133+$A$11+$A$18-1,0,1,1)-1 -> 0.1349451785 | J133: =OFFSET('InputData-XLF'!$M$10,$A133+$A$11,0,1,1)/OFFSET('InputData-XLF'!$M$10,$A133+$A$11+$A$18-1,0,1,1)-1 -> 0.1278877888 | K133: =OFFSET('InputData-XLE'!$M$10,$A133+$A$11,0,1,1)/OFFSET('InputData-XLE'!$M$10,$A133+$A$11+$A$18-1,0,1,1)-1 -> 0.1650777722 | L133: =OFFSET('InputData-XLP'!$M$10,$A133+$A$11,0,1,1)/OFFSET('InputData-XLP'!$M$10,$A133+$A$11+$A$18-1,0,1,1)-1 -> 0.08595600677 | M133: =OFFSET('InputData-XLU'!$M$10,$A133+$A$11,0,1,1)/OFFSET('InputData-XLU'!$M$10,$A133+$A$11+$A$18-1,0,1,1)-1 -> 0.03688280785 | N133: 0.1314164837 | O133: 0.09597219561 | P133: 3.544428804
A134: 102 | B134: =OFFSET(InputPriceData!B$10,CalculationsAndCharts!$A134+$A$11,0,1,1) -> 2012-01-13 | C134: =OFFSET(InputPriceData!G$10,CalculationsAndCharts!$A134+$A$11,0,1,1) -> 3692370000 | D134: =OFFSET(InputPriceData!C$10,CalculationsAndCharts!$A134+$A$11,0,1,1) -> 1294.82 | E134: =OFFSET(InputPriceData!D$10,CalculationsAndCharts!$A134+$A$11,0,1,1) -> 1294.82 | F134: =OFFSET(InputPriceData!E$10,CalculationsAndCharts!$A134+$A$11,0,1,1) -> 1277.58 | G134: =OFFSET(InputPriceData!F$10,CalculationsAndCharts!$A134+$A$11,0,1,1) -> 1289.09 | H134: 1257.88545 | I134: =OFFSET('InputData-XLY'!$M$10,$A134+$A$11,0,1,1)/OFFSET('InputData-XLY'!$M$10,$A134+$A$11+$A$18-1,0,1,1)-1 -> 0.1223863953 | J134: =OFFSET('InputData-XLF'!$M$10,$A134+$A$11,0,1,1)/OFFSET('InputData-XLF'!$M$10,$A134+$A$11+$A$18-1,0,1,1)-1 -> 0.1677966102 | K134: =OFFSET('InputData-XLE'!$M$10,$A134+$A$11,0,1,1)/OFFSET('InputData-XLE'!$M$10,$A134+$A$11+$A$18-1,0,1,1)-1 -> 0.1678203613 | L134: =OFFSET('InputData-XLP'!$M$10,$A134+$A$11,0,1,1)/OFFSET('InputData-XLP'!$M$10,$A134+$A$11+$A$18-1,0,1,1)-1 -> 0.09261790841 | M134: =OFFSET('InputData-XLU'!$M$10,$A134+$A$11,0,1,1)/OFFSET('InputData-XLU'!$M$10,$A134+$A$11+$A$18-1,0,1,1)-1 -> 0.05439709882 | N134: 0.1450915027 | O134: 0.1049451228 | P134: 4.01463799
A135: 103 | B135: =OFFSET(InputPriceData!B$10,CalculationsAndCharts!$A135+$A$11,0,1,1) -> 2012-01-12 | C135: =OFFSET(InputPriceData!G$10,CalculationsAndCharts!$A135+$A$11,0,1,1) -> 4019890000 | D135: =OFFSET(InputPriceData!C$10,CalculationsAndCharts!$A135+$A$11,0,1,1) -> 1292.48 | E135: =OFFSET(InputPriceData!D$10,CalculationsAndCharts!$A135+$A$11,0,1,1) -> 1296.82 | F135: =OFFSET(InputPriceData!E$10,CalculationsAndCharts!$A135+$A$11,0,1,1) -> 1285.77 | G135: =OFFSET(InputPriceData!F$10,CalculationsAndCharts!$A135+$A$11,0,1,1) -> 1295.5 | H135: 1258.0813 | I135: =OFFSET('InputData-XLY'!$M$10,$A135+$A$11,0,1,1)/OFFSET('InputData-XLY'!$M$10,$A135+$A$11+$A$18-1,0,1,1)-1 -> 0.1043835616 | J135: =OFFSET('InputData-XLF'!$M$10,$A135+$A$11,0,1,1)/OFFSET('InputData-XLF'!$M$10,$A135+$A$11+$A$18-1,0,1,1)-1 -> 0.1433278418 | K135: =OFFSET('InputData-XLE'!$M$10,$A135+$A$11,0,1,1)/OFFSET('InputData-XLE'!$M$10,$A135+$A$11+$A$18-1,0,1,1)-1 -> 0.1353911481 | L135: =OFFSET('InputData-XLP'!$M$10,$A135+$A$11,0,1,1)/OFFSET('InputData-XLP'!$M$10,$A135+$A$11+$A$18-1,0,1,1)-1 -> 0.07310529846 | M135: =OFFSET('InputData-XLU'!$M$10,$A135+$A$11,0,1,1)/OFFSET('InputData-XLU'!$M$10,$A135+$A$11+$A$18-1,0,1,1)-1 -> 0.04427161232 | N135: 0.1238557017 | O135: 0.08425601964 | P135: 3.959968211
A136: 104 | B136: =OFFSET(InputPriceData!B$10,CalculationsAndCharts!$A136+$A$11,0,1,1) -> 2012-01-11 | C136: =OFFSET(InputPriceData!G$10,CalculationsAndCharts!$A136+$A$11,0,1,1) -> 3968120000 | D136: =OFFSET(InputPriceData!C$10,CalculationsAndCharts!$A136+$A$11,0,1,1) -> 1292.02 | E136: =OFFSET(InputPriceData!D$10,CalculationsAndCharts!$A136+$A$11,0,1,1) -> 1293.8 | F136: =OFFSET(InputPriceData!E$10,CalculationsAndCharts!$A136+$A$11,0,1,1) -> 1285.41 | G136: =OFFSET(InputPriceData!F$10,CalculationsAndCharts!$A136+$A$11,0,1,1) -> 1292.48 | H136: 1258.201 | I136: =OFFSET('InputData-XLY'!$M$10,$A136+$A$11,0,1,1)/OFFSET('InputData-XLY'!$M$10,$A136+$A$11+$A$18-1,0,1,1)-1 -> 0.1086896552 | J136: =OFFSET('InputData-XLF'!$M$10,$A136+$A$11,0,1,1)/OFFSET('InputData-XLF'!$M$10,$A136+$A$11+$A$18-1,0,1,1)-1 -> 0.1448675497 | K136: =OFFSET('InputData-XLE'!$M$10,$A136+$A$11,0,1,1)/OFFSET('InputData-XLE'!$M$10,$A136+$A$11+$A$18-1,0,1,1)-1 -> 0.1628831814 | L136: =OFFSET('InputData-XLP'!$M$10,$A136+$A$11,0,1,1)/OFFSET('InputData-XLP'!$M$10,$A136+$A$11+$A$18-1,0,1,1)-1 -> 0.07995951417 | M136: =OFFSET('InputData-XLU'!$M$10,$A136+$A$11,0,1,1)/OFFSET('InputData-XLU'!$M$10,$A136+$A$11+$A$18-1,0,1,1)-1 -> 0.04953467427 | N136: 0.1267786024 | O136: 0.09745912329 | P136: 2.931947913
A137: 105 | B137: =OFFSET(InputPriceData!B$10,CalculationsAndCharts!$A137+$A$11,0,1,1) -> 2012-01-10 | C137: =OFFSET(InputPriceData!G$10,CalculationsAndCharts!$A137+$A$11,0,1,1) -> 4221960000 | D137: =OFFSET(InputPriceData!C$10,CalculationsAndCharts!$A137+$A$11,0,1,1) -> 1280.77 | E137: =OFFSET(InputPriceData!D$10,CalculationsAndCharts!$A137+$A$11,0,1,1) -> 1296.46 | F137: =OFFSET(InputPriceData!E$10,CalculationsAndCharts!$A137+$A$11,0,1,1) -> 1280.77 | G137: =OFFSET(InputPriceData!F$10,CalculationsAndCharts!$A137+$A$11,0,1,1) -> 1292.08 | H137: 1258.28955 | I137: =OFFSET('InputData-XLY'!$M$10,$A137+$A$11,0,1,1)/OFFSET('InputData-XLY'!$M$10,$A137+$A$11+$A$18-1,0,1,1)-1 -> 0.1332956792 | J137: =OFFSET('InputData-XLF'!$M$10,$A137+$A$11,0,1,1)/OFFSET('InputData-XLF'!$M$10,$A137+$A$11+$A$18-1,0,1,1)-1 -> 0.1815038894 | K137: =OFFSET('InputData-XLE'!$M$10,$A137+$A$11,0,1,1)/OFFSET('InputData-XLE'!$M$10,$A137+$A$11+$A$18-1,0,1,1)-1 -> 0.2217070239 | L137: =OFFSET('InputData-XLP'!$M$10,$A137+$A$11,0,1,1)/OFFSET('InputData-XLP'!$M$10,$A137+$A$11+$A$18-1,0,1,1)-1 -> 0.1055708391 | M137: =OFFSET('InputData-XLU'!$M$10,$A137+$A$11,0,1,1)/OFFSET('InputData-XLU'!$M$10,$A137+$A$11+$A$18-1,0,1,1)-1 -> 0.06295399516 | N137: 0.1573997843 | O137: 0.130077286 | P137: 2.732249825
A138: 106 | B138: =OFFSET(InputPriceData!B$10,CalculationsAndCharts!$A138+$A$11,0,1,1) -> 2012-01-09 | C138: =OFFSET(InputPriceData!G$10,CalculationsAndCharts!$A138+$A$11,0,1,1) -> 3371600000 | D138: =OFFSET(InputPriceData!C$10,CalculationsAndCharts!$A138+$A$11,0,1,1) -> 1277.83 | E138: =OFFSET(InputPriceData!D$10,CalculationsAndCharts!$A138+$A$11,0,1,1) -> 1281.99 | F138: =OFFSET(InputPriceData!E$10,CalculationsAndCharts!$A138+$A$11,0,1,1) -> 1274.55 | G138: =OFFSET(InputPriceData!F$10,CalculationsAndCharts!$A138+$A$11,0,1,1) -> 1280.7 | H138: 1258.39815 | I138: =OFFSET('InputData-XLY'!$M$10,$A138+$A$11,0,1,1)/OFFSET('InputData-XLY'!$M$10,$A138+$A$11+$A$18-1,0,1,1)-1 -> 0.1427343078 | J138: =OFFSET('InputData-XLF'!$M$10,$A138+$A$11,0,1,1)/OFFSET('InputData-XLF'!$M$10,$A138+$A$11+$A$18-1,0,1,1)-1 -> 0.1729257642 | K138: =OFFSET('InputData-XLE'!$M$10,$A138+$A$11,0,1,1)/OFFSET('InputData-XLE'!$M$10,$A138+$A$11+$A$18-1,0,1,1)-1 -> 0.1979272851 | L138: =OFFSET('InputData-XLP'!$M$10,$A138+$A$11,0,1,1)/OFFSET('InputData-XLP'!$M$10,$A138+$A$11+$A$18-1,0,1,1)-1 -> 0.1040661613 | M138: =OFFSET('InputData-XLU'!$M$10,$A138+$A$11,0,1,1)/OFFSET('InputData-XLU'!$M$10,$A138+$A$11+$A$18-1,0,1,1)-1 -> 0.07214918985 | N138: 0.157830036 | O138: 0.1247142121 | P138: 3.311582394
A139: 107 | B139: =OFFSET(InputPriceData!B$10,CalculationsAndCharts!$A139+$A$11,0,1,1) -> 2012-01-06 | C139: =OFFSET(InputPriceData!G$10,CalculationsAndCharts!$A139+$A$11,0,1,1) -> 3656830000 | D139: =OFFSET(InputPriceData!C$10,CalculationsAndCharts!$A139+$A$11,0,1,1) -> 1280.93 | E139: =OFFSET(InputPriceData!D$10,CalculationsAndCharts!$A139+$A$11,0,1,1) -> 1281.84 | F139: =OFFSET(InputPriceData!E$10,CalculationsAndCharts!$A139+$A$11,0,1,1) -> 1273.34 | G139: =OFFSET(InputPriceData!F$10,CalculationsAndCharts!$A139+$A$11,0,1,1) -> 1277.81 | H139: 1258.54295 | I139: =OFFSET('InputData-XLY'!$M$10,$A139+$A$11,0,1,1)/OFFSET('InputData-XLY'!$M$10,$A139+$A$11+$A$18-1,0,1,1)-1 -> 0.1100917431 | J139: =OFFSET('InputData-XLF'!$M$10,$A139+$A$11,0,1,1)/OFFSET('InputData-XLF'!$M$10,$A139+$A$11+$A$18-1,0,1,1)-1 -> 0.133163698 | K139: =OFFSET('InputData-XLE'!$M$10,$A139+$A$11,0,1,1)/OFFSET('InputData-XLE'!$M$10,$A139+$A$11+$A$18-1,0,1,1)-1 -> 0.1248797692 | L139: =OFFSET('InputData-XLP'!$M$10,$A139+$A$11,0,1,1)/OFFSET('InputData-XLP'!$M$10,$A139+$A$11+$A$18-1,0,1,1)-1 -> 0.0814739689 | M139: =OFFSET('InputData-XLU'!$M$10,$A139+$A$11,0,1,1)/OFFSET('InputData-XLU'!$M$10,$A139+$A$11+$A$18-1,0,1,1)-1 -> 0.05228365385 | N139: 0.1216277206 | O139: 0.08621246397 | P139: 3.541525662
A140: 108 | B140: =OFFSET(InputPriceData!B$10,CalculationsAndCharts!$A140+$A$11,0,1,1) -> 2012-01-05 | C140: =OFFSET(InputPriceData!G$10,CalculationsAndCharts!$A140+$A$11,0,1,1) -> 4315950000 | D140: =OFFSET(InputPriceData!C$10,CalculationsAndCharts!$A140+$A$11,0,1,1) -> 1277.3 | E140: =OFFSET(InputPriceData!D$10,CalculationsAndCharts!$A140+$A$11,0,1,1) -> 1283.05 | F140: =OFFSET(InputPriceData!E$10,CalculationsAndCharts!$A140+$A$11,0,1,1) -> 1265.26 | G140: =OFFSET(InputPriceData!F$10,CalculationsAndCharts!$A140+$A$11,0,1,1) -> 1281.06 | H140: 1258.6416 | I140: =OFFSET('InputData-XLY'!$M$10,$A140+$A$11,0,1,1)/OFFSET('InputData-XLY'!$M$10,$A140+$A$11+$A$18-1,0,1,1)-1 -> 0.07263922518 | J140: =OFFSET('InputData-XLF'!$M$10,$A140+$A$11,0,1,1)/OFFSET('InputData-XLF'!$M$10,$A140+$A$11+$A$18-1,0,1,1)-1 -> 0.08387096774 | K140: =OFFSET('InputData-XLE'!$M$10,$A140+$A$11,0,1,1)/OFFSET('InputData-XLE'!$M$10,$A140+$A$11+$A$18-1,0,1,1)-1 -> 0.08449838685 | L140: =OFFSET('InputData-XLP'!$M$10,$A140+$A$11,0,1,1)/OFFSET('InputData-XLP'!$M$10,$A140+$A$11+$A$18-1,0,1,1)-1 -> 0.06587222774 | M140: =OFFSET('InputData-XLU'!$M$10,$A140+$A$11,0,1,1)/OFFSET('InputData-XLU'!$M$10,$A140+$A$11+$A$18-1,0,1,1)-1 -> 0.03864306785 | N140: 0.07825509646 | O140: 0.06300456081 | P140: 1.525053565
A141: 109 | B141: =OFFSET(InputPriceData!B$10,CalculationsAndCharts!$A141+$A$11,0,1,1) -> 2012-01-04 | C141: =OFFSET(InputPriceData!G$10,CalculationsAndCharts!$A141+$A$11,0,1,1) -> 3592580000 | D141: =OFFSET(InputPriceData!C$10,CalculationsAndCharts!$A141+$A$11,0,1,1) -> 1277.03 | E141: =OFFSET(InputPriceData!D$10,CalculationsAndCharts!$A141+$A$11,0,1,1) -> 1278.73 | F141: =OFFSET(InputPriceData!E$10,CalculationsAndCharts!$A141+$A$11,0,1,1) -> 1268.1 | G141: =OFFSET(InputPriceData!F$10,CalculationsAndCharts!$A141+$A$11,0,1,1) -> 1277.3 | H141: 1258.70515 | I141: =OFFSET('InputData-XLY'!$M$10,$A141+$A$11,0,1,1)/OFFSET('InputData-XLY'!$M$10,$A141+$A$11+$A$18-1,0,1,1)-1 -> 0.05806796896 | J141: =OFFSET('InputData-XLF'!$M$10,$A141+$A$11,0,1,1)/OFFSET('InputData-XLF'!$M$10,$A141+$A$11+$A$18-1,0,1,1)-1 -> 0.06591639871 | K141: =OFFSET('InputData-XLE'!$M$10,$A141+$A$11,0,1,1)/OFFSET('InputData-XLE'!$M$10,$A141+$A$11+$A$18-1,0,1,1)-1 -> 0.08290076336 | L141: =OFFSET('InputData-XLP'!$M$10,$A141+$A$11,0,1,1)/OFFSET('InputData-XLP'!$M$10,$A141+$A$11+$A$18-1,0,1,1)-1 -> 0.06865671642 | M141: =OFFSET('InputData-XLU'!$M$10,$A141+$A$11,0,1,1)/OFFSET('InputData-XLU'!$M$10,$A141+$A$11+$A$18-1,0,1,1)-1 -> 0.05146618791 | N141: 0.06199218384 | O141: 0.0676745559 | P141: -0.568237206
A142: 110 | B142: =OFFSET(InputPriceData!B$10,CalculationsAndCharts!$A142+$A$11,0,1,1) -> 2012-01-03 | C142: =OFFSET(InputPriceData!G$10,CalculationsAndCharts!$A142+$A$11,0,1,1) -> 3943710000 | D142: =OFFSET(InputPriceData!C$10,CalculationsAndCharts!$A142+$A$11,0,1,1) -> 1258.86 | E142: =OFFSET(InputPriceData!D$10,CalculationsAndCharts!$A142+$A$11,0,1,1) -> 1284.62 | F142: =OFFSET(InputPriceData!E$10,CalculationsAndCharts!$A142+$A$11,0,1,1) -> 1258.86 | G142: =OFFSET(InputPriceData!F$10,CalculationsAndCharts!$A142+$A$11,0,1,1) -> 1277.06 | H142: 1258.81055 | I142: =OFFSET('InputData-XLY'!$M$10,$A142+$A$11,0,1,1)/OFFSET('InputData-XLY'!$M$10,$A142+$A$11+$A$18-1,0,1,1)-1 -> 0.04780982906 | J142: =OFFSET('InputData-XLF'!$M$10,$A142+$A$11,0,1,1)/OFFSET('InputData-XLF'!$M$10,$A142+$A$11+$A$18-1,0,1,1)-1 -> 0.03987490227 | K142: =OFFSET('InputData-XLE'!$M$10,$A142+$A$11,0,1,1)/OFFSET('InputData-XLE'!$M$10,$A142+$A$11+$A$18-1,0,1,1)-1 -> 0.06356123216 | L142: =OFFSET('InputData-XLP'!$M$10,$A142+$A$11,0,1,1)/OFFSET('InputData-XLP'!$M$10,$A142+$A$11+$A$18-1,0,1,1)-1 -> 0.06217105263 | M142: =OFFSET('InputData-XLU'!$M$10,$A142+$A$11,0,1,1)/OFFSET('InputData-XLU'!$M$10,$A142+$A$11+$A$18-1,0,1,1)-1 -> 0.05178571429 | N142: 0.04384236566 | O142: 0.05917266636 | P142: -1.533030069
A143: 111 | B143: =OFFSET(InputPriceData!B$10,CalculationsAndCharts!$A143+$A$11,0,1,1) -> 2011-12-30 | C143: =OFFSET(InputPriceData!G$10,CalculationsAndCharts!$A143+$A$11,0,1,1) -> 2271850000 | D143: =OFFSET(InputPriceData!C$10,CalculationsAndCharts!$A143+$A$11,0,1,1) -> 1262.82 | E143: =OFFSET(InputPriceData!D$10,CalculationsAndCharts!$A143+$A$11,0,1,1) -> 1264.12 | F143: =OFFSET(InputPriceData!E$10,CalculationsAndCharts!$A143+$A$11,0,1,1) -> 1257.46 | G143: =OFFSET(InputPriceData!F$10,CalculationsAndCharts!$A143+$A$11,0,1,1) -> 1257.6 | H143: 1258.8213 | I143: =OFFSET('InputData-XLY'!$M$10,$A143+$A$11,0,1,1)/OFFSET('InputData-XLY'!$M$10,$A143+$A$11+$A$18-1,0,1,1)-1 -> 0.05078336035 | J143: =OFFSET('InputData-XLF'!$M$10,$A143+$A$11,0,1,1)/OFFSET('InputData-XLF'!$M$10,$A143+$A$11+$A$18-1,0,1,1)-1 -> 0.01647058824 | K143: =OFFSET('InputData-XLE'!$M$10,$A143+$A$11,0,1,1)/OFFSET('InputData-XLE'!$M$10,$A143+$A$11+$A$18-1,0,1,1)-1 -> 0.03253861149 | L143: =OFFSET('InputData-XLP'!$M$10,$A143+$A$11,0,1,1)/OFFSET('InputData-XLP'!$M$10,$A143+$A$11+$A$18-1,0,1,1)-1 -> 0.06984442238 | M143: =OFFSET('InputData-XLU'!$M$10,$A143+$A$11,0,1,1)/OFFSET('InputData-XLU'!$M$10,$A143+$A$11+$A$18-1,0,1,1)-1 -> 0.08308248043 | N143: 0.03362697429 | O143: 0.0618218381 | P143: -2.819486381
A144: 112 | B144: =OFFSET(InputPriceData!B$10,CalculationsAndCharts!$A144+$A$11,0,1,1) -> 2011-12-29 | C144: =OFFSET(InputPriceData!G$10,CalculationsAndCharts!$A144+$A$11,0,1,1) -> 2278130000 | D144: =OFFSET(InputPriceData!C$10,CalculationsAndCharts!$A144+$A$11,0,1,1) -> 1249.75 | E144: =OFFSET(InputPriceData!D$10,CalculationsAndCharts!$A144+$A$11,0,1,1) -> 1263.54 | F144: =OFFSET(InputPriceData!E$10,CalculationsAndCharts!$A144+$A$11,0,1,1) -> 1249.75 | G144: =OFFSET(InputPriceData!F$10,CalculationsAndCharts!$A144+$A$11,0,1,1) -> 1263.02 | H144: 1258.9019 | I144: =OFFSET('InputData-XLY'!$M$10,$A144+$A$11,0,1,1)/OFFSET('InputData-XLY'!$M$10,$A144+$A$11+$A$18-1,0,1,1)-1 -> 0.07525405108 | J144: =OFFSET('InputData-XLF'!$M$10,$A144+$A$11,0,1,1)/OFFSET('InputData-XLF'!$M$10,$A144+$A$11+$A$18-1,0,1,1)-1 -> 0.04827031376 | K144: =OFFSET('InputData-XLE'!$M$10,$A144+$A$11,0,1,1)/OFFSET('InputData-XLE'!$M$10,$A144+$A$11+$A$18-1,0,1,1)-1 -> 0.05336391437 | L144: =OFFSET('InputData-XLP'!$M$10,$A144+$A$11,0,1,1)/OFFSET('InputData-XLP'!$M$10,$A144+$A$11+$A$18-1,0,1,1)-1 -> 0.0877721943 | M144: =OFFSET('InputData-XLU'!$M$10,$A144+$A$11,0,1,1)/OFFSET('InputData-XLU'!$M$10,$A144+$A$11+$A$18-1,0,1,1)-1 -> 0.1045412984 | N144: 0.06176218242 | O144: 0.08189246902 | P144: -2.01302866
A145: 113 | B145: =OFFSET(InputPriceData!B$10,CalculationsAndCharts!$A145+$A$11,0,1,1) -> 2011-12-28 | C145: =OFFSET(InputPriceData!G$10,CalculationsAndCharts!$A145+$A$11,0,1,1) -> 2349980000 | D145: =OFFSET(InputPriceData!C$10,CalculationsAndCharts!$A145+$A$11,0,1,1) -> 1265.38 | E145: =OFFSET(InputPriceData!D$10,CalculationsAndCharts!$A145+$A$11,0,1,1) -> 1265.85 | F145: =OFFSET(InputPriceData!E$10,CalculationsAndCharts!$A145+$A$11,0,1,1) -> 1248.64 | G145: =OFFSET(InputPriceData!F$10,CalculationsAndCharts!$A145+$A$11,0,1,1) -> 1249.64 | H145: 1258.8712 | I145: =OFFSET('InputData-XLY'!$M$10,$A145+$A$11,0,1,1)/OFFSET('InputData-XLY'!$M$10,$A145+$A$11+$A$18-1,0,1,1)-1 -> 0.08179787828 | J145: =OFFSET('InputData-XLF'!$M$10,$A145+$A$11,0,1,1)/OFFSET('InputData-XLF'!$M$10,$A145+$A$11+$A$18-1,0,1,1)-1 -> 0.04478827362 | K145: =OFFSET('InputData-XLE'!$M$10,$A145+$A$11,0,1,1)/OFFSET('InputData-XLE'!$M$10,$A145+$A$11+$A$18-1,0,1,1)-1 -> 0.05557275542 | L145: =OFFSET('InputData-XLP'!$M$10,$A145+$A$11,0,1,1)/OFFSET('InputData-XLP'!$M$10,$A145+$A$11+$A$18-1,0,1,1)-1 -> 0.09491525424 | M145: =OFFSET('InputData-XLU'!$M$10,$A145+$A$11,0,1,1)/OFFSET('InputData-XLU'!$M$10,$A145+$A$11+$A$18-1,0,1,1)-1 -> 0.1034059527 | N145: 0.06329307595 | O145: 0.0846313208 | P145: -2.133824485
A146: 114 | B146: =OFFSET(InputPriceData!B$10,CalculationsAndCharts!$A146+$A$11,0,1,1) -> 2011-12-27 | C146: =OFFSET(InputPriceData!G$10,CalculationsAndCharts!$A146+$A$11,0,1,1) -> 2130590000 | D146: =OFFSET(InputPriceData!C$10,CalculationsAndCharts!$A146+$A$11,0,1,1) -> 1265.02 | E146: =OFFSET(InputPriceData!D$10,CalculationsAndCharts!$A146+$A$11,0,1,1) -> 1269.37 | F146: =OFFSET(InputPriceData!E$10,CalculationsAndCharts!$A146+$A$11,0,1,1) -> 1262.3 | G146: =OFFSET(InputPriceData!F$10,CalculationsAndCharts!$A146+$A$11,0,1,1) -> 1265.43 | H146: 1259.03235 | I146: =OFFSET('InputData-XLY'!$M$10,$A146+$A$11,0,1,1)/OFFSET('InputData-XLY'!$M$10,$A146+$A$11+$A$18-1,0,1,1)-1 -> 0.106779661 | J146: =OFFSET('InputData-XLF'!$M$10,$A146+$A$11,0,1,1)/OFFSET('InputData-XLF'!$M$10,$A146+$A$11+$A$18-1,0,1,1)-1 -> 0.06885245902 | K146: =OFFSET('InputData-XLE'!$M$10,$A146+$A$11,0,1,1)/OFFSET('InputData-XLE'!$M$10,$A146+$A$11+$A$18-1,0,1,1)-1 -> 0.07901272897 | L146: =OFFSET('InputData-XLP'!$M$10,$A146+$A$11,0,1,1)/OFFSET('InputData-XLP'!$M$10,$A146+$A$11+$A$18-1,0,1,1)-1 -> 0.1044572984 | M146: =OFFSET('InputData-XLU'!$M$10,$A146+$A$11,0,1,1)/OFFSET('InputData-XLU'!$M$10,$A146+$A$11+$A$18-1,0,1,1)-1 -> 0.1149212234 | N146: 0.08781606002 | O146: 0.09946375024 | P146: -1.164769022
A147: 115 | B147: =OFFSET(InputPriceData!B$10,CalculationsAndCharts!$A147+$A$11,0,1,1) -> 2011-12-23 | C147: =OFFSET(InputPriceData!G$10,CalculationsAndCharts!$A147+$A$11,0,1,1) -> 2233830000 | D147: =OFFSET(InputPriceData!C$10,CalculationsAndCharts!$A147+$A$11,0,1,1) -> 1254 | E147: =OFFSET(InputPriceData!D$10,CalculationsAndCharts!$A147+$A$11,0,1,1) -> 1265.42 | F147: =OFFSET(InputPriceData!E$10,CalculationsAndCharts!$A147+$A$11,0,1,1) -> 1254 | G147: =OFFSET(InputPriceData!F$10,CalculationsAndCharts!$A147+$A$11,0,1,1) -> 1265.33 | H147: 1259.18715 | I147: =OFFSET('InputData-XLY'!$M$10,$A147+$A$11,0,1,1)/OFFSET('InputData-XLY'!$M$10,$A147+$A$11+$A$18-1,0,1,1)-1 -> 0.1163189483 | J147: =OFFSET('InputData-XLF'!$M$10,$A147+$A$11,0,1,1)/OFFSET('InputData-XLF'!$M$10,$A147+$A$11+$A$18-1,0,1,1)-1 -> 0.08616404308 | K147: =OFFSET('InputData-XLE'!$M$10,$A147+$A$11,0,1,1)/OFFSET('InputData-XLE'!$M$10,$A147+$A$11+$A$18-1,0,1,1)-1 -> 0.08125389894 | L147: =OFFSET('InputData-XLP'!$M$10,$A147+$A$11,0,1,1)/OFFSET('InputData-XLP'!$M$10,$A147+$A$11+$A$18-1,0,1,1)-1 -> 0.1035422343 | M147: =OFFSET('InputData-XLU'!$M$10,$A147+$A$11,0,1,1)/OFFSET('InputData-XLU'!$M$10,$A147+$A$11+$A$18-1,0,1,1)-1 -> 0.1149174712 | N147: 0.1012414957 | O147: 0.09990453482 | P147: 0.1336960855
A148: 116 | B148: =OFFSET(InputPriceData!B$10,CalculationsAndCharts!$A148+$A$11,0,1,1) -> 2011-12-22 | C148: =OFFSET(InputPriceData!G$10,CalculationsAndCharts!$A148+$A$11,0,1,1) -> 3492250000 | D148: =OFFSET(InputPriceData!C$10,CalculationsAndCharts!$A148+$A$11,0,1,1) -> 1243.72 | E148: =OFFSET(InputPriceData!D$10,CalculationsAndCharts!$A148+$A$11,0,1,1) -> 1255.22 | F148: =OFFSET(InputPriceData!E$10,CalculationsAndCharts!$A148+$A$11,0,1,1) -> 1243.72 | G148: =OFFSET(InputPriceData!F$10,CalculationsAndCharts!$A148+$A$11,0,1,1) -> 1254 | H148: 1259.3819 | I148: =OFFSET('InputData-XLY'!$M$10,$A148+$A$11,0,1,1)/OFFSET('InputData-XLY'!$M$10,$A148+$A$11+$A$18-1,0,1,1)-1 -> 0.07484696717 | J148: =OFFSET('InputData-XLF'!$M$10,$A148+$A$11,0,1,1)/OFFSET('InputData-XLF'!$M$10,$A148+$A$11+$A$18-1,0,1,1)-1 -> 0.04494382022 | K148: =OFFSET('InputData-XLE'!$M$10,$A148+$A$11,0,1,1)/OFFSET('InputData-XLE'!$M$10,$A148+$A$11+$A$18-1,0,1,1)-1 -> 0.03951138591 | L148: =OFFSET('InputData-XLP'!$M$10,$A148+$A$11,0,1,1)/OFFSET('InputData-XLP'!$M$10,$A148+$A$11+$A$18-1,0,1,1)-1 -> 0.07126207126 | M148: =OFFSET('InputData-XLU'!$M$10,$A148+$A$11,0,1,1)/OFFSET('InputData-XLU'!$M$10,$A148+$A$11+$A$18-1,0,1,1)-1 -> 0.08544400366 | N148: 0.0598953937 | O148: 0.06540582028 | P148: -0.5510426583
A149: 117 | B149: =OFFSET(InputPriceData!B$10,CalculationsAndCharts!$A149+$A$11,0,1,1) -> 2011-12-21 | C149: =OFFSET(InputPriceData!G$10,CalculationsAndCharts!$A149+$A$11,0,1,1) -> 2959020000 | D149: =OFFSET(InputPriceData!C$10,CalculationsAndCharts!$A149+$A$11,0,1,1) -> 1241.25 | E149: =OFFSET(InputPriceData!D$10,CalculationsAndCharts!$A149+$A$11,0,1,1) -> 1245.09 | F149: =OFFSET(InputPriceData!E$10,CalculationsAndCharts!$A149+$A$11,0,1,1) -> 1229.51 | G149: =OFFSET(InputPriceData!F$10,CalculationsAndCharts!$A149+$A$11,0,1,1) -> 1243.72 | H149: 1259.58745 | I149: =OFFSET('InputData-XLY'!$M$10,$A149+$A$11,0,1,1)/OFFSET('InputData-XLY'!$M$10,$A149+$A$11+$A$18-1,0,1,1)-1 -> 0.0573702992 | J149: =OFFSET('InputData-XLF'!$M$10,$A149+$A$11,0,1,1)/OFFSET('InputData-XLF'!$M$10,$A149+$A$11+$A$18-1,0,1,1)-1 -> 0.0007849293564 | K149: =OFFSET('InputData-XLE'!$M$10,$A149+$A$11,0,1,1)/OFFSET('InputData-XLE'!$M$10,$A149+$A$11+$A$18-1,0,1,1)-1 -> 0.01565061857 | L149: =OFFSET('InputData-XLP'!$M$10,$A149+$A$11,0,1,1)/OFFSET('InputData-XLP'!$M$10,$A149+$A$11+$A$18-1,0,1,1)-1 -> 0.06874792428 | M149: =OFFSET('InputData-XLU'!$M$10,$A149+$A$11,0,1,1)/OFFSET('InputData-XLU'!$M$10,$A149+$A$11+$A$18-1,0,1,1)-1 -> 0.0835620616 | N149: 0.02907761428 | O149: 0.05598686815 | P149: -2.690925387
A150: 118 | B150: =OFFSET(InputPriceData!B$10,CalculationsAndCharts!$A150+$A$11,0,1,1) -> 2011-12-20 | C150: =OFFSET(InputPriceData!G$10,CalculationsAndCharts!$A150+$A$11,0,1,1) -> 4055590000 | D150: =OFFSET(InputPriceData!C$10,CalculationsAndCharts!$A150+$A$11,0,1,1) -> 1205.72 | E150: =OFFSET(InputPriceData!D$10,CalculationsAndCharts!$A150+$A$11,0,1,1) -> 1242.82 | F150: =OFFSET(InputPriceData!E$10,CalculationsAndCharts!$A150+$A$11,0,1,1) -> 1205.72 | G150: =OFFSET(InputPriceData!F$10,CalculationsAndCharts!$A150+$A$11,0,1,1) -> 1241.3 | H150: 1259.96895 | I150: =OFFSET('InputData-XLY'!$M$10,$A150+$A$11,0,1,1)/OFFSET('InputData-XLY'!$M$10,$A150+$A$11+$A$18-1,0,1,1)-1 -> 0.08110391439 | J150: =OFFSET('InputData-XLF'!$M$10,$A150+$A$11,0,1,1)/OFFSET('InputData-XLF'!$M$10,$A150+$A$11+$A$18-1,0,1,1)-1 -> 0.04276315789 | K150: =OFFSET('InputData-XLE'!$M$10,$A150+$A$11,0,1,1)/OFFSET('InputData-XLE'!$M$10,$A150+$A$11+$A$18-1,0,1,1)-1 -> 0.04125463535 | L150: =OFFSET('InputData-XLP'!$M$10,$A150+$A$11,0,1,1)/OFFSET('InputData-XLP'!$M$10,$A150+$A$11+$A$18-1,0,1,1)-1 -> 0.07640297498 | M150: =OFFSET('InputData-XLU'!$M$10,$A150+$A$11,0,1,1)/OFFSET('InputData-XLU'!$M$10,$A150+$A$11+$A$18-1,0,1,1)-1 -> 0.0795559667 | N150: 0.06193353614 | O150: 0.06573785901 | P150: -0.3804322868
A151: 119 | B151: =OFFSET(InputPriceData!B$10,CalculationsAndCharts!$A151+$A$11,0,1,1) -> 2011-12-19 | C151: =OFFSET(InputPriceData!G$10,CalculationsAndCharts!$A151+$A$11,0,1,1) -> 3659820000 | D151: =OFFSET(InputPriceData!C$10,CalculationsAndCharts!$A151+$A$11,0,1,1) -> 1219.74 | E151: =OFFSET(InputPriceData!D$10,CalculationsAndCharts!$A151+$A$11,0,1,1) -> 1224.57 | F151: =OFFSET(InputPriceData!E$10,CalculationsAndCharts!$A151+$A$11,0,1,1) -> 1202.37 | G151: =OFFSET(InputPriceData!F$10,CalculationsAndCharts!$A151+$A$11,0,1,1) -> 1205.35 | H151: 1260.37155 | I151: =OFFSET('InputData-XLY'!$M$10,$A151+$A$11,0,1,1)/OFFSET('InputData-XLY'!$M$10,$A151+$A$11+$A$18-1,0,1,1)-1 -> 0.04884896126 | J151: =OFFSET('InputData-XLF'!$M$10,$A151+$A$11,0,1,1)/OFFSET('InputData-XLF'!$M$10,$A151+$A$11+$A$18-1,0,1,1)-1 -> -0.01212611156 | K151: =OFFSET('InputData-XLE'!$M$10,$A151+$A$11,0,1,1)/OFFSET('InputData-XLE'!$M$10,$A151+$A$11+$A$18-1,0,1,1)-1 -> -0.01069845637 | L151: =OFFSET('InputData-XLP'!$M$10,$A151+$A$11,0,1,1)/OFFSET('InputData-XLP'!$M$10,$A151+$A$11+$A$18-1,0,1,1)-1 -> 0.05016835017 | M151: =OFFSET('InputData-XLU'!$M$10,$A151+$A$11,0,1,1)/OFFSET('InputData-XLU'!$M$10,$A151+$A$11+$A$18-1,0,1,1)-1 -> 0.05185639767 | N151: 0.01836142485 | O151: 0.03044209716 | P151: -1.208067231
A152: 120 | B152: =OFFSET(InputPriceData!B$10,CalculationsAndCharts!$A152+$A$11,0,1,1) -> 2011-12-16 | C152: =OFFSET(InputPriceData!G$10,CalculationsAndCharts!$A152+$A$11,0,1,1) -> 5345800000 | D152: =OFFSET(InputPriceData!C$10,CalculationsAndCharts!$A152+$A$11,0,1,1) -> 1216.09 | E152: =OFFSET(InputPriceData!D$10,CalculationsAndCharts!$A152+$A$11,0,1,1) -> 1231.04 | F152: =OFFSET(InputPriceData!E$10,CalculationsAndCharts!$A152+$A$11,0,1,1) -> 1215.2 | G152: =OFFSET(InputPriceData!F$10,CalculationsAndCharts!$A152+$A$11,0,1,1) -> 1219.66 | H152: 1260.89545 | I152: =OFFSET('InputData-XLY'!$M$10,$A152+$A$11,0,1,1)/OFFSET('InputData-XLY'!$M$10,$A152+$A$11+$A$18-1,0,1,1)-1 -> 0.03055100927 | J152: =OFFSET('InputData-XLF'!$M$10,$A152+$A$11,0,1,1)/OFFSET('InputData-XLF'!$M$10,$A152+$A$11+$A$18-1,0,1,1)-1 -> -0.03175832688 | K152: =OFFSET('InputData-XLE'!$M$10,$A152+$A$11,0,1,1)/OFFSET('InputData-XLE'!$M$10,$A152+$A$11+$A$18-1,0,1,1)-1 -> -0.02109641955 | L152: =OFFSET('InputData-XLP'!$M$10,$A152+$A$11,0,1,1)/OFFSET('InputData-XLP'!$M$10,$A152+$A$11+$A$18-1,0,1,1)-1 -> 0.03949551942 | M152: =OFFSET('InputData-XLU'!$M$10,$A152+$A$11,0,1,1)/OFFSET('InputData-XLU'!$M$10,$A152+$A$11+$A$18-1,0,1,1)-1 -> 0.0479368932 | N152: -0.000603658802 | O152: 0.02211199769 | P152: -2.271565649
A153: 121 | B153: =OFFSET(InputPriceData!B$10,CalculationsAndCharts!$A153+$A$11,0,1,1) -> 2011-12-15 | C153: =OFFSET(InputPriceData!G$10,CalculationsAndCharts!$A153+$A$11,0,1,1) -> 3810340000 | D153: =OFFSET(InputPriceData!C$10,CalculationsAndCharts!$A153+$A$11,0,1,1) -> 1212.12 | E153: =OFFSET(InputPriceData!D$10,CalculationsAndCharts!$A153+$A$11,0,1,1) -> 1225.6 | F153: =OFFSET(InputPriceData!E$10,CalculationsAndCharts!$A153+$A$11,0,1,1) -> 1212.12 | G153: =OFFSET(InputPriceData!F$10,CalculationsAndCharts!$A153+$A$11,0,1,1) -> 1215.75 | H153: 1261.4029 | I153: =OFFSET('InputData-XLY'!$M$10,$A153+$A$11,0,1,1)/OFFSET('InputData-XLY'!$M$10,$A153+$A$11+$A$18-1,0,1,1)-1 -> 0.01805443277 | J153: =OFFSET('InputData-XLF'!$M$10,$A153+$A$11,0,1,1)/OFFSET('InputData-XLF'!$M$10,$A153+$A$11+$A$18-1,0,1,1)-1 -> -0.05681818182 | K153: =OFFSET('InputData-XLE'!$M$10,$A153+$A$11,0,1,1)/OFFSET('InputData-XLE'!$M$10,$A153+$A$11+$A$18-1,0,1,1)-1 -> -0.0387791212 | L153: =OFFSET('InputData-XLP'!$M$10,$A153+$A$11,0,1,1)/OFFSET('InputData-XLP'!$M$10,$A153+$A$11+$A$18-1,0,1,1)-1 -> 0.03703703704 | M153: =OFFSET('InputData-XLU'!$M$10,$A153+$A$11,0,1,1)/OFFSET('InputData-XLU'!$M$10,$A153+$A$11+$A$18-1,0,1,1)-1 -> 0.04400241109 | N153: -0.01938187453 | O153: 0.01408677564 | P153: -3.346865017
A154: 122 | B154: =OFFSET(InputPriceData!B$10,CalculationsAndCharts!$A154+$A$11,0,1,1) -> 2011-12-14 | C154: =OFFSET(InputPriceData!G$10,CalculationsAndCharts!$A154+$A$11,0,1,1) -> 4298290000 | D154: =OFFSET(InputPriceData!C$10,CalculationsAndCharts!$A154+$A$11,0,1,1) -> 1225.73 | E154: =OFFSET(InputPriceData!D$10,CalculationsAndCharts!$A154+$A$11,0,1,1) -> 1225.73 | F154: =OFFSET(InputPriceData!E$10,CalculationsAndCharts!$A154+$A$11,0,1,1) -> 1209.47 | G154: =OFFSET(InputPriceData!F$10,CalculationsAndCharts!$A154+$A$11,0,1,1) -> 1211.82 | H154: 1261.979 | I154: =OFFSET('InputData-XLY'!$M$10,$A154+$A$11,0,1,1)/OFFSET('InputData-XLY'!$M$10,$A154+$A$11+$A$18-1,0,1,1)-1 -> 0.02277657267 | J154: =OFFSET('InputData-XLF'!$M$10,$A154+$A$11,0,1,1)/OFFSET('InputData-XLF'!$M$10,$A154+$A$11+$A$18-1,0,1,1)-1 -> -0.04528012279 | K154: =OFFSET('InputData-XLE'!$M$10,$A154+$A$11,0,1,1)/OFFSET('InputData-XLE'!$M$10,$A154+$A$11+$A$18-1,0,1,1)-1 -> -0.02748068925 | L154: =OFFSET('InputData-XLP'!$M$10,$A154+$A$11,0,1,1)/OFFSET('InputData-XLP'!$M$10,$A154+$A$11+$A$18-1,0,1,1)-1 -> 0.0298606503 | M154: =OFFSET('InputData-XLU'!$M$10,$A154+$A$11,0,1,1)/OFFSET('InputData-XLU'!$M$10,$A154+$A$11+$A$18-1,0,1,1)-1 -> 0.0385315534 | N154: -0.01125177506 | O154: 0.01363717148 | P154: -2.488894655
A155: 123 | B155: =OFFSET(InputPriceData!B$10,CalculationsAndCharts!$A155+$A$11,0,1,1) -> 2011-12-13 | C155: =OFFSET(InputPriceData!G$10,CalculationsAndCharts!$A155+$A$11,0,1,1) -> 4121570000 | D155: =OFFSET(InputPriceData!C$10,CalculationsAndCharts!$A155+$A$11,0,1,1) -> 1236.83 | E155: =OFFSET(InputPriceData!D$10,CalculationsAndCharts!$A155+$A$11,0,1,1) -> 1249.86 | F155: =OFFSET(InputPriceData!E$10,CalculationsAndCharts!$A155+$A$11,0,1,1) -> 1219.43 | G155: =OFFSET(InputPriceData!F$10,CalculationsAndCharts!$A155+$A$11,0,1,1) -> 1225.73 | H155: 1262.4621 | I155: =OFFSET('InputData-XLY'!$M$10,$A155+$A$11,0,1,1)/OFFSET('InputData-XLY'!$M$10,$A155+$A$11+$A$18-1,0,1,1)-1 -> 0.03812636166 | J155: =OFFSET('InputData-XLF'!$M$10,$A155+$A$11,0,1,1)/OFFSET('InputData-XLF'!$M$10,$A155+$A$11+$A$18-1,0,1,1)-1 -> -0.04801829268 | K155: =OFFSET('InputData-XLE'!$M$10,$A155+$A$11,0,1,1)/OFFSET('InputData-XLE'!$M$10,$A155+$A$11+$A$18-1,0,1,1)-1 -> 0.006575014943 | L155: =OFFSET('InputData-XLP'!$M$10,$A155+$A$11,0,1,1)/OFFSET('InputData-XLP'!$M$10,$A155+$A$11+$A$18-1,0,1,1)-1 -> 0.0379241517 | M155: =OFFSET('InputData-XLU'!$M$10,$A155+$A$11,0,1,1)/OFFSET('InputData-XLU'!$M$10,$A155+$A$11+$A$18-1,0,1,1)-1 -> 0.04553734062 | N155: -0.004945965514 | O155: 0.03001216909 | P155: -3.49581346
A156: 124 | B156: =OFFSET(InputPriceData!B$10,CalculationsAndCharts!$A156+$A$11,0,1,1) -> 2011-12-12 | C156: =OFFSET(InputPriceData!G$10,CalculationsAndCharts!$A156+$A$11,0,1,1) -> 3600570000 | D156: =OFFSET(InputPriceData!C$10,CalculationsAndCharts!$A156+$A$11,0,1,1) -> 1255.05 | E156: =OFFSET(InputPriceData!D$10,CalculationsAndCharts!$A156+$A$11,0,1,1) -> 1255.05 | F156: =OFFSET(InputPriceData!E$10,CalculationsAndCharts!$A156+$A$11,0,1,1) -> 1227.25 | G156: =OFFSET(InputPriceData!F$10,CalculationsAndCharts!$A156+$A$11,0,1,1) -> 1236.47 | H156: 1262.8651 | I156: =OFFSET('InputData-XLY'!$M$10,$A156+$A$11,0,1,1)/OFFSET('InputData-XLY'!$M$10,$A156+$A$11+$A$18-1,0,1,1)-1 -> 0.08968609865 | J156: =OFFSET('InputData-XLF'!$M$10,$A156+$A$11,0,1,1)/OFFSET('InputData-XLF'!$M$10,$A156+$A$11+$A$18-1,0,1,1)-1 -> 0.005555555556 | K156: =OFFSET('InputData-XLE'!$M$10,$A156+$A$11,0,1,1)/OFFSET('InputData-XLE'!$M$10,$A156+$A$11+$A$18-1,0,1,1)-1 -> 0.04567122866 | L156: =OFFSET('InputData-XLP'!$M$10,$A156+$A$11,0,1,1)/OFFSET('InputData-XLP'!$M$10,$A156+$A$11+$A$18-1,0,1,1)-1 -> 0.05892312902 | M156: =OFFSET('InputData-XLU'!$M$10,$A156+$A$11,0,1,1)/OFFSET('InputData-XLU'!$M$10,$A156+$A$11+$A$18-1,0,1,1)-1 -> 0.06253869969 | N156: 0.04762082711 | O156: 0.05571101913 | P156: -0.809019202
A157: 125 | B157: =OFFSET(InputPriceData!B$10,CalculationsAndCharts!$A157+$A$11,0,1,1) -> 2011-12-09 | C157: =OFFSET(InputPriceData!G$10,CalculationsAndCharts!$A157+$A$11,0,1,1) -> 3830610000 | D157: =OFFSET(InputPriceData!C$10,CalculationsAndCharts!$A157+$A$11,0,1,1) -> 1234.48 | E157: =OFFSET(InputPriceData!D$10,CalculationsAndCharts!$A157+$A$11,0,1,1) -> 1258.25 | F157: =OFFSET(InputPriceData!E$10,CalculationsAndCharts!$A157+$A$11,0,1,1) -> 1234.48 | G157: =OFFSET(InputPriceData!F$10,CalculationsAndCharts!$A157+$A$11,0,1,1) -> 1255.19 | H157: 1263.31885 | I157: =OFFSET('InputData-XLY'!$M$10,$A157+$A$11,0,1,1)/OFFSET('InputData-XLY'!$M$10,$A157+$A$11+$A$18-1,0,1,1)-1 -> 0.1158798283 | J157: =OFFSET('InputData-XLF'!$M$10,$A157+$A$11,0,1,1)/OFFSET('InputData-XLF'!$M$10,$A157+$A$11+$A$18-1,0,1,1)-1 -> 0.03923138511 | K157: =OFFSET('InputData-XLE'!$M$10,$A157+$A$11,0,1,1)/OFFSET('InputData-XLE'!$M$10,$A157+$A$11+$A$18-1,0,1,1)-1 -> 0.09155039975 | L157: =OFFSET('InputData-XLP'!$M$10,$A157+$A$11,0,1,1)/OFFSET('InputData-XLP'!$M$10,$A157+$A$11+$A$18-1,0,1,1)-1 -> 0.07750085353 | M157: =OFFSET('InputData-XLU'!$M$10,$A157+$A$11,0,1,1)/OFFSET('InputData-XLU'!$M$10,$A157+$A$11+$A$18-1,0,1,1)-1 -> 0.06986089645 | N157: 0.07755560672 | O157: 0.07963738324 | P157: -0.2081776526
A158: 126 | B158: =OFFSET(InputPriceData!B$10,CalculationsAndCharts!$A158+$A$11,0,1,1) -> 2011-12-08 | C158: =OFFSET(InputPriceData!G$10,CalculationsAndCharts!$A158+$A$11,0,1,1) -> 4298370000 | D158: =OFFSET(InputPriceData!C$10,CalculationsAndCharts!$A158+$A$11,0,1,1) -> 1260.87 | E158: =OFFSET(InputPriceData!D$10,CalculationsAndCharts!$A158+$A$11,0,1,1) -> 1260.87 | F158: =OFFSET(InputPriceData!E$10,CalculationsAndCharts!$A158+$A$11,0,1,1) -> 1231.47 | G158: =OFFSET(InputPriceData!F$10,CalculationsAndCharts!$A158+$A$11,0,1,1) -> 1234.35 | H158: 1263.6423 | I158: =OFFSET('InputData-XLY'!$M$10,$A158+$A$11,0,1,1)/OFFSET('InputData-XLY'!$M$10,$A158+$A$11+$A$18-1,0,1,1)-1 -> 0.07599551318 | J158: =OFFSET('InputData-XLF'!$M$10,$A158+$A$11,0,1,1)/OFFSET('InputData-XLF'!$M$10,$A158+$A$11+$A$18-1,0,1,1)-1 -> 0.01356743815 | K158: =OFFSET('InputData-XLE'!$M$10,$A158+$A$11,0,1,1)/OFFSET('InputData-XLE'!$M$10,$A158+$A$11+$A$18-1,0,1,1)-1 -> 0.04481276857 | L158: =OFFSET('InputData-XLP'!$M$10,$A158+$A$11,0,1,1)/OFFSET('InputData-XLP'!$M$10,$A158+$A$11+$A$18-1,0,1,1)-1 -> 0.05010087424 | M158: =OFFSET('InputData-XLU'!$M$10,$A158+$A$11,0,1,1)/OFFSET('InputData-XLU'!$M$10,$A158+$A$11+$A$18-1,0,1,1)-1 -> 0.03922164792 | N158: 0.04478147566 | O158: 0.04471176358 | P158: 0.006971208743
A159: 127 | B159: =OFFSET(InputPriceData!B$10,CalculationsAndCharts!$A159+$A$11,0,1,1) -> 2011-12-07 | C159: =OFFSET(InputPriceData!G$10,CalculationsAndCharts!$A159+$A$11,0,1,1) -> 4160540000 | D159: =OFFSET(InputPriceData!C$10,CalculationsAndCharts!$A159+$A$11,0,1,1) -> 1258.14 | E159: =OFFSET(InputPriceData!D$10,CalculationsAndCharts!$A159+$A$11,0,1,1) -> 1267.06 | F159: =OFFSET(InputPriceData!E$10,CalculationsAndCharts!$A159+$A$11,0,1,1) -> 1244.8 | G159: =OFFSET(InputPriceData!F$10,CalculationsAndCharts!$A159+$A$11,0,1,1) -> 1261.01 | H159: 1264.00105 | I159: =OFFSET('InputData-XLY'!$M$10,$A159+$A$11,0,1,1)/OFFSET('InputData-XLY'!$M$10,$A159+$A$11+$A$18-1,0,1,1)-1 -> 0.1187214612 | J159: =OFFSET('InputData-XLF'!$M$10,$A159+$A$11,0,1,1)/OFFSET('InputData-XLF'!$M$10,$A159+$A$11+$A$18-1,0,1,1)-1 -> 0.08278688525 | K159: =OFFSET('InputData-XLE'!$M$10,$A159+$A$11,0,1,1)/OFFSET('InputData-XLE'!$M$10,$A159+$A$11+$A$18-1,0,1,1)-1 -> 0.08104353195 | L159: =OFFSET('InputData-XLP'!$M$10,$A159+$A$11,0,1,1)/OFFSET('InputData-XLP'!$M$10,$A159+$A$11+$A$18-1,0,1,1)-1 -> 0.06720702465 | M159: =OFFSET('InputData-XLU'!$M$10,$A159+$A$11,0,1,1)/OFFSET('InputData-XLU'!$M$10,$A159+$A$11+$A$18-1,0,1,1)-1 -> 0.07701863354 | N159: 0.1007541732 | O159: 0.07508973005 | P159: 2.566444317
A160: 128 | B160: =OFFSET(InputPriceData!B$10,CalculationsAndCharts!$A160+$A$11,0,1,1) -> 2011-12-06 | C160: =OFFSET(InputPriceData!G$10,CalculationsAndCharts!$A160+$A$11,0,1,1) -> 3734230000 | D160: =OFFSET(InputPriceData!C$10,CalculationsAndCharts!$A160+$A$11,0,1,1) -> 1257.19 | E160: =OFFSET(InputPriceData!D$10,CalculationsAndCharts!$A160+$A$11,0,1,1) -> 1266.03 | F160: =OFFSET(InputPriceData!E$10,CalculationsAndCharts!$A160+$A$11,0,1,1) -> 1253.03 | G160: =OFFSET(InputPriceData!F$10,CalculationsAndCharts!$A160+$A$11,0,1,1) -> 1258.47 | H160: 1264.233 | I160: =OFFSET('InputData-XLY'!$M$10,$A160+$A$11,0,1,1)/OFFSET('InputData-XLY'!$M$10,$A160+$A$11+$A$18-1,0,1,1)-1 -> 0.1547583753 | J160: =OFFSET('InputData-XLF'!$M$10,$A160+$A$11,0,1,1)/OFFSET('InputData-XLF'!$M$10,$A160+$A$11+$A$18-1,0,1,1)-1 -> 0.1040609137 | K160: =OFFSET('InputData-XLE'!$M$10,$A160+$A$11,0,1,1)/OFFSET('InputData-XLE'!$M$10,$A160+$A$11+$A$18-1,0,1,1)-1 -> 0.1408518877 | L160: =OFFSET('InputData-XLP'!$M$10,$A160+$A$11,0,1,1)/OFFSET('InputData-XLP'!$M$10,$A160+$A$11+$A$18-1,0,1,1)-1 -> 0.086521889 | M160: =OFFSET('InputData-XLU'!$M$10,$A160+$A$11,0,1,1)/OFFSET('InputData-XLU'!$M$10,$A160+$A$11+$A$18-1,0,1,1)-1 -> 0.09800822004 | N160: 0.1294096445 | O160: 0.1084606656 | P160: 2.094897893
A161: 129 | B161: =OFFSET(InputPriceData!B$10,CalculationsAndCharts!$A161+$A$11,0,1,1) -> 2011-12-05 | C161: =OFFSET(InputPriceData!G$10,CalculationsAndCharts!$A161+$A$11,0,1,1) -> 4148060000 | D161: =OFFSET(InputPriceData!C$10,CalculationsAndCharts!$A161+$A$11,0,1,1) -> 1244.33 | E161: =OFFSET(InputPriceData!D$10,CalculationsAndCharts!$A161+$A$11,0,1,1) -> 1266.73 | F161: =OFFSET(InputPriceData!E$10,CalculationsAndCharts!$A161+$A$11,0,1,1) -> 1244.33 | G161: =OFFSET(InputPriceData!F$10,CalculationsAndCharts!$A161+$A$11,0,1,1) -> 1257.08 | H161: 1264.51785 | I161: =OFFSET('InputData-XLY'!$M$10,$A161+$A$11,0,1,1)/OFFSET('InputData-XLY'!$M$10,$A161+$A$11+$A$18-1,0,1,1)-1 -> 0.1620576866 | J161: =OFFSET('InputData-XLF'!$M$10,$A161+$A$11,0,1,1)/OFFSET('InputData-XLF'!$M$10,$A161+$A$11+$A$18-1,0,1,1)-1 -> 0.08939014202 | K161: =OFFSET('InputData-XLE'!$M$10,$A161+$A$11,0,1,1)/OFFSET('InputData-XLE'!$M$10,$A161+$A$11+$A$18-1,0,1,1)-1 -> 0.1317010722 | L161: =OFFSET('InputData-XLP'!$M$10,$A161+$A$11,0,1,1)/OFFSET('InputData-XLP'!$M$10,$A161+$A$11+$A$18-1,0,1,1)-1 -> 0.08852005533 | M161: =OFFSET('InputData-XLU'!$M$10,$A161+$A$11,0,1,1)/OFFSET('InputData-XLU'!$M$10,$A161+$A$11+$A$18-1,0,1,1)-1 -> 0.09208451593 | N161: 0.1257239143 | O161: 0.1041018811 | P161: 2.162203316
A162: 130 | B162: =OFFSET(InputPriceData!B$10,CalculationsAndCharts!$A162+$A$11,0,1,1) -> 2011-12-02 | C162: =OFFSET(InputPriceData!G$10,CalculationsAndCharts!$A162+$A$11,0,1,1) -> 4144310000 | D162: =OFFSET(InputPriceData!C$10,CalculationsAndCharts!$A162+$A$11,0,1,1) -> 1246.03 | E162: =OFFSET(InputPriceData!D$10,CalculationsAndCharts!$A162+$A$11,0,1,1) -> 1260.08 | F162: =OFFSET(InputPriceData!E$10,CalculationsAndCharts!$A162+$A$11,0,1,1) -> 1243.35 | G162: =OFFSET(InputPriceData!F$10,CalculationsAndCharts!$A162+$A$11,0,1,1) -> 1244.28 | H162: =AVERAGE(OFFSET($G$32,A162,0,$A$19,1)) -> 1264.9475 | I162: =OFFSET('InputData-XLY'!$M$10,$A162+$A$11,0,1,1)/OFFSET('InputData-XLY'!$M$10,$A162+$A$11+$A$18-1,0,1,1)-1 -> 0.134778787 | J162: =OFFSET('InputData-XLF'!$M$10,$A162+$A$11,0,1,1)/OFFSET('InputData-XLF'!$M$10,$A162+$A$11+$A$18-1,0,1,1)-1 -> 0.0475020475 | K162: =OFFSET('InputData-XLE'!$M$10,$A162+$A$11,0,1,1)/OFFSET('InputData-XLE'!$M$10,$A162+$A$11+$A$18-1,0,1,1)-1 -> 0.09809778337 | L162: =OFFSET('InputData-XLP'!$M$10,$A162+$A$11,0,1,1)/OFFSET('InputData-XLP'!$M$10,$A162+$A$11+$A$18-1,0,1,1)-1 -> 0.0767377839 | M162: =OFFSET('InputData-XLU'!$M$10,$A162+$A$11,0,1,1)/OFFSET('InputData-XLU'!$M$10,$A162+$A$11+$A$18-1,0,1,1)-1 -> 0.07742946708 | N162: =(I162+J162)/2 -> 0.09114041725 | O162: =(K162+L162+M162)/3 -> 0.08408834478 | P162: =100*(N162-O162) -> 0.7052072464
A163: 131 | B163: =OFFSET(InputPriceData!B$10,CalculationsAndCharts!$A163+$A$11,0,1,1) -> 2011-12-01 | C163: =OFFSET(InputPriceData!G$10,CalculationsAndCharts!$A163+$A$11,0,1,1) -> 3818680000 | D163: =OFFSET(InputPriceData!C$10,CalculationsAndCharts!$A163+$A$11,0,1,1) -> 1246.91 | E163: =OFFSET(InputPriceData!D$10,CalculationsAndCharts!$A163+$A$11,0,1,1) -> 1251.09 | F163: =OFFSET(InputPriceData!E$10,CalculationsAndCharts!$A163+$A$11,0,1,1) -> 1239.73 | G163: =OFFSET(InputPriceData!F$10,CalculationsAndCharts!$A163+$A$11,0,1,1) -> 1244.58 | H163: 1265.42825 | I163: =OFFSET('InputData-XLY'!$M$10,$A163+$A$11,0,1,1)/OFFSET('InputData-XLY'!$M$10,$A163+$A$11+$A$18-1,0,1,1)-1 -> 0.0701754386 | J163: =OFFSET('InputData-XLF'!$M$10,$A163+$A$11,0,1,1)/OFFSET('InputData-XLF'!$M$10,$A163+$A$11+$A$18-1,0,1,1)-1 -> -0.01713395639 | K163: =OFFSET('InputData-XLE'!$M$10,$A163+$A$11,0,1,1)/OFFSET('InputData-XLE'!$M$10,$A163+$A$11+$A$18-1,0,1,1)-1 -> 0.03539691943 | L163: =OFFSET('InputData-XLP'!$M$10,$A163+$A$11,0,1,1)/OFFSET('InputData-XLP'!$M$10,$A163+$A$11+$A$18-1,0,1,1)-1 -> 0.06116931396 | M163: =OFFSET('InputData-XLU'!$M$10,$A163+$A$11,0,1,1)/OFFSET('InputData-XLU'!$M$10,$A163+$A$11+$A$18-1,0,1,1)-1 -> 0.07525549706 | N163: 0.02652074111 | O163: 0.05727391015 | P163: -3.075316904
A164: 132 | B164: =OFFSET(InputPriceData!B$10,CalculationsAndCharts!$A164+$A$11,0,1,1) -> 2011-11-30 | C164: =OFFSET(InputPriceData!G$10,CalculationsAndCharts!$A164+$A$11,0,1,1) -> 5801910000 | D164: =OFFSET(InputPriceData!C$10,CalculationsAndCharts!$A164+$A$11,0,1,1) -> 1196.72 | E164: =OFFSET(InputPriceData!D$10,CalculationsAndCharts!$A164+$A$11,0,1,1) -> 1247.11 | F164: =OFFSET(InputPriceData!E$10,CalculationsAndCharts!$A164+$A$11,0,1,1) -> 1196.72 | G164: =OFFSET(InputPriceData!F$10,CalculationsAndCharts!$A164+$A$11,0,1,1) -> 1246.96 | H164: 1265.88695 | I164: =OFFSET('InputData-XLY'!$M$10,$A164+$A$11,0,1,1)/OFFSET('InputData-XLY'!$M$10,$A164+$A$11+$A$18-1,0,1,1)-1 -> 0.06785317019 | J164: =OFFSET('InputData-XLF'!$M$10,$A164+$A$11,0,1,1)/OFFSET('InputData-XLF'!$M$10,$A164+$A$11+$A$18-1,0,1,1)-1 -> -0.005485893417 | K164: =OFFSET('InputData-XLE'!$M$10,$A164+$A$11,0,1,1)/OFFSET('InputData-XLE'!$M$10,$A164+$A$11+$A$18-1,0,1,1)-1 -> 0.04519774011 | L164: =OFFSET('InputData-XLP'!$M$10,$A164+$A$11,0,1,1)/OFFSET('InputData-XLP'!$M$10,$A164+$A$11+$A$18-1,0,1,1)-1 -> 0.07009186798 | M164: =OFFSET('InputData-XLU'!$M$10,$A164+$A$11,0,1,1)/OFFSET('InputData-XLU'!$M$10,$A164+$A$11+$A$18-1,0,1,1)-1 -> 0.0864274571 | N164: 0.03118363839 | O164: 0.06723902173 | P164: -3.605538335
A165: 133 | B165: =OFFSET(InputPriceData!B$10,CalculationsAndCharts!$A165+$A$11,0,1,1) -> 2011-11-29 | C165: =OFFSET(InputPriceData!G$10,CalculationsAndCharts!$A165+$A$11,0,1,1) -> 3992650000 | D165: =OFFSET(InputPriceData!C$10,CalculationsAndCharts!$A165+$A$11,0,1,1) -> 1192.56 | E165: =OFFSET(InputPriceData!D$10,CalculationsAndCharts!$A165+$A$11,0,1,1) -> 1203.67 | F165: =OFFSET(InputPriceData!E$10,CalculationsAndCharts!$A165+$A$11,0,1,1) -> 1191.8 | G165: =OFFSET(InputPriceData!F$10,CalculationsAndCharts!$A165+$A$11,0,1,1) -> 1195.19 | H165: 1266.2922 | I165: =OFFSET('InputData-XLY'!$M$10,$A165+$A$11,0,1,1)/OFFSET('InputData-XLY'!$M$10,$A165+$A$11+$A$18-1,0,1,1)-1 -> 0.03015214385 | J165: =OFFSET('InputData-XLF'!$M$10,$A165+$A$11,0,1,1)/OFFSET('InputData-XLF'!$M$10,$A165+$A$11+$A$18-1,0,1,1)-1 -> -0.08070714835 | K165: =OFFSET('InputData-XLE'!$M$10,$A165+$A$11,0,1,1)/OFFSET('InputData-XLE'!$M$10,$A165+$A$11+$A$18-1,0,1,1)-1 -> -0.02573475654 | L165: =OFFSET('InputData-XLP'!$M$10,$A165+$A$11,0,1,1)/OFFSET('InputData-XLP'!$M$10,$A165+$A$11+$A$18-1,0,1,1)-1 -> 0.0477326969 | M165: =OFFSET('InputData-XLU'!$M$10,$A165+$A$11,0,1,1)/OFFSET('InputData-XLU'!$M$10,$A165+$A$11+$A$18-1,0,1,1)-1 -> 0.05453412278 | N165: -0.02527750225 | O165: 0.02551068771 | P165: -5.078818996
A166: 134 | B166: =OFFSET(InputPriceData!B$10,CalculationsAndCharts!$A166+$A$11,0,1,1) -> 2011-11-28 | C166: =OFFSET(InputPriceData!G$10,CalculationsAndCharts!$A166+$A$11,0,1,1) -> 3920750000 | D166: =OFFSET(InputPriceData!C$10,CalculationsAndCharts!$A166+$A$11,0,1,1) -> 1158.67 | E166: =OFFSET(InputPriceData!D$10,CalculationsAndCharts!$A166+$A$11,0,1,1) -> 1197.35 | F166: =OFFSET(InputPriceData!E$10,CalculationsAndCharts!$A166+$A$11,0,1,1) -> 1158.67 | G166: =OFFSET(InputPriceData!F$10,CalculationsAndCharts!$A166+$A$11,0,1,1) -> 1192.55 | H166: 1266.97785 | I166: =OFFSET('InputData-XLY'!$M$10,$A166+$A$11,0,1,1)/OFFSET('InputData-XLY'!$M$10,$A166+$A$11+$A$18-1,0,1,1)-1 -> 0.04153802975 | J166: =OFFSET('InputData-XLF'!$M$10,$A166+$A$11,0,1,1)/OFFSET('InputData-XLF'!$M$10,$A166+$A$11+$A$18-1,0,1,1)-1 -> -0.04758128469 | K166: =OFFSET('InputData-XLE'!$M$10,$A166+$A$11,0,1,1)/OFFSET('InputData-XLE'!$M$10,$A166+$A$11+$A$18-1,0,1,1)-1 -> -0.007103990326 | L166: =OFFSET('InputData-XLP'!$M$10,$A166+$A$11,0,1,1)/OFFSET('InputData-XLP'!$M$10,$A166+$A$11+$A$18-1,0,1,1)-1 -> 0.05188516084 | M166: =OFFSET('InputData-XLU'!$M$10,$A166+$A$11,0,1,1)/OFFSET('InputData-XLU'!$M$10,$A166+$A$11+$A$18-1,0,1,1)-1 -> 0.07895584918 | N166: -0.003021627472 | O166: 0.04124567323 | P166: -4.42673007
A167: 135 | B167: =OFFSET(InputPriceData!B$10,CalculationsAndCharts!$A167+$A$11,0,1,1) -> 2011-11-25 | C167: =OFFSET(InputPriceData!G$10,CalculationsAndCharts!$A167+$A$11,0,1,1) -> 1664200000 | D167: =OFFSET(InputPriceData!C$10,CalculationsAndCharts!$A167+$A$11,0,1,1) -> 1161.41 | E167: =OFFSET(InputPriceData!D$10,CalculationsAndCharts!$A167+$A$11,0,1,1) -> 1172.66 | F167: =OFFSET(InputPriceData!E$10,CalculationsAndCharts!$A167+$A$11,0,1,1) -> 1158.66 | G167: =OFFSET(InputPriceData!F$10,CalculationsAndCharts!$A167+$A$11,0,1,1) -> 1158.67 | H167: 1267.66085 | I167: =OFFSET('InputData-XLY'!$M$10,$A167+$A$11,0,1,1)/OFFSET('InputData-XLY'!$M$10,$A167+$A$11+$A$18-1,0,1,1)-1 -> 0.02301136364 | J167: =OFFSET('InputData-XLF'!$M$10,$A167+$A$11,0,1,1)/OFFSET('InputData-XLF'!$M$10,$A167+$A$11+$A$18-1,0,1,1)-1 -> -0.0811023622 | K167: =OFFSET('InputData-XLE'!$M$10,$A167+$A$11,0,1,1)/OFFSET('InputData-XLE'!$M$10,$A167+$A$11+$A$18-1,0,1,1)-1 -> -0.0359317905 | L167: =OFFSET('InputData-XLP'!$M$10,$A167+$A$11,0,1,1)/OFFSET('InputData-XLP'!$M$10,$A167+$A$11+$A$18-1,0,1,1)-1 -> 0.04795239762 | M167: =OFFSET('InputData-XLU'!$M$10,$A167+$A$11,0,1,1)/OFFSET('InputData-XLU'!$M$10,$A167+$A$11+$A$18-1,0,1,1)-1 -> 0.05893657912 | N167: -0.02904549928 | O167: 0.02365239541 | P167: -5.26978947
A168: 136 | B168: =OFFSET(InputPriceData!B$10,CalculationsAndCharts!$A168+$A$11,0,1,1) -> 2011-11-23 | C168: =OFFSET(InputPriceData!G$10,CalculationsAndCharts!$A168+$A$11,0,1,1) -> 3798940000 | D168: =OFFSET(InputPriceData!C$10,CalculationsAndCharts!$A168+$A$11,0,1,1) -> 1187.48 | E168: =OFFSET(InputPriceData!D$10,CalculationsAndCharts!$A168+$A$11,0,1,1) -> 1187.48 | F168: =OFFSET(InputPriceData!E$10,CalculationsAndCharts!$A168+$A$11,0,1,1) -> 1161.79 | G168: =OFFSET(InputPriceData!F$10,CalculationsAndCharts!$A168+$A$11,0,1,1) -> 1161.79 | H168: 1268.47685 | I168: =OFFSET('InputData-XLY'!$M$10,$A168+$A$11,0,1,1)/OFFSET('InputData-XLY'!$M$10,$A168+$A$11+$A$18-1,0,1,1)-1 -> 0.07448071217 | J168: =OFFSET('InputData-XLF'!$M$10,$A168+$A$11,0,1,1)/OFFSET('InputData-XLF'!$M$10,$A168+$A$11+$A$18-1,0,1,1)-1 -> -0.03241895262 | K168: =OFFSET('InputData-XLE'!$M$10,$A168+$A$11,0,1,1)/OFFSET('InputData-XLE'!$M$10,$A168+$A$11+$A$18-1,0,1,1)-1 -> 0.02130044843 | L168: =OFFSET('InputData-XLP'!$M$10,$A168+$A$11,0,1,1)/OFFSET('InputData-XLP'!$M$10,$A168+$A$11+$A$18-1,0,1,1)-1 -> 0.07495495495 | M168: =OFFSET('InputData-XLU'!$M$10,$A168+$A$11,0,1,1)/OFFSET('InputData-XLU'!$M$10,$A168+$A$11+$A$18-1,0,1,1)-1 -> 0.09779706275 | N168: 0.02103087977 | O168: 0.06468415538 | P168: -4.36532756
A169: 137 | B169: =OFFSET(InputPriceData!B$10,CalculationsAndCharts!$A169+$A$11,0,1,1) -> 2011-11-22 | C169: =OFFSET(InputPriceData!G$10,CalculationsAndCharts!$A169+$A$11,0,1,1) -> 3911710000 | D169: =OFFSET(InputPriceData!C$10,CalculationsAndCharts!$A169+$A$11,0,1,1) -> 1192.98 | E169: =OFFSET(InputPriceData!D$10,CalculationsAndCharts!$A169+$A$11,0,1,1) -> 1196.81 | F169: =OFFSET(InputPriceData!E$10,CalculationsAndCharts!$A169+$A$11,0,1,1) -> 1181.65 | G169: =OFFSET(InputPriceData!F$10,CalculationsAndCharts!$A169+$A$11,0,1,1) -> 1188.04 | H169: 1269.2723 | I169: =OFFSET('InputData-XLY'!$M$10,$A169+$A$11,0,1,1)/OFFSET('InputData-XLY'!$M$10,$A169+$A$11+$A$18-1,0,1,1)-1 -> 0.04943181818 | J169: =OFFSET('InputData-XLF'!$M$10,$A169+$A$11,0,1,1)/OFFSET('InputData-XLF'!$M$10,$A169+$A$11+$A$18-1,0,1,1)-1 -> -0.07430340557 | K169: =OFFSET('InputData-XLE'!$M$10,$A169+$A$11,0,1,1)/OFFSET('InputData-XLE'!$M$10,$A169+$A$11+$A$18-1,0,1,1)-1 -> 0.0170094325 | L169: =OFFSET('InputData-XLP'!$M$10,$A169+$A$11,0,1,1)/OFFSET('InputData-XLP'!$M$10,$A169+$A$11+$A$18-1,0,1,1)-1 -> 0.04504504505 | M169: =OFFSET('InputData-XLU'!$M$10,$A169+$A$11,0,1,1)/OFFSET('InputData-XLU'!$M$10,$A169+$A$11+$A$18-1,0,1,1)-1 -> 0.09466098919 | N169: -0.0124357937 | O169: 0.05223848891 | P169: -6.467428261
A170: 138 | B170: =OFFSET(InputPriceData!B$10,CalculationsAndCharts!$A170+$A$11,0,1,1) -> 2011-11-21 | C170: =OFFSET(InputPriceData!G$10,CalculationsAndCharts!$A170+$A$11,0,1,1) -> 4050070000 | D170: =OFFSET(InputPriceData!C$10,CalculationsAndCharts!$A170+$A$11,0,1,1) -> 1215.62 | E170: =OFFSET(InputPriceData!D$10,CalculationsAndCharts!$A170+$A$11,0,1,1) -> 1215.62 | F170: =OFFSET(InputPriceData!E$10,CalculationsAndCharts!$A170+$A$11,0,1,1) -> 1183.16 | G170: =OFFSET(InputPriceData!F$10,CalculationsAndCharts!$A170+$A$11,0,1,1) -> 1192.98 | H170: 1269.95495 | I170: =OFFSET('InputData-XLY'!$M$10,$A170+$A$11,0,1,1)/OFFSET('InputData-XLY'!$M$10,$A170+$A$11+$A$18-1,0,1,1)-1 -> 0.09869203329 | J170: =OFFSET('InputData-XLF'!$M$10,$A170+$A$11,0,1,1)/OFFSET('InputData-XLF'!$M$10,$A170+$A$11+$A$18-1,0,1,1)-1 -> 0.005833333333 | K170: =OFFSET('InputData-XLE'!$M$10,$A170+$A$11,0,1,1)/OFFSET('InputData-XLE'!$M$10,$A170+$A$11+$A$18-1,0,1,1)-1 -> 0.07881052974 | L170: =OFFSET('InputData-XLP'!$M$10,$A170+$A$11,0,1,1)/OFFSET('InputData-XLP'!$M$10,$A170+$A$11+$A$18-1,0,1,1)-1 -> 0.06957756479 | M170: =OFFSET('InputData-XLU'!$M$10,$A170+$A$11,0,1,1)/OFFSET('InputData-XLU'!$M$10,$A170+$A$11+$A$18-1,0,1,1)-1 -> 0.1444519621 | N170: 0.05226268331 | O170: 0.09761335221 | P170: -4.53506689
A171: 139 | B171: =OFFSET(InputPriceData!B$10,CalculationsAndCharts!$A171+$A$11,0,1,1) -> 2011-11-18 | C171: =OFFSET(InputPriceData!G$10,CalculationsAndCharts!$A171+$A$11,0,1,1) -> 3827610000 | D171: =OFFSET(InputPriceData!C$10,CalculationsAndCharts!$A171+$A$11,0,1,1) -> 1216.19 | E171: =OFFSET(InputPriceData!D$10,CalculationsAndCharts!$A171+$A$11,0,1,1) -> 1223.51 | F171: =OFFSET(InputPriceData!E$10,CalculationsAndCharts!$A171+$A$11,0,1,1) -> 1211.36 | G171: =OFFSET(InputPriceData!F$10,CalculationsAndCharts!$A171+$A$11,0,1,1) -> 1215.65 | H171: 1270.5853 | I171: =OFFSET('InputData-XLY'!$M$10,$A171+$A$11,0,1,1)/OFFSET('InputData-XLY'!$M$10,$A171+$A$11+$A$18-1,0,1,1)-1 -> 0.04596100279 | J171: =OFFSET('InputData-XLF'!$M$10,$A171+$A$11,0,1,1)/OFFSET('InputData-XLF'!$M$10,$A171+$A$11+$A$18-1,0,1,1)-1 -> -0.06566037736 | K171: =OFFSET('InputData-XLE'!$M$10,$A171+$A$11,0,1,1)/OFFSET('InputData-XLE'!$M$10,$A171+$A$11+$A$18-1,0,1,1)-1 -> 0.005055010407 | L171: =OFFSET('InputData-XLP'!$M$10,$A171+$A$11,0,1,1)/OFFSET('InputData-XLP'!$M$10,$A171+$A$11+$A$18-1,0,1,1)-1 -> 0.04576502732 | M171: =OFFSET('InputData-XLU'!$M$10,$A171+$A$11,0,1,1)/OFFSET('InputData-XLU'!$M$10,$A171+$A$11+$A$18-1,0,1,1)-1 -> 0.09737347854 | N171: -0.009849687286 | O171: 0.04939783876 | P171: -5.924752604
A172: 140 | B172: =OFFSET(InputPriceData!B$10,CalculationsAndCharts!$A172+$A$11,0,1,1) -> 2011-11-17 | C172: =OFFSET(InputPriceData!G$10,CalculationsAndCharts!$A172+$A$11,0,1,1) -> 4596450000 | D172: =OFFSET(InputPriceData!C$10,CalculationsAndCharts!$A172+$A$11,0,1,1) -> 1236.56 | E172: =OFFSET(InputPriceData!D$10,CalculationsAndCharts!$A172+$A$11,0,1,1) -> 1237.73 | F172: =OFFSET(InputPriceData!E$10,CalculationsAndCharts!$A172+$A$11,0,1,1) -> 1209.43 | G172: =OFFSET(InputPriceData!F$10,CalculationsAndCharts!$A172+$A$11,0,1,1) -> 1216.13 | H172: 1271.0614 | I172: =OFFSET('InputData-XLY'!$M$10,$A172+$A$11,0,1,1)/OFFSET('InputData-XLY'!$M$10,$A172+$A$11+$A$18-1,0,1,1)-1 -> 0.04564430838 | J172: =OFFSET('InputData-XLF'!$M$10,$A172+$A$11,0,1,1)/OFFSET('InputData-XLF'!$M$10,$A172+$A$11+$A$18-1,0,1,1)-1 -> -0.08660251665 | K172: =OFFSET('InputData-XLE'!$M$10,$A172+$A$11,0,1,1)/OFFSET('InputData-XLE'!$M$10,$A172+$A$11+$A$18-1,0,1,1)-1 -> 0.001472537182 | L172: =OFFSET('InputData-XLP'!$M$10,$A172+$A$11,0,1,1)/OFFSET('InputData-XLP'!$M$10,$A172+$A$11+$A$18-1,0,1,1)-1 -> 0.05749913405 | M172: =OFFSET('InputData-XLU'!$M$10,$A172+$A$11,0,1,1)/OFFSET('InputData-XLU'!$M$10,$A172+$A$11+$A$18-1,0,1,1)-1 -> 0.0988372093 | N172: -0.02047910414 | O172: 0.05260296018 | P172: -7.308206432
A173: 141 | B173: =OFFSET(InputPriceData!B$10,CalculationsAndCharts!$A173+$A$11,0,1,1) -> 2011-11-16 | C173: =OFFSET(InputPriceData!G$10,CalculationsAndCharts!$A173+$A$11,0,1,1) -> 4085010000 | D173: =OFFSET(InputPriceData!C$10,CalculationsAndCharts!$A173+$A$11,0,1,1) -> 1257.81 | E173: =OFFSET(InputPriceData!D$10,CalculationsAndCharts!$A173+$A$11,0,1,1) -> 1259.61 | F173: =OFFSET(InputPriceData!E$10,CalculationsAndCharts!$A173+$A$11,0,1,1) -> 1235.67 | G173: =OFFSET(InputPriceData!F$10,CalculationsAndCharts!$A173+$A$11,0,1,1) -> 1236.91 | H173: 1271.51625 | I173: =OFFSET('InputData-XLY'!$M$10,$A173+$A$11,0,1,1)/OFFSET('InputData-XLY'!$M$10,$A173+$A$11+$A$18-1,0,1,1)-1 -> 0.01271186441 | J173: =OFFSET('InputData-XLF'!$M$10,$A173+$A$11,0,1,1)/OFFSET('InputData-XLF'!$M$10,$A173+$A$11+$A$18-1,0,1,1)-1 -> -0.1152494729 | K173: =OFFSET('InputData-XLE'!$M$10,$A173+$A$11,0,1,1)/OFFSET('InputData-XLE'!$M$10,$A173+$A$11+$A$18-1,0,1,1)-1 -> -0.04539843643 | L173: =OFFSET('InputData-XLP'!$M$10,$A173+$A$11,0,1,1)/OFFSET('InputData-XLP'!$M$10,$A173+$A$11+$A$18-1,0,1,1)-1 -> 0.02818791946 | M173: =OFFSET('InputData-XLU'!$M$10,$A173+$A$11,0,1,1)/OFFSET('InputData-XLU'!$M$10,$A173+$A$11+$A$18-1,0,1,1)-1 -> 0.06841611996 | N173: -0.05126880427 | O173: 0.01706853433 | P173: -6.83373386
A174: 142 | B174: =OFFSET(InputPriceData!B$10,CalculationsAndCharts!$A174+$A$11,0,1,1) -> 2011-11-15 | C174: =OFFSET(InputPriceData!G$10,CalculationsAndCharts!$A174+$A$11,0,1,1) -> 3599300000 | D174: =OFFSET(InputPriceData!C$10,CalculationsAndCharts!$A174+$A$11,0,1,1) -> 1251.7 | E174: =OFFSET(InputPriceData!D$10,CalculationsAndCharts!$A174+$A$11,0,1,1) -> 1264.25 | F174: =OFFSET(InputPriceData!E$10,CalculationsAndCharts!$A174+$A$11,0,1,1) -> 1244.34 | G174: =OFFSET(InputPriceData!F$10,CalculationsAndCharts!$A174+$A$11,0,1,1) -> 1257.81 | H174: 1271.85185 | I174: =OFFSET('InputData-XLY'!$M$10,$A174+$A$11,0,1,1)/OFFSET('InputData-XLY'!$M$10,$A174+$A$11+$A$18-1,0,1,1)-1 -> 0.03947719392 | J174: =OFFSET('InputData-XLF'!$M$10,$A174+$A$11,0,1,1)/OFFSET('InputData-XLF'!$M$10,$A174+$A$11+$A$18-1,0,1,1)-1 -> -0.08827683616 | K174: =OFFSET('InputData-XLE'!$M$10,$A174+$A$11,0,1,1)/OFFSET('InputData-XLE'!$M$10,$A174+$A$11+$A$18-1,0,1,1)-1 -> -0.03627932351 | L174: =OFFSET('InputData-XLP'!$M$10,$A174+$A$11,0,1,1)/OFFSET('InputData-XLP'!$M$10,$A174+$A$11+$A$18-1,0,1,1)-1 -> 0.04177897574 | M174: =OFFSET('InputData-XLU'!$M$10,$A174+$A$11,0,1,1)/OFFSET('InputData-XLU'!$M$10,$A174+$A$11+$A$18-1,0,1,1)-1 -> 0.08122461731 | N174: -0.02439982112 | O174: 0.02890808984 | P174: -5.330791096
A175: 143 | B175: =OFFSET(InputPriceData!B$10,CalculationsAndCharts!$A175+$A$11,0,1,1) -> 2011-11-14 | C175: =OFFSET(InputPriceData!G$10,CalculationsAndCharts!$A175+$A$11,0,1,1) -> 3219680000 | D175: =OFFSET(InputPriceData!C$10,CalculationsAndCharts!$A175+$A$11,0,1,1) -> 1263.85 | E175: =OFFSET(InputPriceData!D$10,CalculationsAndCharts!$A175+$A$11,0,1,1) -> 1263.85 | F175: =OFFSET(InputPriceData!E$10,CalculationsAndCharts!$A175+$A$11,0,1,1) -> 1246.68 | G175: =OFFSET(InputPriceData!F$10,CalculationsAndCharts!$A175+$A$11,0,1,1) -> 1251.78 | H175: 1272.10075 | I175: =OFFSET('InputData-XLY'!$M$10,$A175+$A$11,0,1,1)/OFFSET('InputData-XLY'!$M$10,$A175+$A$11+$A$18-1,0,1,1)-1 -> -0.003336755647 | J175: =OFFSET('InputData-XLF'!$M$10,$A175+$A$11,0,1,1)/OFFSET('InputData-XLF'!$M$10,$A175+$A$11+$A$18-1,0,1,1)-1 -> -0.116838488 | K175: =OFFSET('InputData-XLE'!$M$10,$A175+$A$11,0,1,1)/OFFSET('InputData-XLE'!$M$10,$A175+$A$11+$A$18-1,0,1,1)-1 -> -0.06217685271 | L175: =OFFSET('InputData-XLP'!$M$10,$A175+$A$11,0,1,1)/OFFSET('InputData-XLP'!$M$10,$A175+$A$11+$A$18-1,0,1,1)-1 -> 0.02327901563 | M175: =OFFSET('InputData-XLU'!$M$10,$A175+$A$11,0,1,1)/OFFSET('InputData-XLU'!$M$10,$A175+$A$11+$A$18-1,0,1,1)-1 -> 0.06079214001 | N175: -0.06008762181 | O175: 0.007298100975 | P175: -6.738572278
A176: 144 | B176: =OFFSET(InputPriceData!B$10,CalculationsAndCharts!$A176+$A$11,0,1,1) -> 2011-11-11 | C176: =OFFSET(InputPriceData!G$10,CalculationsAndCharts!$A176+$A$11,0,1,1) -> 3329830000 | D176: =OFFSET(InputPriceData!C$10,CalculationsAndCharts!$A176+$A$11,0,1,1) -> 1240.12 | E176: =OFFSET(InputPriceData!D$10,CalculationsAndCharts!$A176+$A$11,0,1,1) -> 1266.98 | F176: =OFFSET(InputPriceData!E$10,CalculationsAndCharts!$A176+$A$11,0,1,1) -> 1240.12 | G176: =OFFSET(InputPriceData!F$10,CalculationsAndCharts!$A176+$A$11,0,1,1) -> 1263.85 | H176: 1272.27245 | I176: =OFFSET('InputData-XLY'!$M$10,$A176+$A$11,0,1,1)/OFFSET('InputData-XLY'!$M$10,$A176+$A$11+$A$18-1,0,1,1)-1 -> -0.001276487107 | J176: =OFFSET('InputData-XLF'!$M$10,$A176+$A$11,0,1,1)/OFFSET('InputData-XLF'!$M$10,$A176+$A$11+$A$18-1,0,1,1)-1 -> -0.1020547945 | K176: =OFFSET('InputData-XLE'!$M$10,$A176+$A$11,0,1,1)/OFFSET('InputData-XLE'!$M$10,$A176+$A$11+$A$18-1,0,1,1)-1 -> -0.05109875563 | L176: =OFFSET('InputData-XLP'!$M$10,$A176+$A$11,0,1,1)/OFFSET('InputData-XLP'!$M$10,$A176+$A$11+$A$18-1,0,1,1)-1 -> 0.02816434725 | M176: =OFFSET('InputData-XLU'!$M$10,$A176+$A$11,0,1,1)/OFFSET('InputData-XLU'!$M$10,$A176+$A$11+$A$18-1,0,1,1)-1 -> 0.07699414844 | N176: -0.05166564081 | O176: 0.01801991336 | P176: -6.968555417
A177: 145 | B177: =OFFSET(InputPriceData!B$10,CalculationsAndCharts!$A177+$A$11,0,1,1) -> 2011-11-10 | C177: =OFFSET(InputPriceData!G$10,CalculationsAndCharts!$A177+$A$11,0,1,1) -> 4002760000 | D177: =OFFSET(InputPriceData!C$10,CalculationsAndCharts!$A177+$A$11,0,1,1) -> 1229.59 | E177: =OFFSET(InputPriceData!D$10,CalculationsAndCharts!$A177+$A$11,0,1,1) -> 1246.22 | F177: =OFFSET(InputPriceData!E$10,CalculationsAndCharts!$A177+$A$11,0,1,1) -> 1227.7 | G177: =OFFSET(InputPriceData!F$10,CalculationsAndCharts!$A177+$A$11,0,1,1) -> 1239.7 | H177: 1272.3349 | I177: =OFFSET('InputData-XLY'!$M$10,$A177+$A$11,0,1,1)/OFFSET('InputData-XLY'!$M$10,$A177+$A$11+$A$18-1,0,1,1)-1 -> -0.03024142313 | J177: =OFFSET('InputData-XLF'!$M$10,$A177+$A$11,0,1,1)/OFFSET('InputData-XLF'!$M$10,$A177+$A$11+$A$18-1,0,1,1)-1 -> -0.125 | K177: =OFFSET('InputData-XLE'!$M$10,$A177+$A$11,0,1,1)/OFFSET('InputData-XLE'!$M$10,$A177+$A$11+$A$18-1,0,1,1)-1 -> -0.07942332896 | L177: =OFFSET('InputData-XLP'!$M$10,$A177+$A$11,0,1,1)/OFFSET('InputData-XLP'!$M$10,$A177+$A$11+$A$18-1,0,1,1)-1 -> 0.01020744155 | M177: =OFFSET('InputData-XLU'!$M$10,$A177+$A$11,0,1,1)/OFFSET('InputData-XLU'!$M$10,$A177+$A$11+$A$18-1,0,1,1)-1 -> 0.05091463415 | N177: -0.07762071156 | O177: -0.006100417755 | P177: -7.152029381
A178: 146 | B178: =OFFSET(InputPriceData!B$10,CalculationsAndCharts!$A178+$A$11,0,1,1) -> 2011-11-09 | C178: =OFFSET(InputPriceData!G$10,CalculationsAndCharts!$A178+$A$11,0,1,1) -> 4659740000 | D178: =OFFSET(InputPriceData!C$10,CalculationsAndCharts!$A178+$A$11,0,1,1) -> 1275.18 | E178: =OFFSET(InputPriceData!D$10,CalculationsAndCharts!$A178+$A$11,0,1,1) -> 1275.18 | F178: =OFFSET(InputPriceData!E$10,CalculationsAndCharts!$A178+$A$11,0,1,1) -> 1226.64 | G178: =OFFSET(InputPriceData!F$10,CalculationsAndCharts!$A178+$A$11,0,1,1) -> 1229.1 | H178: 1272.6341 | I178: =OFFSET('InputData-XLY'!$M$10,$A178+$A$11,0,1,1)/OFFSET('InputData-XLY'!$M$10,$A178+$A$11+$A$18-1,0,1,1)-1 -> -0.04424778761 | J178: =OFFSET('InputData-XLF'!$M$10,$A178+$A$11,0,1,1)/OFFSET('InputData-XLF'!$M$10,$A178+$A$11+$A$18-1,0,1,1)-1 -> -0.1285030759 | K178: =OFFSET('InputData-XLE'!$M$10,$A178+$A$11,0,1,1)/OFFSET('InputData-XLE'!$M$10,$A178+$A$11+$A$18-1,0,1,1)-1 -> -0.09892978335 | L178: =OFFSET('InputData-XLP'!$M$10,$A178+$A$11,0,1,1)/OFFSET('InputData-XLP'!$M$10,$A178+$A$11+$A$18-1,0,1,1)-1 -> 0.0003292723082 | M178: =OFFSET('InputData-XLU'!$M$10,$A178+$A$11,0,1,1)/OFFSET('InputData-XLU'!$M$10,$A178+$A$11+$A$18-1,0,1,1)-1 -> 0.03756437443 | N178: -0.08637543174 | O178: -0.02034537887 | P178: -6.603005287
A179: 147 | B179: =OFFSET(InputPriceData!B$10,CalculationsAndCharts!$A179+$A$11,0,1,1) -> 2011-11-08 | C179: =OFFSET(InputPriceData!G$10,CalculationsAndCharts!$A179+$A$11,0,1,1) -> 3908490000 | D179: =OFFSET(InputPriceData!C$10,CalculationsAndCharts!$A179+$A$11,0,1,1) -> 1261.12 | E179: =OFFSET(InputPriceData!D$10,CalculationsAndCharts!$A179+$A$11,0,1,1) -> 1277.55 | F179: =OFFSET(InputPriceData!E$10,CalculationsAndCharts!$A179+$A$11,0,1,1) -> 1254.99 | G179: =OFFSET(InputPriceData!F$10,CalculationsAndCharts!$A179+$A$11,0,1,1) -> 1275.92 | H179: 1272.97175 | I179: =OFFSET('InputData-XLY'!$M$10,$A179+$A$11,0,1,1)/OFFSET('InputData-XLY'!$M$10,$A179+$A$11+$A$18-1,0,1,1)-1 -> -0.02608695652 | J179: =OFFSET('InputData-XLF'!$M$10,$A179+$A$11,0,1,1)/OFFSET('InputData-XLF'!$M$10,$A179+$A$11+$A$18-1,0,1,1)-1 -> -0.1007338225 | K179: =OFFSET('InputData-XLE'!$M$10,$A179+$A$11,0,1,1)/OFFSET('InputData-XLE'!$M$10,$A179+$A$11+$A$18-1,0,1,1)-1 -> -0.07504161865 | L179: =OFFSET('InputData-XLP'!$M$10,$A179+$A$11,0,1,1)/OFFSET('InputData-XLP'!$M$10,$A179+$A$11+$A$18-1,0,1,1)-1 -> 0.01302507327 | M179: =OFFSET('InputData-XLU'!$M$10,$A179+$A$11,0,1,1)/OFFSET('InputData-XLU'!$M$10,$A179+$A$11+$A$18-1,0,1,1)-1 -> 0.05738447599 | N179: -0.06341038954 | O179: -0.00154402313 | P179: -6.186636641
A180: 148 | B180: =OFFSET(InputPriceData!B$10,CalculationsAndCharts!$A180+$A$11,0,1,1) -> 2011-11-07 | C180: =OFFSET(InputPriceData!G$10,CalculationsAndCharts!$A180+$A$11,0,1,1) -> 3429740000 | D180: =OFFSET(InputPriceData!C$10,CalculationsAndCharts!$A180+$A$11,0,1,1) -> 1253.21 | E180: =OFFSET(InputPriceData!D$10,CalculationsAndCharts!$A180+$A$11,0,1,1) -> 1261.7 | F180: =OFFSET(InputPriceData!E$10,CalculationsAndCharts!$A180+$A$11,0,1,1) -> 1240.75 | G180: =OFFSET(InputPriceData!F$10,CalculationsAndCharts!$A180+$A$11,0,1,1) -> 1261.12 | H180: 1273.04805 | I180: =OFFSET('InputData-XLY'!$M$10,$A180+$A$11,0,1,1)/OFFSET('InputData-XLY'!$M$10,$A180+$A$11+$A$18-1,0,1,1)-1 -> -0.03720238095 | J180: =OFFSET('InputData-XLF'!$M$10,$A180+$A$11,0,1,1)/OFFSET('InputData-XLF'!$M$10,$A180+$A$11+$A$18-1,0,1,1)-1 -> -0.1185876083 | K180: =OFFSET('InputData-XLE'!$M$10,$A180+$A$11,0,1,1)/OFFSET('InputData-XLE'!$M$10,$A180+$A$11+$A$18-1,0,1,1)-1 -> -0.09418812134 | L180: =OFFSET('InputData-XLP'!$M$10,$A180+$A$11,0,1,1)/OFFSET('InputData-XLP'!$M$10,$A180+$A$11+$A$18-1,0,1,1)-1 -> 0.0009746588694 | M180: =OFFSET('InputData-XLU'!$M$10,$A180+$A$11,0,1,1)/OFFSET('InputData-XLU'!$M$10,$A180+$A$11+$A$18-1,0,1,1)-1 -> 0.04695966285 | N180: -0.07789499461 | O180: -0.0154179332 | P180: -6.24770614
A181: 149 | B181: =OFFSET(InputPriceData!B$10,CalculationsAndCharts!$A181+$A$11,0,1,1) -> 2011-11-04 | C181: =OFFSET(InputPriceData!G$10,CalculationsAndCharts!$A181+$A$11,0,1,1) -> 3830650000 | D181: =OFFSET(InputPriceData!C$10,CalculationsAndCharts!$A181+$A$11,0,1,1) -> 1260.82 | E181: =OFFSET(InputPriceData!D$10,CalculationsAndCharts!$A181+$A$11,0,1,1) -> 1260.82 | F181: =OFFSET(InputPriceData!E$10,CalculationsAndCharts!$A181+$A$11,0,1,1) -> 1238.92 | G181: =OFFSET(InputPriceData!F$10,CalculationsAndCharts!$A181+$A$11,0,1,1) -> 1253.23 | H181: 1273.19665 | I181: =OFFSET('InputData-XLY'!$M$10,$A181+$A$11,0,1,1)/OFFSET('InputData-XLY'!$M$10,$A181+$A$11+$A$18-1,0,1,1)-1 -> -0.0495195861 | J181: =OFFSET('InputData-XLF'!$M$10,$A181+$A$11,0,1,1)/OFFSET('InputData-XLF'!$M$10,$A181+$A$11+$A$18-1,0,1,1)-1 -> -0.1296296296 | K181: =OFFSET('InputData-XLE'!$M$10,$A181+$A$11,0,1,1)/OFFSET('InputData-XLE'!$M$10,$A181+$A$11+$A$18-1,0,1,1)-1 -> -0.1026910383 | L181: =OFFSET('InputData-XLP'!$M$10,$A181+$A$11,0,1,1)/OFFSET('InputData-XLP'!$M$10,$A181+$A$11+$A$18-1,0,1,1)-1 -> -0.01673640167 | M181: =OFFSET('InputData-XLU'!$M$10,$A181+$A$11,0,1,1)/OFFSET('InputData-XLU'!$M$10,$A181+$A$11+$A$18-1,0,1,1)-1 -> 0.04469948656 | N181: -0.08957460787 | O181: -0.02490931782 | P181: -6.466529005
A182: 150 | B182: =OFFSET(InputPriceData!B$10,CalculationsAndCharts!$A182+$A$11,0,1,1) -> 2011-11-03 | C182: =OFFSET(InputPriceData!G$10,CalculationsAndCharts!$A182+$A$11,0,1,1) -> 4849140000 | D182: =OFFSET(InputPriceData!C$10,CalculationsAndCharts!$A182+$A$11,0,1,1) -> 1238.25 | E182: =OFFSET(InputPriceData!D$10,CalculationsAndCharts!$A182+$A$11,0,1,1) -> 1263.21 | F182: =OFFSET(InputPriceData!E$10,CalculationsAndCharts!$A182+$A$11,0,1,1) -> 1234.81 | G182: =OFFSET(InputPriceData!F$10,CalculationsAndCharts!$A182+$A$11,0,1,1) -> 1261.15 | H182: 1273.34725 | I182: =OFFSET('InputData-XLY'!$M$10,$A182+$A$11,0,1,1)/OFFSET('InputData-XLY'!$M$10,$A182+$A$11+$A$18-1,0,1,1)-1 -> -0.04204798417 | J182: =OFFSET('InputData-XLF'!$M$10,$A182+$A$11,0,1,1)/OFFSET('InputData-XLF'!$M$10,$A182+$A$11+$A$18-1,0,1,1)-1 -> -0.1194719472 | K182: =OFFSET('InputData-XLE'!$M$10,$A182+$A$11,0,1,1)/OFFSET('InputData-XLE'!$M$10,$A182+$A$11+$A$18-1,0,1,1)-1 -> -0.0973462618 | L182: =OFFSET('InputData-XLP'!$M$10,$A182+$A$11,0,1,1)/OFFSET('InputData-XLP'!$M$10,$A182+$A$11+$A$18-1,0,1,1)-1 -> -0.01284934147 | M182: =OFFSET('InputData-XLU'!$M$10,$A182+$A$11,0,1,1)/OFFSET('InputData-XLU'!$M$10,$A182+$A$11+$A$18-1,0,1,1)-1 -> 0.04323026118 | N182: -0.08075996568 | O182: -0.0223217807 | P182: -5.843818499
A183: 151 | B183: =OFFSET(InputPriceData!B$10,CalculationsAndCharts!$A183+$A$11,0,1,1) -> 2011-11-02 | C183: =OFFSET(InputPriceData!G$10,CalculationsAndCharts!$A183+$A$11,0,1,1) -> 4110530000 | D183: =OFFSET(InputPriceData!C$10,CalculationsAndCharts!$A183+$A$11,0,1,1) -> 1219.62 | E183: =OFFSET(InputPriceData!D$10,CalculationsAndCharts!$A183+$A$11,0,1,1) -> 1242.48 | F183: =OFFSET(InputPriceData!E$10,CalculationsAndCharts!$A183+$A$11,0,1,1) -> 1219.62 | G183: =OFFSET(InputPriceData!F$10,CalculationsAndCharts!$A183+$A$11,0,1,1) -> 1237.9 | H183: 1273.4428 | I183: =OFFSET('InputData-XLY'!$M$10,$A183+$A$11,0,1,1)/OFFSET('InputData-XLY'!$M$10,$A183+$A$11+$A$18-1,0,1,1)-1 -> -0.04353264949 | J183: =OFFSET('InputData-XLF'!$M$10,$A183+$A$11,0,1,1)/OFFSET('InputData-XLF'!$M$10,$A183+$A$11+$A$18-1,0,1,1)-1 -> -0.1141891892 | K183: =OFFSET('InputData-XLE'!$M$10,$A183+$A$11,0,1,1)/OFFSET('InputData-XLE'!$M$10,$A183+$A$11+$A$18-1,0,1,1)-1 -> -0.103291271 | L183: =OFFSET('InputData-XLP'!$M$10,$A183+$A$11,0,1,1)/OFFSET('InputData-XLP'!$M$10,$A183+$A$11+$A$18-1,0,1,1)-1 -> -0.01684483317 | M183: =OFFSET('InputData-XLU'!$M$10,$A183+$A$11,0,1,1)/OFFSET('InputData-XLU'!$M$10,$A183+$A$11+$A$18-1,0,1,1)-1 -> 0.04631322364 | N183: -0.07886091934 | O183: -0.02460762683 | P183: -5.42532925
A184: 152 | B184: =OFFSET(InputPriceData!B$10,CalculationsAndCharts!$A184+$A$11,0,1,1) -> 2011-11-01 | C184: =OFFSET(InputPriceData!G$10,CalculationsAndCharts!$A184+$A$11,0,1,1) -> 5645540000 | D184: =OFFSET(InputPriceData!C$10,CalculationsAndCharts!$A184+$A$11,0,1,1) -> 1251 | E184: =OFFSET(InputPriceData!D$10,CalculationsAndCharts!$A184+$A$11,0,1,1) -> 1251 | F184: =OFFSET(InputPriceData!E$10,CalculationsAndCharts!$A184+$A$11,0,1,1) -> 1215.42 | G184: =OFFSET(InputPriceData!F$10,CalculationsAndCharts!$A184+$A$11,0,1,1) -> 1218.28 | H184: 1273.6629 | I184: =OFFSET('InputData-XLY'!$M$10,$A184+$A$11,0,1,1)/OFFSET('InputData-XLY'!$M$10,$A184+$A$11+$A$18-1,0,1,1)-1 -> -0.05800348519 | J184: =OFFSET('InputData-XLF'!$M$10,$A184+$A$11,0,1,1)/OFFSET('InputData-XLF'!$M$10,$A184+$A$11+$A$18-1,0,1,1)-1 -> -0.1291866029 | K184: =OFFSET('InputData-XLE'!$M$10,$A184+$A$11,0,1,1)/OFFSET('InputData-XLE'!$M$10,$A184+$A$11+$A$18-1,0,1,1)-1 -> -0.1316984559 | L184: =OFFSET('InputData-XLP'!$M$10,$A184+$A$11,0,1,1)/OFFSET('InputData-XLP'!$M$10,$A184+$A$11+$A$18-1,0,1,1)-1 -> -0.02749029754 | M184: =OFFSET('InputData-XLU'!$M$10,$A184+$A$11,0,1,1)/OFFSET('InputData-XLU'!$M$10,$A184+$A$11+$A$18-1,0,1,1)-1 -> 0.03401777505 | N184: -0.09359504403 | O184: -0.04172365948 | P184: -5.187138455
A185: 153 | B185: =OFFSET(InputPriceData!B$10,CalculationsAndCharts!$A185+$A$11,0,1,1) -> 2011-10-31 | C185: =OFFSET(InputPriceData!G$10,CalculationsAndCharts!$A185+$A$11,0,1,1) -> 4310210000 | D185: =OFFSET(InputPriceData!C$10,CalculationsAndCharts!$A185+$A$11,0,1,1) -> 1284.96 | E185: =OFFSET(InputPriceData!D$10,CalculationsAndCharts!$A185+$A$11,0,1,1) -> 1284.96 | F185: =OFFSET(InputPriceData!E$10,CalculationsAndCharts!$A185+$A$11,0,1,1) -> 1253.16 | G185: =OFFSET(InputPriceData!F$10,CalculationsAndCharts!$A185+$A$11,0,1,1) -> 1253.3 | H185: 1274.0466 | I185: =OFFSET('InputData-XLY'!$M$10,$A185+$A$11,0,1,1)/OFFSET('InputData-XLY'!$M$10,$A185+$A$11+$A$18-1,0,1,1)-1 -> -0.01852321746 | J185: =OFFSET('InputData-XLF'!$M$10,$A185+$A$11,0,1,1)/OFFSET('InputData-XLF'!$M$10,$A185+$A$11+$A$18-1,0,1,1)-1 -> -0.07474048443 | K185: =OFFSET('InputData-XLE'!$M$10,$A185+$A$11,0,1,1)/OFFSET('InputData-XLE'!$M$10,$A185+$A$11+$A$18-1,0,1,1)-1 -> -0.08640507333 | L185: =OFFSET('InputData-XLP'!$M$10,$A185+$A$11,0,1,1)/OFFSET('InputData-XLP'!$M$10,$A185+$A$11+$A$18-1,0,1,1)-1 -> 0.003278688525 | M185: =OFFSET('InputData-XLU'!$M$10,$A185+$A$11,0,1,1)/OFFSET('InputData-XLU'!$M$10,$A185+$A$11+$A$18-1,0,1,1)-1 -> 0.06555349412 | N185: -0.04663185094 | O185: -0.005857630225 | P185: -4.077422072
A186: 154 | B186: =OFFSET(InputPriceData!B$10,CalculationsAndCharts!$A186+$A$11,0,1,1) -> 2011-10-28 | C186: =OFFSET(InputPriceData!G$10,CalculationsAndCharts!$A186+$A$11,0,1,1) -> 4536690000 | D186: =OFFSET(InputPriceData!C$10,CalculationsAndCharts!$A186+$A$11,0,1,1) -> 1284.39 | E186: =OFFSET(InputPriceData!D$10,CalculationsAndCharts!$A186+$A$11,0,1,1) -> 1287.08 | F186: =OFFSET(InputPriceData!E$10,CalculationsAndCharts!$A186+$A$11,0,1,1) -> 1277.01 | G186: =OFFSET(InputPriceData!F$10,CalculationsAndCharts!$A186+$A$11,0,1,1) -> 1285.09 | H186: 1274.2463 | I186: =OFFSET('InputData-XLY'!$M$10,$A186+$A$11,0,1,1)/OFFSET('InputData-XLY'!$M$10,$A186+$A$11+$A$18-1,0,1,1)-1 -> -0.01306532663 | J186: =OFFSET('InputData-XLF'!$M$10,$A186+$A$11,0,1,1)/OFFSET('InputData-XLF'!$M$10,$A186+$A$11+$A$18-1,0,1,1)-1 -> -0.04982935154 | K186: =OFFSET('InputData-XLE'!$M$10,$A186+$A$11,0,1,1)/OFFSET('InputData-XLE'!$M$10,$A186+$A$11+$A$18-1,0,1,1)-1 -> -0.04595733474 | L186: =OFFSET('InputData-XLP'!$M$10,$A186+$A$11,0,1,1)/OFFSET('InputData-XLP'!$M$10,$A186+$A$11+$A$18-1,0,1,1)-1 -> 0.01172638436 | M186: =OFFSET('InputData-XLU'!$M$10,$A186+$A$11,0,1,1)/OFFSET('InputData-XLU'!$M$10,$A186+$A$11+$A$18-1,0,1,1)-1 -> 0.0600122474 | N186: -0.03144733908 | O186: 0.008593765675 | P186: -4.004110476
A187: 155 | B187: =OFFSET(InputPriceData!B$10,CalculationsAndCharts!$A187+$A$11,0,1,1) -> 2011-10-27 | C187: =OFFSET(InputPriceData!G$10,CalculationsAndCharts!$A187+$A$11,0,1,1) -> 6367610000 | D187: =OFFSET(InputPriceData!C$10,CalculationsAndCharts!$A187+$A$11,0,1,1) -> 1243.97 | E187: =OFFSET(InputPriceData!D$10,CalculationsAndCharts!$A187+$A$11,0,1,1) -> 1292.66 | F187: =OFFSET(InputPriceData!E$10,CalculationsAndCharts!$A187+$A$11,0,1,1) -> 1243.97 | G187: =OFFSET(InputPriceData!F$10,CalculationsAndCharts!$A187+$A$11,0,1,1) -> 1284.59 | H187: 1274.23965 | I187: =OFFSET('InputData-XLY'!$M$10,$A187+$A$11,0,1,1)/OFFSET('InputData-XLY'!$M$10,$A187+$A$11+$A$18-1,0,1,1)-1 -> -0.004776269482 | J187: =OFFSET('InputData-XLF'!$M$10,$A187+$A$11,0,1,1)/OFFSET('InputData-XLF'!$M$10,$A187+$A$11+$A$18-1,0,1,1)-1 -> -0.05245231608 | K187: =OFFSET('InputData-XLE'!$M$10,$A187+$A$11,0,1,1)/OFFSET('InputData-XLE'!$M$10,$A187+$A$11+$A$18-1,0,1,1)-1 -> -0.02690643591 | L187: =OFFSET('InputData-XLP'!$M$10,$A187+$A$11,0,1,1)/OFFSET('InputData-XLP'!$M$10,$A187+$A$11+$A$18-1,0,1,1)-1 -> 0.01731460307 | M187: =OFFSET('InputData-XLU'!$M$10,$A187+$A$11,0,1,1)/OFFSET('InputData-XLU'!$M$10,$A187+$A$11+$A$18-1,0,1,1)-1 -> 0.07053051211 | N187: -0.02861429278 | O187: 0.02031289309 | P187: -4.892718587
A188: 156 | B188: =OFFSET(InputPriceData!B$10,CalculationsAndCharts!$A188+$A$11,0,1,1) -> 2011-10-26 | C188: =OFFSET(InputPriceData!G$10,CalculationsAndCharts!$A188+$A$11,0,1,1) -> 4873530000 | D188: =OFFSET(InputPriceData!C$10,CalculationsAndCharts!$A188+$A$11,0,1,1) -> 1229.17 | E188: =OFFSET(InputPriceData!D$10,CalculationsAndCharts!$A188+$A$11,0,1,1) -> 1246.28 | F188: =OFFSET(InputPriceData!E$10,CalculationsAndCharts!$A188+$A$11,0,1,1) -> 1221.06 | G188: =OFFSET(InputPriceData!F$10,CalculationsAndCharts!$A188+$A$11,0,1,1) -> 1242 | H188: 1274.2465 | I188: =OFFSET('InputData-XLY'!$M$10,$A188+$A$11,0,1,1)/OFFSET('InputData-XLY'!$M$10,$A188+$A$11+$A$18-1,0,1,1)-1 -> -0.03842315369 | J188: =OFFSET('InputData-XLF'!$M$10,$A188+$A$11,0,1,1)/OFFSET('InputData-XLF'!$M$10,$A188+$A$11+$A$18-1,0,1,1)-1 -> -0.1129141312 | K188: =OFFSET('InputData-XLE'!$M$10,$A188+$A$11,0,1,1)/OFFSET('InputData-XLE'!$M$10,$A188+$A$11+$A$18-1,0,1,1)-1 -> -0.07441235729 | L188: =OFFSET('InputData-XLP'!$M$10,$A188+$A$11,0,1,1)/OFFSET('InputData-XLP'!$M$10,$A188+$A$11+$A$18-1,0,1,1)-1 -> 0.0003253090436 | M188: =OFFSET('InputData-XLU'!$M$10,$A188+$A$11,0,1,1)/OFFSET('InputData-XLU'!$M$10,$A188+$A$11+$A$18-1,0,1,1)-1 -> 0.04122137405 | N188: -0.07566864243 | O188: -0.01095522473 | P188: -6.47134177
A189: 157 | B189: =OFFSET(InputPriceData!B$10,CalculationsAndCharts!$A189+$A$11,0,1,1) -> 2011-10-25 | C189: =OFFSET(InputPriceData!G$10,CalculationsAndCharts!$A189+$A$11,0,1,1) -> 4473970000 | D189: =OFFSET(InputPriceData!C$10,CalculationsAndCharts!$A189+$A$11,0,1,1) -> 1254.19 | E189: =OFFSET(InputPriceData!D$10,CalculationsAndCharts!$A189+$A$11,0,1,1) -> 1254.19 | F189: =OFFSET(InputPriceData!E$10,CalculationsAndCharts!$A189+$A$11,0,1,1) -> 1226.79 | G189: =OFFSET(InputPriceData!F$10,CalculationsAndCharts!$A189+$A$11,0,1,1) -> 1229.05 | H189: 1274.4089 | I189: =OFFSET('InputData-XLY'!$M$10,$A189+$A$11,0,1,1)/OFFSET('InputData-XLY'!$M$10,$A189+$A$11+$A$18-1,0,1,1)-1 -> -0.02983951856 | J189: =OFFSET('InputData-XLF'!$M$10,$A189+$A$11,0,1,1)/OFFSET('InputData-XLF'!$M$10,$A189+$A$11+$A$18-1,0,1,1)-1 -> -0.1271989175 | K189: =OFFSET('InputData-XLE'!$M$10,$A189+$A$11,0,1,1)/OFFSET('InputData-XLE'!$M$10,$A189+$A$11+$A$18-1,0,1,1)-1 -> -0.08728010825 | L189: =OFFSET('InputData-XLP'!$M$10,$A189+$A$11,0,1,1)/OFFSET('InputData-XLP'!$M$10,$A189+$A$11+$A$18-1,0,1,1)-1 -> -0.009759271308 | M189: =OFFSET('InputData-XLU'!$M$10,$A189+$A$11,0,1,1)/OFFSET('InputData-XLU'!$M$10,$A189+$A$11+$A$18-1,0,1,1)-1 -> 0.0341047503 | N189: -0.07851921801 | O189: -0.02097820975 | P189: -5.754100825
A190: 158 | B190: =OFFSET(InputPriceData!B$10,CalculationsAndCharts!$A190+$A$11,0,1,1) -> 2011-10-24 | C190: =OFFSET(InputPriceData!G$10,CalculationsAndCharts!$A190+$A$11,0,1,1) -> 4309380000 | D190: =OFFSET(InputPriceData!C$10,CalculationsAndCharts!$A190+$A$11,0,1,1) -> 1238.72 | E190: =OFFSET(InputPriceData!D$10,CalculationsAndCharts!$A190+$A$11,0,1,1) -> 1256.55 | F190: =OFFSET(InputPriceData!E$10,CalculationsAndCharts!$A190+$A$11,0,1,1) -> 1238.72 | G190: =OFFSET(InputPriceData!F$10,CalculationsAndCharts!$A190+$A$11,0,1,1) -> 1254.19 | H190: 1274.6124 | I190: =OFFSET('InputData-XLY'!$M$10,$A190+$A$11,0,1,1)/OFFSET('InputData-XLY'!$M$10,$A190+$A$11+$A$18-1,0,1,1)-1 -> -0.01297728974 | J190: =OFFSET('InputData-XLF'!$M$10,$A190+$A$11,0,1,1)/OFFSET('InputData-XLF'!$M$10,$A190+$A$11+$A$18-1,0,1,1)-1 -> -0.1044474394 | K190: =OFFSET('InputData-XLE'!$M$10,$A190+$A$11,0,1,1)/OFFSET('InputData-XLE'!$M$10,$A190+$A$11+$A$18-1,0,1,1)-1 -> -0.07118781178 | L190: =OFFSET('InputData-XLP'!$M$10,$A190+$A$11,0,1,1)/OFFSET('InputData-XLP'!$M$10,$A190+$A$11+$A$18-1,0,1,1)-1 -> -0.0009727626459 | M190: =OFFSET('InputData-XLU'!$M$10,$A190+$A$11,0,1,1)/OFFSET('InputData-XLU'!$M$10,$A190+$A$11+$A$18-1,0,1,1)-1 -> 0.0504587156 | N190: -0.05871236455 | O190: -0.007233952944 | P190: -5.14784116
A191: 159 | B191: =OFFSET(InputPriceData!B$10,CalculationsAndCharts!$A191+$A$11,0,1,1) -> 2011-10-21 | C191: =OFFSET(InputPriceData!G$10,CalculationsAndCharts!$A191+$A$11,0,1,1) -> 4980770000 | D191: =OFFSET(InputPriceData!C$10,CalculationsAndCharts!$A191+$A$11,0,1,1) -> 1215.39 | E191: =OFFSET(InputPriceData!D$10,CalculationsAndCharts!$A191+$A$11,0,1,1) -> 1239.03 | F191: =OFFSET(InputPriceData!E$10,CalculationsAndCharts!$A191+$A$11,0,1,1) -> 1215.39 | G191: =OFFSET(InputPriceData!F$10,CalculationsAndCharts!$A191+$A$11,0,1,1) -> 1238.25 | H191: 1274.69895 | I191: =OFFSET('InputData-XLY'!$M$10,$A191+$A$11,0,1,1)/OFFSET('InputData-XLY'!$M$10,$A191+$A$11+$A$18-1,0,1,1)-1 -> -0.04625550661 | J191: =OFFSET('InputData-XLF'!$M$10,$A191+$A$11,0,1,1)/OFFSET('InputData-XLF'!$M$10,$A191+$A$11+$A$18-1,0,1,1)-1 -> -0.1475409836 | K191: =OFFSET('InputData-XLE'!$M$10,$A191+$A$11,0,1,1)/OFFSET('InputData-XLE'!$M$10,$A191+$A$11+$A$18-1,0,1,1)-1 -> -0.1049098328 | L191: =OFFSET('InputData-XLP'!$M$10,$A191+$A$11,0,1,1)/OFFSET('InputData-XLP'!$M$10,$A191+$A$11+$A$18-1,0,1,1)-1 -> -0.001609269392 | M191: =OFFSET('InputData-XLU'!$M$10,$A191+$A$11,0,1,1)/OFFSET('InputData-XLU'!$M$10,$A191+$A$11+$A$18-1,0,1,1)-1 -> 0.04357034796 | N191: -0.09689824511 | O191: -0.02098291809 | P191: -7.591532702
A192: 160 | B192: =OFFSET(InputPriceData!B$10,CalculationsAndCharts!$A192+$A$11,0,1,1) -> 2011-10-20 | C192: =OFFSET(InputPriceData!G$10,CalculationsAndCharts!$A192+$A$11,0,1,1) -> 4870290000 | D192: =OFFSET(InputPriceData!C$10,CalculationsAndCharts!$A192+$A$11,0,1,1) -> 1209.92 | E192: =OFFSET(InputPriceData!D$10,CalculationsAndCharts!$A192+$A$11,0,1,1) -> 1219.53 | F192: =OFFSET(InputPriceData!E$10,CalculationsAndCharts!$A192+$A$11,0,1,1) -> 1197.34 | G192: =OFFSET(InputPriceData!F$10,CalculationsAndCharts!$A192+$A$11,0,1,1) -> 1215.39 | H192: 1274.87695 | I192: =OFFSET('InputData-XLY'!$M$10,$A192+$A$11,0,1,1)/OFFSET('InputData-XLY'!$M$10,$A192+$A$11+$A$18-1,0,1,1)-1 -> -0.0775966918 | J192: =OFFSET('InputData-XLF'!$M$10,$A192+$A$11,0,1,1)/OFFSET('InputData-XLF'!$M$10,$A192+$A$11+$A$18-1,0,1,1)-1 -> -0.1792880259 | K192: =OFFSET('InputData-XLE'!$M$10,$A192+$A$11,0,1,1)/OFFSET('InputData-XLE'!$M$10,$A192+$A$11+$A$18-1,0,1,1)-1 -> -0.1285565127 | L192: =OFFSET('InputData-XLP'!$M$10,$A192+$A$11,0,1,1)/OFFSET('InputData-XLP'!$M$10,$A192+$A$11+$A$18-1,0,1,1)-1 -> -0.0208466966 | M192: =OFFSET('InputData-XLU'!$M$10,$A192+$A$11,0,1,1)/OFFSET('InputData-XLU'!$M$10,$A192+$A$11+$A$18-1,0,1,1)-1 -> 0.02230259192 | N192: -0.1284423588 | O192: -0.04236687245 | P192: -8.60754864
A193: 161 | B193: =OFFSET(InputPriceData!B$10,CalculationsAndCharts!$A193+$A$11,0,1,1) -> 2011-10-19 | C193: =OFFSET(InputPriceData!G$10,CalculationsAndCharts!$A193+$A$11,0,1,1) -> 4846390000 | D193: =OFFSET(InputPriceData!C$10,CalculationsAndCharts!$A193+$A$11,0,1,1) -> 1223.46 | E193: =OFFSET(InputPriceData!D$10,CalculationsAndCharts!$A193+$A$11,0,1,1) -> 1229.64 | F193: =OFFSET(InputPriceData!E$10,CalculationsAndCharts!$A193+$A$11,0,1,1) -> 1206.31 | G193: =OFFSET(InputPriceData!F$10,CalculationsAndCharts!$A193+$A$11,0,1,1) -> 1209.88 | H193: 1275.1828 | I193: =OFFSET('InputData-XLY'!$M$10,$A193+$A$11,0,1,1)/OFFSET('InputData-XLY'!$M$10,$A193+$A$11+$A$18-1,0,1,1)-1 -> -0.06954377312 | J193: =OFFSET('InputData-XLF'!$M$10,$A193+$A$11,0,1,1)/OFFSET('InputData-XLF'!$M$10,$A193+$A$11+$A$18-1,0,1,1)-1 -> -0.1782894737 | K193: =OFFSET('InputData-XLE'!$M$10,$A193+$A$11,0,1,1)/OFFSET('InputData-XLE'!$M$10,$A193+$A$11+$A$18-1,0,1,1)-1 -> -0.1222840488 | L193: =OFFSET('InputData-XLP'!$M$10,$A193+$A$11,0,1,1)/OFFSET('InputData-XLP'!$M$10,$A193+$A$11+$A$18-1,0,1,1)-1 -> -0.01937984496 | M193: =OFFSET('InputData-XLU'!$M$10,$A193+$A$11,0,1,1)/OFFSET('InputData-XLU'!$M$10,$A193+$A$11+$A$18-1,0,1,1)-1 -> 0.02088377724 | N193: -0.1239166234 | O193: -0.04026003883 | P193: -8.365658458
A194: 162 | B194: =OFFSET(InputPriceData!B$10,CalculationsAndCharts!$A194+$A$11,0,1,1) -> 2011-10-18 | C194: =OFFSET(InputPriceData!G$10,CalculationsAndCharts!$A194+$A$11,0,1,1) -> 4840170000 | D194: =OFFSET(InputPriceData!C$10,CalculationsAndCharts!$A194+$A$11,0,1,1) -> 1200.75 | E194: =OFFSET(InputPriceData!D$10,CalculationsAndCharts!$A194+$A$11,0,1,1) -> 1233.1 | F194: =OFFSET(InputPriceData!E$10,CalculationsAndCharts!$A194+$A$11,0,1,1) -> 1191.48 | G194: =OFFSET(InputPriceData!F$10,CalculationsAndCharts!$A194+$A$11,0,1,1) -> 1225.38 | H194: 1275.4844 | I194: =OFFSET('InputData-XLY'!$M$10,$A194+$A$11,0,1,1)/OFFSET('InputData-XLY'!$M$10,$A194+$A$11+$A$18-1,0,1,1)-1 -> -0.05872235872 | J194: =OFFSET('InputData-XLF'!$M$10,$A194+$A$11,0,1,1)/OFFSET('InputData-XLF'!$M$10,$A194+$A$11+$A$18-1,0,1,1)-1 -> -0.1708115183 | K194: =OFFSET('InputData-XLE'!$M$10,$A194+$A$11,0,1,1)/OFFSET('InputData-XLE'!$M$10,$A194+$A$11+$A$18-1,0,1,1)-1 -> -0.1146522084 | L194: =OFFSET('InputData-XLP'!$M$10,$A194+$A$11,0,1,1)/OFFSET('InputData-XLP'!$M$10,$A194+$A$11+$A$18-1,0,1,1)-1 -> -0.01104254628 | M194: =OFFSET('InputData-XLU'!$M$10,$A194+$A$11,0,1,1)/OFFSET('InputData-XLU'!$M$10,$A194+$A$11+$A$18-1,0,1,1)-1 -> 0.02214134061 | N194: -0.1147669385 | O194: -0.03451780469 | P194: -8.024913383
A195: 163 | B195: =OFFSET(InputPriceData!B$10,CalculationsAndCharts!$A195+$A$11,0,1,1) -> 2011-10-17 | C195: =OFFSET(InputPriceData!G$10,CalculationsAndCharts!$A195+$A$11,0,1,1) -> 4300700000 | D195: =OFFSET(InputPriceData!C$10,CalculationsAndCharts!$A195+$A$11,0,1,1) -> 1224.47 | E195: =OFFSET(InputPriceData!D$10,CalculationsAndCharts!$A195+$A$11,0,1,1) -> 1224.47 | F195: =OFFSET(InputPriceData!E$10,CalculationsAndCharts!$A195+$A$11,0,1,1) -> 1198.55 | G195: =OFFSET(InputPriceData!F$10,CalculationsAndCharts!$A195+$A$11,0,1,1) -> 1200.86 | H195: 1275.71685 | I195: =OFFSET('InputData-XLY'!$M$10,$A195+$A$11,0,1,1)/OFFSET('InputData-XLY'!$M$10,$A195+$A$11+$A$18-1,0,1,1)-1 -> -0.07329713722 | J195: =OFFSET('InputData-XLF'!$M$10,$A195+$A$11,0,1,1)/OFFSET('InputData-XLF'!$M$10,$A195+$A$11+$A$18-1,0,1,1)-1 -> -0.2159533074 | K195: =OFFSET('InputData-XLE'!$M$10,$A195+$A$11,0,1,1)/OFFSET('InputData-XLE'!$M$10,$A195+$A$11+$A$18-1,0,1,1)-1 -> -0.1369261477 | L195: =OFFSET('InputData-XLP'!$M$10,$A195+$A$11,0,1,1)/OFFSET('InputData-XLP'!$M$10,$A195+$A$11+$A$18-1,0,1,1)-1 -> -0.01850649351 | M195: =OFFSET('InputData-XLU'!$M$10,$A195+$A$11,0,1,1)/OFFSET('InputData-XLU'!$M$10,$A195+$A$11+$A$18-1,0,1,1)-1 -> 0.009044317154 | N195: -0.1446252223 | O195: -0.04879610802 | P195: -9.582911429
A196: 164 | B196: =OFFSET(InputPriceData!B$10,CalculationsAndCharts!$A196+$A$11,0,1,1) -> 2011-10-14 | C196: =OFFSET(InputPriceData!G$10,CalculationsAndCharts!$A196+$A$11,0,1,1) -> 4116690000 | D196: =OFFSET(InputPriceData!C$10,CalculationsAndCharts!$A196+$A$11,0,1,1) -> 1205.65 | E196: =OFFSET(InputPriceData!D$10,CalculationsAndCharts!$A196+$A$11,0,1,1) -> 1224.61 | F196: =OFFSET(InputPriceData!E$10,CalculationsAndCharts!$A196+$A$11,0,1,1) -> 1205.65 | G196: =OFFSET(InputPriceData!F$10,CalculationsAndCharts!$A196+$A$11,0,1,1) -> 1224.58 | H196: 1276.00075 | I196: =OFFSET('InputData-XLY'!$M$10,$A196+$A$11,0,1,1)/OFFSET('InputData-XLY'!$M$10,$A196+$A$11+$A$18-1,0,1,1)-1 -> -0.03499496475 | J196: =OFFSET('InputData-XLF'!$M$10,$A196+$A$11,0,1,1)/OFFSET('InputData-XLF'!$M$10,$A196+$A$11+$A$18-1,0,1,1)-1 -> -0.1756935271 | K196: =OFFSET('InputData-XLE'!$M$10,$A196+$A$11,0,1,1)/OFFSET('InputData-XLE'!$M$10,$A196+$A$11+$A$18-1,0,1,1)-1 -> -0.1126930826 | L196: =OFFSET('InputData-XLP'!$M$10,$A196+$A$11,0,1,1)/OFFSET('InputData-XLP'!$M$10,$A196+$A$11+$A$18-1,0,1,1)-1 -> -0.004579653255 | M196: =OFFSET('InputData-XLU'!$M$10,$A196+$A$11,0,1,1)/OFFSET('InputData-XLU'!$M$10,$A196+$A$11+$A$18-1,0,1,1)-1 -> 0.02532804394 | N196: -0.1053442459 | O196: -0.03064823064 | P196: -7.469601528
A197: 165 | B197: =OFFSET(InputPriceData!B$10,CalculationsAndCharts!$A197+$A$11,0,1,1) -> 2011-10-13 | C197: =OFFSET(InputPriceData!G$10,CalculationsAndCharts!$A197+$A$11,0,1,1) -> 4436270000 | D197: =OFFSET(InputPriceData!C$10,CalculationsAndCharts!$A197+$A$11,0,1,1) -> 1206.96 | E197: =OFFSET(InputPriceData!D$10,CalculationsAndCharts!$A197+$A$11,0,1,1) -> 1207.46 | F197: =OFFSET(InputPriceData!E$10,CalculationsAndCharts!$A197+$A$11,0,1,1) -> 1190.58 | G197: =OFFSET(InputPriceData!F$10,CalculationsAndCharts!$A197+$A$11,0,1,1) -> 1203.66 | H197: 1276.16725 | I197: =OFFSET('InputData-XLY'!$M$10,$A197+$A$11,0,1,1)/OFFSET('InputData-XLY'!$M$10,$A197+$A$11+$A$18-1,0,1,1)-1 -> -0.04289340102 | J197: =OFFSET('InputData-XLF'!$M$10,$A197+$A$11,0,1,1)/OFFSET('InputData-XLF'!$M$10,$A197+$A$11+$A$18-1,0,1,1)-1 -> -0.1829025845 | K197: =OFFSET('InputData-XLE'!$M$10,$A197+$A$11,0,1,1)/OFFSET('InputData-XLE'!$M$10,$A197+$A$11+$A$18-1,0,1,1)-1 -> -0.1341330425 | L197: =OFFSET('InputData-XLP'!$M$10,$A197+$A$11,0,1,1)/OFFSET('InputData-XLP'!$M$10,$A197+$A$11+$A$18-1,0,1,1)-1 -> -0.004286185295 | M197: =OFFSET('InputData-XLU'!$M$10,$A197+$A$11,0,1,1)/OFFSET('InputData-XLU'!$M$10,$A197+$A$11+$A$18-1,0,1,1)-1 -> 0.01773158056 | N197: -0.1128979928 | O197: -0.04022921576 | P197: -7.2668777
A198: 166 | B198: =OFFSET(InputPriceData!B$10,CalculationsAndCharts!$A198+$A$11,0,1,1) -> 2011-10-12 | C198: =OFFSET(InputPriceData!G$10,CalculationsAndCharts!$A198+$A$11,0,1,1) -> 5355360000 | D198: =OFFSET(InputPriceData!C$10,CalculationsAndCharts!$A198+$A$11,0,1,1) -> 1196.19 | E198: =OFFSET(InputPriceData!D$10,CalculationsAndCharts!$A198+$A$11,0,1,1) -> 1220.25 | F198: =OFFSET(InputPriceData!E$10,CalculationsAndCharts!$A198+$A$11,0,1,1) -> 1196.19 | G198: =OFFSET(InputPriceData!F$10,CalculationsAndCharts!$A198+$A$11,0,1,1) -> 1207.25 | H198: 1276.44785 | I198: =OFFSET('InputData-XLY'!$M$10,$A198+$A$11,0,1,1)/OFFSET('InputData-XLY'!$M$10,$A198+$A$11+$A$18-1,0,1,1)-1 -> -0.03798113689 | J198: =OFFSET('InputData-XLF'!$M$10,$A198+$A$11,0,1,1)/OFFSET('InputData-XLF'!$M$10,$A198+$A$11+$A$18-1,0,1,1)-1 -> -0.1454668471 | K198: =OFFSET('InputData-XLE'!$M$10,$A198+$A$11,0,1,1)/OFFSET('InputData-XLE'!$M$10,$A198+$A$11+$A$18-1,0,1,1)-1 -> -0.1227416908 | L198: =OFFSET('InputData-XLP'!$M$10,$A198+$A$11,0,1,1)/OFFSET('InputData-XLP'!$M$10,$A198+$A$11+$A$18-1,0,1,1)-1 -> 0.003978779841 | M198: =OFFSET('InputData-XLU'!$M$10,$A198+$A$11,0,1,1)/OFFSET('InputData-XLU'!$M$10,$A198+$A$11+$A$18-1,0,1,1)-1 -> 0.02462296091 | N198: -0.09172399199 | O198: -0.03137998335 | P198: -6.034400864
A199: 167 | B199: =OFFSET(InputPriceData!B$10,CalculationsAndCharts!$A199+$A$11,0,1,1) -> 2011-10-11 | C199: =OFFSET(InputPriceData!G$10,CalculationsAndCharts!$A199+$A$11,0,1,1) -> 4424500000 | D199: =OFFSET(InputPriceData!C$10,CalculationsAndCharts!$A199+$A$11,0,1,1) -> 1194.6 | E199: =OFFSET(InputPriceData!D$10,CalculationsAndCharts!$A199+$A$11,0,1,1) -> 1199.24 | F199: =OFFSET(InputPriceData!E$10,CalculationsAndCharts!$A199+$A$11,0,1,1) -> 1187.3 | G199: =OFFSET(InputPriceData!F$10,CalculationsAndCharts!$A199+$A$11,0,1,1) -> 1195.54 | H199: 1276.70415 | I199: =OFFSET('InputData-XLY'!$M$10,$A199+$A$11,0,1,1)/OFFSET('InputData-XLY'!$M$10,$A199+$A$11+$A$18-1,0,1,1)-1 -> -0.02805923617 | J199: =OFFSET('InputData-XLF'!$M$10,$A199+$A$11,0,1,1)/OFFSET('InputData-XLF'!$M$10,$A199+$A$11+$A$18-1,0,1,1)-1 -> -0.1631543168 | K199: =OFFSET('InputData-XLE'!$M$10,$A199+$A$11,0,1,1)/OFFSET('InputData-XLE'!$M$10,$A199+$A$11+$A$18-1,0,1,1)-1 -> -0.1019017882 | L199: =OFFSET('InputData-XLP'!$M$10,$A199+$A$11,0,1,1)/OFFSET('InputData-XLP'!$M$10,$A199+$A$11+$A$18-1,0,1,1)-1 -> -0.001661129568 | M199: =OFFSET('InputData-XLU'!$M$10,$A199+$A$11,0,1,1)/OFFSET('InputData-XLU'!$M$10,$A199+$A$11+$A$18-1,0,1,1)-1 -> 0.03184910328 | N199: -0.09560677648 | O199: -0.02390460485 | P199: -7.170217163
A200: 168 | B200: =OFFSET(InputPriceData!B$10,CalculationsAndCharts!$A200+$A$11,0,1,1) -> 2011-10-10 | C200: =OFFSET(InputPriceData!G$10,CalculationsAndCharts!$A200+$A$11,0,1,1) -> 4446800000 | D200: =OFFSET(InputPriceData!C$10,CalculationsAndCharts!$A200+$A$11,0,1,1) -> 1158.15 | E200: =OFFSET(InputPriceData!D$10,CalculationsAndCharts!$A200+$A$11,0,1,1) -> 1194.91 | F200: =OFFSET(InputPriceData!E$10,CalculationsAndCharts!$A200+$A$11,0,1,1) -> 1158.15 | G200: =OFFSET(InputPriceData!F$10,CalculationsAndCharts!$A200+$A$11,0,1,1) -> 1194.89 | H200: 1277.01415 | I200: =OFFSET('InputData-XLY'!$M$10,$A200+$A$11,0,1,1)/OFFSET('InputData-XLY'!$M$10,$A200+$A$11+$A$18-1,0,1,1)-1 -> -0.02051012359 | J200: =OFFSET('InputData-XLF'!$M$10,$A200+$A$11,0,1,1)/OFFSET('InputData-XLF'!$M$10,$A200+$A$11+$A$18-1,0,1,1)-1 -> -0.1538461538 | K200: =OFFSET('InputData-XLE'!$M$10,$A200+$A$11,0,1,1)/OFFSET('InputData-XLE'!$M$10,$A200+$A$11+$A$18-1,0,1,1)-1 -> -0.0988869863 | L200: =OFFSET('InputData-XLP'!$M$10,$A200+$A$11,0,1,1)/OFFSET('InputData-XLP'!$M$10,$A200+$A$11+$A$18-1,0,1,1)-1 -> 0.005006675567 | M200: =OFFSET('InputData-XLU'!$M$10,$A200+$A$11,0,1,1)/OFFSET('InputData-XLU'!$M$10,$A200+$A$11+$A$18-1,0,1,1)-1 -> 0.04858299595 | N200: -0.08717813872 | O200: -0.01509910493 | P200: -7.207903379
A201: 169 | B201: =OFFSET(InputPriceData!B$10,CalculationsAndCharts!$A201+$A$11,0,1,1) -> 2011-10-07 | C201: =OFFSET(InputPriceData!G$10,CalculationsAndCharts!$A201+$A$11,0,1,1) -> 5580380000 | D201: =OFFSET(InputPriceData!C$10,CalculationsAndCharts!$A201+$A$11,0,1,1) -> 1165.03 | E201: =OFFSET(InputPriceData!D$10,CalculationsAndCharts!$A201+$A$11,0,1,1) -> 1171.4 | F201: =OFFSET(InputPriceData!E$10,CalculationsAndCharts!$A201+$A$11,0,1,1) -> 1150.26 | G201: =OFFSET(InputPriceData!F$10,CalculationsAndCharts!$A201+$A$11,0,1,1) -> 1155.46 | H201: 1277.32355 | I201: =OFFSET('InputData-XLY'!$M$10,$A201+$A$11,0,1,1)/OFFSET('InputData-XLY'!$M$10,$A201+$A$11+$A$18-1,0,1,1)-1 -> -0.06196303046 | J201: =OFFSET('InputData-XLF'!$M$10,$A201+$A$11,0,1,1)/OFFSET('InputData-XLF'!$M$10,$A201+$A$11+$A$18-1,0,1,1)-1 -> -0.2 | K201: =OFFSET('InputData-XLE'!$M$10,$A201+$A$11,0,1,1)/OFFSET('InputData-XLE'!$M$10,$A201+$A$11+$A$18-1,0,1,1)-1 -> -0.1543952968 | L201: =OFFSET('InputData-XLP'!$M$10,$A201+$A$11,0,1,1)/OFFSET('InputData-XLP'!$M$10,$A201+$A$11+$A$18-1,0,1,1)-1 -> -0.01886792453 | M201: =OFFSET('InputData-XLU'!$M$10,$A201+$A$11,0,1,1)/OFFSET('InputData-XLU'!$M$10,$A201+$A$11+$A$18-1,0,1,1)-1 -> 0.03186504217 | N201: -0.1309815152 | O201: -0.04713272637 | P201: -8.384878886
A202: 170 | B202: =OFFSET(InputPriceData!B$10,CalculationsAndCharts!$A202+$A$11,0,1,1) -> 2011-10-06 | C202: =OFFSET(InputPriceData!G$10,CalculationsAndCharts!$A202+$A$11,0,1,1) -> 5098330000 | D202: =OFFSET(InputPriceData!C$10,CalculationsAndCharts!$A202+$A$11,0,1,1) -> 1144.11 | E202: =OFFSET(InputPriceData!D$10,CalculationsAndCharts!$A202+$A$11,0,1,1) -> 1165.55 | F202: =OFFSET(InputPriceData!E$10,CalculationsAndCharts!$A202+$A$11,0,1,1) -> 1134.95 | G202: =OFFSET(InputPriceData!F$10,CalculationsAndCharts!$A202+$A$11,0,1,1) -> 1164.97 | H202: 1277.84045 | I202: =OFFSET('InputData-XLY'!$M$10,$A202+$A$11,0,1,1)/OFFSET('InputData-XLY'!$M$10,$A202+$A$11+$A$18-1,0,1,1)-1 -> -0.05774758296 | J202: =OFFSET('InputData-XLF'!$M$10,$A202+$A$11,0,1,1)/OFFSET('InputData-XLF'!$M$10,$A202+$A$11+$A$18-1,0,1,1)-1 -> -0.1790540541 | K202: =OFFSET('InputData-XLE'!$M$10,$A202+$A$11,0,1,1)/OFFSET('InputData-XLE'!$M$10,$A202+$A$11+$A$18-1,0,1,1)-1 -> -0.1532604181 | L202: =OFFSET('InputData-XLP'!$M$10,$A202+$A$11,0,1,1)/OFFSET('InputData-XLP'!$M$10,$A202+$A$11+$A$18-1,0,1,1)-1 -> -0.03280839895 | M202: =OFFSET('InputData-XLU'!$M$10,$A202+$A$11,0,1,1)/OFFSET('InputData-XLU'!$M$10,$A202+$A$11+$A$18-1,0,1,1)-1 -> 0.01858160421 | N202: -0.1184008185 | O202: -0.05582907095 | P202: -6.257174756
A203: 171 | B203: =OFFSET(InputPriceData!B$10,CalculationsAndCharts!$A203+$A$11,0,1,1) -> 2011-10-05 | C203: =OFFSET(InputPriceData!G$10,CalculationsAndCharts!$A203+$A$11,0,1,1) -> 2510620000 | D203: =OFFSET(InputPriceData!C$10,CalculationsAndCharts!$A203+$A$11,0,1,1) -> 1124.03 | E203: =OFFSET(InputPriceData!D$10,CalculationsAndCharts!$A203+$A$11,0,1,1) -> 1146.07 | F203: =OFFSET(InputPriceData!E$10,CalculationsAndCharts!$A203+$A$11,0,1,1) -> 1115.68 | G203: =OFFSET(InputPriceData!F$10,CalculationsAndCharts!$A203+$A$11,0,1,1) -> 1144.03 | H203: 1278.2886 | I203: =OFFSET('InputData-XLY'!$M$10,$A203+$A$11,0,1,1)/OFFSET('InputData-XLY'!$M$10,$A203+$A$11+$A$18-1,0,1,1)-1 -> -0.08609958506 | J203: =OFFSET('InputData-XLF'!$M$10,$A203+$A$11,0,1,1)/OFFSET('InputData-XLF'!$M$10,$A203+$A$11+$A$18-1,0,1,1)-1 -> -0.2081934184 | K203: =OFFSET('InputData-XLE'!$M$10,$A203+$A$11,0,1,1)/OFFSET('InputData-XLE'!$M$10,$A203+$A$11+$A$18-1,0,1,1)-1 -> -0.1713141911 | L203: =OFFSET('InputData-XLP'!$M$10,$A203+$A$11,0,1,1)/OFFSET('InputData-XLP'!$M$10,$A203+$A$11+$A$18-1,0,1,1)-1 -> -0.05052151239 | M203: =OFFSET('InputData-XLU'!$M$10,$A203+$A$11,0,1,1)/OFFSET('InputData-XLU'!$M$10,$A203+$A$11+$A$18-1,0,1,1)-1 -> -0.005538461538 | N203: -0.1471465017 | O203: -0.07579138833 | P203: -7.135511341
A204: 172 | B204: =OFFSET(InputPriceData!B$10,CalculationsAndCharts!$A204+$A$11,0,1,1) -> 2011-10-04 | C204: =OFFSET(InputPriceData!G$10,CalculationsAndCharts!$A204+$A$11,0,1,1) -> 3714670000 | D204: =OFFSET(InputPriceData!C$10,CalculationsAndCharts!$A204+$A$11,0,1,1) -> 1097.42 | E204: =OFFSET(InputPriceData!D$10,CalculationsAndCharts!$A204+$A$11,0,1,1) -> 1125.12 | F204: =OFFSET(InputPriceData!E$10,CalculationsAndCharts!$A204+$A$11,0,1,1) -> 1074.77 | G204: =OFFSET(InputPriceData!F$10,CalculationsAndCharts!$A204+$A$11,0,1,1) -> 1123.95 | H204: 1278.80385 | I204: =OFFSET('InputData-XLY'!$M$10,$A204+$A$11,0,1,1)/OFFSET('InputData-XLY'!$M$10,$A204+$A$11+$A$18-1,0,1,1)-1 -> -0.0844138661 | J204: =OFFSET('InputData-XLF'!$M$10,$A204+$A$11,0,1,1)/OFFSET('InputData-XLF'!$M$10,$A204+$A$11+$A$18-1,0,1,1)-1 -> -0.2084468665 | K204: =OFFSET('InputData-XLE'!$M$10,$A204+$A$11,0,1,1)/OFFSET('InputData-XLE'!$M$10,$A204+$A$11+$A$18-1,0,1,1)-1 -> -0.1847366939 | L204: =OFFSET('InputData-XLP'!$M$10,$A204+$A$11,0,1,1)/OFFSET('InputData-XLP'!$M$10,$A204+$A$11+$A$18-1,0,1,1)-1 -> -0.05275154673 | M204: =OFFSET('InputData-XLU'!$M$10,$A204+$A$11,0,1,1)/OFFSET('InputData-XLU'!$M$10,$A204+$A$11+$A$18-1,0,1,1)-1 -> -0.005541871921 | N204: -0.1464303663 | O204: -0.08101003751 | P204: -6.542032878
A205: 173 | B205: =OFFSET(InputPriceData!B$10,CalculationsAndCharts!$A205+$A$11,0,1,1) -> 2011-10-03 | C205: =OFFSET(InputPriceData!G$10,CalculationsAndCharts!$A205+$A$11,0,1,1) -> 5670340000 | D205: =OFFSET(InputPriceData!C$10,CalculationsAndCharts!$A205+$A$11,0,1,1) -> 1131.21 | E205: =OFFSET(InputPriceData!D$10,CalculationsAndCharts!$A205+$A$11,0,1,1) -> 1138.99 | F205: =OFFSET(InputPriceData!E$10,CalculationsAndCharts!$A205+$A$11,0,1,1) -> 1098.92 | G205: =OFFSET(InputPriceData!F$10,CalculationsAndCharts!$A205+$A$11,0,1,1) -> 1099.23 | H205: 1279.40365 | I205: =OFFSET('InputData-XLY'!$M$10,$A205+$A$11,0,1,1)/OFFSET('InputData-XLY'!$M$10,$A205+$A$11+$A$18-1,0,1,1)-1 -> -0.1053614297 | J205: =OFFSET('InputData-XLF'!$M$10,$A205+$A$11,0,1,1)/OFFSET('InputData-XLF'!$M$10,$A205+$A$11+$A$18-1,0,1,1)-1 -> -0.2396187883 | K205: =OFFSET('InputData-XLE'!$M$10,$A205+$A$11,0,1,1)/OFFSET('InputData-XLE'!$M$10,$A205+$A$11+$A$18-1,0,1,1)-1 -> -0.208386277 | L205: =OFFSET('InputData-XLP'!$M$10,$A205+$A$11,0,1,1)/OFFSET('InputData-XLP'!$M$10,$A205+$A$11+$A$18-1,0,1,1)-1 -> -0.05446194226 | M205: =OFFSET('InputData-XLU'!$M$10,$A205+$A$11,0,1,1)/OFFSET('InputData-XLU'!$M$10,$A205+$A$11+$A$18-1,0,1,1)-1 -> 0.00526478786 | N205: -0.172490109 | O205: -0.0858611438 | P205: -8.66289652
A206: 174 | B206: =OFFSET(InputPriceData!B$10,CalculationsAndCharts!$A206+$A$11,0,1,1) -> 2011-09-30 | C206: =OFFSET(InputPriceData!G$10,CalculationsAndCharts!$A206+$A$11,0,1,1) -> 4416790000 | D206: =OFFSET(InputPriceData!C$10,CalculationsAndCharts!$A206+$A$11,0,1,1) -> 1159.93 | E206: =OFFSET(InputPriceData!D$10,CalculationsAndCharts!$A206+$A$11,0,1,1) -> 1159.93 | F206: =OFFSET(InputPriceData!E$10,CalculationsAndCharts!$A206+$A$11,0,1,1) -> 1131.34 | G206: =OFFSET(InputPriceData!F$10,CalculationsAndCharts!$A206+$A$11,0,1,1) -> 1131.42 | H206: 1280.12185 | I206: =OFFSET('InputData-XLY'!$M$10,$A206+$A$11,0,1,1)/OFFSET('InputData-XLY'!$M$10,$A206+$A$11+$A$18-1,0,1,1)-1 -> -0.07148615963 | J206: =OFFSET('InputData-XLF'!$M$10,$A206+$A$11,0,1,1)/OFFSET('InputData-XLF'!$M$10,$A206+$A$11+$A$18-1,0,1,1)-1 -> -0.1964285714 | K206: =OFFSET('InputData-XLE'!$M$10,$A206+$A$11,0,1,1)/OFFSET('InputData-XLE'!$M$10,$A206+$A$11+$A$18-1,0,1,1)-1 -> -0.1826503309 | L206: =OFFSET('InputData-XLP'!$M$10,$A206+$A$11,0,1,1)/OFFSET('InputData-XLP'!$M$10,$A206+$A$11+$A$18-1,0,1,1)-1 -> -0.03466490591 | M206: =OFFSET('InputData-XLU'!$M$10,$A206+$A$11,0,1,1)/OFFSET('InputData-XLU'!$M$10,$A206+$A$11+$A$18-1,0,1,1)-1 -> 0.0364713217 | N206: -0.1339573655 | O206: -0.06028130505 | P206: -7.367606048
A207: 175 | B207: =OFFSET(InputPriceData!B$10,CalculationsAndCharts!$A207+$A$11,0,1,1) -> 2011-09-29 | C207: =OFFSET(InputPriceData!G$10,CalculationsAndCharts!$A207+$A$11,0,1,1) -> 5285740000 | D207: =OFFSET(InputPriceData!C$10,CalculationsAndCharts!$A207+$A$11,0,1,1) -> 1151.74 | E207: =OFFSET(InputPriceData!D$10,CalculationsAndCharts!$A207+$A$11,0,1,1) -> 1175.87 | F207: =OFFSET(InputPriceData!E$10,CalculationsAndCharts!$A207+$A$11,0,1,1) -> 1139.93 | G207: =OFFSET(InputPriceData!F$10,CalculationsAndCharts!$A207+$A$11,0,1,1) -> 1160.4 | H207: 1280.6409 | I207: =OFFSET('InputData-XLY'!$M$10,$A207+$A$11,0,1,1)/OFFSET('InputData-XLY'!$M$10,$A207+$A$11+$A$18-1,0,1,1)-1 -> -0.04638069705 | J207: =OFFSET('InputData-XLF'!$M$10,$A207+$A$11,0,1,1)/OFFSET('InputData-XLF'!$M$10,$A207+$A$11+$A$18-1,0,1,1)-1 -> -0.1629834254 | K207: =OFFSET('InputData-XLE'!$M$10,$A207+$A$11,0,1,1)/OFFSET('InputData-XLE'!$M$10,$A207+$A$11+$A$18-1,0,1,1)-1 -> -0.1566995769 | L207: =OFFSET('InputData-XLP'!$M$10,$A207+$A$11,0,1,1)/OFFSET('InputData-XLP'!$M$10,$A207+$A$11+$A$18-1,0,1,1)-1 -> -0.01631158455 | M207: =OFFSET('InputData-XLU'!$M$10,$A207+$A$11,0,1,1)/OFFSET('InputData-XLU'!$M$10,$A207+$A$11+$A$18-1,0,1,1)-1 -> 0.0565681961 | N207: -0.1046820612 | O207: -0.03881432177 | P207: -6.586773946
A208: 176 | B208: =OFFSET(InputPriceData!B$10,CalculationsAndCharts!$A208+$A$11,0,1,1) -> 2011-09-28 | C208: =OFFSET(InputPriceData!G$10,CalculationsAndCharts!$A208+$A$11,0,1,1) -> 4787920000 | D208: =OFFSET(InputPriceData!C$10,CalculationsAndCharts!$A208+$A$11,0,1,1) -> 1175.39 | E208: =OFFSET(InputPriceData!D$10,CalculationsAndCharts!$A208+$A$11,0,1,1) -> 1184.71 | F208: =OFFSET(InputPriceData!E$10,CalculationsAndCharts!$A208+$A$11,0,1,1) -> 1150.4 | G208: =OFFSET(InputPriceData!F$10,CalculationsAndCharts!$A208+$A$11,0,1,1) -> 1151.06 | H208: 1281.04685 | I208: =OFFSET('InputData-XLY'!$M$10,$A208+$A$11,0,1,1)/OFFSET('InputData-XLY'!$M$10,$A208+$A$11+$A$18-1,0,1,1)-1 -> -0.05306230201 | J208: =OFFSET('InputData-XLF'!$M$10,$A208+$A$11,0,1,1)/OFFSET('InputData-XLF'!$M$10,$A208+$A$11+$A$18-1,0,1,1)-1 -> -0.2032410533 | K208: =OFFSET('InputData-XLE'!$M$10,$A208+$A$11,0,1,1)/OFFSET('InputData-XLE'!$M$10,$A208+$A$11+$A$18-1,0,1,1)-1 -> -0.1837100331 | L208: =OFFSET('InputData-XLP'!$M$10,$A208+$A$11,0,1,1)/OFFSET('InputData-XLP'!$M$10,$A208+$A$11+$A$18-1,0,1,1)-1 -> -0.0406557377 | M208: =OFFSET('InputData-XLU'!$M$10,$A208+$A$11,0,1,1)/OFFSET('InputData-XLU'!$M$10,$A208+$A$11+$A$18-1,0,1,1)-1 -> 0.0270018622 | N208: -0.1281516777 | O208: -0.06578796953 | P208: -6.236370815
A209: 177 | B209: =OFFSET(InputPriceData!B$10,CalculationsAndCharts!$A209+$A$11,0,1,1) -> 2011-09-27 | C209: =OFFSET(InputPriceData!G$10,CalculationsAndCharts!$A209+$A$11,0,1,1) -> 5548130000 | D209: =OFFSET(InputPriceData!C$10,CalculationsAndCharts!$A209+$A$11,0,1,1) -> 1163.32 | E209: =OFFSET(InputPriceData!D$10,CalculationsAndCharts!$A209+$A$11,0,1,1) -> 1195.86 | F209: =OFFSET(InputPriceData!E$10,CalculationsAndCharts!$A209+$A$11,0,1,1) -> 1163.32 | G209: =OFFSET(InputPriceData!F$10,CalculationsAndCharts!$A209+$A$11,0,1,1) -> 1175.38 | H209: 1281.49385 | I209: =OFFSET('InputData-XLY'!$M$10,$A209+$A$11,0,1,1)/OFFSET('InputData-XLY'!$M$10,$A209+$A$11+$A$18-1,0,1,1)-1 -> -0.01934443847 | J209: =OFFSET('InputData-XLF'!$M$10,$A209+$A$11,0,1,1)/OFFSET('InputData-XLF'!$M$10,$A209+$A$11+$A$18-1,0,1,1)-1 -> -0.1758316361 | K209: =OFFSET('InputData-XLE'!$M$10,$A209+$A$11,0,1,1)/OFFSET('InputData-XLE'!$M$10,$A209+$A$11+$A$18-1,0,1,1)-1 -> -0.1382125264 | L209: =OFFSET('InputData-XLP'!$M$10,$A209+$A$11,0,1,1)/OFFSET('InputData-XLP'!$M$10,$A209+$A$11+$A$18-1,0,1,1)-1 -> -0.01192842942 | M209: =OFFSET('InputData-XLU'!$M$10,$A209+$A$11,0,1,1)/OFFSET('InputData-XLU'!$M$10,$A209+$A$11+$A$18-1,0,1,1)-1 -> 0.04175755687 | N209: -0.0975880373 | O209: -0.03612779965 | P209: -6.146023765
A210: 178 | B210: =OFFSET(InputPriceData!B$10,CalculationsAndCharts!$A210+$A$11,0,1,1) -> 2011-09-26 | C210: =OFFSET(InputPriceData!G$10,CalculationsAndCharts!$A210+$A$11,0,1,1) -> 4762830000 | D210: =OFFSET(InputPriceData!C$10,CalculationsAndCharts!$A210+$A$11,0,1,1) -> 1136.91 | E210: =OFFSET(InputPriceData!D$10,CalculationsAndCharts!$A210+$A$11,0,1,1) -> 1164.19 | F210: =OFFSET(InputPriceData!E$10,CalculationsAndCharts!$A210+$A$11,0,1,1) -> 1131.07 | G210: =OFFSET(InputPriceData!F$10,CalculationsAndCharts!$A210+$A$11,0,1,1) -> 1162.95 | H210: 1281.81895 | I210: =OFFSET('InputData-XLY'!$M$10,$A210+$A$11,0,1,1)/OFFSET('InputData-XLY'!$M$10,$A210+$A$11+$A$18-1,0,1,1)-1 -> -0.02736785618 | J210: =OFFSET('InputData-XLF'!$M$10,$A210+$A$11,0,1,1)/OFFSET('InputData-XLF'!$M$10,$A210+$A$11+$A$18-1,0,1,1)-1 -> -0.1714677641 | K210: =OFFSET('InputData-XLE'!$M$10,$A210+$A$11,0,1,1)/OFFSET('InputData-XLE'!$M$10,$A210+$A$11+$A$18-1,0,1,1)-1 -> -0.164011636 | L210: =OFFSET('InputData-XLP'!$M$10,$A210+$A$11,0,1,1)/OFFSET('InputData-XLP'!$M$10,$A210+$A$11+$A$18-1,0,1,1)-1 -> -0.01331557923 | M210: =OFFSET('InputData-XLU'!$M$10,$A210+$A$11,0,1,1)/OFFSET('InputData-XLU'!$M$10,$A210+$A$11+$A$18-1,0,1,1)-1 -> 0.04256651017 | N210: -0.09941781012 | O210: -0.04492023501 | P210: -5.449757512
... 3210 more rows

Sheet InputPriceData
A1: S&P500(^GSPC)
B6: Available Input Data Rows | F6: Available Date Range:
B7: =COUNTA(B11:B49813) -> 3388 | F7: From | G7: =OFFSET(B10,B7,0,1,1) -> 1998-12-22
F8: To | G8: =OFFSET(B10,1,0,1,1) -> 2012-06-08
B9: Raw Data Values | H9: Adjusted | I9: Adjustment | J9: Adjusted Values
A10: RelRow | B10: Date | C10: Open | D10: High | E10: Low | F10: Close | G10: Volume | H10: Close | I10: Factor | J10: Open | K10: High | L10: Low | M10: Close
A11: 1 | B11: 2012-06-08 | C11: 1314.99 | D11: 1325.81 | E11: 1307.77 | F11: 1325.66 | G11: 3497190000 | H11: 1325.66 | I11: 1 | J11: 1314.99 | K11: 1325.81 | L11: 1307.77 | M11: 1325.66
A12: 2 | B12: 2012-06-07 | C12: 1316.15 | D12: 1329.05 | E12: 1312.68 | F12: 1314.99 | G12: 4258140000 | H12: 1314.99 | I12: 1 | J12: 1316.15 | K12: 1329.05 | L12: 1312.68 | M12: 1314.99
A13: 3 | B13: 2012-06-06 | C13: 1285.61 | D13: 1315.13 | E13: 1285.61 | F13: 1315.13 | G13: 4268360000 | H13: 1315.13 | I13: 1 | J13: 1285.61 | K13: 1315.13 | L13: 1285.61 | M13: 1315.13
A14: 4 | B14: 2012-06-05 | C14: 1277.82 | D14: 1287.62 | E14: 1274.16 | F14: 1285.5 | G14: 3403230000 | H14: 1285.5 | I14: 1 | J14: 1277.82 | K14: 1287.62 | L14: 1274.16 | M14: 1285.5
A15: 5 | B15: 2012-06-04 | C15: 1278.29 | D15: 1282.55 | E15: 1266.74 | F15: 1278.18 | G15: 4011960000 | H15: 1278.18 | I15: 1 | J15: 1278.29 | K15: 1282.55 | L15: 1266.74 | M15: 1278.18
A16: 6 | B16: 2012-06-01 | C16: 1309.87 | D16: 1309.87 | E16: 1277.25 | F16: 1278.04 | G16: 4669350000 | H16: 1278.04 | I16: 1 | J16: 1309.87 | K16: 1309.87 | L16: 1277.25 | M16: 1278.04
A17: 7 | B17: 2012-05-31 | C17: 1313.09 | D17: 1319.74 | E17: 1298.9 | F17: 1310.33 | G17: 4557620000 | H17: 1310.33 | I17: 1 | J17: 1313.09 | K17: 1319.74 | L17: 1298.9 | M17: 1310.33
A18: 8 | B18: 2012-05-30 | C18: 1331.25 | D18: 1331.25 | E18: 1310.76 | F18: 1313.32 | G18: 3534290000 | H18: 1313.32 | I18: 1 | J18: 1331.25 | K18: 1331.25 | L18: 1310.76 | M18: 1313.32
A19: 9 | B19: 2012-05-29 | C19: 1318.9 | D19: 1334.93 | E19: 1318.9 | F19: 1332.42 | G19: 3441640000 | H19: 1332.42 | I19: 1 | J19: 1318.9 | K19: 1334.93 | L19: 1318.9 | M19: 1332.42
A20: 10 | B20: 2012-05-25 | C20: 1320.81 | D20: 1324.2 | E20: 1314.23 | F20: 1317.82 | G20: 2872660000 | H20: 1317.82 | I20: 1 | J20: 1320.81 | K20: 1324.2 | L20: 1314.23 | M20: 1317.82
A21: 11 | B21: 2012-05-24 | C21: 1318.72 | D21: 1324.14 | E21: 1310.5 | F21: 1320.68 | G21: 3937670000 | H21: 1320.68 | I21: 1 | J21: 1318.72 | K21: 1324.14 | L21: 1310.5 | M21: 1320.68
A22: 12 | B22: 2012-05-23 | C22: 1316.02 | D22: 1320.71 | E22: 1296.53 | F22: 1318.86 | G22: 4108330000 | H22: 1318.86 | I22: 1 | J22: 1316.02 | K22: 1320.71 | L22: 1296.53 | M22: 1318.86
A23: 13 | B23: 2012-05-22 | C23: 1316.09 | D23: 1328.49 | E23: 1310.04 | F23: 1316.63 | G23: 4123680000 | H23: 1316.63 | I23: 1 | J23: 1316.09 | K23: 1328.49 | L23: 1310.04 | M23: 1316.63
A24: 14 | B24: 2012-05-21 | C24: 1295.73 | D24: 1316.39 | E24: 1295.73 | F24: 1315.99 | G24: 3786750000 | H24: 1315.99 | I24: 1 | J24: 1295.73 | K24: 1316.39 | L24: 1295.73 | M24: 1315.99
A25: 15 | B25: 2012-05-18 | C25: 1305.05 | D25: 1312.24 | E25: 1291.98 | F25: 1295.22 | G25: 4512470000 | H25: 1295.22 | I25: 1 | J25: 1305.05 | K25: 1312.24 | L25: 1291.98 | M25: 1295.22
A26: 16 | B26: 2012-05-17 | C26: 1324.82 | D26: 1326.36 | E26: 1304.86 | F26: 1304.86 | G26: 4664280000 | H26: 1304.86 | I26: 1 | J26: 1324.82 | K26: 1326.36 | L26: 1304.86 | M26: 1304.86
A27: 17 | B27: 2012-05-16 | C27: 1330.78 | D27: 1341.78 | E27: 1324.79 | F27: 1324.8 | G27: 4280420000 | H27: 1324.8 | I27: 1 | J27: 1330.78 | K27: 1341.78 | L27: 1324.79 | M27: 1324.8
A28: 18 | B28: 2012-05-15 | C28: 1338.36 | D28: 1344.94 | E28: 1328.41 | F28: 1330.66 | G28: 4114040000 | H28: 1330.66 | I28: 1 | J28: 1338.36 | K28: 1344.94 | L28: 1328.41 | M28: 1330.66
A29: 19 | B29: 2012-05-14 | C29: 1351.93 | D29: 1351.93 | E29: 1336.61 | F29: 1338.35 | G29: 3688120000 | H29: 1338.35 | I29: 1 | J29: 1351.93 | K29: 1351.93 | L29: 1336.61 | M29: 1338.35
A30: 20 | B30: 2012-05-11 | C30: 1358.11 | D30: 1365.66 | E30: 1348.89 | F30: 1353.39 | G30: 3869070000 | H30: 1353.39 | I30: 1 | J30: 1358.11 | K30: 1365.66 | L30: 1348.89 | M30: 1353.39
A31: 21 | B31: 2012-05-10 | C31: 1354.58 | D31: 1365.88 | E31: 1354.58 | F31: 1357.99 | G31: 3727990000 | H31: 1357.99 | I31: 1 | J31: 1354.58 | K31: 1365.88 | L31: 1354.58 | M31: 1357.99
A32: 22 | B32: 2012-05-09 | C32: 1363.2 | D32: 1363.73 | E32: 1343.13 | F32: 1354.58 | G32: 4288540000 | H32: 1354.58 | I32: 1 | J32: 1363.2 | K32: 1363.73 | L32: 1343.13 | M32: 1354.58
A33: 23 | B33: 2012-05-08 | C33: 1369.16 | D33: 1369.16 | E33: 1347.75 | F33: 1363.72 | G33: 4261670000 | H33: 1363.72 | I33: 1 | J33: 1369.16 | K33: 1369.16 | L33: 1347.75 | M33: 1363.72
A34: 24 | B34: 2012-05-07 | C34: 1368.79 | D34: 1373.91 | E34: 1363.94 | F34: 1369.58 | G34: 3559390000 | H34: 1369.58 | I34: 1 | J34: 1368.79 | K34: 1373.91 | L34: 1363.94 | M34: 1369.58
A35: 25 | B35: 2012-05-04 | C35: 1391.51 | D35: 1391.51 | E35: 1367.96 | F35: 1369.1 | G35: 3975140000 | H35: 1369.1 | I35: 1 | J35: 1391.51 | K35: 1391.51 | L35: 1367.96 | M35: 1369.1
A36: 26 | B36: 2012-05-03 | C36: 1402.32 | D36: 1403.07 | E36: 1388.71 | F36: 1391.57 | G36: 4004910000 | H36: 1391.57 | I36: 1 | J36: 1402.32 | K36: 1403.07 | L36: 1388.71 | M36: 1391.57
A37: 27 | B37: 2012-05-02 | C37: 1405.5 | D37: 1405.5 | E37: 1393.92 | F37: 1402.31 | G37: 3803860000 | H37: 1402.31 | I37: 1 | J37: 1405.5 | K37: 1405.5 | L37: 1393.92 | M37: 1402.31
A38: 28 | B38: 2012-05-01 | C38: 1397.86 | D38: 1415.32 | E38: 1395.73 | F38: 1405.82 | G38: 3807950000 | H38: 1405.82 | I38: 1 | J38: 1397.86 | K38: 1415.32 | L38: 1395.73 | M38: 1405.82
A39: 29 | B39: 2012-04-30 | C39: 1403.26 | D39: 1403.26 | E39: 1394 | F39: 1397.91 | G39: 3574010000 | H39: 1397.91 | I39: 1 | J39: 1403.26 | K39: 1403.26 | L39: 1394 | M39: 1397.91
A40: 30 | B40: 2012-04-27 | C40: 1400.19 | D40: 1406.64 | E40: 1397.31 | F40: 1403.36 | G40: 3645830000 | H40: 1403.36 | I40: 1 | J40: 1400.19 | K40: 1406.64 | L40: 1397.31 | M40: 1403.36
A41: 31 | B41: 2012-04-26 | C41: 1390.64 | D41: 1402.09 | E41: 1387.28 | F41: 1399.98 | G41: 4034700000 | H41: 1399.98 | I41: 1 | J41: 1390.64 | K41: 1402.09 | L41: 1387.28 | M41: 1399.98
A42: 32 | B42: 2012-04-25 | C42: 1372.11 | D42: 1391.37 | E42: 1372.11 | F42: 1390.69 | G42: 3998430000 | H42: 1390.69 | I42: 1 | J42: 1372.11 | K42: 1391.37 | L42: 1372.11 | M42: 1390.69
A43: 33 | B43: 2012-04-24 | C43: 1366.97 | D43: 1375.57 | E43: 1366.82 | F43: 1371.97 | G43: 3617100000 | H43: 1371.97 | I43: 1 | J43: 1366.97 | K43: 1375.57 | L43: 1366.82 | M43: 1371.97
A44: 34 | B44: 2012-04-23 | C44: 1378.53 | D44: 1378.53 | E44: 1358.79 | F44: 1366.94 | G44: 3654860000 | H44: 1366.94 | I44: 1 | J44: 1378.53 | K44: 1378.53 | L44: 1358.79 | M44: 1366.94
A45: 35 | B45: 2012-04-20 | C45: 1376.96 | D45: 1387.4 | E45: 1376.96 | F45: 1378.53 | G45: 3833320000 | H45: 1378.53 | I45: 1 | J45: 1376.96 | K45: 1387.4 | L45: 1376.96 | M45: 1378.53
A46: 36 | B46: 2012-04-19 | C46: 1385.08 | D46: 1390.46 | E46: 1370.3 | F46: 1376.92 | G46: 4180020000 | H46: 1376.92 | I46: 1 | J46: 1385.08 | K46: 1390.46 | L46: 1370.3 | M46: 1376.92
A47: 37 | B47: 2012-04-18 | C47: 1390.78 | D47: 1390.78 | E47: 1383.29 | F47: 1385.14 | G47: 3463140000 | H47: 1385.14 | I47: 1 | J47: 1390.78 | K47: 1390.78 | L47: 1383.29 | M47: 1385.14
A48: 38 | B48: 2012-04-17 | C48: 1369.57 | D48: 1392.76 | E48: 1369.57 | F48: 1390.78 | G48: 3456200000 | H48: 1390.78 | I48: 1 | J48: 1369.57 | K48: 1392.76 | L48: 1369.57 | M48: 1390.78
A49: 39 | B49: 2012-04-16 | C49: 1370.27 | D49: 1379.66 | E49: 1365.38 | F49: 1369.57 | G49: 3574780000 | H49: 1369.57 | I49: 1 | J49: 1370.27 | K49: 1379.66 | L49: 1365.38 | M49: 1369.57
A50: 40 | B50: 2012-04-13 | C50: 1387.61 | D50: 1387.61 | E50: 1369.85 | F50: 1370.26 | G50: 3631160000 | H50: 1370.26 | I50: 1 | J50: 1387.61 | K50: 1387.61 | L50: 1369.85 | M50: 1370.26
A51: 41 | B51: 2012-04-12 | C51: 1368.77 | D51: 1388.13 | E51: 1368.77 | F51: 1387.57 | G51: 3618280000 | H51: 1387.57 | I51: 1 | J51: 1368.77 | K51: 1388.13 | L51: 1368.77 | M51: 1387.57
A52: 42 | B52: 2012-04-11 | C52: 1358.98 | D52: 1374.71 | E52: 1358.98 | F52: 1368.71 | G52: 3743040000 | H52: 1368.71 | I52: 1 | J52: 1358.98 | K52: 1374.71 | L52: 1358.98 | M52: 1368.71
A53: 43 | B53: 2012-04-10 | C53: 1382.18 | D53: 1383.01 | E53: 1357.38 | F53: 1358.59 | G53: 4631730000 | H53: 1358.59 | I53: 1 | J53: 1382.18 | K53: 1383.01 | L53: 1357.38 | M53: 1358.59
A54: 44 | B54: 2012-04-09 | C54: 1397.45 | D54: 1397.45 | E54: 1378.24 | F54: 1382.2 | G54: 3468980000 | H54: 1382.2 | I54: 1 | J54: 1397.45 | K54: 1397.45 | L54: 1378.24 | M54: 1382.2
A55: 45 | B55: 2012-04-05 | C55: 1398.79 | D55: 1401.6 | E55: 1392.92 | F55: 1398.08 | G55: 3303740000 | H55: 1398.08 | I55: 1 | J55: 1398.79 | K55: 1401.6 | L55: 1392.92 | M55: 1398.08
A56: 46 | B56: 2012-04-04 | C56: 1413.09 | D56: 1413.09 | E56: 1394.09 | F56: 1398.96 | G56: 3938290000 | H56: 1398.96 | I56: 1 | J56: 1413.09 | K56: 1413.09 | L56: 1394.09 | M56: 1398.96
A57: 47 | B57: 2012-04-03 | C57: 1418.98 | D57: 1419 | E57: 1404.62 | F57: 1413.38 | G57: 3822090000 | H57: 1413.38 | I57: 1 | J57: 1418.98 | K57: 1419 | L57: 1404.62 | M57: 1413.38
A58: 48 | B58: 2012-04-02 | C58: 1408.47 | D58: 1422.38 | E58: 1404.46 | F58: 1419.04 | G58: 3572010000 | H58: 1419.04 | I58: 1 | J58: 1408.47 | K58: 1422.38 | L58: 1404.46 | M58: 1419.04
A59: 49 | B59: 2012-03-30 | C59: 1403.31 | D59: 1410.89 | E59: 1401.42 | F59: 1408.47 | G59: 3676890000 | H59: 1408.47 | I59: 1 | J59: 1403.31 | K59: 1410.89 | L59: 1401.42 | M59: 1408.47
A60: 50 | B60: 2012-03-29 | C60: 1405.39 | D60: 1405.39 | E60: 1391.56 | F60: 1403.28 | G60: 3832000000 | H60: 1403.28 | I60: 1 | J60: 1405.39 | K60: 1405.39 | L60: 1391.56 | M60: 1403.28
A61: 51 | B61: 2012-03-28 | C61: 1412.52 | D61: 1413.65 | E61: 1397.2 | F61: 1405.54 | G61: 3892800000 | H61: 1405.54 | I61: 1 | J61: 1412.52 | K61: 1413.65 | L61: 1397.2 | M61: 1405.54
A62: 52 | B62: 2012-03-27 | C62: 1416.55 | D62: 1419.15 | E62: 1411.95 | F62: 1412.52 | G62: 3513640000 | H62: 1412.52 | I62: 1 | J62: 1416.55 | K62: 1419.15 | L62: 1411.95 | M62: 1412.52
A63: 53 | B63: 2012-03-26 | C63: 1397.11 | D63: 1416.58 | E63: 1397.11 | F63: 1416.51 | G63: 3576950000 | H63: 1416.51 | I63: 1 | J63: 1397.11 | K63: 1416.58 | L63: 1397.11 | M63: 1416.51
A64: 54 | B64: 2012-03-23 | C64: 1392.78 | D64: 1399.18 | E64: 1386.87 | F64: 1397.11 | G64: 3472950000 | H64: 1397.11 | I64: 1 | J64: 1392.78 | K64: 1399.18 | L64: 1386.87 | M64: 1397.11
A65: 55 | B65: 2012-03-22 | C65: 1402.89 | D65: 1402.89 | E65: 1388.73 | F65: 1392.78 | G65: 3740590000 | H65: 1392.78 | I65: 1 | J65: 1402.89 | K65: 1402.89 | L65: 1388.73 | M65: 1392.78
A66: 56 | B66: 2012-03-21 | C66: 1405.52 | D66: 1407.75 | E66: 1400.64 | F66: 1402.89 | G66: 3573590000 | H66: 1402.89 | I66: 1 | J66: 1405.52 | K66: 1407.75 | L66: 1400.64 | M66: 1402.89
A67: 57 | B67: 2012-03-20 | C67: 1409.59 | D67: 1409.59 | E67: 1397.68 | F67: 1405.52 | G67: 3695280000 | H67: 1405.52 | I67: 1 | J67: 1409.59 | K67: 1409.59 | L67: 1397.68 | M67: 1405.52
A68: 58 | B68: 2012-03-19 | C68: 1404.17 | D68: 1414 | E68: 1402.43 | F68: 1409.75 | G68: 3932570000 | H68: 1409.75 | I68: 1 | J68: 1404.17 | K68: 1414 | L68: 1402.43 | M68: 1409.75
A69: 59 | B69: 2012-03-16 | C69: 1402.55 | D69: 1405.88 | E69: 1401.47 | F69: 1404.17 | G69: 5163950000 | H69: 1404.17 | I69: 1 | J69: 1402.55 | K69: 1405.88 | L69: 1401.47 | M69: 1404.17
A70: 60 | B70: 2012-03-15 | C70: 1394.17 | D70: 1402.63 | E70: 1392.78 | F70: 1402.6 | G70: 4271650000 | H70: 1402.6 | I70: 1 | J70: 1394.17 | K70: 1402.63 | L70: 1392.78 | M70: 1402.6
A71: 61 | B71: 2012-03-14 | C71: 1395.95 | D71: 1399.42 | E71: 1389.97 | F71: 1394.28 | G71: 4502280000 | H71: 1394.28 | I71: 1 | J71: 1395.95 | K71: 1399.42 | L71: 1389.97 | M71: 1394.28
A72: 62 | B72: 2012-03-13 | C72: 1371.92 | D72: 1396.13 | E72: 1371.92 | F72: 1395.95 | G72: 4386470000 | H72: 1395.95 | I72: 1 | J72: 1371.92 | K72: 1396.13 | L72: 1371.92 | M72: 1395.95
A73: 63 | B73: 2012-03-12 | C73: 1370.78 | D73: 1373.04 | E73: 1366.69 | F73: 1371.09 | G73: 3081870000 | H73: 1371.09 | I73: 1 | J73: 1370.78 | K73: 1373.04 | L73: 1366.69 | M73: 1371.09
A74: 64 | B74: 2012-03-09 | C74: 1365.97 | D74: 1374.76 | E74: 1365.97 | F74: 1370.87 | G74: 3639470000 | H74: 1370.87 | I74: 1 | J74: 1365.97 | K74: 1374.76 | L74: 1365.97 | M74: 1370.87
A75: 65 | B75: 2012-03-08 | C75: 1352.65 | D75: 1368.72 | E75: 1352.65 | F75: 1365.91 | G75: 3543060000 | H75: 1365.91 | I75: 1 | J75: 1352.65 | K75: 1368.72 | L75: 1352.65 | M75: 1365.91
A76: 66 | B76: 2012-03-07 | C76: 1343.39 | D76: 1354.85 | E76: 1343.39 | F76: 1352.63 | G76: 3580380000 | H76: 1352.63 | I76: 1 | J76: 1343.39 | K76: 1354.85 | L76: 1343.39 | M76: 1352.63
A77: 67 | B77: 2012-03-06 | C77: 1363.63 | D77: 1363.63 | E77: 1340.03 | F77: 1343.36 | G77: 4191060000 | H77: 1343.36 | I77: 1 | J77: 1363.63 | K77: 1363.63 | L77: 1340.03 | M77: 1343.36
A78: 68 | B78: 2012-03-05 | C78: 1369.59 | D78: 1369.59 | E78: 1359.13 | F78: 1364.33 | G78: 3429480000 | H78: 1364.33 | I78: 1 | J78: 1369.59 | K78: 1369.59 | L78: 1359.13 | M78: 1364.33
A79: 69 | B79: 2012-03-02 | C79: 1374.09 | D79: 1374.53 | E79: 1366.42 | F79: 1369.63 | G79: 3283490000 | H79: 1369.63 | I79: 1 | J79: 1374.09 | K79: 1374.53 | L79: 1366.42 | M79: 1369.63
A80: 70 | B80: 2012-03-01 | C80: 1365.9 | D80: 1376.17 | E80: 1365.9 | F80: 1374.09 | G80: 3919240000 | H80: 1374.09 | I80: 1 | J80: 1365.9 | K80: 1376.17 | L80: 1365.9 | M80: 1374.09
A81: 71 | B81: 2012-02-29 | C81: 1372.2 | D81: 1378.04 | E81: 1363.81 | F81: 1365.68 | G81: 4482370000 | H81: 1365.68 | I81: 1 | J81: 1372.2 | K81: 1378.04 | L81: 1363.81 | M81: 1365.68
A82: 72 | B82: 2012-02-28 | C82: 1367.56 | D82: 1373.09 | E82: 1365.97 | F82: 1372.18 | G82: 3579120000 | H82: 1372.18 | I82: 1 | J82: 1367.56 | K82: 1373.09 | L82: 1365.97 | M82: 1372.18
A83: 73 | B83: 2012-02-27 | C83: 1365.2 | D83: 1371.94 | E83: 1354.92 | F83: 1367.59 | G83: 3648890000 | H83: 1367.59 | I83: 1 | J83: 1365.2 | K83: 1371.94 | L83: 1354.92 | M83: 1367.59
A84: 74 | B84: 2012-02-24 | C84: 1363.46 | D84: 1368.92 | E84: 1363.46 | F84: 1365.74 | G84: 3505360000 | H84: 1365.74 | I84: 1 | J84: 1363.46 | K84: 1368.92 | L84: 1363.46 | M84: 1365.74
A85: 75 | B85: 2012-02-23 | C85: 1357.53 | D85: 1364.24 | E85: 1352.28 | F85: 1363.46 | G85: 3786450000 | H85: 1363.46 | I85: 1 | J85: 1357.53 | K85: 1364.24 | L85: 1352.28 | M85: 1363.46
A86: 76 | B86: 2012-02-22 | C86: 1362.11 | D86: 1362.7 | E86: 1355.53 | F86: 1357.66 | G86: 3633710000 | H86: 1357.66 | I86: 1 | J86: 1362.11 | K86: 1362.7 | L86: 1355.53 | M86: 1357.66
A87: 77 | B87: 2012-02-21 | C87: 1361.22 | D87: 1367.76 | E87: 1358.11 | F87: 1362.21 | G87: 3795200000 | H87: 1362.21 | I87: 1 | J87: 1361.22 | K87: 1367.76 | L87: 1358.11 | M87: 1362.21
A88: 78 | B88: 2012-02-17 | C88: 1358.06 | D88: 1363.4 | E88: 1357.24 | F88: 1361.23 | G88: 3717640000 | H88: 1361.23 | I88: 1 | J88: 1358.06 | K88: 1363.4 | L88: 1357.24 | M88: 1361.23
A89: 79 | B89: 2012-02-16 | C89: 1342.61 | D89: 1359.02 | E89: 1341.22 | F89: 1358.04 | G89: 4108880000 | H89: 1358.04 | I89: 1 | J89: 1342.61 | K89: 1359.02 | L89: 1341.22 | M89: 1358.04
A90: 80 | B90: 2012-02-15 | C90: 1350.52 | D90: 1355.87 | E90: 1340.8 | F90: 1343.23 | G90: 4080340000 | H90: 1343.23 | I90: 1 | J90: 1350.52 | K90: 1355.87 | L90: 1340.8 | M90: 1343.23
A91: 81 | B91: 2012-02-14 | C91: 1351.3 | D91: 1351.3 | E91: 1340.83 | F91: 1350.5 | G91: 3889520000 | H91: 1350.5 | I91: 1 | J91: 1351.3 | K91: 1351.3 | L91: 1340.83 | M91: 1350.5
A92: 82 | B92: 2012-02-13 | C92: 1343.06 | D92: 1353.35 | E92: 1343.06 | F92: 1351.77 | G92: 3618040000 | H92: 1351.77 | I92: 1 | J92: 1343.06 | K92: 1353.35 | L92: 1343.06 | M92: 1351.77
A93: 83 | B93: 2012-02-10 | C93: 1351.21 | D93: 1351.21 | E93: 1337.35 | F93: 1342.64 | G93: 3877580000 | H93: 1342.64 | I93: 1 | J93: 1351.21 | K93: 1351.21 | L93: 1337.35 | M93: 1342.64
A94: 84 | B94: 2012-02-09 | C94: 1349.97 | D94: 1354.32 | E94: 1344.63 | F94: 1351.95 | G94: 4209890000 | H94: 1351.95 | I94: 1 | J94: 1349.97 | K94: 1354.32 | L94: 1344.63 | M94: 1351.95
A95: 85 | B95: 2012-02-08 | C95: 1347.04 | D95: 1351 | E95: 1341.95 | F95: 1349.96 | G95: 4096730000 | H95: 1349.96 | I95: 1 | J95: 1347.04 | K95: 1351 | L95: 1341.95 | M95: 1349.96
A96: 86 | B96: 2012-02-07 | C96: 1344.33 | D96: 1349.24 | E96: 1335.92 | F96: 1347.05 | G96: 3742460000 | H96: 1347.05 | I96: 1 | J96: 1344.33 | K96: 1349.24 | L96: 1335.92 | M96: 1347.05
A97: 87 | B97: 2012-02-06 | C97: 1344.32 | D97: 1344.36 | E97: 1337.52 | F97: 1344.33 | G97: 3379700000 | H97: 1344.33 | I97: 1 | J97: 1344.32 | K97: 1344.36 | L97: 1337.52 | M97: 1344.33
A98: 88 | B98: 2012-02-03 | C98: 1326.21 | D98: 1345.34 | E98: 1326.21 | F98: 1344.9 | G98: 4608550000 | H98: 1344.9 | I98: 1 | J98: 1326.21 | K98: 1345.34 | L98: 1326.21 | M98: 1344.9
A99: 89 | B99: 2012-02-02 | C99: 1324.24 | D99: 1329.19 | E99: 1321.57 | F99: 1325.54 | G99: 4120920000 | H99: 1325.54 | I99: 1 | J99: 1324.24 | K99: 1329.19 | L99: 1321.57 | M99: 1325.54
A100: 90 | B100: 2012-02-01 | C100: 1312.45 | D100: 1330.52 | E100: 1312.45 | F100: 1324.09 | G100: 4504360000 | H100: 1324.09 | I100: 1 | J100: 1312.45 | K100: 1330.52 | L100: 1312.45 | M100: 1324.09
A101: 91 | B101: 2012-01-31 | C101: 1313.53 | D101: 1321.41 | E101: 1306.69 | F101: 1312.41 | G101: 4235550000 | H101: 1312.41 | I101: 1 | J101: 1313.53 | K101: 1321.41 | L101: 1306.69 | M101: 1312.41
A102: 92 | B102: 2012-01-30 | C102: 1316.16 | D102: 1316.16 | E102: 1300.49 | F102: 1313.01 | G102: 3659010000 | H102: 1313.01 | I102: 1 | J102: 1316.16 | K102: 1316.16 | L102: 1300.49 | M102: 1313.01
A103: 93 | B103: 2012-01-27 | C103: 1318.25 | D103: 1320.06 | E103: 1311.72 | F103: 1316.33 | G103: 3860430000 | H103: 1316.33 | I103: 1 | J103: 1318.25 | K103: 1320.06 | L103: 1311.72 | M103: 1316.33
A104: 94 | B104: 2012-01-26 | C104: 1326.28 | D104: 1333.47 | E104: 1313.6 | F104: 1318.43 | G104: 4522070000 | H104: 1318.43 | I104: 1 | J104: 1326.28 | K104: 1333.47 | L104: 1313.6 | M104: 1318.43
A105: 95 | B105: 2012-01-25 | C105: 1314.4 | D105: 1328.3 | E105: 1307.65 | F105: 1326.06 | G105: 4410910000 | H105: 1326.06 | I105: 1 | J105: 1314.4 | K105: 1328.3 | L105: 1307.65 | M105: 1326.06
A106: 96 | B106: 2012-01-24 | C106: 1315.96 | D106: 1315.96 | E106: 1306.06 | F106: 1314.65 | G106: 3693560000 | H106: 1314.65 | I106: 1 | J106: 1315.96 | K106: 1315.96 | L106: 1306.06 | M106: 1314.65
A107: 97 | B107: 2012-01-23 | C107: 1315.29 | D107: 1322.28 | E107: 1309.89 | F107: 1316 | G107: 3770910000 | H107: 1316 | I107: 1 | J107: 1315.29 | K107: 1322.28 | L107: 1309.89 | M107: 1316
A108: 98 | B108: 2012-01-20 | C108: 1314.49 | D108: 1315.38 | E108: 1309.17 | F108: 1315.38 | G108: 3912620000 | H108: 1315.38 | I108: 1 | J108: 1314.49 | K108: 1315.38 | L108: 1309.17 | M108: 1315.38
A109: 99 | B109: 2012-01-19 | C109: 1308.07 | D109: 1315.49 | E109: 1308.07 | F109: 1314.5 | G109: 4465890000 | H109: 1314.5 | I109: 1 | J109: 1308.07 | K109: 1315.49 | L109: 1308.07 | M109: 1314.5
A110: 100 | B110: 2012-01-18 | C110: 1293.65 | D110: 1308.11 | E110: 1290.99 | F110: 1308.04 | G110: 4096160000 | H110: 1308.04 | I110: 1 | J110: 1293.65 | K110: 1308.11 | L110: 1290.99 | M110: 1308.04
A111: 101 | B111: 2012-01-17 | C111: 1290.22 | D111: 1303 | E111: 1290.22 | F111: 1293.67 | G111: 4010490000 | H111: 1293.67 | I111: 1 | J111: 1290.22 | K111: 1303 | L111: 1290.22 | M111: 1293.67
A112: 102 | B112: 2012-01-13 | C112: 1294.82 | D112: 1294.82 | E112: 1277.58 | F112: 1289.09 | G112: 3692370000 | H112: 1289.09 | I112: 1 | J112: 1294.82 | K112: 1294.82 | L112: 1277.58 | M112: 1289.09
A113: 103 | B113: 2012-01-12 | C113: 1292.48 | D113: 1296.82 | E113: 1285.77 | F113: 1295.5 | G113: 4019890000 | H113: 1295.5 | I113: 1 | J113: 1292.48 | K113: 1296.82 | L113: 1285.77 | M113: 1295.5
A114: 104 | B114: 2012-01-11 | C114: 1292.02 | D114: 1293.8 | E114: 1285.41 | F114: 1292.48 | G114: 3968120000 | H114: 1292.48 | I114: 1 | J114: 1292.02 | K114: 1293.8 | L114: 1285.41 | M114: 1292.48
A115: 105 | B115: 2012-01-10 | C115: 1280.77 | D115: 1296.46 | E115: 1280.77 | F115: 1292.08 | G115: 4221960000 | H115: 1292.08 | I115: 1 | J115: 1280.77 | K115: 1296.46 | L115: 1280.77 | M115: 1292.08
A116: 106 | B116: 2012-01-09 | C116: 1277.83 | D116: 1281.99 | E116: 1274.55 | F116: 1280.7 | G116: 3371600000 | H116: 1280.7 | I116: 1 | J116: 1277.83 | K116: 1281.99 | L116: 1274.55 | M116: 1280.7
A117: 107 | B117: 2012-01-06 | C117: 1280.93 | D117: 1281.84 | E117: 1273.34 | F117: 1277.81 | G117: 3656830000 | H117: 1277.81 | I117: 1 | J117: 1280.93 | K117: 1281.84 | L117: 1273.34 | M117: 1277.81
A118: 108 | B118: 2012-01-05 | C118: 1277.3 | D118: 1283.05 | E118: 1265.26 | F118: 1281.06 | G118: 4315950000 | H118: 1281.06 | I118: 1 | J118: 1277.3 | K118: 1283.05 | L118: 1265.26 | M118: 1281.06
A119: 109 | B119: 2012-01-04 | C119: 1277.03 | D119: 1278.73 | E119: 1268.1 | F119: 1277.3 | G119: 3592580000 | H119: 1277.3 | I119: 1 | J119: 1277.03 | K119: 1278.73 | L119: 1268.1 | M119: 1277.3
A120: 110 | B120: 2012-01-03 | C120: 1258.86 | D120: 1284.62 | E120: 1258.86 | F120: 1277.06 | G120: 3943710000 | H120: 1277.06 | I120: 1 | J120: 1258.86 | K120: 1284.62 | L120: 1258.86 | M120: 1277.06
A121: 111 | B121: 2011-12-30 | C121: 1262.82 | D121: 1264.12 | E121: 1257.46 | F121: 1257.6 | G121: 2271850000 | H121: 1257.6 | I121: 1 | J121: 1262.82 | K121: 1264.12 | L121: 1257.46 | M121: 1257.6
A122: 112 | B122: 2011-12-29 | C122: 1249.75 | D122: 1263.54 | E122: 1249.75 | F122: 1263.02 | G122: 2278130000 | H122: 1263.02 | I122: 1 | J122: 1249.75 | K122: 1263.54 | L122: 1249.75 | M122: 1263.02
A123: 113 | B123: 2011-12-28 | C123: 1265.38 | D123: 1265.85 | E123: 1248.64 | F123: 1249.64 | G123: 2349980000 | H123: 1249.64 | I123: 1 | J123: 1265.38 | K123: 1265.85 | L123: 1248.64 | M123: 1249.64
A124: 114 | B124: 2011-12-27 | C124: 1265.02 | D124: 1269.37 | E124: 1262.3 | F124: 1265.43 | G124: 2130590000 | H124: 1265.43 | I124: 1 | J124: 1265.02 | K124: 1269.37 | L124: 1262.3 | M124: 1265.43
A125: 115 | B125: 2011-12-23 | C125: 1254 | D125: 1265.42 | E125: 1254 | F125: 1265.33 | G125: 2233830000 | H125: 1265.33 | I125: 1 | J125: 1254 | K125: 1265.42 | L125: 1254 | M125: 1265.33
A126: 116 | B126: 2011-12-22 | C126: 1243.72 | D126: 1255.22 | E126: 1243.72 | F126: 1254 | G126: 3492250000 | H126: 1254 | I126: 1 | J126: 1243.72 | K126: 1255.22 | L126: 1243.72 | M126: 1254
A127: 117 | B127: 2011-12-21 | C127: 1241.25 | D127: 1245.09 | E127: 1229.51 | F127: 1243.72 | G127: 2959020000 | H127: 1243.72 | I127: 1 | J127: 1241.25 | K127: 1245.09 | L127: 1229.51 | M127: 1243.72
A128: 118 | B128: 2011-12-20 | C128: 1205.72 | D128: 1242.82 | E128: 1205.72 | F128: 1241.3 | G128: 4055590000 | H128: 1241.3 | I128: 1 | J128: 1205.72 | K128: 1242.82 | L128: 1205.72 | M128: 1241.3
A129: 119 | B129: 2011-12-19 | C129: 1219.74 | D129: 1224.57 | E129: 1202.37 | F129: 1205.35 | G129: 3659820000 | H129: 1205.35 | I129: 1 | J129: 1219.74 | K129: 1224.57 | L129: 1202.37 | M129: 1205.35
A130: 120 | B130: 2011-12-16 | C130: 1216.09 | D130: 1231.04 | E130: 1215.2 | F130: 1219.66 | G130: 5345800000 | H130: 1219.66 | I130: 1 | J130: 1216.09 | K130: 1231.04 | L130: 1215.2 | M130: 1219.66
A131: 121 | B131: 2011-12-15 | C131: 1212.12 | D131: 1225.6 | E131: 1212.12 | F131: 1215.75 | G131: 3810340000 | H131: 1215.75 | I131: 1 | J131: 1212.12 | K131: 1225.6 | L131: 1212.12 | M131: 1215.75
A132: 122 | B132: 2011-12-14 | C132: 1225.73 | D132: 1225.73 | E132: 1209.47 | F132: 1211.82 | G132: 4298290000 | H132: 1211.82 | I132: 1 | J132: 1225.73 | K132: 1225.73 | L132: 1209.47 | M132: 1211.82
A133: 123 | B133: 2011-12-13 | C133: 1236.83 | D133: 1249.86 | E133: 1219.43 | F133: 1225.73 | G133: 4121570000 | H133: 1225.73 | I133: 1 | J133: 1236.83 | K133: 1249.86 | L133: 1219.43 | M133: 1225.73
A134: 124 | B134: 2011-12-12 | C134: 1255.05 | D134: 1255.05 | E134: 1227.25 | F134: 1236.47 | G134: 3600570000 | H134: 1236.47 | I134: 1 | J134: 1255.05 | K134: 1255.05 | L134: 1227.25 | M134: 1236.47
A135: 125 | B135: 2011-12-09 | C135: 1234.48 | D135: 1258.25 | E135: 1234.48 | F135: 1255.19 | G135: 3830610000 | H135: 1255.19 | I135: 1 | J135: 1234.48 | K135: 1258.25 | L135: 1234.48 | M135: 1255.19
A136: 126 | B136: 2011-12-08 | C136: 1260.87 | D136: 1260.87 | E136: 1231.47 | F136: 1234.35 | G136: 4298370000 | H136: 1234.35 | I136: 1 | J136: 1260.87 | K136: 1260.87 | L136: 1231.47 | M136: 1234.35
A137: 127 | B137: 2011-12-07 | C137: 1258.14 | D137: 1267.06 | E137: 1244.8 | F137: 1261.01 | G137: 4160540000 | H137: 1261.01 | I137: 1 | J137: 1258.14 | K137: 1267.06 | L137: 1244.8 | M137: 1261.01
A138: 128 | B138: 2011-12-06 | C138: 1257.19 | D138: 1266.03 | E138: 1253.03 | F138: 1258.47 | G138: 3734230000 | H138: 1258.47 | I138: 1 | J138: 1257.19 | K138: 1266.03 | L138: 1253.03 | M138: 1258.47
A139: 129 | B139: 2011-12-05 | C139: 1244.33 | D139: 1266.73 | E139: 1244.33 | F139: 1257.08 | G139: 4148060000 | H139: 1257.08 | I139: 1 | J139: 1244.33 | K139: 1266.73 | L139: 1244.33 | M139: 1257.08
A140: 130 | B140: 2011-12-02 | C140: 1246.03 | D140: 1260.08 | E140: 1243.35 | F140: 1244.28 | G140: 4144310000 | H140: 1244.28 | I140: 1 | J140: 1246.03 | K140: 1260.08 | L140: 1243.35 | M140: 1244.28
A141: 131 | B141: 2011-12-01 | C141: 1246.91 | D141: 1251.09 | E141: 1239.73 | F141: 1244.58 | G141: 3818680000 | H141: 1244.58 | I141: 1 | J141: 1246.91 | K141: 1251.09 | L141: 1239.73 | M141: 1244.58
A142: 132 | B142: 2011-11-30 | C142: 1196.72 | D142: 1247.11 | E142: 1196.72 | F142: 1246.96 | G142: 5801910000 | H142: 1246.96 | I142: 1 | J142: 1196.72 | K142: 1247.11 | L142: 1196.72 | M142: 1246.96
A143: 133 | B143: 2011-11-29 | C143: 1192.56 | D143: 1203.67 | E143: 1191.8 | F143: 1195.19 | G143: 3992650000 | H143: 1195.19 | I143: 1 | J143: 1192.56 | K143: 1203.67 | L143: 1191.8 | M143: 1195.19
A144: 134 | B144: 2011-11-28 | C144: 1158.67 | D144: 1197.35 | E144: 1158.67 | F144: 1192.55 | G144: 3920750000 | H144: 1192.55 | I144: 1 | J144: 1158.67 | K144: 1197.35 | L144: 1158.67 | M144: 1192.55
A145: 135 | B145: 2011-11-25 | C145: 1161.41 | D145: 1172.66 | E145: 1158.66 | F145: 1158.67 | G145: 1664200000 | H145: 1158.67 | I145: 1 | J145: 1161.41 | K145: 1172.66 | L145: 1158.66 | M145: 1158.67
A146: 136 | B146: 2011-11-23 | C146: 1187.48 | D146: 1187.48 | E146: 1161.79 | F146: 1161.79 | G146: 3798940000 | H146: 1161.79 | I146: 1 | J146: 1187.48 | K146: 1187.48 | L146: 1161.79 | M146: 1161.79
A147: 137 | B147: 2011-11-22 | C147: 1192.98 | D147: 1196.81 | E147: 1181.65 | F147: 1188.04 | G147: 3911710000 | H147: 1188.04 | I147: 1 | J147: 1192.98 | K147: 1196.81 | L147: 1181.65 | M147: 1188.04
A148: 138 | B148: 2011-11-21 | C148: 1215.62 | D148: 1215.62 | E148: 1183.16 | F148: 1192.98 | G148: 4050070000 | H148: 1192.98 | I148: 1 | J148: 1215.62 | K148: 1215.62 | L148: 1183.16 | M148: 1192.98
A149: 139 | B149: 2011-11-18 | C149: 1216.19 | D149: 1223.51 | E149: 1211.36 | F149: 1215.65 | G149: 3827610000 | H149: 1215.65 | I149: 1 | J149: 1216.19 | K149: 1223.51 | L149: 1211.36 | M149: 1215.65
A150: 140 | B150: 2011-11-17 | C150: 1236.56 | D150: 1237.73 | E150: 1209.43 | F150: 1216.13 | G150: 4596450000 | H150: 1216.13 | I150: 1 | J150: 1236.56 | K150: 1237.73 | L150: 1209.43 | M150: 1216.13
A151: 141 | B151: 2011-11-16 | C151: 1257.81 | D151: 1259.61 | E151: 1235.67 | F151: 1236.91 | G151: 4085010000 | H151: 1236.91 | I151: 1 | J151: 1257.81 | K151: 1259.61 | L151: 1235.67 | M151: 1236.91
A152: 142 | B152: 2011-11-15 | C152: 1251.7 | D152: 1264.25 | E152: 1244.34 | F152: 1257.81 | G152: 3599300000 | H152: 1257.81 | I152: 1 | J152: 1251.7 | K152: 1264.25 | L152: 1244.34 | M152: 1257.81
A153: 143 | B153: 2011-11-14 | C153: 1263.85 | D153: 1263.85 | E153: 1246.68 | F153: 1251.78 | G153: 3219680000 | H153: 1251.78 | I153: 1 | J153: 1263.85 | K153: 1263.85 | L153: 1246.68 | M153: 1251.78
A154: 144 | B154: 2011-11-11 | C154: 1240.12 | D154: 1266.98 | E154: 1240.12 | F154: 1263.85 | G154: 3329830000 | H154: 1263.85 | I154: 1 | J154: 1240.12 | K154: 1266.98 | L154: 1240.12 | M154: 1263.85
A155: 145 | B155: 2011-11-10 | C155: 1229.59 | D155: 1246.22 | E155: 1227.7 | F155: 1239.7 | G155: 4002760000 | H155: 1239.7 | I155: 1 | J155: 1229.59 | K155: 1246.22 | L155: 1227.7 | M155: 1239.7
A156: 146 | B156: 2011-11-09 | C156: 1275.18 | D156: 1275.18 | E156: 1226.64 | F156: 1229.1 | G156: 4659740000 | H156: 1229.1 | I156: 1 | J156: 1275.18 | K156: 1275.18 | L156: 1226.64 | M156: 1229.1
A157: 147 | B157: 2011-11-08 | C157: 1261.12 | D157: 1277.55 | E157: 1254.99 | F157: 1275.92 | G157: 3908490000 | H157: 1275.92 | I157: 1 | J157: 1261.12 | K157: 1277.55 | L157: 1254.99 | M157: 1275.92
A158: 148 | B158: 2011-11-07 | C158: 1253.21 | D158: 1261.7 | E158: 1240.75 | F158: 1261.12 | G158: 3429740000 | H158: 1261.12 | I158: 1 | J158: 1253.21 | K158: 1261.7 | L158: 1240.75 | M158: 1261.12
A159: 149 | B159: 2011-11-04 | C159: 1260.82 | D159: 1260.82 | E159: 1238.92 | F159: 1253.23 | G159: 3830650000 | H159: 1253.23 | I159: 1 | J159: 1260.82 | K159: 1260.82 | L159: 1238.92 | M159: 1253.23
A160: 150 | B160: 2011-11-03 | C160: 1238.25 | D160: 1263.21 | E160: 1234.81 | F160: 1261.15 | G160: 4849140000 | H160: 1261.15 | I160: 1 | J160: 1238.25 | K160: 1263.21 | L160: 1234.81 | M160: 1261.15
A161: 151 | B161: 2011-11-02 | C161: 1219.62 | D161: 1242.48 | E161: 1219.62 | F161: 1237.9 | G161: 4110530000 | H161: 1237.9 | I161: 1 | J161: 1219.62 | K161: 1242.48 | L161: 1219.62 | M161: 1237.9
A162: 152 | B162: 2011-11-01 | C162: 1251 | D162: 1251 | E162: 1215.42 | F162: 1218.28 | G162: 5645540000 | H162: 1218.28 | I162: 1 | J162: 1251 | K162: 1251 | L162: 1215.42 | M162: 1218.28
A163: 153 | B163: 2011-10-31 | C163: 1284.96 | D163: 1284.96 | E163: 1253.16 | F163: 1253.3 | G163: 4310210000 | H163: 1253.3 | I163: 1 | J163: 1284.96 | K163: 1284.96 | L163: 1253.16 | M163: 1253.3
A164: 154 | B164: 2011-10-28 | C164: 1284.39 | D164: 1287.08 | E164: 1277.01 | F164: 1285.09 | G164: 4536690000 | H164: 1285.09 | I164: 1 | J164: 1284.39 | K164: 1287.08 | L164: 1277.01 | M164: 1285.09
A165: 155 | B165: 2011-10-27 | C165: 1243.97 | D165: 1292.66 | E165: 1243.97 | F165: 1284.59 | G165: 6367610000 | H165: 1284.59 | I165: 1 | J165: 1243.97 | K165: 1292.66 | L165: 1243.97 | M165: 1284.59
A166: 156 | B166: 2011-10-26 | C166: 1229.17 | D166: 1246.28 | E166: 1221.06 | F166: 1242 | G166: 4873530000 | H166: 1242 | I166: 1 | J166: 1229.17 | K166: 1246.28 | L166: 1221.06 | M166: 1242
A167: 157 | B167: 2011-10-25 | C167: 1254.19 | D167: 1254.19 | E167: 1226.79 | F167: 1229.05 | G167: 4473970000 | H167: 1229.05 | I167: 1 | J167: 1254.19 | K167: 1254.19 | L167: 1226.79 | M167: 1229.05
A168: 158 | B168: 2011-10-24 | C168: 1238.72 | D168: 1256.55 | E168: 1238.72 | F168: 1254.19 | G168: 4309380000 | H168: 1254.19 | I168: 1 | J168: 1238.72 | K168: 1256.55 | L168: 1238.72 | M168: 1254.19
A169: 159 | B169: 2011-10-21 | C169: 1215.39 | D169: 1239.03 | E169: 1215.39 | F169: 1238.25 | G169: 4980770000 | H169: 1238.25 | I169: 1 | J169: 1215.39 | K169: 1239.03 | L169: 1215.39 | M169: 1238.25
A170: 160 | B170: 2011-10-20 | C170: 1209.92 | D170: 1219.53 | E170: 1197.34 | F170: 1215.39 | G170: 4870290000 | H170: 1215.39 | I170: 1 | J170: 1209.92 | K170: 1219.53 | L170: 1197.34 | M170: 1215.39
A171: 161 | B171: 2011-10-19 | C171: 1223.46 | D171: 1229.64 | E171: 1206.31 | F171: 1209.88 | G171: 4846390000 | H171: 1209.88 | I171: 1 | J171: 1223.46 | K171: 1229.64 | L171: 1206.31 | M171: 1209.88
A172: 162 | B172: 2011-10-18 | C172: 1200.75 | D172: 1233.1 | E172: 1191.48 | F172: 1225.38 | G172: 4840170000 | H172: 1225.38 | I172: 1 | J172: 1200.75 | K172: 1233.1 | L172: 1191.48 | M172: 1225.38
A173: 163 | B173: 2011-10-17 | C173: 1224.47 | D173: 1224.47 | E173: 1198.55 | F173: 1200.86 | G173: 4300700000 | H173: 1200.86 | I173: 1 | J173: 1224.47 | K173: 1224.47 | L173: 1198.55 | M173: 1200.86
A174: 164 | B174: 2011-10-14 | C174: 1205.65 | D174: 1224.61 | E174: 1205.65 | F174: 1224.58 | G174: 4116690000 | H174: 1224.58 | I174: 1 | J174: 1205.65 | K174: 1224.61 | L174: 1205.65 | M174: 1224.58
A175: 165 | B175: 2011-10-13 | C175: 1206.96 | D175: 1207.46 | E175: 1190.58 | F175: 1203.66 | G175: 4436270000 | H175: 1203.66 | I175: 1 | J175: 1206.96 | K175: 1207.46 | L175: 1190.58 | M175: 1203.66
A176: 166 | B176: 2011-10-12 | C176: 1196.19 | D176: 1220.25 | E176: 1196.19 | F176: 1207.25 | G176: 5355360000 | H176: 1207.25 | I176: 1 | J176: 1196.19 | K176: 1220.25 | L176: 1196.19 | M176: 1207.25
A177: 167 | B177: 2011-10-11 | C177: 1194.6 | D177: 1199.24 | E177: 1187.3 | F177: 1195.54 | G177: 4424500000 | H177: 1195.54 | I177: 1 | J177: 1194.6 | K177: 1199.24 | L177: 1187.3 | M177: 1195.54
A178: 168 | B178: 2011-10-10 | C178: 1158.15 | D178: 1194.91 | E178: 1158.15 | F178: 1194.89 | G178: 4446800000 | H178: 1194.89 | I178: 1 | J178: 1158.15 | K178: 1194.91 | L178: 1158.15 | M178: 1194.89
A179: 169 | B179: 2011-10-07 | C179: 1165.03 | D179: 1171.4 | E179: 1150.26 | F179: 1155.46 | G179: 5580380000 | H179: 1155.46 | I179: 1 | J179: 1165.03 | K179: 1171.4 | L179: 1150.26 | M179: 1155.46
A180: 170 | B180: 2011-10-06 | C180: 1144.11 | D180: 1165.55 | E180: 1134.95 | F180: 1164.97 | G180: 5098330000 | H180: 1164.97 | I180: 1 | J180: 1144.11 | K180: 1165.55 | L180: 1134.95 | M180: 1164.97
A181: 171 | B181: 2011-10-05 | C181: 1124.03 | D181: 1146.07 | E181: 1115.68 | F181: 1144.03 | G181: 2510620000 | H181: 1144.03 | I181: 1 | J181: 1124.03 | K181: 1146.07 | L181: 1115.68 | M181: 1144.03
A182: 172 | B182: 2011-10-04 | C182: 1097.42 | D182: 1125.12 | E182: 1074.77 | F182: 1123.95 | G182: 3714670000 | H182: 1123.95 | I182: 1 | J182: 1097.42 | K182: 1125.12 | L182: 1074.77 | M182: 1123.95
A183: 173 | B183: 2011-10-03 | C183: 1131.21 | D183: 1138.99 | E183: 1098.92 | F183: 1099.23 | G183: 5670340000 | H183: 1099.23 | I183: 1 | J183: 1131.21 | K183: 1138.99 | L183: 1098.92 | M183: 1099.23
A184: 174 | B184: 2011-09-30 | C184: 1159.93 | D184: 1159.93 | E184: 1131.34 | F184: 1131.42 | G184: 4416790000 | H184: 1131.42 | I184: 1 | J184: 1159.93 | K184: 1159.93 | L184: 1131.34 | M184: 1131.42
A185: 175 | B185: 2011-09-29 | C185: 1151.74 | D185: 1175.87 | E185: 1139.93 | F185: 1160.4 | G185: 5285740000 | H185: 1160.4 | I185: 1 | J185: 1151.74 | K185: 1175.87 | L185: 1139.93 | M185: 1160.4
A186: 176 | B186: 2011-09-28 | C186: 1175.39 | D186: 1184.71 | E186: 1150.4 | F186: 1151.06 | G186: 4787920000 | H186: 1151.06 | I186: 1 | J186: 1175.39 | K186: 1184.71 | L186: 1150.4 | M186: 1151.06
A187: 177 | B187: 2011-09-27 | C187: 1163.32 | D187: 1195.86 | E187: 1163.32 | F187: 1175.38 | G187: 5548130000 | H187: 1175.38 | I187: 1 | J187: 1163.32 | K187: 1195.86 | L187: 1163.32 | M187: 1175.38
A188: 178 | B188: 2011-09-26 | C188: 1136.91 | D188: 1164.19 | E188: 1131.07 | F188: 1162.95 | G188: 4762830000 | H188: 1162.95 | I188: 1 | J188: 1136.91 | K188: 1164.19 | L188: 1131.07 | M188: 1162.95
A189: 179 | B189: 2011-09-23 | C189: 1128.82 | D189: 1141.72 | E189: 1121.36 | F189: 1136.43 | G189: 5639930000 | H189: 1136.43 | I189: 1 | J189: 1128.82 | K189: 1141.72 | L189: 1121.36 | M189: 1136.43
A190: 180 | B190: 2011-09-22 | C190: 1164.55 | D190: 1164.55 | E190: 1114.22 | F190: 1129.56 | G190: 6703140000 | H190: 1129.56 | I190: 1 | J190: 1164.55 | K190: 1164.55 | L190: 1114.22 | M190: 1129.56
A191: 181 | B191: 2011-09-21 | C191: 1203.63 | D191: 1206.3 | E191: 1166.21 | F191: 1166.76 | G191: 4728550000 | H191: 1166.76 | I191: 1 | J191: 1203.63 | K191: 1206.3 | L191: 1166.21 | M191: 1166.76
A192: 182 | B192: 2011-09-20 | C192: 1204.5 | D192: 1220.39 | E192: 1201.29 | F192: 1202.09 | G192: 4315610000 | H192: 1202.09 | I192: 1 | J192: 1204.5 | K192: 1220.39 | L192: 1201.29 | M192: 1202.09
A193: 183 | B193: 2011-09-19 | C193: 1214.99 | D193: 1214.99 | E193: 1188.36 | F193: 1204.09 | G193: 4254190000 | H193: 1204.09 | I193: 1 | J193: 1214.99 | K193: 1214.99 | L193: 1188.36 | M193: 1204.09
A194: 184 | B194: 2011-09-16 | C194: 1209.21 | D194: 1220.06 | E194: 1204.46 | F194: 1216.01 | G194: 5248890000 | H194: 1216.01 | I194: 1 | J194: 1209.21 | K194: 1220.06 | L194: 1204.46 | M194: 1216.01
A195: 185 | B195: 2011-09-15 | C195: 1189.44 | D195: 1209.11 | E195: 1189.44 | F195: 1209.11 | G195: 4479730000 | H195: 1209.11 | I195: 1 | J195: 1189.44 | K195: 1209.11 | L195: 1189.44 | M195: 1209.11
A196: 186 | B196: 2011-09-14 | C196: 1173.32 | D196: 1202.38 | E196: 1162.73 | F196: 1188.68 | G196: 4986740000 | H196: 1188.68 | I196: 1 | J196: 1173.32 | K196: 1202.38 | L196: 1162.73 | M196: 1188.68
A197: 187 | B197: 2011-09-13 | C197: 1162.59 | D197: 1176.41 | E197: 1157.44 | F197: 1172.87 | G197: 4681370000 | H197: 1172.87 | I197: 1 | J197: 1162.59 | K197: 1176.41 | L197: 1157.44 | M197: 1172.87
A198: 188 | B198: 2011-09-12 | C198: 1153.5 | D198: 1162.52 | E198: 1136.07 | F198: 1162.27 | G198: 5168550000 | H198: 1162.27 | I198: 1 | J198: 1153.5 | K198: 1162.52 | L198: 1136.07 | M198: 1162.27
A199: 189 | B199: 2011-09-09 | C199: 1185.37 | D199: 1185.37 | E199: 1148.37 | F199: 1154.23 | G199: 4586370000 | H199: 1154.23 | I199: 1 | J199: 1185.37 | K199: 1185.37 | L199: 1148.37 | M199: 1154.23
A200: 190 | B200: 2011-09-08 | C200: 1197.98 | D200: 1204.4 | E200: 1183.34 | F200: 1185.9 | G200: 4465170000 | H200: 1185.9 | I200: 1 | J200: 1197.98 | K200: 1204.4 | L200: 1183.34 | M200: 1185.9
A201: 191 | B201: 2011-09-07 | C201: 1165.85 | D201: 1198.62 | E201: 1165.85 | F201: 1198.62 | G201: 4441040000 | H201: 1198.62 | I201: 1 | J201: 1165.85 | K201: 1198.62 | L201: 1165.85 | M201: 1198.62
A202: 192 | B202: 2011-09-06 | C202: 1173.97 | D202: 1173.97 | E202: 1140.13 | F202: 1165.24 | G202: 5103980000 | H202: 1165.24 | I202: 1 | J202: 1173.97 | K202: 1173.97 | L202: 1140.13 | M202: 1165.24
A203: 193 | B203: 2011-09-02 | C203: 1203.9 | D203: 1203.9 | E203: 1170.56 | F203: 1173.97 | G203: 4401740000 | H203: 1173.97 | I203: 1 | J203: 1203.9 | K203: 1203.9 | L203: 1170.56 | M203: 1173.97
A204: 194 | B204: 2011-09-01 | C204: 1219.12 | D204: 1229.29 | E204: 1203.85 | F204: 1204.42 | G204: 4780410000 | H204: 1204.42 | I204: 1 | J204: 1219.12 | K204: 1229.29 | L204: 1203.85 | M204: 1204.42
... 3194 more rows

Sheet InputData-XLY
A1: Consumer Discret Select Sector SPDR (XLY)
B6: Available Input Data Rows | F6: Available Date Range:
B7: =COUNTA(B11:B65000) -> 3388 | F7: From | G7: =OFFSET(B10,B7,0,1,1) -> 1998-12-22
F8: To | G8: =OFFSET(B10,1,0,1,1) -> 2012-06-08
B9: Raw Data Values | H9: Adjusted | I9: Adjustment | J9: Adjusted Values
A10: RelRow | B10: Date | C10: Open | D10: High | E10: Low | F10: Close | G10: Volume | H10: Close | I10: Factor | J10: Open | K10: High | L10: Low | M10: Close
A11: 1 | B11: 2012-06-08 | C11: 42.86 | D11: 43.42 | E11: 42.68 | F11: 43.41 | G11: 6243600 | H11: 43.41 | I11: 1 | J11: 42.86 | K11: 43.42 | L11: 42.68 | M11: 43.41
A12: 2 | B12: 2012-06-07 | C12: 43.7 | D12: 43.7 | E12: 42.92 | F12: 43.03 | G12: 8162500 | H12: 43.03 | I12: 1 | J12: 43.7 | K12: 43.7 | L12: 42.92 | M12: 43.03
A13: 3 | B13: 2012-06-06 | C13: 42.47 | D13: 43.07 | E13: 42.43 | F13: 43.03 | G13: 9054100 | H13: 43.03 | I13: 1 | J13: 42.47 | K13: 43.07 | L13: 42.43 | M13: 43.03
A14: 4 | B14: 2012-06-05 | C14: 41.74 | D14: 42.19 | E14: 41.71 | F14: 42.12 | G14: 6782100 | H14: 42.12 | I14: 1 | J14: 41.74 | K14: 42.19 | L14: 41.71 | M14: 42.12
A15: 5 | B15: 2012-06-04 | C15: 41.74 | D15: 42.02 | E15: 41.44 | F15: 41.89 | G15: 10940500 | H15: 41.89 | I15: 1 | J15: 41.74 | K15: 42.02 | L15: 41.44 | M15: 41.89
A16: 6 | B16: 2012-06-01 | C16: 42.37 | D16: 42.47 | E16: 41.66 | F16: 41.74 | G16: 15053800 | H16: 41.74 | I16: 1 | J16: 42.37 | K16: 42.47 | L16: 41.66 | M16: 41.74
A17: 7 | B17: 2012-05-31 | C17: 43.14 | D17: 43.38 | E17: 42.7 | F17: 43.1 | G17: 9868100 | H17: 43.1 | I17: 1 | J17: 43.14 | K17: 43.38 | L17: 42.7 | M17: 43.1
A18: 8 | B18: 2012-05-30 | C18: 43.45 | D18: 43.51 | E18: 43.07 | F18: 43.19 | G18: 7288400 | H18: 43.19 | I18: 1 | J18: 43.45 | K18: 43.51 | L18: 43.07 | M18: 43.19
A19: 9 | B19: 2012-05-29 | C19: 43.63 | D19: 43.96 | E19: 43.43 | F19: 43.88 | G19: 12327500 | H19: 43.88 | I19: 1 | J19: 43.63 | K19: 43.96 | L19: 43.43 | M19: 43.88
A20: 10 | B20: 2012-05-25 | C20: 43.4 | D20: 43.51 | E20: 43.15 | F20: 43.28 | G20: 6096700 | H20: 43.28 | I20: 1 | J20: 43.4 | K20: 43.51 | L20: 43.15 | M20: 43.28
A21: 11 | B21: 2012-05-24 | C21: 43.22 | D21: 43.42 | E21: 42.97 | F21: 43.35 | G21: 7895000 | H21: 43.35 | I21: 1 | J21: 43.22 | K21: 43.42 | L21: 42.97 | M21: 43.35
A22: 12 | B22: 2012-05-23 | C22: 42.62 | D22: 43.22 | E22: 42.4 | F22: 43.15 | G22: 6635100 | H22: 43.15 | I22: 1 | J22: 42.62 | K22: 43.22 | L22: 42.4 | M22: 43.15
A23: 13 | B23: 2012-05-22 | C23: 42.91 | D23: 43.25 | E23: 42.64 | F23: 42.92 | G23: 9206000 | H23: 42.92 | I23: 1 | J23: 42.91 | K23: 43.25 | L23: 42.64 | M23: 42.92
A24: 14 | B24: 2012-05-21 | C24: 41.95 | D24: 42.76 | E24: 41.73 | F24: 42.75 | G24: 8336700 | H24: 42.75 | I24: 1 | J24: 41.95 | K24: 42.76 | L24: 41.73 | M24: 42.75
A25: 15 | B25: 2012-05-18 | C25: 42.46 | D25: 42.7 | E25: 41.95 | F25: 42.01 | G25: 9487900 | H25: 42.01 | I25: 1 | J25: 42.46 | K25: 42.7 | L25: 41.95 | M25: 42.01
A26: 16 | B26: 2012-05-17 | C26: 43.52 | D26: 43.54 | E26: 42.3 | F26: 42.33 | G26: 15522300 | H26: 42.33 | I26: 1 | J26: 43.52 | K26: 43.54 | L26: 42.3 | M26: 42.33
A27: 17 | B27: 2012-05-16 | C27: 43.67 | D27: 44 | E27: 43.47 | F27: 43.48 | G27: 8177900 | H27: 43.48 | I27: 1 | J27: 43.67 | K27: 44 | L27: 43.47 | M27: 43.48
A28: 18 | B28: 2012-05-15 | C28: 43.58 | D28: 44.11 | E28: 43.45 | F28: 43.55 | G28: 9828900 | H28: 43.55 | I28: 1 | J28: 43.58 | K28: 44.11 | L28: 43.45 | M28: 43.55
A29: 19 | B29: 2012-05-14 | C29: 43.89 | D29: 44.06 | E29: 43.61 | F29: 43.62 | G29: 11686800 | H29: 43.62 | I29: 1 | J29: 43.89 | K29: 44.06 | L29: 43.61 | M29: 43.62
A30: 20 | B30: 2012-05-11 | C30: 44.06 | D30: 44.74 | E30: 44.05 | F30: 44.24 | G30: 8099600 | H30: 44.24 | I30: 1 | J30: 44.06 | K30: 44.74 | L30: 44.05 | M30: 44.24
A31: 21 | B31: 2012-05-10 | C31: 44.43 | D31: 44.6 | E31: 44.16 | F31: 44.33 | G31: 7800000 | H31: 44.33 | I31: 1 | J31: 44.43 | K31: 44.6 | L31: 44.16 | M31: 44.33
A32: 22 | B32: 2012-05-09 | C32: 43.96 | D32: 44.42 | E32: 43.69 | F32: 44.18 | G32: 11145800 | H32: 44.18 | I32: 1 | J32: 43.96 | K32: 44.42 | L32: 43.69 | M32: 44.18
A33: 23 | B33: 2012-05-08 | C33: 44.55 | D33: 44.56 | E33: 43.62 | F33: 44.35 | G33: 12210100 | H33: 44.35 | I33: 1 | J33: 44.55 | K33: 44.56 | L33: 43.62 | M33: 44.35
A34: 24 | B34: 2012-05-07 | C34: 44.78 | D34: 45.08 | E34: 44.73 | F34: 44.89 | G34: 7754300 | H34: 44.89 | I34: 1 | J34: 44.78 | K34: 45.08 | L34: 44.73 | M34: 44.89
A35: 25 | B35: 2012-05-04 | C35: 45.6 | D35: 45.6 | E35: 44.87 | F35: 44.91 | G35: 9999900 | H35: 44.91 | I35: 1 | J35: 45.6 | K35: 45.6 | L35: 44.87 | M35: 44.91
A36: 26 | B36: 2012-05-03 | C36: 46.14 | D36: 46.18 | E36: 45.66 | F36: 45.8 | G36: 5027300 | H36: 45.8 | I36: 1 | J36: 46.14 | K36: 46.18 | L36: 45.66 | M36: 45.8
A37: 27 | B37: 2012-05-02 | C37: 45.75 | D37: 46.21 | E37: 45.66 | F37: 46.16 | G37: 9648400 | H37: 46.16 | I37: 1 | J37: 45.75 | K37: 46.21 | L37: 45.66 | M37: 46.16
A38: 28 | B38: 2012-05-01 | C38: 45.72 | D38: 46.27 | E38: 45.57 | F38: 45.91 | G38: 7755800 | H38: 45.91 | I38: 1 | J38: 45.72 | K38: 46.27 | L38: 45.57 | M38: 45.91
A39: 29 | B39: 2012-04-30 | C39: 45.84 | D39: 45.84 | E39: 45.5 | F39: 45.61 | G39: 6951600 | H39: 45.61 | I39: 1 | J39: 45.84 | K39: 45.84 | L39: 45.5 | M39: 45.61
A40: 30 | B40: 2012-04-27 | C40: 45.64 | D40: 46.08 | E40: 45.43 | F40: 45.87 | G40: 8953100 | H40: 45.87 | I40: 1 | J40: 45.64 | K40: 46.08 | L40: 45.43 | M40: 45.87
A41: 31 | B41: 2012-04-26 | C41: 44.68 | D41: 45.4 | E41: 44.68 | F41: 45.31 | G41: 5780700 | H41: 45.31 | I41: 1 | J41: 44.68 | K41: 45.4 | L41: 44.68 | M41: 45.31
A42: 32 | B42: 2012-04-25 | C42: 44.34 | D42: 44.78 | E42: 44.32 | F42: 44.75 | G42: 7896400 | H42: 44.75 | I42: 1 | J42: 44.34 | K42: 44.78 | L42: 44.32 | M42: 44.75
A43: 33 | B43: 2012-04-24 | C43: 44.21 | D43: 44.39 | E43: 43.83 | F43: 44.01 | G43: 8880700 | H43: 44.01 | I43: 1 | J43: 44.21 | K43: 44.39 | L43: 43.83 | M43: 44.01
A44: 34 | B44: 2012-04-23 | C44: 44.25 | D44: 44.32 | E44: 43.87 | F44: 44.16 | G44: 6162100 | H44: 44.16 | I44: 1 | J44: 44.25 | K44: 44.32 | L44: 43.87 | M44: 44.16
A45: 35 | B45: 2012-04-20 | C45: 44.75 | D45: 44.98 | E45: 44.62 | F45: 44.64 | G45: 4598100 | H45: 44.64 | I45: 1 | J45: 44.75 | K45: 44.98 | L45: 44.62 | M45: 44.64
A46: 36 | B46: 2012-04-19 | C46: 44.93 | D46: 45.15 | E46: 44.37 | F46: 44.57 | G46: 5706800 | H46: 44.57 | I46: 1 | J46: 44.93 | K46: 45.15 | L46: 44.37 | M46: 44.57
A47: 37 | B47: 2012-04-18 | C47: 44.76 | D47: 45.12 | E47: 44.7 | F47: 44.93 | G47: 4314200 | H47: 44.93 | I47: 1 | J47: 44.76 | K47: 45.12 | L47: 44.7 | M47: 44.93
A48: 38 | B48: 2012-04-17 | C48: 44.61 | D48: 44.99 | E48: 44.48 | F48: 44.86 | G48: 4698200 | H48: 44.86 | I48: 1 | J48: 44.61 | K48: 44.99 | L48: 44.48 | M48: 44.86
A49: 39 | B49: 2012-04-16 | C49: 44.66 | D49: 44.77 | E49: 44.19 | F49: 44.39 | G49: 9921300 | H49: 44.39 | I49: 1 | J49: 44.66 | K49: 44.77 | L49: 44.19 | M49: 44.39
A50: 40 | B50: 2012-04-13 | C50: 44.58 | D50: 44.79 | E50: 44.34 | F50: 44.55 | G50: 6473800 | H50: 44.55 | I50: 1 | J50: 44.58 | K50: 44.79 | L50: 44.34 | M50: 44.55
A51: 41 | B51: 2012-04-12 | C51: 44.21 | D51: 44.71 | E51: 44.02 | F51: 44.67 | G51: 7048200 | H51: 44.67 | I51: 1 | J51: 44.21 | K51: 44.71 | L51: 44.02 | M51: 44.67
A52: 42 | B52: 2012-04-11 | C52: 43.94 | D52: 44.23 | E52: 43.9 | F52: 44.11 | G52: 4521200 | H52: 44.11 | I52: 1 | J52: 43.94 | K52: 44.23 | L52: 43.9 | M52: 44.11
A53: 43 | B53: 2012-04-10 | C53: 44.44 | D53: 44.59 | E53: 43.42 | F53: 43.51 | G53: 17268200 | H53: 43.51 | I53: 1 | J53: 44.44 | K53: 44.59 | L53: 43.42 | M53: 43.51
A54: 44 | B54: 2012-04-09 | C54: 44.36 | D54: 44.7 | E54: 44.28 | F54: 44.6 | G54: 6594000 | H54: 44.6 | I54: 1 | J54: 44.36 | K54: 44.7 | L54: 44.28 | M54: 44.6
A55: 45 | B55: 2012-04-05 | C55: 44.55 | D55: 45.08 | E55: 44.55 | F55: 45.01 | G55: 5713600 | H55: 45.01 | I55: 1 | J55: 44.55 | K55: 45.08 | L55: 44.55 | M55: 45.01
A56: 46 | B56: 2012-04-04 | C56: 44.85 | D56: 44.88 | E56: 44.42 | F56: 44.7 | G56: 7482000 | H56: 44.7 | I56: 1 | J56: 44.85 | K56: 44.88 | L56: 44.42 | M56: 44.7
A57: 47 | B57: 2012-04-03 | C57: 45.15 | D57: 45.4 | E57: 44.95 | F57: 45.12 | G57: 5316300 | H57: 45.12 | I57: 1 | J57: 45.15 | K57: 45.4 | L57: 44.95 | M57: 45.12
A58: 48 | B58: 2012-04-02 | C58: 45.02 | D58: 45.36 | E58: 44.9 | F58: 45.21 | G58: 10855600 | H58: 45.21 | I58: 1 | J58: 45.02 | K58: 45.36 | L58: 44.9 | M58: 45.21
A59: 49 | B59: 2012-03-30 | C59: 45.08 | D59: 45.21 | E59: 44.83 | F59: 45.09 | G59: 4183700 | H59: 45.09 | I59: 1 | J59: 45.08 | K59: 45.21 | L59: 44.83 | M59: 45.09
A60: 50 | B60: 2012-03-29 | C60: 44.6 | D60: 44.93 | E60: 44.39 | F60: 44.89 | G60: 3908800 | H60: 44.89 | I60: 1 | J60: 44.6 | K60: 44.93 | L60: 44.39 | M60: 44.89
A61: 51 | B61: 2012-03-28 | C61: 45.32 | D61: 45.32 | E61: 44.7 | F61: 44.9 | G61: 6696000 | H61: 44.9 | I61: 1 | J61: 45.32 | K61: 45.32 | L61: 44.7 | M61: 44.9
A62: 52 | B62: 2012-03-27 | C62: 45.49 | D62: 45.56 | E62: 45.26 | F62: 45.29 | G62: 4500700 | H62: 45.29 | I62: 1 | J62: 45.49 | K62: 45.56 | L62: 45.26 | M62: 45.29
A63: 53 | B63: 2012-03-26 | C63: 45.02 | D63: 45.39 | E63: 44.96 | F63: 45.36 | G63: 5721900 | H63: 45.36 | I63: 1 | J63: 45.02 | K63: 45.39 | L63: 44.96 | M63: 45.36
A64: 54 | B64: 2012-03-23 | C64: 44.53 | D64: 44.7 | E64: 44.09 | F64: 44.65 | G64: 3527200 | H64: 44.65 | I64: 1 | J64: 44.53 | K64: 44.7 | L64: 44.09 | M64: 44.65
A65: 55 | B65: 2012-03-22 | C65: 44.49 | D65: 44.71 | E65: 44.41 | F65: 44.6 | G65: 4559300 | H65: 44.6 | I65: 1 | J65: 44.49 | K65: 44.71 | L65: 44.41 | M65: 44.6
A66: 56 | B66: 2012-03-21 | C66: 44.74 | D66: 44.85 | E66: 44.65 | F66: 44.71 | G66: 3079400 | H66: 44.71 | I66: 1 | J66: 44.74 | K66: 44.85 | L66: 44.65 | M66: 44.71
A67: 57 | B67: 2012-03-20 | C67: 44.37 | D67: 44.74 | E67: 44.24 | F67: 44.65 | G67: 4767700 | H67: 44.65 | I67: 1 | J67: 44.37 | K67: 44.74 | L67: 44.24 | M67: 44.65
A68: 58 | B68: 2012-03-19 | C68: 44.2 | D68: 44.64 | E68: 44.18 | F68: 44.58 | G68: 7124900 | H68: 44.58 | I68: 1 | J68: 44.2 | K68: 44.64 | L68: 44.18 | M68: 44.58
A69: 59 | B69: 2012-03-16 | C69: 44.55 | D69: 44.56 | E69: 44.26 | F69: 44.35 | G69: 7723800 | H69: 44.35 | I69: 1 | J69: 44.55 | K69: 44.56 | L69: 44.26 | M69: 44.35
A70: 60 | B70: 2012-03-15 | C70: 44.47 | D70: 44.66 | E70: 44.3 | F70: 44.63 | G70: 5270600 | H70: 44.49 | I70: 0.9968630966 | J70: 44.33 | K70: 44.52 | L70: 44.16 | M70: 44.49
A71: 61 | B71: 2012-03-14 | C71: 44.56 | D71: 44.59 | E71: 44.34 | F71: 44.48 | G71: 6978600 | H71: 44.34 | I71: 0.996852518 | J71: 44.42 | K71: 44.45 | L71: 44.2 | M71: 44.34
A72: 62 | B72: 2012-03-13 | C72: 44.03 | D72: 44.54 | E72: 43.95 | F72: 44.54 | G72: 6801300 | H72: 44.4 | I72: 0.996856758 | J72: 43.89 | K72: 44.4 | L72: 43.81 | M72: 44.4
A73: 63 | B73: 2012-03-12 | C73: 44 | D73: 44.11 | E73: 43.77 | F73: 43.86 | G73: 5386000 | H73: 43.73 | I73: 0.9970360237 | J73: 43.87 | K73: 43.98 | L73: 43.64 | M73: 43.73
A74: 64 | B74: 2012-03-09 | C74: 43.9 | D74: 44.07 | E74: 43.8 | F74: 43.98 | G74: 4735400 | H74: 43.84 | I74: 0.9968167349 | J74: 43.76 | K74: 43.93 | L74: 43.66 | M74: 43.84
A75: 65 | B75: 2012-03-08 | C75: 43.34 | D75: 43.82 | E75: 43.34 | F75: 43.73 | G75: 4378100 | H75: 43.6 | I75: 0.9970272124 | J75: 43.21 | K75: 43.69 | L75: 43.21 | M75: 43.6
A76: 66 | B76: 2012-03-07 | C76: 42.96 | D76: 43.35 | E76: 42.94 | F76: 43.29 | G76: 4815900 | H76: 43.16 | I76: 0.996996997 | J76: 42.83 | K76: 43.22 | L76: 42.81 | M76: 43.16
A77: 67 | B77: 2012-03-06 | C77: 43.08 | D77: 43.1 | E77: 42.67 | F77: 42.8 | G77: 5487000 | H77: 42.67 | I77: 0.9969626168 | J77: 42.95 | K77: 42.97 | L77: 42.54 | M77: 42.67
A78: 68 | B78: 2012-03-05 | C78: 43.4 | D78: 43.57 | E78: 43.27 | F78: 43.48 | G78: 3326100 | H78: 43.35 | I78: 0.9970101196 | J78: 43.27 | K78: 43.44 | L78: 43.14 | M78: 43.35
A79: 69 | B79: 2012-03-02 | C79: 43.42 | D79: 43.68 | E79: 43.37 | F79: 43.52 | G79: 5799900 | H79: 43.39 | I79: 0.9970128676 | J79: 43.29 | K79: 43.55 | L79: 43.24 | M79: 43.39
A80: 70 | B80: 2012-03-01 | C80: 43.31 | D80: 43.61 | E80: 43.29 | F80: 43.55 | G80: 4733600 | H80: 43.42 | I80: 0.9970149254 | J80: 43.18 | K80: 43.48 | L80: 43.16 | M80: 43.42
A81: 71 | B81: 2012-02-29 | C81: 43.38 | D81: 43.51 | E81: 43.18 | F81: 43.19 | G81: 9505900 | H81: 43.06 | I81: 0.996990044 | J81: 43.25 | K81: 43.38 | L81: 43.05 | M81: 43.06
A82: 72 | B82: 2012-02-28 | C82: 43.11 | D82: 43.37 | E82: 43.01 | F82: 43.35 | G82: 6126000 | H82: 43.22 | I82: 0.9970011534 | J82: 42.98 | K82: 43.24 | L82: 42.88 | M82: 43.22
A83: 73 | B83: 2012-02-27 | C83: 42.71 | D83: 43.17 | E83: 42.59 | F83: 43.11 | G83: 4435400 | H83: 42.98 | I83: 0.9969844584 | J83: 42.58 | K83: 43.04 | L83: 42.46 | M83: 42.98
A84: 74 | B84: 2012-02-24 | C84: 42.91 | D84: 43.04 | E84: 42.8 | F84: 42.86 | G84: 2770100 | H84: 42.73 | I84: 0.9969668689 | J84: 42.78 | K84: 42.91 | L84: 42.67 | M84: 42.73
A85: 75 | B85: 2012-02-23 | C85: 42.7 | D85: 42.93 | E85: 42.54 | F85: 42.91 | G85: 3536300 | H85: 42.78 | I85: 0.9969704032 | J85: 42.57 | K85: 42.8 | L85: 42.41 | M85: 42.78
A86: 76 | B86: 2012-02-22 | C86: 42.81 | D86: 42.88 | E86: 42.55 | F86: 42.7 | G86: 4632200 | H86: 42.57 | I86: 0.9969555035 | J86: 42.68 | K86: 42.75 | L86: 42.42 | M86: 42.57
A87: 77 | B87: 2012-02-21 | C87: 43.1 | D87: 43.21 | E87: 42.72 | F87: 42.81 | G87: 4118300 | H87: 42.68 | I87: 0.9969633263 | J87: 42.97 | K87: 43.08 | L87: 42.59 | M87: 42.68
A88: 78 | B88: 2012-02-17 | C88: 42.7 | D88: 43.03 | E88: 42.7 | F88: 42.96 | G88: 3370700 | H88: 42.83 | I88: 0.9969739292 | J88: 42.57 | K88: 42.9 | L88: 42.57 | M88: 42.83
A89: 79 | B89: 2012-02-16 | C89: 42.34 | D89: 42.65 | E89: 42.31 | F89: 42.59 | G89: 4967500 | H89: 42.46 | I89: 0.9969476403 | J89: 42.21 | K89: 42.52 | L89: 42.18 | M89: 42.46
A90: 80 | B90: 2012-02-15 | C90: 42.79 | D90: 42.87 | E90: 42.31 | F90: 42.41 | G90: 4970400 | H90: 42.28 | I90: 0.9969346852 | J90: 42.66 | K90: 42.74 | L90: 42.18 | M90: 42.28
A91: 81 | B91: 2012-02-14 | C91: 42.43 | D91: 42.63 | E91: 42.28 | F91: 42.6 | G91: 3854100 | H91: 42.47 | I91: 0.9969483568 | J91: 42.3 | K91: 42.5 | L91: 42.15 | M91: 42.47
A92: 82 | B92: 2012-02-13 | C92: 42.61 | D92: 42.71 | E92: 42.49 | F92: 42.65 | G92: 4839600 | H92: 42.52 | I92: 0.9969519343 | J92: 42.48 | K92: 42.58 | L92: 42.36 | M92: 42.52
A93: 83 | B93: 2012-02-10 | C93: 42.11 | D93: 42.36 | E93: 42.06 | F93: 42.31 | G93: 3183500 | H93: 42.18 | I93: 0.9969274403 | J93: 41.98 | K93: 42.23 | L93: 41.93 | M93: 42.18
A94: 84 | B94: 2012-02-09 | C94: 42.45 | D94: 42.58 | E94: 42.16 | F94: 42.54 | G94: 4129400 | H94: 42.41 | I94: 0.9969440527 | J94: 42.32 | K94: 42.45 | L94: 42.03 | M94: 42.41
A95: 85 | B95: 2012-02-08 | C95: 42.47 | D95: 42.67 | E95: 42.21 | F95: 42.47 | G95: 4260900 | H95: 42.34 | I95: 0.9969390158 | J95: 42.34 | K95: 42.54 | L95: 42.08 | M95: 42.34
A96: 86 | B96: 2012-02-07 | C96: 42.17 | D96: 42.43 | E96: 42.04 | F96: 42.37 | G96: 9408600 | H96: 42.24 | I96: 0.9969317914 | J96: 42.04 | K96: 42.3 | L96: 41.91 | M96: 42.24
A97: 87 | B97: 2012-02-06 | C97: 41.99 | D97: 42.24 | E97: 41.98 | F97: 42.17 | G97: 2585800 | H97: 42.04 | I97: 0.9969172397 | J97: 41.86 | K97: 42.11 | L97: 41.85 | M97: 42.04
A98: 88 | B98: 2012-02-03 | C98: 41.71 | D98: 42.26 | E98: 41.71 | F98: 42.26 | G98: 5561800 | H98: 42.13 | I98: 0.996923805 | J98: 41.58 | K98: 42.13 | L98: 41.58 | M98: 42.13
A99: 89 | B99: 2012-02-02 | C99: 41.44 | D99: 41.51 | E99: 41.21 | F99: 41.41 | G99: 3607100 | H99: 41.28 | I99: 0.9968606617 | J99: 41.31 | K99: 41.38 | L99: 41.08 | M99: 41.28
A100: 90 | B100: 2012-02-01 | C100: 41.4 | D100: 41.61 | E100: 41.31 | F100: 41.46 | G100: 5627200 | H100: 41.33 | I100: 0.9968644477 | J100: 41.27 | K100: 41.48 | L100: 41.18 | M100: 41.33
A101: 91 | B101: 2012-01-31 | C101: 41.59 | D101: 41.62 | E101: 41.16 | F101: 41.32 | G101: 3414200 | H101: 41.19 | I101: 0.9968538238 | J101: 41.46 | K101: 41.49 | L101: 41.03 | M101: 41.19
A102: 92 | B102: 2012-01-30 | C102: 41.09 | D102: 41.4 | E102: 40.83 | F102: 41.33 | G102: 4951600 | H102: 41.2 | I102: 0.996854585 | J102: 40.96 | K102: 41.27 | L102: 40.7 | M102: 41.2
A103: 93 | B103: 2012-01-27 | C103: 41.24 | D103: 41.53 | E103: 41.15 | F103: 41.45 | G103: 3381400 | H103: 41.32 | I103: 0.9968636912 | J103: 41.11 | K103: 41.4 | L103: 41.02 | M103: 41.32
A104: 94 | B104: 2012-01-26 | C104: 41.75 | D104: 41.9 | E104: 41.32 | F104: 41.48 | G104: 3739900 | H104: 41.35 | I104: 0.9968659595 | J104: 41.62 | K104: 41.77 | L104: 41.19 | M104: 41.35
A105: 95 | B105: 2012-01-25 | C105: 41.22 | D105: 41.64 | E105: 41.05 | F105: 41.55 | G105: 4075500 | H105: 41.42 | I105: 0.9968712395 | J105: 41.09 | K105: 41.51 | L105: 40.92 | M105: 41.42
A106: 96 | B106: 2012-01-24 | C106: 40.98 | D106: 41.27 | E106: 40.85 | F106: 41.25 | G106: 2817500 | H106: 41.12 | I106: 0.9968484848 | J106: 40.85 | K106: 41.14 | L106: 40.72 | M106: 41.12
A107: 97 | B107: 2012-01-23 | C107: 41.17 | D107: 41.42 | E107: 40.85 | F107: 41.13 | G107: 2931200 | H107: 41 | I107: 0.9968392901 | J107: 41.04 | K107: 41.29 | L107: 40.72 | M107: 41
A108: 98 | B108: 2012-01-20 | C108: 41.49 | D108: 41.49 | E108: 41.04 | F108: 41.16 | G108: 6034000 | H108: 41.03 | I108: 0.9968415938 | J108: 41.36 | K108: 41.36 | L108: 40.91 | M108: 41.03
A109: 99 | B109: 2012-01-19 | C109: 41.2 | D109: 41.57 | E109: 41.15 | F109: 41.5 | G109: 3951700 | H109: 41.37 | I109: 0.9968674699 | J109: 41.07 | K109: 41.44 | L109: 41.02 | M109: 41.37
A110: 100 | B110: 2012-01-18 | C110: 40.57 | D110: 41.18 | E110: 40.41 | F110: 41.14 | G110: 4465000 | H110: 41.01 | I110: 0.9968400583 | J110: 40.44 | K110: 41.05 | L110: 40.28 | M110: 41.01
A111: 101 | B111: 2012-01-17 | C111: 40.61 | D111: 40.75 | E111: 40.43 | F111: 40.49 | G111: 2358700 | H111: 40.37 | I111: 0.9970363053 | J111: 40.49 | K111: 40.63 | L111: 40.31 | M111: 40.37
A112: 102 | B112: 2012-01-13 | C112: 40.2 | D112: 40.38 | E112: 39.97 | F112: 40.38 | G112: 3423200 | H112: 40.26 | I112: 0.9970282318 | J112: 40.08 | K112: 40.26 | L112: 39.85 | M112: 40.26
A113: 103 | B113: 2012-01-12 | C113: 40.39 | D113: 40.49 | E113: 40.08 | F113: 40.43 | G113: 2094100 | H113: 40.31 | I113: 0.997031907 | J113: 40.27 | K113: 40.37 | L113: 39.96 | M113: 40.31
A114: 104 | B114: 2012-01-11 | C114: 40.18 | D114: 40.39 | E114: 40.16 | F114: 40.31 | G114: 2610500 | H114: 40.19 | I114: 0.9970230712 | J114: 40.06 | K114: 40.27 | L114: 40.04 | M114: 40.19
A115: 105 | B115: 2012-01-10 | C115: 40.33 | D115: 40.35 | E115: 40.11 | F115: 40.25 | G115: 3856500 | H115: 40.13 | I115: 0.9970186335 | J115: 40.21 | K115: 40.23 | L115: 39.99 | M115: 40.13
A116: 106 | B116: 2012-01-09 | C116: 40.16 | D116: 40.16 | E116: 39.83 | F116: 39.99 | G116: 3071400 | H116: 39.87 | I116: 0.9969992498 | J116: 40.04 | K116: 40.04 | L116: 39.71 | M116: 39.87
A117: 107 | B117: 2012-01-06 | C117: 40.01 | D117: 40.2 | E117: 39.8 | F117: 40.05 | G117: 3092600 | H117: 39.93 | I117: 0.9970037453 | J117: 39.89 | K117: 40.08 | L117: 39.68 | M117: 39.93
A118: 108 | B118: 2012-01-05 | C118: 39.44 | D118: 39.99 | E118: 39.23 | F118: 39.99 | G118: 4576300 | H118: 39.87 | I118: 0.9969992498 | J118: 39.32 | K118: 39.87 | L118: 39.11 | M118: 39.87
A119: 109 | B119: 2012-01-04 | C119: 39.28 | D119: 39.75 | E119: 39.28 | F119: 39.66 | G119: 3118300 | H119: 39.54 | I119: 0.9969742814 | J119: 39.16 | K119: 39.63 | L119: 39.16 | M119: 39.54
A120: 110 | B120: 2012-01-03 | C120: 39.67 | D120: 39.81 | E120: 39.35 | F120: 39.35 | G120: 12055500 | H120: 39.23 | I120: 0.9969504447 | J120: 39.55 | K120: 39.69 | L120: 39.23 | M120: 39.23
A121: 111 | B121: 2011-12-30 | C121: 39.21 | D121: 39.26 | E121: 39.02 | F121: 39.02 | G121: 1987600 | H121: 38.9 | I121: 0.996924654 | J121: 39.09 | K121: 39.14 | L121: 38.9 | M121: 38.9
A122: 112 | B122: 2011-12-29 | C122: 38.88 | D122: 39.27 | E122: 38.88 | F122: 39.27 | G122: 2319700 | H122: 39.15 | I122: 0.9969442322 | J122: 38.76 | K122: 39.15 | L122: 38.76 | M122: 39.15
A123: 113 | B123: 2011-12-28 | C123: 39.41 | D123: 39.41 | E123: 38.75 | F123: 38.87 | G123: 2668000 | H123: 38.75 | I123: 0.9969127862 | J123: 39.29 | K123: 39.29 | L123: 38.63 | M123: 38.75
A124: 114 | B124: 2011-12-27 | C124: 39.03 | D124: 39.39 | E124: 39 | F124: 39.3 | G124: 2113100 | H124: 39.18 | I124: 0.9969465649 | J124: 38.91 | K124: 39.27 | L124: 38.88 | M124: 39.18
A125: 115 | B125: 2011-12-23 | C125: 38.94 | D125: 39.21 | E125: 38.86 | F125: 39.18 | G125: 1991600 | H125: 39.06 | I125: 0.9969372129 | J125: 38.82 | K125: 39.09 | L125: 38.74 | M125: 39.06
A126: 116 | B126: 2011-12-22 | C126: 38.8 | D126: 38.84 | E126: 38.62 | F126: 38.75 | G126: 3421700 | H126: 38.63 | I126: 0.9969032258 | J126: 38.68 | K126: 38.72 | L126: 38.5 | M126: 38.63
A127: 117 | B127: 2011-12-21 | C127: 38.57 | D127: 38.74 | E127: 38.28 | F127: 38.64 | G127: 3355500 | H127: 38.52 | I127: 0.9968944099 | J127: 38.45 | K127: 38.62 | L127: 38.16 | M127: 38.52
A128: 118 | B128: 2011-12-20 | C128: 38.05 | D128: 38.59 | E128: 38.01 | F128: 38.51 | G128: 5791700 | H128: 38.39 | I128: 0.9968839263 | J128: 37.93 | K128: 38.47 | L128: 37.89 | M128: 38.39
A129: 119 | B129: 2011-12-19 | C129: 38 | D129: 38.2 | E129: 37.37 | F129: 37.48 | G129: 5161400 | H129: 37.36 | I129: 0.9967982924 | J129: 37.88 | K129: 38.08 | L129: 37.25 | M129: 37.36
A130: 120 | B130: 2011-12-16 | C130: 38.15 | D130: 38.36 | E130: 37.84 | F130: 37.9 | G130: 12432000 | H130: 37.78 | I130: 0.9968337731 | J130: 38.03 | K130: 38.24 | L130: 37.72 | M130: 37.78
A131: 121 | B131: 2011-12-15 | C131: 38.36 | D131: 38.43 | E131: 38.06 | F131: 38.12 | G131: 7489400 | H131: 37.78 | I131: 0.9910807975 | J131: 38.02 | K131: 38.09 | L131: 37.72 | M131: 37.78
A132: 122 | B132: 2011-12-14 | C132: 38.38 | D132: 38.38 | E132: 37.81 | F132: 38.06 | G132: 7996500 | H132: 37.72 | I132: 0.9910667367 | J132: 38.04 | K132: 38.04 | L132: 37.47 | M132: 37.72
A133: 123 | B133: 2011-12-13 | C133: 39.42 | D133: 39.48 | E133: 38.3 | F133: 38.46 | G133: 7897800 | H133: 38.12 | I133: 0.9911596464 | J133: 39.07 | K133: 39.13 | L133: 37.96 | M133: 38.12
A134: 124 | B134: 2011-12-12 | C134: 39.06 | D134: 39.27 | E134: 38.68 | F134: 39.23 | G134: 14243900 | H134: 38.88 | I134: 0.9910782564 | J134: 38.71 | K134: 38.92 | L134: 38.33 | M134: 38.88
A135: 125 | B135: 2011-12-09 | C135: 38.91 | D135: 39.49 | E135: 38.9 | F135: 39.35 | G135: 6603100 | H135: 39 | I135: 0.9911054638 | J135: 38.56 | K135: 39.14 | L135: 38.55 | M135: 39
A136: 126 | B136: 2011-12-08 | C136: 39.34 | D136: 39.45 | E136: 38.64 | F136: 38.71 | G136: 6413700 | H136: 38.37 | I136: 0.9912167399 | J136: 38.99 | K136: 39.1 | L136: 38.3 | M136: 38.37
A137: 127 | B137: 2011-12-07 | C137: 39.15 | D137: 39.73 | E137: 38.95 | F137: 39.55 | G137: 4717900 | H137: 39.2 | I137: 0.9911504425 | J137: 38.8 | K137: 39.38 | L137: 38.61 | M137: 39.2
A138: 128 | B138: 2011-12-06 | C138: 39.39 | D138: 39.53 | E138: 39.19 | F138: 39.3 | G138: 6142100 | H138: 38.95 | I138: 0.9910941476 | J138: 39.04 | K138: 39.18 | L138: 38.84 | M138: 38.95
A139: 129 | B139: 2011-12-05 | C139: 39.67 | D139: 39.75 | E139: 39.19 | F139: 39.43 | G139: 4591700 | H139: 39.08 | I139: 0.99112351 | J139: 39.32 | K139: 39.4 | L139: 38.84 | M139: 39.08
A140: 130 | B140: 2011-12-02 | C140: 39.21 | D140: 39.43 | E140: 39.04 | F140: 39.07 | G140: 5729400 | H140: 38.73 | I140: 0.9912976708 | J140: 38.87 | K140: 39.09 | L140: 38.7 | M140: 38.73
A141: 131 | B141: 2011-12-01 | C141: 38.69 | D141: 39.54 | E141: 38.61 | F141: 38.77 | G141: 4376000 | H141: 38.43 | I141: 0.9912303327 | J141: 38.35 | K141: 39.19 | L141: 38.27 | M141: 38.43
A142: 132 | B142: 2011-11-30 | C142: 38.63 | D142: 38.78 | E142: 38.31 | F142: 38.74 | G142: 8710200 | H142: 38.4 | I142: 0.9912235416 | J142: 38.29 | K142: 38.44 | L142: 37.97 | M142: 38.4
A143: 133 | B143: 2011-11-29 | C143: 37.55 | D143: 37.78 | E143: 37.39 | F143: 37.57 | G143: 4841600 | H143: 37.24 | I143: 0.9912163961 | J143: 37.22 | K143: 37.45 | L143: 37.06 | M143: 37.24
A144: 134 | B144: 2011-11-28 | C144: 37.34 | D144: 37.67 | E144: 37.21 | F144: 37.44 | G144: 5567200 | H144: 37.11 | I144: 0.9911858974 | J144: 37.01 | K144: 37.34 | L144: 36.88 | M144: 37.11
A145: 135 | B145: 2011-11-25 | C145: 36.39 | D145: 36.78 | E145: 36.33 | F145: 36.33 | G145: 2988700 | H145: 36.01 | I145: 0.9911918525 | J145: 36.07 | K145: 36.46 | L145: 36.01 | M145: 36.01
A146: 136 | B146: 2011-11-23 | C146: 36.91 | D146: 37.04 | E146: 36.49 | F146: 36.53 | G146: 4668900 | H146: 36.21 | I146: 0.9912400766 | J146: 36.59 | K146: 36.72 | L146: 36.17 | M146: 36.21
A147: 137 | B147: 2011-11-22 | C147: 37.23 | D147: 37.46 | E147: 36.91 | F147: 37.27 | G147: 3932800 | H147: 36.94 | I147: 0.9911456936 | J147: 36.9 | K147: 37.13 | L147: 36.58 | M147: 36.94
A148: 138 | B148: 2011-11-21 | C148: 37.37 | D148: 37.45 | E148: 36.82 | F148: 37.29 | G148: 5852300 | H148: 36.96 | I148: 0.9911504425 | J148: 37.04 | K148: 37.12 | L148: 36.49 | M148: 36.96
A149: 139 | B149: 2011-11-18 | C149: 38.07 | D149: 38.13 | E149: 37.65 | F149: 37.88 | G149: 3869900 | H149: 37.55 | I149: 0.9912882788 | J149: 37.74 | K149: 37.8 | L149: 37.32 | M149: 37.55
A150: 140 | B150: 2011-11-17 | C150: 38.53 | D150: 38.62 | E150: 37.69 | F150: 37.9 | G150: 6999700 | H150: 37.57 | I150: 0.991292876 | J150: 38.19 | K150: 38.28 | L150: 37.36 | M150: 37.57
A151: 141 | B151: 2011-11-16 | C151: 38.97 | D151: 39.3 | E151: 38.51 | F151: 38.58 | G151: 4901800 | H151: 38.24 | I151: 0.9911871436 | J151: 38.63 | K151: 38.95 | L151: 38.17 | M151: 38.24
A152: 142 | B152: 2011-11-15 | C152: 39.01 | D152: 39.53 | E152: 38.83 | F152: 39.32 | G152: 3898100 | H152: 38.97 | I152: 0.9910986775 | J152: 38.66 | K152: 39.18 | L152: 38.48 | M152: 38.97
A153: 143 | B153: 2011-11-14 | C153: 39.29 | D153: 39.52 | E153: 39.02 | F153: 39.18 | G153: 3483800 | H153: 38.83 | I153: 0.9910668709 | J153: 38.94 | K153: 39.17 | L153: 38.67 | M153: 38.83
A154: 144 | B154: 2011-11-11 | C154: 38.88 | D154: 39.56 | E154: 38.88 | F154: 39.47 | G154: 6706500 | H154: 39.12 | I154: 0.9911325057 | J154: 38.54 | K154: 39.21 | L154: 38.54 | M154: 39.12
A155: 145 | B155: 2011-11-10 | C155: 38.54 | D155: 38.6 | E155: 37.99 | F155: 38.5 | G155: 6754400 | H155: 38.16 | I155: 0.9911688312 | J155: 38.2 | K155: 38.26 | L155: 37.65 | M155: 38.16
A156: 146 | B156: 2011-11-09 | C156: 38.76 | D156: 38.8 | E156: 38 | F156: 38.14 | G156: 6888200 | H156: 37.8 | I156: 0.9910854746 | J156: 38.41 | K156: 38.45 | L156: 37.66 | M156: 37.8
